Workbook

Sheet Inputs
B9: Common Inputs
B10: Number of turbines | D10: 300
B11: Distance from shore (km) | D11: 120
B12: Capacity of turbines (MW) | D12: 6
B13: Workshift hours/day | D13: 12
B14: Speed (knots) | D14: 20
B15: Cost of personnel (pounds/hour) | D15: 40
B16: Lifetime (years) | D16: 25
B17: Speed (km/h) | D17: =D14*0.5144*3.6 -> 37.0368
B18: Operators (SHARING) % | D18: 1
B19: Discount rate | D19: 0.02
B25: Corrective Detailed Analysis Inputs | F25: Corrective Inputs | I25: Detailed corrective analysis (No Offshore Accommodation)
B26: Failure per yr | C26: Offshore turbine | D26: Repair category | E26: Probability
B27: Electrical | C27: 0.27 | D27: A | E27: 0.9 | F27: Processes: Time involved | K27: Case A | L27: Case B | M27: Case C | N27: Case D | O27: Case E
C28: 0.27 | D28: C | E28: 0.08 | F28: Acclimatisation | H28: 0.5 | I28: Logistics Time (hr) | K28: 0 | L28: 8 | M28: 48 | N28: 120 | O28: 500
C29: 0.27 | D29: D | E29: 0.02 | F29: Preparation (hr) | H29: 0.3 | I29: Waiting Time (hr) | K29: 70 | L29: 70 | M29: 70 | N29: 70 | O29: 70
B30: Control unit | C30: 0.21 | D30: A | E30: 0.5 | F30: Break (hr) | H30: 0.5
C31: 0.21 | D31: C | E31: 0.5 | F31: Transfer to WT (hr) | H31: 1.3
B32: Inverter | C32: 0.2 | D32: A | E32: 0.9 | I32: Detailed corrective analysis (Mothership)
C33: 0.2 | D33: C | E33: 0.1 | F33: Large replacements (E)
B34: Yaw system | C34: 0.2 | D34: A | E34: 0.65 | F34: Jack-up speed km/hr | H34: 16.7 | K34: Case A | L34: Case B | M34: Case C | N34: Case D | O34: Case E
C35: 0.2 | D35: C | E35: 0.34 | F35: E Repair time* | H35: 96 | I35: Logistics Time (hr) | K35: 0 | L35: 8 | M35: 48 | N35: 120 | O35: 500
C36: 0.2 | D36: E | E36: 0.01 | F36: Positioning jack-up (hr) | H36: 3 | I36: Waiting Time (hr) | K36: 30 | L36: 30 | M36: 30 | N36: 30 | O36: 30
B37: Brakes | C37: 0.05 | D37: A | E37: 0.8
C38: 0.05 | D38: C | E38: 0.2 | F38: Large replacements (D)
B39: Gearbox | C39: 0.25 | D39: A | E39: 0.85 | F39: Speed of crane ship km/hr | H39: 15 | I39: Detailed corrective analysis (Jack-Up)
C40: 0.25 | D40: C | E40: 0.05 | F40: Repair time* | H40: 96
C41: 0.25 | D41: D | E41: 0.1 | K41: Case A | L41: Case B | M41: Case C | N41: Case D | O41: Case E
B42: Generator | C42: 0.13 | D42: A | E42: 0.5 | F42: Cost inputs | I42: Logistics Time (hr) | K42: 0 | L42: 8 | M42: 48 | N42: 0 | O42: 0
C43: 0.13 | D43: C | E43: 0.2 | F43: Electricity Price (£/KWh) | H43: =0.08/1.36 -> 0.05882352941 | I43: Waiting Time (hr) | K43: 70 | L43: 70 | M43: 70 | N43: 70 | O43: 70
C44: 0.13 | D44: D | E44: 0.3 | F44: Capacity Factor far-offshore | H44: 0.45
B45: Pitch | C45: 0.15 | D45: A | E45: 0.5
C46: 0.15 | D46: C | E46: 0.5
B47: Blade | C47: 0.07 | D47: B | E47: 0.2
C48: 0.07 | D48: C | E48: 0.2
C49: 0.07 | D49: D | E49: 0.59
C50: 0.07 | D50: E | E50: 0.01
B51: Shaft and bearing | C51: 0.01 | D51: A | E51: 0.1
C52: 0.01 | D52: E | E52: 0.9
B55: Preventive Inputs | F55: Cost of Vessels Inputs
B56: Time among turbines (h) | D56: 0.8 | F56: CTV 1 | J56: Mothership | N56: Jack-Up
B57: Technicians per turbine working | D57: 3 | G57: Day | H57: Year | I57: Total | K57: Day | L57: Year | M57: Total | O57: Day | P57: Year | Q57: Total
B58: Turbines/CTV | D58: 4 | F58: Spot Market | G58: 1081 | J58: Spot Market | K58: 37534 | N58: Spot Market | O58: 160564
B59: Hour of maintenance/turbine/year | D59: 21.5 | F59: Long Term (1 year) | H59: 287949 | J59: Long Term (1 year) | L59: 10000000 | N59: Long Term (1 year) | P59: 42778000
B60: Upper limit of days estimated | D60: 60 | F60: Purchased | I60: 1664442 | J60: Purchased | M60: 57803468 | N60: Purchased (20 year) | Q60: 247271676
B61: Lower limit of days estimated | D61: 0 | F61: O&M Purchased | I61: =0.02*I60 -> 33288.84 | J61: O&M Purchased | M61: =M60*0.02 -> 1156069.36 | N61: O&M Purchased | Q61: =0.02*Q60 -> 4945433.52
F62: Increase O&M Year | I62: 0.01 | J62: Increase O&M Year | M62: 0.01 | N62: Increase O&M Year | Q62: 0.01
F63: Days per year | I63: 200 | N63: Days per year | Q63: 190
F64: Limit to operate (nm - km) | H64: 60 | I64: =1.852*H64 -> 111.12
F65: CTV 2
G66: Day | H66: Year | I66: Total
F67: Spot Market | G67: 1880
F68: Long Term (1 year) | H68: 500780
F69: Purchased (20 year) | I69: 2894682
F70: O&M Purchased | I70: =I69*I71 -> 57893.64
F71: Increase O&M Year | I71: 0.02

Sheet Outputs
Q2: Solutions | S2: Maximum Cost | T2: Minimum Cost
Q3: =CTV!K66 -> No Offshore Accomm_Spot Market | R3: 844999592 | S3: 1064420851 | T3: 536862768
Q4: =CTV!L66 -> No Offshore Accomm_Charter | R4: 885844831.8
Q5: =CTV!M66 -> No Offshore Accomm_Purchase | R5: 823363625.5
B6: Select Solution 1 | Q6: ='Mothership Vessel'!K64 -> Moth_Spot Market + CTV_Spot Market | R6: 722076722
Q7: ='Mothership Vessel'!L64 -> Moth_Spot Market + CTV_Charter | R7: 750048742.2
Q8: ='Mothership Vessel'!M64 -> Moth_Spot Market + CTV_Purchase | R8: 722956604.2
B9: Select Solution 2 | Q9: ='Mothership Vessel'!Y64 -> Moth_Charter + CTV_Spot Market | R9: 878424506.6
Q10: ='Mothership Vessel'!Z64 -> Moth_Charter + CTV_Charter | R10: 906396526.8
Q11: ='Mothership Vessel'!AA64 -> Moth_Charter + CTV_Purchase | R11: 879304388.8
B12: Solution minimum cost (lifecycle) | Q12: ='Mothership Vessel'!AM64 -> Moth_Purchase + CTV_Spot Market | R12: 761433075.1
B13: =J25 -> JackUp_Purchase + CTV_Purchase | Q13: ='Mothership Vessel'!AN64 -> Moth_Purchase + CTV_Charter | R13: 789405095.3
Q14: ='Mothership Vessel'!AO64 -> Moth_Purchase + CTV_Purchase | R14: 762312957.3
B15: Solution maximum cost (lifecycle) | Q15: ='Jack-Up'!K64 -> JackUp_Spot Market + CTV_Spot Market | R15: 875744768.1
B16: =N25 -> JackUp_Charter + CTV_Charter | Q16: ='Jack-Up'!L64 -> JackUp_Spot Market + CTV_Charter | R16: 902588429.7
Q17: ='Jack-Up'!M64 -> JackUp_Spot Market + CTV_Purchase | R17: 875496291.7
Q18: ='Jack-Up'!Y64 -> JackUp_Charter + CTV_Spot Market | R18: 1037577189
Q19: ='Jack-Up'!Z64 -> JackUp_Charter + CTV_Charter | R19: 1064420851
Q20: ='Jack-Up'!AA64 -> JackUp_Charter + CTV_Purchase | R20: 1037328713
Q21: ='Jack-Up'!AM64 -> JackUp_Purchase + CTV_Spot Market | R21: 537111244.4
Q22: ='Jack-Up'!AN64 -> JackUp_Purchase + CTV_Charter | R22: 563954906
Q23: ='Jack-Up'!AO64 -> JackUp_Purchase + CTV_Purchase | R23: 536862768
B25: No Offshore Accomm_Spot Market | F25: JackUp_Purchase + CTV_Purchase | J25: JackUp_Purchase + CTV_Purchase | N25: JackUp_Charter + CTV_Charter
B26: Year | C26: Total Cost | F26: Year | G26: Total Cost | J26: Year | K26: Total Cost | N26: Year | O26: Total Cost
B27: 1 | C27: 49426045.2 | F27: 1 | G27: 268849826.9 | J27: 1 | K27: 268849826.9 | N27: 1 | O27: 54780542.87
B28: 2 | C28: 91027305.38 | F28: 2 | G28: 282269352.6 | J28: 2 | K28: 282269352.6 | N28: 2 | O28: 107197904.7
B29: 3 | C29: 135088894.9 | F29: 3 | G29: 296101527.4 | J29: 3 | K29: 296101527.4 | N29: 3 | O29: 159215161.8
B30: 4 | C30: 175673165.3 | F30: 4 | G30: 309188559.6 | J30: 4 | K30: 309188559.6 | N30: 4 | O30: 209690930.2
B31: 5 | C31: 215295430.6 | F31: 5 | G31: 322055310.2 | J31: 5 | K31: 322055310.2 | N31: 5 | O31: 259166152.4
B32: 6 | C32: 253480168.8 | F32: 6 | G32: 334569832.6 | J32: 6 | K32: 334569832.6 | N32: 6 | O32: 307524643.4
B33: 7 | C33: 289302962.6 | F33: 7 | G33: 346576887 | J33: 7 | K33: 346576887 | N33: 7 | O33: 354626611.5
B34: 8 | C34: 326609948.9 | F34: 8 | G34: 358817468.3 | J34: 8 | K34: 358817468.3 | N34: 8 | O34: 401228192.1
B35: 9 | C35: 361999135.3 | F35: 9 | G35: 370626292.3 | J35: 9 | K35: 370626292.3 | N35: 9 | O35: 446678940.3
B36: 10 | C36: 395174239.2 | F36: 10 | G36: 381957922.1 | J36: 10 | K36: 381957922.1 | N36: 10 | O36: 490947963.1
B37: 11 | C37: 427918819.1 | F37: 11 | G37: 393168776.1 | J37: 11 | K37: 393168776.1 | N37: 11 | O37: 534405933.3
B38: 12 | C38: 460364627.1 | F38: 12 | G38: 404259669.7 | J38: 12 | K38: 404259669.7 | N38: 12 | O38: 577067637
B39: 13 | C39: 492722217.3 | F39: 13 | G39: 415286183.9 | J39: 13 | K39: 415286183.9 | N39: 13 | O39: 619002347.4
B40: 14 | C40: 524115396.1 | F40: 14 | G40: 426085961.3 | J40: 14 | K40: 426085961.3 | N40: 14 | O40: 660061126.9
B41: 15 | C41: 554689805.7 | F41: 15 | G41: 436664077.2 | J41: 15 | K41: 436664077.2 | N41: 15 | O41: 700262203.1
B42: 16 | C42: 584347580.5 | F42: 16 | G42: 447025491 | J42: 16 | K42: 447025491 | N42: 16 | O42: 739623425.7
B43: 17 | C43: 614747235.9 | F43: 17 | G43: 457478561.7 | J43: 17 | K43: 457478561.7 | N43: 17 | O43: 778465787.1
B44: 18 | C44: 646153097.7 | F44: 18 | G44: 468065715.7 | J44: 18 | K44: 468065715.7 | N44: 18 | O44: 816844095.5
B45: 19 | C45: 671855094 | F45: 19 | G45: 477513931.1 | J45: 19 | K45: 477513931.1 | N45: 19 | O45: 853497463.7
B46: 20 | C46: 700317308.6 | F46: 20 | G46: 487437243.7 | J46: 20 | K46: 487437243.7 | N46: 20 | O46: 890051820.6
B47: 21 | C47: 729619427.6 | F47: 21 | G47: 497483788.9 | J47: 21 | K47: 497483788.9 | N47: 21 | O47: 926166957.4
B48: 22 | C48: 758952507.4 | F48: 22 | G48: 507491943.9 | J48: 22 | K48: 507491943.9 | N48: 22 | O48: 961692674.4
B49: 23 | C49: 788303801.3 | F49: 23 | G49: 517459542.1 | J49: 23 | K49: 517459542.1 | N49: 23 | O49: 996638000.7
B50: 24 | C50: 817661111.3 | F50: 24 | G50: 527384558.8 | J50: 24 | K50: 527384558.8 | N50: 24 | O50: 1031011884
B51: 25 | C51: 844999592 | F51: 25 | G51: 536862768 | J51: 25 | K51: 536862768 | N51: 25 | O51: 1064420851

Sheet CTV
G2: No Offshore Accommodation
B3: Common Inputs
B4: Number of turbines | D4: =Inputs!D10 -> 300
B5: Distance from shore (km) | D5: =Inputs!D11 -> 120
B6: Capacity of turbines (MW) | D6: =Inputs!D12 -> 6
B7: Workshift hours/day | D7: =Inputs!D13 -> 12
B8: Speed (knots) | D8: =Inputs!D14 -> 20
B9: Cost of personnel (pounds/hour) | D9: =Inputs!D15 -> 40
B10: Lifetime (years) | D10: =Inputs!D16 -> 25
B11: Speed (km/h) | D11: =Inputs!D17 -> 37.0368
B12: Operators (SHARING) % | D12: =Inputs!D18 -> 1
B13: Discount rate | D13: =Inputs!D19 -> 0.02 | G13: Preventive Intermediate Outputs | J13: Preventive Costs | O13: Year | P13: 1 | Q13: 2 | R13: 3 | S13: 4 | T13: 5 | U13: 6 | V13: 7 | W13: 8 | X13: 9 | Y13: 10 | Z13: 11 | AA13: 12 | AB13: 13 | AC13: 14 | AD13: 15 | AE13: 16 | AF13: 17 | AG13: 18 | AH13: 19 | AI13: 20 | AJ13: 21 | AK13: 22 | AL13: 23 | AM13: 24 | AN13: 25 | AO13: 26 | AP13: 27 | AQ13: 28 | AR13: 29 | AS13: 30
B14: Preventive Inputs | O14: Case A | P14: =$D$57*'Corrective Analysis'!H5 -> 130.6752443 | Q14: =$D$57*'Corrective Analysis'!I5 -> 110.8816216 | R14: =$D$57*'Corrective Analysis'!J5 -> 120.7126199 | S14: =$D$57*'Corrective Analysis'!K5 -> 112.3807101 | T14: =$D$57*'Corrective Analysis'!L5 -> 112.204312 | U14: =$D$57*'Corrective Analysis'!M5 -> 109.7672052 | V14: =$D$57*'Corrective Analysis'!N5 -> 104.5401954 | W14: =$D$57*'Corrective Analysis'!O5 -> 111.8580091 | X14: =$D$57*'Corrective Analysis'!P5 -> 107.6764013 | Y14: =$D$57*'Corrective Analysis'!Q5 -> 102.4493915 | Z14: =$D$57*'Corrective Analysis'!R5 -> 103.4947935 | AA14: =$D$57*'Corrective Analysis'!S5 -> 104.5401954 | AB14: =$D$57*'Corrective Analysis'!T5 -> 106.6309993 | AC14: =$D$57*'Corrective Analysis'!U5 -> 105.5855974 | AD14: =$D$57*'Corrective Analysis'!V5 -> 104.5401954 | AE14: =$D$57*'Corrective Analysis'!W5 -> 103.4947935 | AF14: =$D$57*'Corrective Analysis'!X5 -> 108.7218032 | AG14: =$D$57*'Corrective Analysis'!Y5 -> 114.994215 | AH14: =$D$57*'Corrective Analysis'!Z5 -> 94.08617587 | AI14: =$D$57*'Corrective Analysis'!AA5 -> 107.6764013 | AJ14: =$D$57*'Corrective Analysis'!AB5 -> 113.8846765 | AK14: =$D$57*'Corrective Analysis'!AC5 -> 116.5935122 | AL14: =$D$57*'Corrective Analysis'!AD5 -> 119.2976841 | AM14: =$D$57*'Corrective Analysis'!AE5 -> 121.9981889 | AN14: =$D$57*'Corrective Analysis'!AF5 -> 114.9540193 | AO14: =$D$57*'Corrective Analysis'!AG5 -> 125.4316468 | AP14: =$D$57*'Corrective Analysis'!AH5 -> 112.3467641 | AQ14: =$D$57*'Corrective Analysis'!AI5 -> 130.7973027 | AR14: =$D$57*'Corrective Analysis'!AJ5 -> 133.4798317 | AS14: =$D$57*'Corrective Analysis'!AK5 -> 136.1627296
B15: Time among turbines (h) | D15: =Inputs!D56 -> 0.8 | G15: Number of CTV | H15: 9 | N15: Downtimes (h) | O15: Case B | P15: =$E$57*'Corrective Analysis'!H6 -> 1.879851089 | Q15: =$E$57*'Corrective Analysis'!I6 -> 1.595106543 | R15: =$E$57*'Corrective Analysis'!J6 -> 1.736532051 | S15: =$E$57*'Corrective Analysis'!K6 -> 1.616671936 | T15: =$E$57*'Corrective Analysis'!L6 -> 1.614134332 | U15: =$E$57*'Corrective Analysis'!M6 -> 1.579074914 | V15: =$E$57*'Corrective Analysis'!N6 -> 1.503880871 | W15: =$E$57*'Corrective Analysis'!O6 -> 1.609152532 | X15: =$E$57*'Corrective Analysis'!P6 -> 1.548997297 | Y15: =$E$57*'Corrective Analysis'!Q6 -> 1.473803253 | Z15: =$E$57*'Corrective Analysis'!R6 -> 1.488842062 | AA15: =$E$57*'Corrective Analysis'!S6 -> 1.503880871 | AB15: =$E$57*'Corrective Analysis'!T6 -> 1.533958488 | AC15: =$E$57*'Corrective Analysis'!U6 -> 1.51891968 | AD15: =$E$57*'Corrective Analysis'!V6 -> 1.503880871 | AE15: =$E$57*'Corrective Analysis'!W6 -> 1.488842062 | AF15: =$E$57*'Corrective Analysis'!X6 -> 1.564036106 | AG15: =$E$57*'Corrective Analysis'!Y6 -> 1.654268958 | AH15: =$E$57*'Corrective Analysis'!Z6 -> 1.353492784 | AI15: =$E$57*'Corrective Analysis'!AA6 -> 1.548997297 | AJ15: =$E$57*'Corrective Analysis'!AB6 -> 1.638307503 | AK15: =$E$57*'Corrective Analysis'!AC6 -> 1.677275923 | AL15: =$E$57*'Corrective Analysis'!AD6 -> 1.71617725 | AM15: =$E$57*'Corrective Analysis'!AE6 -> 1.755025824 | AN15: =$E$57*'Corrective Analysis'!AF6 -> 1.653690717 | AO15: =$E$57*'Corrective Analysis'!AG6 -> 1.80441842 | AP15: =$E$57*'Corrective Analysis'!AH6 -> 1.616183601 | AQ15: =$E$57*'Corrective Analysis'!AI6 -> 1.881606982 | AR15: =$E$57*'Corrective Analysis'!AJ6 -> 1.920196961 | AS15: =$E$57*'Corrective Analysis'!AK6 -> 1.958792247
B16: Technicians per turbine working | D16: =Inputs!D57 -> 3 | G16: Days required per year | H16: =D4*H20/(D17*H15) -> 58.33333333 | J16: Cost personnel/year | K16: =D7*H16*D9*(H15*12) -> 3024000 | O16: Case C | P16: =$F$57*'Corrective Analysis'!H7 -> 86.51983639 | Q16: =$F$57*'Corrective Analysis'!I7 -> 73.41451562 | R16: =$F$57*'Corrective Analysis'!J7 -> 79.92360132 | S16: =$F$57*'Corrective Analysis'!K7 -> 74.40705929 | T16: =$F$57*'Corrective Analysis'!L7 -> 74.29026646 | U16: =$F$57*'Corrective Analysis'!M7 -> 72.67666256 | V16: =$F$57*'Corrective Analysis'!N7 -> 69.21586911 | W16: =$F$57*'Corrective Analysis'!O7 -> 74.06097995 | X16: =$F$57*'Corrective Analysis'!P7 -> 71.29234518 | Y16: =$F$57*'Corrective Analysis'!Q7 -> 67.83155173 | Z16: =$F$57*'Corrective Analysis'!R7 -> 68.52371042 | AA16: =$F$57*'Corrective Analysis'!S7 -> 69.21586911 | AB16: =$F$57*'Corrective Analysis'!T7 -> 70.60018649 | AC16: =$F$57*'Corrective Analysis'!U7 -> 69.9080278 | AD16: =$F$57*'Corrective Analysis'!V7 -> 69.21586911 | AE16: =$F$57*'Corrective Analysis'!W7 -> 68.52371042 | AF16: =$F$57*'Corrective Analysis'!X7 -> 71.98450387 | AG16: =$F$57*'Corrective Analysis'!Y7 -> 76.13745602 | AH16: =$F$57*'Corrective Analysis'!Z7 -> 62.2942822 | AI16: =$F$57*'Corrective Analysis'!AA7 -> 71.29234518 | AJ16: =$F$57*'Corrective Analysis'!AB7 -> 75.40283268 | AK16: =$F$57*'Corrective Analysis'!AC7 -> 77.19634777 | AL16: =$F$57*'Corrective Analysis'!AD7 -> 78.98677493 | AM16: =$F$57*'Corrective Analysis'!AE7 -> 80.77477418 | AN16: =$F$57*'Corrective Analysis'!AF7 -> 76.11084258 | AO16: =$F$57*'Corrective Analysis'!AG7 -> 83.04806023 | AP16: =$F$57*'Corrective Analysis'!AH7 -> 74.38458376 | AQ16: =$F$57*'Corrective Analysis'!AI7 -> 86.60065107 | AR16: =$F$57*'Corrective Analysis'!AJ7 -> 88.3767485 | AS16: =$F$57*'Corrective Analysis'!AK7 -> 90.1530902
B17: Turbines/CTV | D17: =Inputs!D58 -> 4 | G17: Time available employing /CTV | H17: =H16*D7 -> 700 | O17: Case D | P17: =$G$57*'Corrective Analysis'!H8 -> 40.68225 | Q17: =$G$57*'Corrective Analysis'!I8 -> 34.52003382 | R17: =$G$57*'Corrective Analysis'!J8 -> 37.58065278 | S17: =$G$57*'Corrective Analysis'!K8 -> 34.986735 | T17: =$G$57*'Corrective Analysis'!L8 -> 34.93181817 | U17: =$G$57*'Corrective Analysis'!M8 -> 34.17309 | V17: =$G$57*'Corrective Analysis'!N8 -> 32.5458 | W17: =$G$57*'Corrective Analysis'!O8 -> 34.824006 | X17: =$G$57*'Corrective Analysis'!P8 -> 33.522174 | Y17: =$G$57*'Corrective Analysis'!Q8 -> 31.894884 | Z17: =$G$57*'Corrective Analysis'!R8 -> 32.220342 | AA17: =$G$57*'Corrective Analysis'!S8 -> 32.5458 | AB17: =$G$57*'Corrective Analysis'!T8 -> 33.196716 | AC17: =$G$57*'Corrective Analysis'!U8 -> 32.871258 | AD17: =$G$57*'Corrective Analysis'!V8 -> 32.5458 | AE17: =$G$57*'Corrective Analysis'!W8 -> 32.220342 | AF17: =$G$57*'Corrective Analysis'!X8 -> 33.847632 | AG17: =$G$57*'Corrective Analysis'!Y8 -> 35.80038 | AH17: =$G$57*'Corrective Analysis'!Z8 -> 29.29122 | AI17: =$G$57*'Corrective Analysis'!AA8 -> 33.522174 | AJ17: =$G$57*'Corrective Analysis'!AB8 -> 35.45495482 | AK17: =$G$57*'Corrective Analysis'!AC8 -> 36.29827853 | AL17: =$G$57*'Corrective Analysis'!AD8 -> 37.14015027 | AM17: =$G$57*'Corrective Analysis'!AE8 -> 37.98088039 | AN17: =$G$57*'Corrective Analysis'!AF8 -> 35.78786617 | AO17: =$G$57*'Corrective Analysis'!AG8 -> 39.04979586 | AP17: =$G$57*'Corrective Analysis'!AH8 -> 34.97616684 | AQ17: =$G$57*'Corrective Analysis'!AI8 -> 40.72024965 | AR17: =$G$57*'Corrective Analysis'!AJ8 -> 41.55538344 | AS17: =$G$57*'Corrective Analysis'!AK8 -> 42.3906321
B18: Hour of maintenance/turbine/year | D18: =Inputs!D59 -> 21.5 | G18: Travel Time from shore (hours) | H18: =D5/D11*2 -> 6.480041472 | O18: Case E | P18: =$H$57*'Corrective Analysis'!H9 -> 9.871875 | Q18: =$H$57*'Corrective Analysis'!I9 -> 8.376563707 | R18: =$H$57*'Corrective Analysis'!J9 -> 9.119247502 | S18: =$H$57*'Corrective Analysis'!K9 -> 8.4898125 | T18: =$H$57*'Corrective Analysis'!L9 -> 8.476486489 | U18: =$H$57*'Corrective Analysis'!M9 -> 8.292375 | V18: =$H$57*'Corrective Analysis'!N9 -> 7.8975 | W18: =$H$57*'Corrective Analysis'!O9 -> 8.450325 | X18: =$H$57*'Corrective Analysis'!P9 -> 8.134425 | Y18: =$H$57*'Corrective Analysis'!Q9 -> 7.73955 | Z18: =$H$57*'Corrective Analysis'!R9 -> 7.818525 | AA18: =$H$57*'Corrective Analysis'!S9 -> 7.8975 | AB18: =$H$57*'Corrective Analysis'!T9 -> 8.05545 | AC18: =$H$57*'Corrective Analysis'!U9 -> 7.976475 | AD18: =$H$57*'Corrective Analysis'!V9 -> 7.8975 | AE18: =$H$57*'Corrective Analysis'!W9 -> 7.818525 | AF18: =$H$57*'Corrective Analysis'!X9 -> 8.2134 | AG18: =$H$57*'Corrective Analysis'!Y9 -> 8.68725 | AH18: =$H$57*'Corrective Analysis'!Z9 -> 7.10775 | AI18: =$H$57*'Corrective Analysis'!AA9 -> 8.134425 | AJ18: =$H$57*'Corrective Analysis'!AB9 -> 8.603429802 | AK18: =$H$57*'Corrective Analysis'!AC9 -> 8.80806908 | AL18: =$H$57*'Corrective Analysis'!AD9 -> 9.012356026 | AM18: =$H$57*'Corrective Analysis'!AE9 -> 9.216365948 | AN18: =$H$57*'Corrective Analysis'!AF9 -> 8.684213418 | AO18: =$H$57*'Corrective Analysis'!AG9 -> 9.475746879 | AP18: =$H$57*'Corrective Analysis'!AH9 -> 8.487248052 | AQ18: =$H$57*'Corrective Analysis'!AI9 -> 9.881095919 | AR18: =$H$57*'Corrective Analysis'!AJ9 -> 10.08374785 | AS18: =$H$57*'Corrective Analysis'!AK9 -> 10.28642765
G19: Effective time/day (hours) | H19: =D7-H18-H21 -> 3.119958528 | O19: Total | P19: =SUM(P14:P18) -> 269.6290567 | Q19: =SUM(Q14:Q18) -> 228.7878413 | R19: 249.0726536 | S19: 231.8809888 | T19: 231.5170174 | U19: 226.4884077 | V19: 215.7032454 | W19: 230.8024726 | X19: 222.1743428 | Y19: 211.3891805 | Z19: 213.5462129 | AA19: 215.7032454 | AB19: 220.0173103 | AC19: 217.8602778 | AD19: 215.7032454 | AE19: 213.5462129 | AF19: 224.3313752 | AG19: 237.2735699 | AH19: 194.1329209 | AI19: 222.1743428 | AJ19: 234.9842013 | AK19: 240.5734835 | AL19: 246.1531426 | AM19: 251.7252353 | AN19: 237.1906322 | AO19: 258.8096682 | AP19: 231.8109464 | AQ19: 269.8809063 | AR19: 275.4159084 | AS19: 280.9516718
B20: Upper limit of days estimated | D20: =Inputs!D60 -> 60 | G20: Days to accomplish maint for 1 turb | H20: =ROUNDUP(D18/H19,0) -> 7 | J20: Total cost Personnel | K20: =K16 -> 3024000
B21: Lower limit of days estimated | D21: =Inputs!D61 -> 0 | G21: Time among turbines/day | H21: =D15*(D17-1) -> 2.4
O22: Case A | P22: =$D$54*'Corrective Analysis'!H5 -> 38.66899427 | Q22: =$D$54*'Corrective Analysis'!I5 -> 32.81172968 | R22: =$D$54*'Corrective Analysis'!J5 -> 35.7208868 | S22: =$D$54*'Corrective Analysis'!K5 -> 33.25533507 | T22: =$D$54*'Corrective Analysis'!L5 -> 33.20313592 | U22: =$D$54*'Corrective Analysis'!M5 -> 32.48195518 | V22: =$D$54*'Corrective Analysis'!N5 -> 30.93519541 | W22: =$D$54*'Corrective Analysis'!O5 -> 33.10065909 | X22: =$D$54*'Corrective Analysis'!P5 -> 31.86325127 | Y22: =$D$54*'Corrective Analysis'!Q5 -> 30.3164915 | Z22: =$D$54*'Corrective Analysis'!R5 -> 30.62584346 | AA22: =$D$54*'Corrective Analysis'!S5 -> 30.93519541 | AB22: =$D$54*'Corrective Analysis'!T5 -> 31.55389932 | AC22: =$D$54*'Corrective Analysis'!U5 -> 31.24454737 | AD22: =$D$54*'Corrective Analysis'!V5 -> 30.93519541 | AE22: =$D$54*'Corrective Analysis'!W5 -> 30.62584346 | AF22: =$D$54*'Corrective Analysis'!X5 -> 32.17260323 | AG22: =$D$54*'Corrective Analysis'!Y5 -> 34.02871495 | AH22: =$D$54*'Corrective Analysis'!Z5 -> 27.84167587 | AI22: =$D$54*'Corrective Analysis'!AA5 -> 31.86325127 | AJ22: =$D$54*'Corrective Analysis'!AB5 -> 33.70038394 | AK22: =$D$54*'Corrective Analysis'!AC5 -> 34.50197381 | AL22: =$D$54*'Corrective Analysis'!AD5 -> 35.30218357 | AM22: =$D$54*'Corrective Analysis'!AE5 -> 36.10130821 | AN22: =$D$54*'Corrective Analysis'!AF5 -> 34.0168204 | AO22: =$D$54*'Corrective Analysis'!AG5 -> 37.11732591 | AP22: =$D$54*'Corrective Analysis'!AH5 -> 33.2452899 | AQ22: =$D$54*'Corrective Analysis'!AI5 -> 38.70511341 | AR22: =$D$54*'Corrective Analysis'!AJ5 -> 39.49891867 | AS22: =$D$54*'Corrective Analysis'!AK5 -> 40.29283311
O23: Case B | P23: =$E$54*'Corrective Analysis'!H6 -> 0.5148510886 | Q23: =$E$54*'Corrective Analysis'!I6 -> 0.4368656353 | R23: =$E$54*'Corrective Analysis'!J6 -> 0.4755990634 | S23: =$E$54*'Corrective Analysis'!K6 -> 0.4427719362 | T23: =$E$54*'Corrective Analysis'!L6 -> 0.4420769405 | U23: =$E$54*'Corrective Analysis'!M6 -> 0.4324749145 | V23: =$E$54*'Corrective Analysis'!N6 -> 0.4118808709 | W23: =$E$54*'Corrective Analysis'!O6 -> 0.4407125319 | X23: =$E$54*'Corrective Analysis'!P6 -> 0.424237297 | Y23: =$E$54*'Corrective Analysis'!Q6 -> 0.4036432535 | Z23: =$E$54*'Corrective Analysis'!R6 -> 0.4077620622 | AA23: =$E$54*'Corrective Analysis'!S6 -> 0.4118808709 | AB23: =$E$54*'Corrective Analysis'!T6 -> 0.4201184883 | AC23: =$E$54*'Corrective Analysis'!U6 -> 0.4159996796 | AD23: =$E$54*'Corrective Analysis'!V6 -> 0.4118808709 | AE23: =$E$54*'Corrective Analysis'!W6 -> 0.4077620622 | AF23: =$E$54*'Corrective Analysis'!X6 -> 0.4283561058 | AG23: =$E$54*'Corrective Analysis'!Y6 -> 0.453068958 | AH23: =$E$54*'Corrective Analysis'!Z6 -> 0.3706927838 | AI23: =$E$54*'Corrective Analysis'!AA6 -> 0.424237297 | AJ23: =$E$54*'Corrective Analysis'!AB6 -> 0.4486974561 | AK23: =$E$54*'Corrective Analysis'!AC6 -> 0.4593700746 | AL23: =$E$54*'Corrective Analysis'!AD6 -> 0.4700243177 | AM23: =$E$54*'Corrective Analysis'!AE6 -> 0.4806641131 | AN23: =$E$54*'Corrective Analysis'!AF6 -> 0.4529105902 | AO23: =$E$54*'Corrective Analysis'!AG6 -> 0.4941916907 | AP23: =$E$54*'Corrective Analysis'!AH6 -> 0.4426381917 | AQ23: =$E$54*'Corrective Analysis'!AI6 -> 0.5153319902 | AR23: =$E$54*'Corrective Analysis'!AJ6 -> 0.5259009619 | AS23: =$E$54*'Corrective Analysis'!AK6 -> 0.5364713871
B24: Corrective Inputs | N24: Actual downtimes (h) | O24: Case C | P24: =$F$54*'Corrective Analysis'!H7 -> 34.58508639 | Q24: =$F$54*'Corrective Analysis'!I7 -> 29.34641893 | R24: =$F$54*'Corrective Analysis'!J7 -> 31.9483343 | S24: =$F$54*'Corrective Analysis'!K7 -> 29.74317429 | T24: =$F$54*'Corrective Analysis'!L7 -> 29.696488 | U24: =$F$54*'Corrective Analysis'!M7 -> 29.05147256 | V24: =$F$54*'Corrective Analysis'!N7 -> 27.66806911 | W24: =$F$54*'Corrective Analysis'!O7 -> 29.60483395 | X24: =$F$54*'Corrective Analysis'!P7 -> 28.49811118 | Y24: =$F$54*'Corrective Analysis'!Q7 -> 27.11470773 | Z24: =$F$54*'Corrective Analysis'!R7 -> 27.39138842 | AA24: =$F$54*'Corrective Analysis'!S7 -> 27.66806911 | AB24: =$F$54*'Corrective Analysis'!T7 -> 28.22143049 | AC24: =$F$54*'Corrective Analysis'!U7 -> 27.9447498 | AD24: =$F$54*'Corrective Analysis'!V7 -> 27.66806911 | AE24: =$F$54*'Corrective Analysis'!W7 -> 27.39138842 | AF24: =$F$54*'Corrective Analysis'!X7 -> 28.77479187 | AG24: =$F$54*'Corrective Analysis'!Y7 -> 30.43487602 | AH24: =$F$54*'Corrective Analysis'!Z7 -> 24.9012622 | AI24: =$F$54*'Corrective Analysis'!AA7 -> 28.49811118 | AJ24: =$F$54*'Corrective Analysis'!AB7 -> 30.14122068 | AK24: =$F$54*'Corrective Analysis'!AC7 -> 30.85815309 | AL24: =$F$54*'Corrective Analysis'!AD7 -> 31.57385114 | AM24: =$F$54*'Corrective Analysis'!AE7 -> 32.28857866 | AN24: =$F$54*'Corrective Analysis'!AF7 -> 30.42423767 | AO24: =$F$54*'Corrective Analysis'!AG7 -> 33.19729275 | AP24: =$F$54*'Corrective Analysis'!AH7 -> 29.73419001 | AQ24: =$F$54*'Corrective Analysis'!AI7 -> 34.61739092 | AR24: =$F$54*'Corrective Analysis'!AJ7 -> 35.32736086 | AS24: =$F$54*'Corrective Analysis'!AK7 -> 36.03742844
O25: Case D | P25: =$G$54*'Corrective Analysis'!H8 -> 14.391 | Q25: =$G$54*'Corrective Analysis'!I8 -> 12.21116843 | R25: =$G$54*'Corrective Analysis'!J8 -> 13.29383636 | S25: =$G$54*'Corrective Analysis'!K8 -> 12.37626 | T25: =$G$54*'Corrective Analysis'!L8 -> 12.35683364 | U25: =$G$54*'Corrective Analysis'!M8 -> 12.08844 | V25: =$G$54*'Corrective Analysis'!N8 -> 11.5128 | W25: =$G$54*'Corrective Analysis'!O8 -> 12.318696 | X25: =$G$54*'Corrective Analysis'!P8 -> 11.858184 | Y25: =$G$54*'Corrective Analysis'!Q8 -> 11.282544 | Z25: =$G$54*'Corrective Analysis'!R8 -> 11.397672 | AA25: =$G$54*'Corrective Analysis'!S8 -> 11.5128 | AB25: =$G$54*'Corrective Analysis'!T8 -> 11.743056 | AC25: =$G$54*'Corrective Analysis'!U8 -> 11.627928 | AD25: =$G$54*'Corrective Analysis'!V8 -> 11.5128 | AE25: =$G$54*'Corrective Analysis'!W8 -> 11.397672 | AF25: =$G$54*'Corrective Analysis'!X8 -> 11.973312 | AG25: =$G$54*'Corrective Analysis'!Y8 -> 12.66408 | AH25: =$G$54*'Corrective Analysis'!Z8 -> 10.36152 | AI25: =$G$54*'Corrective Analysis'!AA8 -> 11.858184 | AJ25: =$G$54*'Corrective Analysis'!AB8 -> 12.54188878 | AK25: =$G$54*'Corrective Analysis'!AC8 -> 12.84020737 | AL25: =$G$54*'Corrective Analysis'!AD8 -> 13.13801234 | AM25: =$G$54*'Corrective Analysis'!AE8 -> 13.43541347 | AN25: =$G$54*'Corrective Analysis'!AF8 -> 12.65965334 | AO25: =$G$54*'Corrective Analysis'!AG8 -> 13.81353323 | AP25: =$G$54*'Corrective Analysis'!AH8 -> 12.3725216 | AQ25: =$G$54*'Corrective Analysis'!AI8 -> 14.40444205 | AR25: =$G$54*'Corrective Analysis'!AJ8 -> 14.69986353 | AS25: =$G$54*'Corrective Analysis'!AK8 -> 14.99532564
B26: Processes: Time involved | O26: Case E | P26: =$H$54*'Corrective Analysis'!H9 -> 1.535625 | Q26: =$H$54*'Corrective Analysis'!I9 -> 1.303021021 | R26: =$H$54*'Corrective Analysis'!J9 -> 1.418549611 | S26: =$H$54*'Corrective Analysis'!K9 -> 1.3206375 | T26: =$H$54*'Corrective Analysis'!L9 -> 1.318564565 | U26: =$H$54*'Corrective Analysis'!M9 -> 1.289925 | V26: =$H$54*'Corrective Analysis'!N9 -> 1.2285 | W26: =$H$54*'Corrective Analysis'!O9 -> 1.314495 | X26: =$H$54*'Corrective Analysis'!P9 -> 1.265355 | Y26: =$H$54*'Corrective Analysis'!Q9 -> 1.20393 | Z26: =$H$54*'Corrective Analysis'!R9 -> 1.216215 | AA26: =$H$54*'Corrective Analysis'!S9 -> 1.2285 | AB26: =$H$54*'Corrective Analysis'!T9 -> 1.25307 | AC26: =$H$54*'Corrective Analysis'!U9 -> 1.240785 | AD26: =$H$54*'Corrective Analysis'!V9 -> 1.2285 | AE26: =$H$54*'Corrective Analysis'!W9 -> 1.216215 | AF26: =$H$54*'Corrective Analysis'!X9 -> 1.27764 | AG26: =$H$54*'Corrective Analysis'!Y9 -> 1.35135 | AH26: =$H$54*'Corrective Analysis'!Z9 -> 1.10565 | AI26: =$H$54*'Corrective Analysis'!AA9 -> 1.265355 | AJ26: =$H$54*'Corrective Analysis'!AB9 -> 1.338311303 | AK26: =$H$54*'Corrective Analysis'!AC9 -> 1.370144079 | AL26: =$H$54*'Corrective Analysis'!AD9 -> 1.401922048 | AM26: =$H$54*'Corrective Analysis'!AE9 -> 1.433656925 | AN26: =$H$54*'Corrective Analysis'!AF9 -> 1.350877643 | AO26: =$H$54*'Corrective Analysis'!AG9 -> 1.47400507 | AP26: =$H$54*'Corrective Analysis'!AH9 -> 1.320238586 | AQ26: =$H$54*'Corrective Analysis'!AI9 -> 1.537059365 | AR26: =$H$54*'Corrective Analysis'!AJ9 -> 1.568582999 | AS26: =$H$54*'Corrective Analysis'!AK9 -> 1.600110968
B27: Travel time from harbour (h) | D27: =D5/D11 -> 3.240020736 | O27: Total | P27: =SUM(P22:P26) -> 89.69555674 | Q27: =SUM(Q22:Q26) -> 76.1092037 | R27: 82.85720613 | S27: 77.1381788 | T27: 77.01709907 | U27: 75.34426766 | V27: 71.75644539 | W27: 76.77939657 | X27: 73.90913875 | Y27: 70.32131648 | Z27: 71.03888094 | AA27: 71.75644539 | AB27: 73.1915743 | AC27: 72.47400985 | AD27: 71.75644539 | AE27: 71.03888094 | AF27: 74.62670321 | AG27: 78.93208993 | AH27: 64.58080085 | AI27: 73.90913875 | AJ27: 78.17050216 | AK27: 80.02984843 | AL27: 81.88599342 | AM27: 83.73962138 | AN27: 78.90449964 | AO27: 86.09634865 | AP27: 77.1148783 | AQ27: 89.77933773 | AR27: 91.62062702 | AS27: 93.46216955
B28: Acclimatisation | D28: =Inputs!H28 -> 0.5
B29: Preparation (hr) | D29: =Inputs!H29 -> 0.3
B30: Break (hr) | D30: =Inputs!H30 -> 0.5 | U30: Year | V30: Outage Cost | W30: Small Replacements (days per turb) | X30: Small Replacements (available) | Y30: Small Replacements (required)** | Z30: Small Replacements (required) | AA30: Cost Vessels (Small Replacement-Charter) | AB30: Cost Vessels (Small Replacement-Spot) | AC30: Large Replacements (days per turb) | AD30: Large Replacements (available) | AE30: Large Replacements (required)** | AF30: Large Replacements (required) | AG30: Large Replacements (required) | AH30: Cost Vessels (Large Replacement)
B31: Transfer to WT (hr) | D31: =Inputs!H31 -> 1.3 | U31: 1 | V31: =P19*$D$46*$D$47*$D$6*1000*$D$4 -> 12847031.53 | W31: =ROUNDUP((P22+P23+P24)/24*$D$4,0) -> 923 | X31: =$H$15*('Cost Vessels'!$D$10) -> 1800 | Y31: =W31-X31 -> -877 | Z31: =IF(Y31>0,Y31,0) -> 0 | AA31: =Z31*IF($D$5<'Cost Vessels'!$D$11,'Cost Vessels'!$B$5,'Cost Vessels'!$B$16) -> 0 | AB31: =W31*IF($D$5<'Cost Vessels'!$D$11,'Cost Vessels'!$B$5,'Cost Vessels'!$B$16) -> 1735240 | AC31: =ROUNDUP((P25+P26)/24*$D$4,0) -> 200 | AD31: - | AE31: - | AF31: - | AG31: =AC31 -> 200 | AH31: =AG31*'Cost Vessels'!$L$5 -> 32112800
B32: Effective time (hr) | D32: =D7-D30-D31-D28-D29-D27*2 -> 2.919958528 | U32: 2 | V32: =Q19*$D$46*$D$47*$D$6*1000*$D$4 -> 10901067.73 | W32: =ROUNDUP((Q22+Q23+Q24)/24*$D$4,0) -> 783 | X32: =$H$15*('Cost Vessels'!$D$10) -> 1800 | Y32: =W32-X32 -> -1017 | Z32: =IF(Y32>0,Y32,0) -> 0 | AA32: =Z32*IF($D$5<'Cost Vessels'!$D$11,'Cost Vessels'!$B$5,'Cost Vessels'!$B$16) -> 0 | AB32: =W32*IF($D$5<'Cost Vessels'!$D$11,'Cost Vessels'!$B$5,'Cost Vessels'!$B$16) -> 1472040 | AC32: =ROUNDUP((Q25+Q26)/24*$D$4,0) -> 169 | AD32: - | AE32: - | AF32: - | AG32: =AC32 -> 169 | AH32: =AG32*'Cost Vessels'!$L$5 -> 27135316
U33: 3 | V33: =R19*$D$46*$D$47*$D$6*1000*$D$4 -> 11867579.38 | W33: =ROUNDUP((R22+R23+R24)/24*$D$4,0) -> 852 | X33: =$H$15*('Cost Vessels'!$D$10) -> 1800 | Y33: -948 | Z33: 0 | AA33: =Z33*IF($D$5<'Cost Vessels'!$D$11,'Cost Vessels'!$B$5,'Cost Vessels'!$B$16) -> 0 | AB33: =W33*IF($D$5<'Cost Vessels'!$D$11,'Cost Vessels'!$B$5,'Cost Vessels'!$B$16) -> 1601760 | AC33: =ROUNDUP((R25+R26)/24*$D$4,0) -> 184 | AD33: - | AE33: - | AF33: - | AG33: 184 | AH33: =AG33*'Cost Vessels'!$L$5 -> 29543776
B34: Large replacements (E) | U34: 4 | V34: =S19*$D$46*$D$47*$D$6*1000*$D$4 -> 11048447.11 | W34: =ROUNDUP((S22+S23+S24)/24*$D$4,0) -> 794 | X34: =$H$15*('Cost Vessels'!$D$10) -> 1800 | Y34: -1006 | Z34: 0 | AA34: =Z34*IF($D$5<'Cost Vessels'!$D$11,'Cost Vessels'!$B$5,'Cost Vessels'!$B$16) -> 0 | AB34: =W34*IF($D$5<'Cost Vessels'!$D$11,'Cost Vessels'!$B$5,'Cost Vessels'!$B$16) -> 1492720 | AC34: =ROUNDUP((S25+S26)/24*$D$4,0) -> 172 | AD34: - | AE34: - | AF34: - | AG34: 172 | AH34: =AG34*'Cost Vessels'!$L$5 -> 27617008
B35: Jack-up speed km/hr | D35: =Inputs!H34 -> 16.7 | U35: 5 | V35: =T19*$D$46*$D$47*$D$6*1000*$D$4 -> 11031104.95 | W35: =ROUNDUP((T22+T23+T24)/24*$D$4,0) -> 792 | X35: =$H$15*('Cost Vessels'!$D$10) -> 1800 | Y35: -1008 | Z35: 0 | AA35: =Z35*IF($D$5<'Cost Vessels'!$D$11,'Cost Vessels'!$B$5,'Cost Vessels'!$B$16) -> 0 | AB35: =W35*IF($D$5<'Cost Vessels'!$D$11,'Cost Vessels'!$B$5,'Cost Vessels'!$B$16) -> 1488960 | AC35: =ROUNDUP((T25+T26)/24*$D$4,0) -> 171 | AD35: - | AE35: - | AF35: - | AG35: 171 | AH35: =AG35*'Cost Vessels'!$L$5 -> 27456444
B36: E Repair time* | D36: =Inputs!H35 -> 96 | U36: 6 | V36: =U19*$D$46*$D$47*$D$6*1000*$D$4 -> 10791506.48 | W36: =ROUNDUP((U22+U23+U24)/24*$D$4,0) -> 775 | X36: =$H$15*('Cost Vessels'!$D$10) -> 1800 | Y36: -1025 | Z36: 0 | AA36: =Z36*IF($D$5<'Cost Vessels'!$D$11,'Cost Vessels'!$B$5,'Cost Vessels'!$B$16) -> 0 | AB36: =W36*IF($D$5<'Cost Vessels'!$D$11,'Cost Vessels'!$B$5,'Cost Vessels'!$B$16) -> 1457000 | AC36: =ROUNDUP((U25+U26)/24*$D$4,0) -> 168 | AD36: - | AE36: - | AF36: - | AG36: 168 | AH36: =AG36*'Cost Vessels'!$L$5 -> 26974752
B37: Travel time | D37: =D5/D35 -> 7.185628743 | U37: 7 | V37: =V19*$D$46*$D$47*$D$6*1000*$D$4 -> 10277625.22 | W37: =ROUNDUP((V22+V23+V24)/24*$D$4,0) -> 738 | X37: =$H$15*('Cost Vessels'!$D$10) -> 1800 | Y37: -1062 | Z37: 0 | AA37: =Z37*IF($D$5<'Cost Vessels'!$D$11,'Cost Vessels'!$B$5,'Cost Vessels'!$B$16) -> 0 | AB37: =W37*IF($D$5<'Cost Vessels'!$D$11,'Cost Vessels'!$B$5,'Cost Vessels'!$B$16) -> 1387440 | AC37: =ROUNDUP((V25+V26)/24*$D$4,0) -> 160 | AD37: - | AE37: - | AF37: - | AG37: 160 | AH37: =AG37*'Cost Vessels'!$L$5 -> 25690240
B38: Positioning jack-up (hr) | D38: =Inputs!H36 -> 3 | U38: 8 | V38: =W19*$D$46*$D$47*$D$6*1000*$D$4 -> 10997058.99 | W38: =ROUNDUP((W22+W23+W24)/24*$D$4,0) -> 790 | X38: =$H$15*('Cost Vessels'!$D$10) -> 1800 | Y38: -1010 | Z38: 0 | AA38: =Z38*IF($D$5<'Cost Vessels'!$D$11,'Cost Vessels'!$B$5,'Cost Vessels'!$B$16) -> 0 | AB38: =W38*IF($D$5<'Cost Vessels'!$D$11,'Cost Vessels'!$B$5,'Cost Vessels'!$B$16) -> 1485200 | AC38: =ROUNDUP((W25+W26)/24*$D$4,0) -> 171 | AD38: - | AE38: - | AF38: - | AG38: 171 | AH38: =AG38*'Cost Vessels'!$L$5 -> 27456444
U39: 9 | V39: =X19*$D$46*$D$47*$D$6*1000*$D$4 -> 10585953.98 | W39: =ROUNDUP((X22+X23+X24)/24*$D$4,0) -> 760 | X39: =$H$15*('Cost Vessels'!$D$10) -> 1800 | Y39: -1040 | Z39: 0 | AA39: =Z39*IF($D$5<'Cost Vessels'!$D$11,'Cost Vessels'!$B$5,'Cost Vessels'!$B$16) -> 0 | AB39: =W39*IF($D$5<'Cost Vessels'!$D$11,'Cost Vessels'!$B$5,'Cost Vessels'!$B$16) -> 1428800 | AC39: =ROUNDUP((X25+X26)/24*$D$4,0) -> 165 | AD39: - | AE39: - | AF39: - | AG39: 165 | AH39: =AG39*'Cost Vessels'!$L$5 -> 26493060
B40: Large replacements (D) | U40: 10 | V40: =Y19*$D$46*$D$47*$D$6*1000*$D$4 -> 10072072.72 | W40: =ROUNDUP((Y22+Y23+Y24)/24*$D$4,0) -> 723 | X40: =$H$15*('Cost Vessels'!$D$10) -> 1800 | Y40: -1077 | Z40: 0 | AA40: =Z40*IF($D$5<'Cost Vessels'!$D$11,'Cost Vessels'!$B$5,'Cost Vessels'!$B$16) -> 0 | AB40: =W40*IF($D$5<'Cost Vessels'!$D$11,'Cost Vessels'!$B$5,'Cost Vessels'!$B$16) -> 1359240 | AC40: =ROUNDUP((Y25+Y26)/24*$D$4,0) -> 157 | AD40: - | AE40: - | AF40: - | AG40: 157 | AH40: =AG40*'Cost Vessels'!$L$5 -> 25208548
B41: Speed of crane ship km/hr | D41: =Inputs!H39 -> 15 | U41: 11 | V41: =Z19*$D$46*$D$47*$D$6*1000*$D$4 -> 10174848.97 | W41: =ROUNDUP((Z22+Z23+Z24)/24*$D$4,0) -> 731 | X41: =$H$15*('Cost Vessels'!$D$10) -> 1800 | Y41: -1069 | Z41: 0 | AA41: =Z41*IF($D$5<'Cost Vessels'!$D$11,'Cost Vessels'!$B$5,'Cost Vessels'!$B$16) -> 0 | AB41: =W41*IF($D$5<'Cost Vessels'!$D$11,'Cost Vessels'!$B$5,'Cost Vessels'!$B$16) -> 1374280 | AC41: =ROUNDUP((Z25+Z26)/24*$D$4,0) -> 158 | AD41: - | AE41: - | AF41: - | AG41: 158 | AH41: =AG41*'Cost Vessels'!$L$5 -> 25369112
B42: Repair time* | D42: =Inputs!H40 -> 96 | U42: 12 | V42: =AA19*$D$46*$D$47*$D$6*1000*$D$4 -> 10277625.22 | W42: =ROUNDUP((AA22+AA23+AA24)/24*$D$4,0) -> 738 | X42: =$H$15*('Cost Vessels'!$D$10) -> 1800 | Y42: -1062 | Z42: 0 | AA42: =Z42*IF($D$5<'Cost Vessels'!$D$11,'Cost Vessels'!$B$5,'Cost Vessels'!$B$16) -> 0 | AB42: =W42*IF($D$5<'Cost Vessels'!$D$11,'Cost Vessels'!$B$5,'Cost Vessels'!$B$16) -> 1387440 | AC42: =ROUNDUP((AA25+AA26)/24*$D$4,0) -> 160 | AD42: - | AE42: - | AF42: - | AG42: 160 | AH42: =AG42*'Cost Vessels'!$L$5 -> 25690240
B43: Travel time | D43: =D5/D41 -> 8 | U43: 13 | V43: =AB19*$D$46*$D$47*$D$6*1000*$D$4 -> 10483177.73 | W43: =ROUNDUP((AB22+AB23+AB24)/24*$D$4,0) -> 753 | X43: =$H$15*('Cost Vessels'!$D$10) -> 1800 | Y43: -1047 | Z43: 0 | AA43: =Z43*IF($D$5<'Cost Vessels'!$D$11,'Cost Vessels'!$B$5,'Cost Vessels'!$B$16) -> 0 | AB43: =W43*IF($D$5<'Cost Vessels'!$D$11,'Cost Vessels'!$B$5,'Cost Vessels'!$B$16) -> 1415640 | AC43: =ROUNDUP((AB25+AB26)/24*$D$4,0) -> 163 | AD43: - | AE43: - | AF43: - | AG43: 163 | AH43: =AG43*'Cost Vessels'!$L$5 -> 26171932
U44: 14 | V44: =AC19*$D$46*$D$47*$D$6*1000*$D$4 -> 10380401.47 | W44: =ROUNDUP((AC22+AC23+AC24)/24*$D$4,0) -> 746 | X44: =$H$15*('Cost Vessels'!$D$10) -> 1800 | Y44: -1054 | Z44: 0 | AA44: =Z44*IF($D$5<'Cost Vessels'!$D$11,'Cost Vessels'!$B$5,'Cost Vessels'!$B$16) -> 0 | AB44: =W44*IF($D$5<'Cost Vessels'!$D$11,'Cost Vessels'!$B$5,'Cost Vessels'!$B$16) -> 1402480 | AC44: =ROUNDUP((AC25+AC26)/24*$D$4,0) -> 161 | AD44: - | AE44: - | AF44: - | AG44: 161 | AH44: =AG44*'Cost Vessels'!$L$5 -> 25850804
B45: Cost inputs | U45: 15 | V45: =AD19*$D$46*$D$47*$D$6*1000*$D$4 -> 10277625.22 | W45: =ROUNDUP((AD22+AD23+AD24)/24*$D$4,0) -> 738 | X45: =$H$15*('Cost Vessels'!$D$10) -> 1800 | Y45: -1062 | Z45: 0 | AA45: =Z45*IF($D$5<'Cost Vessels'!$D$11,'Cost Vessels'!$B$5,'Cost Vessels'!$B$16) -> 0 | AB45: =W45*IF($D$5<'Cost Vessels'!$D$11,'Cost Vessels'!$B$5,'Cost Vessels'!$B$16) -> 1387440 | AC45: =ROUNDUP((AD25+AD26)/24*$D$4,0) -> 160 | AD45: - | AE45: - | AF45: - | AG45: 160 | AH45: =AG45*'Cost Vessels'!$L$5 -> 25690240
B46: Electricity Price (£/KWh) | D46: =Inputs!H43 -> 0.05882352941 | U46: 16 | V46: =AE19*$D$46*$D$47*$D$6*1000*$D$4 -> 10174848.97 | W46: =ROUNDUP((AE22+AE23+AE24)/24*$D$4,0) -> 731 | X46: =$H$15*('Cost Vessels'!$D$10) -> 1800 | Y46: -1069 | Z46: 0 | AA46: =Z46*IF($D$5<'Cost Vessels'!$D$11,'Cost Vessels'!$B$5,'Cost Vessels'!$B$16) -> 0 | AB46: =W46*IF($D$5<'Cost Vessels'!$D$11,'Cost Vessels'!$B$5,'Cost Vessels'!$B$16) -> 1374280 | AC46: =ROUNDUP((AE25+AE26)/24*$D$4,0) -> 158 | AD46: - | AE46: - | AF46: - | AG46: 158 | AH46: =AG46*'Cost Vessels'!$L$5 -> 25369112
B47: Capacity Factor far-offshore | D47: =Inputs!H44 -> 0.45 | U47: 17 | V47: =AF19*$D$46*$D$47*$D$6*1000*$D$4 -> 10688730.23 | W47: =ROUNDUP((AF22+AF23+AF24)/24*$D$4,0) -> 768 | X47: =$H$15*('Cost Vessels'!$D$10) -> 1800 | Y47: -1032 | Z47: 0 | AA47: =Z47*IF($D$5<'Cost Vessels'!$D$11,'Cost Vessels'!$B$5,'Cost Vessels'!$B$16) -> 0 | AB47: =W47*IF($D$5<'Cost Vessels'!$D$11,'Cost Vessels'!$B$5,'Cost Vessels'!$B$16) -> 1443840 | AC47: =ROUNDUP((AF25+AF26)/24*$D$4,0) -> 166 | AD47: - | AE47: - | AF47: - | AG47: 166 | AH47: =AG47*'Cost Vessels'!$L$5 -> 26653624
U48: 18 | V48: =AG19*$D$46*$D$47*$D$6*1000*$D$4 -> 11305387.74 | W48: =ROUNDUP((AG22+AG23+AG24)/24*$D$4,0) -> 812 | X48: =$H$15*('Cost Vessels'!$D$10) -> 1800 | Y48: -988 | Z48: 0 | AA48: =Z48*IF($D$5<'Cost Vessels'!$D$11,'Cost Vessels'!$B$5,'Cost Vessels'!$B$16) -> 0 | AB48: =W48*IF($D$5<'Cost Vessels'!$D$11,'Cost Vessels'!$B$5,'Cost Vessels'!$B$16) -> 1526560 | AC48: =ROUNDUP((AG25+AG26)/24*$D$4,0) -> 176 | AD48: - | AE48: - | AF48: - | AG48: 176 | AH48: =AG48*'Cost Vessels'!$L$5 -> 28259264
B49: Detailed corrective analysis | U49: 19 | V49: =AH19*$D$46*$D$47*$D$6*1000*$D$4 -> 9249862.699 | W49: =ROUNDUP((AH22+AH23+AH24)/24*$D$4,0) -> 664 | X49: =$H$15*('Cost Vessels'!$D$10) -> 1800 | Y49: -1136 | Z49: 0 | AA49: =Z49*IF($D$5<'Cost Vessels'!$D$11,'Cost Vessels'!$B$5,'Cost Vessels'!$B$16) -> 0 | AB49: =W49*IF($D$5<'Cost Vessels'!$D$11,'Cost Vessels'!$B$5,'Cost Vessels'!$B$16) -> 1248320 | AC49: =ROUNDUP((AH25+AH26)/24*$D$4,0) -> 144 | AD49: - | AE49: - | AF49: - | AG49: 144 | AH49: =AG49*'Cost Vessels'!$L$5 -> 23121216
U50: 20 | V50: =AI19*$D$46*$D$47*$D$6*1000*$D$4 -> 10585953.98 | W50: =ROUNDUP((AI22+AI23+AI24)/24*$D$4,0) -> 760 | X50: =$H$15*('Cost Vessels'!$D$10) -> 1800 | Y50: -1040 | Z50: 0 | AA50: =Z50*IF($D$5<'Cost Vessels'!$D$11,'Cost Vessels'!$B$5,'Cost Vessels'!$B$16) -> 0 | AB50: =W50*IF($D$5<'Cost Vessels'!$D$11,'Cost Vessels'!$B$5,'Cost Vessels'!$B$16) -> 1428800 | AC50: =ROUNDUP((AI25+AI26)/24*$D$4,0) -> 165 | AD50: - | AE50: - | AF50: - | AG50: 165 | AH50: =AG50*'Cost Vessels'!$L$5 -> 26493060
D51: Case A | E51: Case B | F51: Case C | G51: Case D | H51: Case E | U51: 21 | V51: =AJ19*$D$46*$D$47*$D$6*1000*$D$4 -> 11196306.06 | W51: =ROUNDUP((AJ22+AJ23+AJ24)/24*$D$4,0) -> 804 | X51: =$H$15*('Cost Vessels'!$D$10) -> 1800 | Y51: -996 | Z51: 0 | AA51: =Z51*IF($D$5<'Cost Vessels'!$D$11,'Cost Vessels'!$B$5,'Cost Vessels'!$B$16) -> 0 | AB51: =W51*IF($D$5<'Cost Vessels'!$D$11,'Cost Vessels'!$B$5,'Cost Vessels'!$B$16) -> 1511520 | AC51: =ROUNDUP((AJ25+AJ26)/24*$D$4,0) -> 174 | AD51: - | AE51: - | AF51: - | AG51: 174 | AH51: =AG51*'Cost Vessels'!$L$5 -> 27938136
B52: Travel time required | D52: =D5/D11 -> 3.240020736 | E52: =D5/D11 -> 3.240020736 | F52: =D5/D11 -> 3.240020736 | G52: =D43 -> 8 | H52: 9 | U52: 22 | V52: =AK19*$D$46*$D$47*$D$6*1000*$D$4 -> 11462618.92 | W52: =ROUNDUP((AK22+AK23+AK24)/24*$D$4,0) -> 823 | X52: =$H$15*('Cost Vessels'!$D$10) -> 1800 | Y52: -977 | Z52: 0 | AA52: =Z52*IF($D$5<'Cost Vessels'!$D$11,'Cost Vessels'!$B$5,'Cost Vessels'!$B$16) -> 0 | AB52: =W52*IF($D$5<'Cost Vessels'!$D$11,'Cost Vessels'!$B$5,'Cost Vessels'!$B$16) -> 1547240 | AC52: =ROUNDUP((AK25+AK26)/24*$D$4,0) -> 178 | AD52: - | AE52: - | AF52: - | AG52: 178 | AH52: =AG52*'Cost Vessels'!$L$5 -> 28580392
B53: Repair Time needed (hr) | D53: 3 | E53: 3 | F53: 10 | G53: =D42 -> 96 | H53: =D36 -> 96 | U53: 23 | V53: =AL19*$D$46*$D$47*$D$6*1000*$D$4 -> 11728473.26 | W53: =ROUNDUP((AL23+AL24+AL22)/24*$D$4,0) -> 842 | X53: =$H$15*('Cost Vessels'!$D$10) -> 1800 | Y53: -958 | Z53: 0 | AA53: =Z53*IF($D$5<'Cost Vessels'!$D$11,'Cost Vessels'!$B$5,'Cost Vessels'!$B$16) -> 0 | AB53: =W53*IF($D$5<'Cost Vessels'!$D$11,'Cost Vessels'!$B$5,'Cost Vessels'!$B$16) -> 1582960 | AC53: =ROUNDUP((AL25+AL26)/24*$D$4,0) -> 182 | AD53: - | AE53: - | AF53: - | AG53: 182 | AH53: =AG53*'Cost Vessels'!$L$5 -> 29222648
B54: Actual downtimes* (hr) | D54: =24*ROUNDDOWN(D53/$D$32,0)+$D$29+D52+$D$30+$D$31+D53-ROUNDDOWN(D53/$D$32,0)*$D$32 -> 29.42006221 | E54: =24*ROUNDDOWN(E53/$D$32,0)+$D$29+E52+$D$30+$D$31+E53-ROUNDDOWN(E53/$D$32,0)*$D$32 -> 29.42006221 | F54: =24*ROUNDDOWN(F53/$D$32,0)+$D$29+F52+$D$30+$D$31+F53-ROUNDDOWN(F53/$D$32,0)*$D$32 -> 78.58014515 | G54: =G52+G53 -> 104 | H54: =H52+H53 -> 105 | U54: 24 | V54: =AM19*$D$46*$D$47*$D$6*1000*$D$4 -> 11993967.09 | W54: =ROUNDUP((AM22+AM23+AM24)/24*$D$4,0) -> 861 | X54: =$H$15*('Cost Vessels'!$D$10) -> 1800 | Y54: -939 | Z54: 0 | AA54: =Z54*IF($D$5<'Cost Vessels'!$D$11,'Cost Vessels'!$B$5,'Cost Vessels'!$B$16) -> 0 | AB54: =W54*IF($D$5<'Cost Vessels'!$D$11,'Cost Vessels'!$B$5,'Cost Vessels'!$B$16) -> 1618680 | AC54: =ROUNDUP((AM25+AM26)/24*$D$4,0) -> 186 | AD54: - | AE54: - | AF54: - | AG54: 186 | AH54: =AG54*'Cost Vessels'!$L$5 -> 29864904
B55: Logistics Time (hr) | D55: =Inputs!K28 -> 0 | E55: =Inputs!L28 -> 8 | F55: =Inputs!M28 -> 48 | G55: =Inputs!N28 -> 120 | H55: =Inputs!O28 -> 500 | U55: 25 | V55: =AN19*$D$46*$D$47*$D$6*1000*$D$4 -> 11301436.01 | W55: =ROUNDUP((AN22+AN23+AN24)/24*$D$4,0) -> 812 | X55: =$H$15*('Cost Vessels'!$D$10) -> 1800 | Y55: -988 | Z55: 0 | AA55: =Z55*IF($D$5<'Cost Vessels'!$D$11,'Cost Vessels'!$B$5,'Cost Vessels'!$B$16) -> 0 | AB55: =W55*IF($D$5<'Cost Vessels'!$D$11,'Cost Vessels'!$B$5,'Cost Vessels'!$B$16) -> 1526560 | AC55: =ROUNDUP((AN25+AN26)/24*$D$4,0) -> 176 | AD55: - | AE55: - | AF55: - | AG55: 176 | AH55: =AG55*'Cost Vessels'!$L$5 -> 28259264
B56: Waiting Time (hr) | D56: =Inputs!K29 -> 70 | E56: =Inputs!L29 -> 70 | F56: =Inputs!M29 -> 70 | G56: =Inputs!N29 -> 70 | H56: =Inputs!O29 -> 70 | U56: 26 | V56: =AO19*$D$46*$D$47*$D$6*1000*$D$4 -> 12331519.48 | W56: =ROUNDUP((AO22+AO23+AO24)/24*$D$4,0) -> 886 | X56: =$H$15*('Cost Vessels'!$D$10) -> 1800 | Y56: -914 | Z56: 0 | AA56: =Z56*IF($D$5<'Cost Vessels'!$D$11,'Cost Vessels'!$B$5,'Cost Vessels'!$B$16) -> 0 | AB56: =W56*IF($D$5<'Cost Vessels'!$D$11,'Cost Vessels'!$B$5,'Cost Vessels'!$B$16) -> 1665680 | AC56: =ROUNDUP((AO25+AO26)/24*$D$4,0) -> 192 | AD56: - | AE56: - | AF56: - | AG56: 192 | AH56: =AG56*'Cost Vessels'!$L$5 -> 30828288
B57: Total downtime (hr) | D57: =SUM(D54:D56) -> 99.42006221 | E57: =SUM(E54:E56) -> 107.4200622 | F57: =SUM(F54:F56) -> 196.5801452 | G57: =SUM(G54:G56) -> 294 | H57: =SUM(H54:H56) -> 675 | U57: 27 | V57: =AP19*$D$46*$D$47*$D$6*1000*$D$4 -> 11045109.8 | W57: =ROUNDUP((AP22+AP23+AP24)/24*$D$4,0) -> 793 | X57: =$H$15*('Cost Vessels'!$D$10) -> 1800 | Y57: -1007 | Z57: 0 | AA57: =Z57*IF($D$5<'Cost Vessels'!$D$11,'Cost Vessels'!$B$5,'Cost Vessels'!$B$16) -> 0 | AB57: =W57*IF($D$5<'Cost Vessels'!$D$11,'Cost Vessels'!$B$5,'Cost Vessels'!$B$16) -> 1490840 | AC57: =ROUNDUP((AP25+AP26)/24*$D$4,0) -> 172 | AD57: - | AE57: - | AF57: - | AG57: 172 | AH57: =AG57*'Cost Vessels'!$L$5 -> 27617008
B58: Downtimes corr. maint. (hr/yr)/tr | D58: ='Corrective Analysis'!G5*D57 -> 104.5401954 | E58: ='Corrective Analysis'!G6*E57 -> 1.503880871 | F58: ='Corrective Analysis'!G7*F57 -> 69.21586911 | G58: ='Corrective Analysis'!G8*G57 -> 32.5458 | H58: ='Corrective Analysis'!G9*H57 -> 7.8975 | U58: 28 | V58: =AQ19*$D$46*$D$47*$D$6*1000*$D$4 -> 12859031.42 | W58: =ROUNDUP((AQ22+AQ23+AQ24)/24*$D$4,0) -> 923 | X58: =$H$15*('Cost Vessels'!$D$10) -> 1800 | Y58: -877 | Z58: 0 | AA58: =Z58*IF($D$5<'Cost Vessels'!$D$11,'Cost Vessels'!$B$5,'Cost Vessels'!$B$16) -> 0 | AB58: =W58*IF($D$5<'Cost Vessels'!$D$11,'Cost Vessels'!$B$5,'Cost Vessels'!$B$16) -> 1735240 | AC58: =ROUNDUP((AQ25+AQ26)/24*$D$4,0) -> 200 | AD58: - | AE58: - | AF58: - | AG58: 200 | AH58: =AG58*'Cost Vessels'!$L$5 -> 32112800
U59: 29 | V59: =AR19*$D$46*$D$47*$D$6*1000*$D$4 -> 13122757.99 | W59: =ROUNDUP((AR22+AR23+AR24)/24*$D$4,0) -> 942 | X59: =$H$15*('Cost Vessels'!$D$10) -> 1800 | Y59: -858 | Z59: 0 | AA59: =Z59*IF($D$5<'Cost Vessels'!$D$11,'Cost Vessels'!$B$5,'Cost Vessels'!$B$16) -> 0 | AB59: =W59*IF($D$5<'Cost Vessels'!$D$11,'Cost Vessels'!$B$5,'Cost Vessels'!$B$16) -> 1770960 | AC59: =ROUNDUP((AR25+AR26)/24*$D$4,0) -> 204 | AD59: - | AE59: - | AF59: - | AG59: 204 | AH59: =AG59*'Cost Vessels'!$L$5 -> 32755056
U60: 30 | V60: =AS19*$D$46*$D$47*$D$6*1000*$D$4 -> 13386520.83 | W60: =ROUNDUP((AS22+AS23+AS24)/24*$D$4,0) -> 961 | X60: =$H$15*('Cost Vessels'!$D$10) -> 1800 | Y60: -839 | Z60: 0 | AA60: =Z60*IF($D$5<'Cost Vessels'!$D$11,'Cost Vessels'!$B$5,'Cost Vessels'!$B$16) -> 0 | AB60: =W60*IF($D$5<'Cost Vessels'!$D$11,'Cost Vessels'!$B$5,'Cost Vessels'!$B$16) -> 1806680 | AC60: =ROUNDUP((AS25+AS26)/24*$D$4,0) -> 208 | AD60: - | AE60: - | AF60: - | AG60: 208 | AH60: =AG60*'Cost Vessels'!$L$5 -> 33397312
B63: Cost: Cumulative
B64: Detailed Cost Vessels Analysis Preventive | G64: Detailed Cost Vessels Analysis Corrective | K64: Detailed Cost Analysis Total
B66: Year | C66: Cost CTV Spot Market | D66: Cost CTV Charter | E66: Cost Purchased | G66: Cost CTV Spot Market | H66: Cost CTV Charter | I66: Cost Purchased | K66: No Offshore Accomm_Spot Market | L66: No Offshore Accomm_Charter | M66: No Offshore Accomm_Purchase
B67: 1 | C67: =C103 -> 987000 | D67: =D103 -> 4507020 | E67: =E103 -> 26052138 | G67: =G103 -> 33848040 | H67: =H103 -> 32112800 | I67: =I103 -> 32112800 | K67: =K103 -> 50706071.53 | L67: =L103 -> 52490851.53 | M67: =M103 -> 74035969.53
B68: 2 | C68: =C67+C104 -> 1974000 | D68: =D67+D104 -> 9014040 | E68: =E67+E104 -> 26110031.64 | G68: =G67+G104 -> 62455396 | H68: =H67+H104 -> 59248116 | I68: =I67+I104 -> 59248116 | K68: =K67+K104 -> 93372173.23 | L68: =L67+L104 -> 97164776.76 | M68: =M67+M104 -> 114348006.2
B69: 3 | C69: =C68+C105 -> 2961000 | D69: =D68+D105 -> 13521060 | E69: =E68+E105 -> 26168504.22 | G69: =G68+G105 -> 93600932 | H69: =H68+H105 -> 88791892 | I69: =I68+I105 -> 88791892 | K69: =K68+K105 -> 138570284.9 | L69: =L68+L105 -> 144206660 | M69: =M68+M105 -> 157114084.6
B70: 4 | C70: =C69+C106 -> 3948000 | D70: 18028080 | E70: 26227561.52 | G70: 122710660 | H70: 116408900 | I70: 116408900 | K70: 180191885.1 | L70: 187738630.3 | M70: 196454640.2
B71: 5 | C71: 4935000 | D71: 22535100 | E71: 26287209.39 | G71: 151656064 | H71: 143865344 | I71: 143865344 | K71: 220829544 | L71: 230252674.8 | M71: 234860000.3
B72: 6 | C72: 5922000 | D72: 27042120 | E72: 26347453.75 | G72: 180087816 | H72: 170840096 | I72: 170840096 | K72: 259988144 | L72: 271279815.5 | M72: 271859559.3
B73: 7 | C73: 6909000 | D73: 31549140 | E73: 26408300.55 | G73: 207165496 | H73: 196530336 | I73: 196530336 | K73: 296720239.2 | L73: 309905580.7 | M73: 306537250
B74: 8 | C74: 7896000 | D74: 36056160 | E74: 26469755.81 | G74: 236107140 | H74: 223986780 | I74: 223986780 | K74: 334981100.5 | L74: 349937875.3 | M74: 342699412.9
B75: 9 | C75: 8883000 | D75: 40563180 | E75: 26531825.63 | G75: 264029000 | H75: 250479840 | I75: 250479840 | K75: 371270498.8 | L75: 388012109.7 | M75: 376979925.2
B76: 10 | C76: 9870000 | D76: 45070200 | E76: 26594516.15 | G76: 290596788 | H76: 275688388 | I76: 275688388 | K76: 405285320.6 | L76: 423834975.5 | M76: 409083974.9
B77: 11 | C77: 10857000 | D77: 49577220 | E77: 26657833.57 | G77: 317340180 | H77: 301057500 | I77: 301057500 | K77: 438861553.8 | L77: 459171462.9 | M77: 440775078.4
B78: 12 | C78: 11844000 | D78: 54084240 | E78: 26721784.16 | G78: 344417860 | H78: 326747740 | I78: 326747740 | K78: 472130944.2 | L78: 494156008.6 | M78: 472186227.5
B79: 13 | C79: 12831000 | D79: 58591260 | E79: 26786374.26 | G79: 372005432 | H79: 352919672 | I79: 352919672 | K79: 505312116.7 | L79: 528996470.3 | M79: 503523863.6
B80: 14 | C80: 13818000 | D80: 63098280 | E80: 26851610.27 | G80: 399258716 | H80: 378770476 | I80: 378770476 | K80: 537504813 | L80: 562826094 | M80: 533919843.8
B81: 15 | C81: 14805000 | D81: 67605300 | E81: 26917498.63 | G81: 426336396 | H81: 404460716 | I81: 404460716 | K81: 568855302.6 | L81: 595792812.7 | M81: 563520739.7
B82: 16 | C82: 15792000 | D82: 72112320 | E82: 26984045.88 | G82: 453079788 | H82: 429829828 | I82: 429829828 | K82: 599266331.5 | L82: 627798158 | M82: 592226748.4
B83: 17 | C83: 16779000 | D83: 76619340 | E83: 27051258.59 | G83: 481177252 | H83: 456483452 | I83: 456483452 | K83: 630441768.5 | L83: 660485979.6 | M83: 621680411
B84: 18 | C84: 17766000 | D84: 81126360 | E84: 27119143.44 | G84: 510963076 | H84: 484742716 | I84: 484742716 | K84: 662652079.6 | L84: 694119945.2 | M84: 652144112.5
B85: 19 | C85: 18753000 | D85: 85633380 | E85: 27187707.13 | G85: 535332612 | H85: 507863932 | I85: 507863932 | K85: 688999356.1 | L85: 722057773.7 | M85: 676974314.2
B86: 20 | C86: 19740000 | D86: 90140400 | E86: 27256956.47 | G86: 563254472 | H86: 534356992 | I86: 534356992 | K86: 718185577.8 | L86: 752679473.2 | M86: 704549791.4
B87: 21 | C87: 20727000 | D87: 94647420 | E87: 27326898.29 | G87: 592704128 | H87: 562295128 | I87: 562295128 | K87: 748238433.1 | L87: 784083991.5 | M87: 732968283.2
B88: 22 | C88: 21714000 | D88: 99154440 | E88: 27397539.53 | G88: 622831760 | H88: 590875520 | I88: 590875520 | K88: 778325035.7 | L88: 815472186.6 | M88: 761429462.9
B89: 23 | C89: 22701000 | D89: 103661460 | E89: 27468887.19 | G89: 653637368 | H89: 620098168 | I89: 620098168 | K89: 808432211.2 | L89: 846832328.1 | M89: 789920438.4
B90: 24 | C90: 23688000 | D90: 108168480 | E90: 27540948.32 | G90: 685120952 | H90: 649963072 | I90: 649963072 | K90: 838547356.9 | L90: 878153219.8 | M90: 818428874.7
B91: 25 | C91: 24675000 | D91: 112675500 | E91: 27613730.06 | G91: 714906776 | H91: 678222336 | I91: 678222336 | K91: 866585914.2 | L91: 907431154 | M91: 844949947.7
B92: 26 | C92: 25662000 | D92: 117182520 | E92: 27687239.62 | G92: 747400744 | H92: 709050624 | I92: 709050624 | K92: 896353261 | L92: 938328778.2 | M92: 873145210.4
B93: 27 | C93: 26649000 | D93: 121689540 | E93: 27761484.28 | G93: 776508592 | H93: 736667632 | I93: 736667632 | K93: 922744727.3 | L93: 965932840.5 | M93: 898100338
B94: 28 | C94: 27636000 | D94: 126196560 | E94: 27836471.38 | G94: 810356632 | H94: 768780432 | I94: 768780432 | K94: 952458520.3 | L94: 996692268.3 | M94: 926263206
B95: 29 | C95: 28623000 | D95: 130703580 | E95: 27912208.36 | G95: 844882648 | H95: 801535488 | I95: 801535488 | K95: 982130579.8 | L95: 1027368943 | M95: 954394664.9
B96: 30 | C96: 29610000 | D96: 135210600 | E96: 27988702.7 | G96: 880086640 | H96: 834932800 | I96: 834932800 | K96: 1011751139 | L96: 1057954306 | M96: 982485143.5
B99: Cost: Per Year
B100: Detailed Cost Vessels Analysis Preventive | G100: Detailed Cost Vessels Analysis Corrective | K100: Detailed Cost Analysis Total
B102: Year | C102: Cost CTV Spot Market | D102: Cost CTV Charter | E102: Cost Purchased | G102: Cost CTV Spot Market | H102: Cost CTV Charter | I102: Cost Purchased | K102: Cost CTV Spot Market | L102: Cost CTV Charter | M102: Cost Purchased
B103: 1 | C103: =$H$15*IF($D$5<'Cost Vessels'!$D$11,'Cost Vessels'!$B$5,'Cost Vessels'!$B$16)*CTV!$H$16 -> 987000 | D103: =$H$15*IF($D$5<'Cost Vessels'!$D$11,'Cost Vessels'!$C$6,'Cost Vessels'!$C$17) -> 4507020 | E103: =H15*IF($D$5<'Cost Vessels'!$D$11,'Cost Vessels'!$D$7,'Cost Vessels'!$D$18) -> 26052138 | G103: =AB31+AH31 -> 33848040 | H103: =AA31+AH31 -> 32112800 | I103: =AA31+AH31 -> 32112800 | K103: =(C103+G103+V31+$K$16)/((1+$D$13)^(B103-1)) -> 50706071.53 | L103: =(D103+H103+V31+$K$16)/((1+$D$13)^(B103-1)) -> 52490851.53 | M103: =(E103+I103+V31+$K$16)/((1+$D$13)^(B103-1)) -> 74035969.53
B104: 2 | C104: =$H$15*IF($D$5<'Cost Vessels'!$D$11,'Cost Vessels'!$B$5,'Cost Vessels'!$B$16)*CTV!$H$16 -> 987000 | D104: =$H$15*IF($D$5<'Cost Vessels'!$D$11,'Cost Vessels'!$C$6,'Cost Vessels'!$C$17) -> 4507020 | E104: =IF($D$5<'Cost Vessels'!$D$11,'Cost Vessels'!$D$8,'Cost Vessels'!$D$19)*((1+'Cost Vessels'!$D$9)^(B103-1)) -> 57893.64 | G104: =AB32+AH32 -> 28607356 | H104: =AA32+AH32 -> 27135316 | I104: =AA32+AH32 -> 27135316 | K104: =(C104+G104+V32+$K$16)/((1+$D$13)^(B104-1)) -> 42666101.7 | L104: =(D104+H104+V32+$K$16)/((1+$D$13)^(B104-1)) -> 44673925.23 | M104: =(E104+I104+V32+$K$16)/((1+$D$13)^(B104-1)) -> 40312036.64
B105: 3 | C105: =$H$15*IF($D$5<'Cost Vessels'!$D$11,'Cost Vessels'!$B$5,'Cost Vessels'!$B$16)*CTV!$H$16 -> 987000 | D105: =$H$15*IF($D$5<'Cost Vessels'!$D$11,'Cost Vessels'!$C$6,'Cost Vessels'!$C$17) -> 4507020 | E105: =IF($D$5<'Cost Vessels'!$D$11,'Cost Vessels'!$D$8,'Cost Vessels'!$D$19)*((1+'Cost Vessels'!$D$9)^(B104-1)) -> 58472.5764 | G105: 31145536 | H105: 29543776 | I105: 29543776 | K105: 45198111.67 | L105: 47041883.29 | M105: 42766078.39
B106: 4 | C106: =$H$15*IF($D$5<'Cost Vessels'!$D$11,'Cost Vessels'!$B$5,'Cost Vessels'!$B$16)*CTV!$H$16 -> 987000 | D106: =$H$15*IF($D$5<'Cost Vessels'!$D$11,'Cost Vessels'!$C$6,'Cost Vessels'!$C$17) -> 4507020 | E106: =IF($D$5<'Cost Vessels'!$D$11,'Cost Vessels'!$D$8,'Cost Vessels'!$D$19)*((1+'Cost Vessels'!$D$9)^(B105-1)) -> 59057.30216 | G106: 29109728 | H106: 27617008 | I106: 27617008 | K106: 41621600.21 | L106: 43531970.28 | M106: 39340555.68
B107: 5 | C107: =$H$15*IF($D$5<'Cost Vessels'!$D$11,'Cost Vessels'!$B$5,'Cost Vessels'!$B$16)*CTV!$H$16 -> 987000 | D107: =$H$15*IF($D$5<'Cost Vessels'!$D$11,'Cost Vessels'!$C$6,'Cost Vessels'!$C$17) -> 4507020 | E107: =IF($D$5<'Cost Vessels'!$D$11,'Cost Vessels'!$D$8,'Cost Vessels'!$D$19)*((1+'Cost Vessels'!$D$9)^(B106-1)) -> 59647.87519 | G107: 28945404 | H107: 27456444 | I107: 27456444 | K107: 40637658.94 | L107: 42514044.44 | M107: 38405360.04
B108: 6 | C108: =$H$15*IF($D$5<'Cost Vessels'!$D$11,'Cost Vessels'!$B$5,'Cost Vessels'!$B$16)*CTV!$H$16 -> 987000 | D108: =$H$15*IF($D$5<'Cost Vessels'!$D$11,'Cost Vessels'!$C$6,'Cost Vessels'!$C$17) -> 4507020 | E108: =IF($D$5<'Cost Vessels'!$D$11,'Cost Vessels'!$D$8,'Cost Vessels'!$D$19)*((1+'Cost Vessels'!$D$9)^(B107-1)) -> 60244.35394 | G108: 28431752 | H108: 26974752 | I108: 26974752 | K108: 39158599.95 | L108: 41027140.72 | M108: 36999559.02
B109: 7 | C109: =$H$15*IF($D$5<'Cost Vessels'!$D$11,'Cost Vessels'!$B$5,'Cost Vessels'!$B$16)*CTV!$H$16 -> 987000 | D109: =$H$15*IF($D$5<'Cost Vessels'!$D$11,'Cost Vessels'!$C$6,'Cost Vessels'!$C$17) -> 4507020 | E109: =IF($D$5<'Cost Vessels'!$D$11,'Cost Vessels'!$D$8,'Cost Vessels'!$D$19)*((1+'Cost Vessels'!$D$9)^(B108-1)) -> 60846.79748 | G109: 27077680 | H109: 25690240 | I109: 25690240 | K109: 36732095.22 | L109: 38625765.23 | M109: 34677690.67
B110: 8 | C110: =$H$15*IF($D$5<'Cost Vessels'!$D$11,'Cost Vessels'!$B$5,'Cost Vessels'!$B$16)*CTV!$H$16 -> 987000 | D110: =$H$15*IF($D$5<'Cost Vessels'!$D$11,'Cost Vessels'!$C$6,'Cost Vessels'!$C$17) -> 4507020 | E110: =IF($D$5<'Cost Vessels'!$D$11,'Cost Vessels'!$D$8,'Cost Vessels'!$D$19)*((1+'Cost Vessels'!$D$9)^(B109-1)) -> 61455.26545 | G110: 28941644 | H110: 27456444 | I110: 27456444 | K110: 38260861.28 | L110: 40032294.55 | M110: 36162162.92
B111: 9 | C111: =$H$15*IF($D$5<'Cost Vessels'!$D$11,'Cost Vessels'!$B$5,'Cost Vessels'!$B$16)*CTV!$H$16 -> 987000 | D111: =$H$15*IF($D$5<'Cost Vessels'!$D$11,'Cost Vessels'!$C$6,'Cost Vessels'!$C$17) -> 4507020 | E111: =IF($D$5<'Cost Vessels'!$D$11,'Cost Vessels'!$D$8,'Cost Vessels'!$D$19)*((1+'Cost Vessels'!$D$9)^(B110-1)) -> 62069.81811 | G111: 27921860 | H111: 26493060 | I111: 26493060 | K111: 36289398.32 | L111: 38074234.46 | M111: 34280512.28
B112: 10 | C112: =$H$15*IF($D$5<'Cost Vessels'!$D$11,'Cost Vessels'!$B$5,'Cost Vessels'!$B$16)*CTV!$H$16 -> 987000 | D112: =$H$15*IF($D$5<'Cost Vessels'!$D$11,'Cost Vessels'!$C$6,'Cost Vessels'!$C$17) -> 4507020 | E112: =IF($D$5<'Cost Vessels'!$D$11,'Cost Vessels'!$D$8,'Cost Vessels'!$D$19)*((1+'Cost Vessels'!$D$9)^(B111-1)) -> 62690.51629 | G112: 26567788 | H112: 25208548 | I112: 25208548 | K112: 34014821.77 | L112: 35822865.81 | M112: 32104049.71
B113: 11 | C113: =$H$15*IF($D$5<'Cost Vessels'!$D$11,'Cost Vessels'!$B$5,'Cost Vessels'!$B$16)*CTV!$H$16 -> 987000 | D113: =$H$15*IF($D$5<'Cost Vessels'!$D$11,'Cost Vessels'!$C$6,'Cost Vessels'!$C$17) -> 4507020 | E113: =IF($D$5<'Cost Vessels'!$D$11,'Cost Vessels'!$D$8,'Cost Vessels'!$D$19)*((1+'Cost Vessels'!$D$9)^(B112-1)) -> 63317.42145 | G113: 26743392 | H113: 25369112 | I113: 25369112 | K113: 33576233.24 | L113: 35336487.41 | M113: 31691103.55
B114: 12 | C114: =$H$15*IF($D$5<'Cost Vessels'!$D$11,'Cost Vessels'!$B$5,'Cost Vessels'!$B$16)*CTV!$H$16 -> 987000 | D114: =$H$15*IF($D$5<'Cost Vessels'!$D$11,'Cost Vessels'!$C$6,'Cost Vessels'!$C$17) -> 4507020 | E114: =IF($D$5<'Cost Vessels'!$D$11,'Cost Vessels'!$D$8,'Cost Vessels'!$D$19)*((1+'Cost Vessels'!$D$9)^(B113-1)) -> 63950.59566 | G114: 27077680 | H114: 25690240 | I114: 25690240 | K114: 33269390.35 | L114: 34984545.63 | M114: 31411149.12
B115: 13 | C115: =$H$15*IF($D$5<'Cost Vessels'!$D$11,'Cost Vessels'!$B$5,'Cost Vessels'!$B$16)*CTV!$H$16 -> 987000 | D115: =$H$15*IF($D$5<'Cost Vessels'!$D$11,'Cost Vessels'!$C$6,'Cost Vessels'!$C$17) -> 4507020 | E115: =IF($D$5<'Cost Vessels'!$D$11,'Cost Vessels'!$D$8,'Cost Vessels'!$D$19)*((1+'Cost Vessels'!$D$9)^(B114-1)) -> 64590.10162 | G115: 27587572 | H115: 26171932 | I115: 26171932 | K115: 33181172.48 | L115: 34840461.74 | M115: 31337636.09
B116: 14 | C116: =$H$15*IF($D$5<'Cost Vessels'!$D$11,'Cost Vessels'!$B$5,'Cost Vessels'!$B$16)*CTV!$H$16 -> 987000 | D116: =$H$15*IF($D$5<'Cost Vessels'!$D$11,'Cost Vessels'!$C$6,'Cost Vessels'!$C$17) -> 4507020 | E116: =IF($D$5<'Cost Vessels'!$D$11,'Cost Vessels'!$D$8,'Cost Vessels'!$D$19)*((1+'Cost Vessels'!$D$9)^(B115-1)) -> 65236.00264 | G116: 27253284 | H116: 25850804 | I116: 25850804 | K116: 32192696.37 | L116: 33829623.66 | M116: 30395980.16
B117: 15 | C117: =$H$15*IF($D$5<'Cost Vessels'!$D$11,'Cost Vessels'!$B$5,'Cost Vessels'!$B$16)*CTV!$H$16 -> 987000 | D117: =$H$15*IF($D$5<'Cost Vessels'!$D$11,'Cost Vessels'!$C$6,'Cost Vessels'!$C$17) -> 4507020 | E117: =IF($D$5<'Cost Vessels'!$D$11,'Cost Vessels'!$D$8,'Cost Vessels'!$D$19)*((1+'Cost Vessels'!$D$9)^(B116-1)) -> 65888.36266 | G117: 27077680 | H117: 25690240 | I117: 25690240 | K117: 31350489.59 | L117: 32966718.71 | M117: 29600895.96
B118: 16 | C118: =$H$15*IF($D$5<'Cost Vessels'!$D$11,'Cost Vessels'!$B$5,'Cost Vessels'!$B$16)*CTV!$H$16 -> 987000 | D118: =$H$15*IF($D$5<'Cost Vessels'!$D$11,'Cost Vessels'!$C$6,'Cost Vessels'!$C$17) -> 4507020 | E118: =IF($D$5<'Cost Vessels'!$D$11,'Cost Vessels'!$D$8,'Cost Vessels'!$D$19)*((1+'Cost Vessels'!$D$9)^(B117-1)) -> 66547.24629 | G118: 26743392 | H118: 25369112 | I118: 25369112 | K118: 30411028.93 | L118: 32005345.35 | M118: 28706008.69
B119: 17 | C119: =$H$15*IF($D$5<'Cost Vessels'!$D$11,'Cost Vessels'!$B$5,'Cost Vessels'!$B$16)*CTV!$H$16 -> 987000 | D119: =$H$15*IF($D$5<'Cost Vessels'!$D$11,'Cost Vessels'!$C$6,'Cost Vessels'!$C$17) -> 4507020 | E119: =IF($D$5<'Cost Vessels'!$D$11,'Cost Vessels'!$D$8,'Cost Vessels'!$D$19)*((1+'Cost Vessels'!$D$9)^(B118-1)) -> 67212.71875 | G119: 28097464 | H119: 26653624 | I119: 26653624 | K119: 31175436.98 | L119: 32687821.61 | M119: 29453662.58
B120: 18 | C120: =$H$15*IF($D$5<'Cost Vessels'!$D$11,'Cost Vessels'!$B$5,'Cost Vessels'!$B$16)*CTV!$H$16 -> 987000 | D120: =$H$15*IF($D$5<'Cost Vessels'!$D$11,'Cost Vessels'!$C$6,'Cost Vessels'!$C$17) -> 4507020 | E120: =IF($D$5<'Cost Vessels'!$D$11,'Cost Vessels'!$D$8,'Cost Vessels'!$D$19)*((1+'Cost Vessels'!$D$9)^(B119-1)) -> 67884.84594 | G120: 29785824 | H120: 28259264 | I120: 28259264 | K120: 32210311.11 | L120: 33633965.61 | M120: 30463701.48
B121: 19 | C121: =$H$15*IF($D$5<'Cost Vessels'!$D$11,'Cost Vessels'!$B$5,'Cost Vessels'!$B$16)*CTV!$H$16 -> 987000 | D121: =$H$15*IF($D$5<'Cost Vessels'!$D$11,'Cost Vessels'!$C$6,'Cost Vessels'!$C$17) -> 4507020 | E121: =IF($D$5<'Cost Vessels'!$D$11,'Cost Vessels'!$D$8,'Cost Vessels'!$D$19)*((1+'Cost Vessels'!$D$9)^(B120-1)) -> 68563.6944 | G121: 24369536 | H121: 23121216 | I121: 23121216 | K121: 26347276.43 | L121: 27937828.49 | M121: 24830201.69
B122: 20 | C122: =$H$15*IF($D$5<'Cost Vessels'!$D$11,'Cost Vessels'!$B$5,'Cost Vessels'!$B$16)*CTV!$H$16 -> 987000 | D122: =$H$15*IF($D$5<'Cost Vessels'!$D$11,'Cost Vessels'!$C$6,'Cost Vessels'!$C$17) -> 4507020 | E122: =IF($D$5<'Cost Vessels'!$D$11,'Cost Vessels'!$D$8,'Cost Vessels'!$D$19)*((1+'Cost Vessels'!$D$9)^(B121-1)) -> 69249.33134 | G122: 27921860 | H122: 26493060 | I122: 26493060 | K122: 29186221.78 | L122: 30621699.52 | M122: 27575477.23
B123: 21 | C123: =$H$15*IF($D$5<'Cost Vessels'!$D$11,'Cost Vessels'!$B$5,'Cost Vessels'!$B$16)*CTV!$H$16 -> 987000 | D123: =$H$15*IF($D$5<'Cost Vessels'!$D$11,'Cost Vessels'!$C$6,'Cost Vessels'!$C$17) -> 4507020 | E123: =IF($D$5<'Cost Vessels'!$D$11,'Cost Vessels'!$D$8,'Cost Vessels'!$D$19)*((1+'Cost Vessels'!$D$9)^(B122-1)) -> 69941.82466 | G123: 29449656 | H123: 27938136 | I123: 27938136 | K123: 30052855.29 | L123: 31404518.21 | M123: 28418491.8
B124: 22 | C124: =$H$15*IF($D$5<'Cost Vessels'!$D$11,'Cost Vessels'!$B$5,'Cost Vessels'!$B$16)*CTV!$H$16 -> 987000 | D124: =$H$15*IF($D$5<'Cost Vessels'!$D$11,'Cost Vessels'!$C$6,'Cost Vessels'!$C$17) -> 4507020 | E124: =IF($D$5<'Cost Vessels'!$D$11,'Cost Vessels'!$D$8,'Cost Vessels'!$D$19)*((1+'Cost Vessels'!$D$9)^(B123-1)) -> 70641.2429 | G124: 30127632 | H124: 28580392 | I124: 28580392 | K124: 30086602.57 | L124: 31388195.11 | M124: 28461179.69
B125: 23 | C125: =$H$15*IF($D$5<'Cost Vessels'!$D$11,'Cost Vessels'!$B$5,'Cost Vessels'!$B$16)*CTV!$H$16 -> 987000 | D125: =$H$15*IF($D$5<'Cost Vessels'!$D$11,'Cost Vessels'!$C$6,'Cost Vessels'!$C$17) -> 4507020 | E125: =IF($D$5<'Cost Vessels'!$D$11,'Cost Vessels'!$D$8,'Cost Vessels'!$D$19)*((1+'Cost Vessels'!$D$9)^(B124-1)) -> 71347.65533 | G125: 30805608 | H125: 29222648 | I125: 29222648 | K125: 30107175.5 | L125: 31360141.52 | M125: 28490975.5
B126: 24 | C126: =$H$15*IF($D$5<'Cost Vessels'!$D$11,'Cost Vessels'!$B$5,'Cost Vessels'!$B$16)*CTV!$H$16 -> 987000 | D126: =$H$15*IF($D$5<'Cost Vessels'!$D$11,'Cost Vessels'!$C$6,'Cost Vessels'!$C$17) -> 4507020 | E126: =IF($D$5<'Cost Vessels'!$D$11,'Cost Vessels'!$D$8,'Cost Vessels'!$D$19)*((1+'Cost Vessels'!$D$9)^(B125-1)) -> 72061.13189 | G126: 31483584 | H126: 29864904 | I126: 29864904 | K126: 30115145.7 | L126: 31320891.71 | M126: 28508436.3
B127: 25 | C127: =$H$15*IF($D$5<'Cost Vessels'!$D$11,'Cost Vessels'!$B$5,'Cost Vessels'!$B$16)*CTV!$H$16 -> 987000 | D127: =$H$15*IF($D$5<'Cost Vessels'!$D$11,'Cost Vessels'!$C$6,'Cost Vessels'!$C$17) -> 4507020 | E127: =IF($D$5<'Cost Vessels'!$D$11,'Cost Vessels'!$D$8,'Cost Vessels'!$D$19)*((1+'Cost Vessels'!$D$9)^(B126-1)) -> 72781.74321 | G127: 29785824 | H127: 28259264 | I127: 28259264 | K127: 28038557.31 | L127: 29277934.23 | M127: 26521073.02
B128: 26 | C128: =$H$15*IF($D$5<'Cost Vessels'!$D$11,'Cost Vessels'!$B$5,'Cost Vessels'!$B$16)*CTV!$H$16 -> 987000 | D128: =$H$15*IF($D$5<'Cost Vessels'!$D$11,'Cost Vessels'!$C$6,'Cost Vessels'!$C$17) -> 4507020 | E128: =IF($D$5<'Cost Vessels'!$D$11,'Cost Vessels'!$D$8,'Cost Vessels'!$D$19)*((1+'Cost Vessels'!$D$9)^(B127-1)) -> 73509.56064 | G128: 32493968 | H128: 30828288 | I128: 30828288 | K128: 29767346.73 | L128: 30897624.2 | M128: 28195262.73
B129: 27 | C129: =$H$15*IF($D$5<'Cost Vessels'!$D$11,'Cost Vessels'!$B$5,'Cost Vessels'!$B$16)*CTV!$H$16 -> 987000 | D129: =$H$15*IF($D$5<'Cost Vessels'!$D$11,'Cost Vessels'!$C$6,'Cost Vessels'!$C$17) -> 4507020 | E129: =IF($D$5<'Cost Vessels'!$D$11,'Cost Vessels'!$D$8,'Cost Vessels'!$D$19)*((1+'Cost Vessels'!$D$9)^(B128-1)) -> 74244.65624 | G129: 29107848 | H129: 27617008 | I129: 27617008 | K129: 26391466.32 | L129: 27604062.25 | M129: 24955127.53
B130: 28 | C130: =$H$15*IF($D$5<'Cost Vessels'!$D$11,'Cost Vessels'!$B$5,'Cost Vessels'!$B$16)*CTV!$H$16 -> 987000 | D130: =$H$15*IF($D$5<'Cost Vessels'!$D$11,'Cost Vessels'!$C$6,'Cost Vessels'!$C$17) -> 4507020 | E130: =IF($D$5<'Cost Vessels'!$D$11,'Cost Vessels'!$D$8,'Cost Vessels'!$D$19)*((1+'Cost Vessels'!$D$9)^(B129-1)) -> 74987.10281 | G130: 33848040 | H130: 32112800 | I130: 32112800 | K130: 29713792.99 | L130: 30759427.85 | M130: 28162867.99
B131: 29 | C131: =$H$15*IF($D$5<'Cost Vessels'!$D$11,'Cost Vessels'!$B$5,'Cost Vessels'!$B$16)*CTV!$H$16 -> 987000 | D131: =$H$15*IF($D$5<'Cost Vessels'!$D$11,'Cost Vessels'!$C$6,'Cost Vessels'!$C$17) -> 4507020 | E131: =IF($D$5<'Cost Vessels'!$D$11,'Cost Vessels'!$D$8,'Cost Vessels'!$D$19)*((1+'Cost Vessels'!$D$9)^(B130-1)) -> 75736.97383 | G131: 34526016 | H131: 32755056 | I131: 32755056 | K131: 29672059.59 | L131: 30676675.14 | M131: 28131458.94
B132: 30 | C132: =$H$15*IF($D$5<'Cost Vessels'!$D$11,'Cost Vessels'!$B$5,'Cost Vessels'!$B$16)*CTV!$H$16 -> 987000 | D132: =$H$15*IF($D$5<'Cost Vessels'!$D$11,'Cost Vessels'!$C$6,'Cost Vessels'!$C$17) -> 4507020 | E132: =IF($D$5<'Cost Vessels'!$D$11,'Cost Vessels'!$D$8,'Cost Vessels'!$D$19)*((1+'Cost Vessels'!$D$9)^(B131-1)) -> 76494.34357 | G132: 35203992 | H132: 33397312 | I132: 33397312 | K132: 29620559.23 | L132: 30585362.07 | M132: 28090478.55
K133: =SUM(K103:K132) -> 1011751139 | L133: =SUM(L103:L132) -> 1057954306 | M133: =SUM(M103:M132) -> 982485143.5

Sheet Mothership Vessel
G2: Mothership Vessel
B3: Common Inputs
B4: Number of turbines | D4: =CTV!D4 -> 300
B5: Distance from shore (km) | D5: =CTV!D5 -> 120
B6: Capacity of turbines (MW) | D6: =CTV!D6 -> 6
B7: Workshift hours/day | D7: =CTV!D7 -> 12
B8: Speed (knots) | D8: =CTV!D8 -> 20
B9: Cost of personnel (pounds/hour) | D9: =CTV!D9 -> 40
B10: Lifetime (years) | D10: =CTV!D10 -> 25
B11: Speed (km/h) | D11: =D8*0.5144*3.6 -> 37.0368
B12: Discount rate | D12: =CTV!D13 -> 0.02 | G12: Preventive Intermediate Results
O13: Year | P13: 1 | Q13: 2 | R13: 3 | S13: 4 | T13: 5 | U13: 6 | V13: 7 | W13: 8 | X13: 9 | Y13: 10 | Z13: 11 | AA13: 12 | AB13: 13 | AC13: 14 | AD13: 15 | AE13: 16 | AF13: 17 | AG13: 18 | AH13: 19 | AI13: 20 | AJ13: 21 | AK13: 22 | AL13: 23 | AM13: 24 | AN13: 25 | AO13: 26 | AP13: 27 | AQ13: 28 | AR13: 29 | AS13: 30
B14: Preventive Inputs | O14: Case A | P14: =$D$57*'Corrective Analysis'!H5 -> 43.374375 | Q14: =$D$57*'Corrective Analysis'!I5 -> 36.80437763 | R14: =$D$57*'Corrective Analysis'!J5 -> 40.06753133 | S14: =$D$57*'Corrective Analysis'!K5 -> 37.3019625 | T14: =$D$57*'Corrective Analysis'!L5 -> 37.24341158 | U14: =$D$57*'Corrective Analysis'!M5 -> 36.434475 | V14: =$D$57*'Corrective Analysis'!N5 -> 34.6995 | W14: =$D$57*'Corrective Analysis'!O5 -> 37.128465 | X14: =$D$57*'Corrective Analysis'!P5 -> 35.740485 | Y14: =$D$57*'Corrective Analysis'!Q5 -> 34.00551 | Z14: =$D$57*'Corrective Analysis'!R5 -> 34.352505 | AA14: =$D$57*'Corrective Analysis'!S5 -> 34.6995 | AB14: =$D$57*'Corrective Analysis'!T5 -> 35.39349 | AC14: =$D$57*'Corrective Analysis'!U5 -> 35.046495 | AD14: =$D$57*'Corrective Analysis'!V5 -> 34.6995 | AE14: =$D$57*'Corrective Analysis'!W5 -> 34.352505 | AF14: =$D$57*'Corrective Analysis'!X5 -> 36.08748 | AG14: =$D$57*'Corrective Analysis'!Y5 -> 38.16945 | AH14: =$D$57*'Corrective Analysis'!Z5 -> 31.22955 | AI14: =$D$57*'Corrective Analysis'!AA5 -> 35.740485 | AJ14: =$D$57*'Corrective Analysis'!AB5 -> 37.8011665 | AK14: =$D$57*'Corrective Analysis'!AC5 -> 38.70029668 | AL14: =$D$57*'Corrective Analysis'!AD5 -> 39.59787881 | AM14: =$D$57*'Corrective Analysis'!AE5 -> 40.49424377 | AN14: =$D$57*'Corrective Analysis'!AF5 -> 38.15610807 | AO14: =$D$57*'Corrective Analysis'!AG5 -> 41.63389412 | AP14: =$D$57*'Corrective Analysis'!AH5 -> 37.290695 | AQ14: =$D$57*'Corrective Analysis'!AI5 -> 43.41488925 | AR14: =$D$57*'Corrective Analysis'!AJ5 -> 44.30528756 | AS14: =$D$57*'Corrective Analysis'!AK5 -> 45.19580833
B15: Time among turbines (h) | D15: =CTV!D15 -> 0.8 | G15: Number of CTV | H15: 4 | J15: Preventive Costs | N15: Downtimes (h) | O15: Case B | P15: =$E$57*'Corrective Analysis'!H6 -> 0.7175 | Q15: =$E$57*'Corrective Analysis'!I6 -> 0.6088189386 | R15: =$E$57*'Corrective Analysis'!J6 -> 0.662798109 | S15: =$E$57*'Corrective Analysis'!K6 -> 0.61705 | T15: =$E$57*'Corrective Analysis'!L6 -> 0.6160814492 | U15: =$E$57*'Corrective Analysis'!M6 -> 0.6027 | V15: =$E$57*'Corrective Analysis'!N6 -> 0.574 | W15: =$E$57*'Corrective Analysis'!O6 -> 0.61418 | X15: =$E$57*'Corrective Analysis'!P6 -> 0.59122 | Y15: =$E$57*'Corrective Analysis'!Q6 -> 0.56252 | Z15: =$E$57*'Corrective Analysis'!R6 -> 0.56826 | AA15: =$E$57*'Corrective Analysis'!S6 -> 0.574 | AB15: =$E$57*'Corrective Analysis'!T6 -> 0.58548 | AC15: =$E$57*'Corrective Analysis'!U6 -> 0.57974 | AD15: =$E$57*'Corrective Analysis'!V6 -> 0.574 | AE15: =$E$57*'Corrective Analysis'!W6 -> 0.56826 | AF15: =$E$57*'Corrective Analysis'!X6 -> 0.59696 | AG15: =$E$57*'Corrective Analysis'!Y6 -> 0.6314 | AH15: =$E$57*'Corrective Analysis'!Z6 -> 0.5166 | AI15: =$E$57*'Corrective Analysis'!AA6 -> 0.59122 | AJ15: =$E$57*'Corrective Analysis'!AB6 -> 0.6253078451 | AK15: =$E$57*'Corrective Analysis'!AC6 -> 0.6401812791 | AL15: =$E$57*'Corrective Analysis'!AD6 -> 0.6550291052 | AM15: =$E$57*'Corrective Analysis'!AE6 -> 0.669856797 | AN15: =$E$57*'Corrective Analysis'!AF6 -> 0.6311792975 | AO15: =$E$57*'Corrective Analysis'!AG6 -> 0.6887089216 | AP15: =$E$57*'Corrective Analysis'!AH6 -> 0.6168636127 | AQ15: =$E$57*'Corrective Analysis'!AI6 -> 0.7181701878 | AR15: =$E$57*'Corrective Analysis'!AJ6 -> 0.7328991789 | AS15: =$E$57*'Corrective Analysis'!AK6 -> 0.7476301958
B16: Technicians per turbine working | D16: =CTV!D16 -> 3 | G16: Days required | H16: =D4*H20/(D17*H15)+H22 -> 57.25 | J16: Cost personnel/year | K16: =D7*H16*D9*(H15*12) -> 1319040 | O16: Case C | P16: =$F$57*'Corrective Analysis'!H7 -> 38.731 | Q16: =$F$57*'Corrective Analysis'!I7 -> 32.86434329 | R16: =$F$57*'Corrective Analysis'!J7 -> 35.77816524 | S16: =$F$57*'Corrective Analysis'!K7 -> 33.30866 | T16: =$F$57*'Corrective Analysis'!L7 -> 33.25637715 | U16: =$F$57*'Corrective Analysis'!M7 -> 32.53404 | V16: =$F$57*'Corrective Analysis'!N7 -> 30.9848 | W16: =$F$57*'Corrective Analysis'!O7 -> 33.153736 | X16: =$F$57*'Corrective Analysis'!P7 -> 31.914344 | Y16: =$F$57*'Corrective Analysis'!Q7 -> 30.365104 | Z16: =$F$57*'Corrective Analysis'!R7 -> 30.674952 | AA16: =$F$57*'Corrective Analysis'!S7 -> 30.9848 | AB16: =$F$57*'Corrective Analysis'!T7 -> 31.604496 | AC16: =$F$57*'Corrective Analysis'!U7 -> 31.294648 | AD16: =$F$57*'Corrective Analysis'!V7 -> 30.9848 | AE16: =$F$57*'Corrective Analysis'!W7 -> 30.674952 | AF16: =$F$57*'Corrective Analysis'!X7 -> 32.224192 | AG16: =$F$57*'Corrective Analysis'!Y7 -> 34.08328 | AH16: =$F$57*'Corrective Analysis'!Z7 -> 27.88632 | AI16: =$F$57*'Corrective Analysis'!AA7 -> 31.914344 | AJ16: =$F$57*'Corrective Analysis'!AB7 -> 33.75442251 | AK16: =$F$57*'Corrective Analysis'!AC7 -> 34.55729773 | AL16: =$F$57*'Corrective Analysis'!AD7 -> 35.35879063 | AM16: =$F$57*'Corrective Analysis'!AE7 -> 36.15919666 | AN16: =$F$57*'Corrective Analysis'!AF7 -> 34.07136637 | AO16: =$F$57*'Corrective Analysis'!AG7 -> 37.17684355 | AP16: =$F$57*'Corrective Analysis'!AH7 -> 33.29859873 | AQ16: =$F$57*'Corrective Analysis'!AI7 -> 38.76717706 | AR16: =$F$57*'Corrective Analysis'!AJ7 -> 39.56225519 | AS16: =$F$57*'Corrective Analysis'!AK7 -> 40.35744267
B17: Turbines/CTV | D17: =CTV!D17 -> 4 | G17: Total Time (hours) | H17: =H16*D7 -> 687 | J17: Total cost Preventive/yr | K17: =K16 -> 1319040 | O17: Case D | P17: =$G$57*'Corrective Analysis'!H8 -> 35.14725 | Q17: =$G$57*'Corrective Analysis'!I8 -> 29.82343058 | R17: =$G$57*'Corrective Analysis'!J8 -> 32.4676388 | S17: =$G$57*'Corrective Analysis'!K8 -> 30.226635 | T17: =$G$57*'Corrective Analysis'!L8 -> 30.17918985 | U17: =$G$57*'Corrective Analysis'!M8 -> 29.52369 | V17: =$G$57*'Corrective Analysis'!N8 -> 28.1178 | W17: =$G$57*'Corrective Analysis'!O8 -> 30.086046 | X17: =$G$57*'Corrective Analysis'!P8 -> 28.961334 | Y17: =$G$57*'Corrective Analysis'!Q8 -> 27.555444 | Z17: =$G$57*'Corrective Analysis'!R8 -> 27.836622 | AA17: =$G$57*'Corrective Analysis'!S8 -> 28.1178 | AB17: =$G$57*'Corrective Analysis'!T8 -> 28.680156 | AC17: =$G$57*'Corrective Analysis'!U8 -> 28.398978 | AD17: =$G$57*'Corrective Analysis'!V8 -> 28.1178 | AE17: =$G$57*'Corrective Analysis'!W8 -> 27.836622 | AF17: =$G$57*'Corrective Analysis'!X8 -> 29.242512 | AG17: =$G$57*'Corrective Analysis'!Y8 -> 30.92958 | AH17: =$G$57*'Corrective Analysis'!Z8 -> 25.30602 | AI17: =$G$57*'Corrective Analysis'!AA8 -> 28.961334 | AJ17: =$G$57*'Corrective Analysis'!AB8 -> 30.63115144 | AK17: =$G$57*'Corrective Analysis'!AC8 -> 31.35973723 | AL17: =$G$57*'Corrective Analysis'!AD8 -> 32.0870686 | AM17: =$G$57*'Corrective Analysis'!AE8 -> 32.81341367 | AN17: =$G$57*'Corrective Analysis'!AF8 -> 30.91876873 | AO17: =$G$57*'Corrective Analysis'!AG8 -> 33.73689846 | AP17: =$G$57*'Corrective Analysis'!AH8 -> 30.21750469 | AQ17: =$G$57*'Corrective Analysis'!AI8 -> 35.18007963 | AR17: =$G$57*'Corrective Analysis'!AJ8 -> 35.90158978 | AS17: =$G$57*'Corrective Analysis'!AK8 -> 36.62319916
B18: Hour of maintenance/turbine/year | D18: =CTV!D18 -> 21.5 | G18: Time from shore (hours) | H18: =D5/D11*2 -> 6.480041472 | O18: Case E | P18: =$H$57*'Corrective Analysis'!H9 -> 9.286875 | Q18: =$H$57*'Corrective Analysis'!I9 -> 7.880174746 | R18: =$H$57*'Corrective Analysis'!J9 -> 8.57884765 | S18: =$H$57*'Corrective Analysis'!K9 -> 7.9867125 | T18: =$H$57*'Corrective Analysis'!L9 -> 7.974176179 | U18: =$H$57*'Corrective Analysis'!M9 -> 7.800975 | V18: =$H$57*'Corrective Analysis'!N9 -> 7.4295 | W18: =$H$57*'Corrective Analysis'!O9 -> 7.949565 | X18: =$H$57*'Corrective Analysis'!P9 -> 7.652385 | Y18: =$H$57*'Corrective Analysis'!Q9 -> 7.28091 | Z18: =$H$57*'Corrective Analysis'!R9 -> 7.355205 | AA18: =$H$57*'Corrective Analysis'!S9 -> 7.4295 | AB18: =$H$57*'Corrective Analysis'!T9 -> 7.57809 | AC18: =$H$57*'Corrective Analysis'!U9 -> 7.503795 | AD18: =$H$57*'Corrective Analysis'!V9 -> 7.4295 | AE18: =$H$57*'Corrective Analysis'!W9 -> 7.355205 | AF18: =$H$57*'Corrective Analysis'!X9 -> 7.72668 | AG18: =$H$57*'Corrective Analysis'!Y9 -> 8.17245 | AH18: =$H$57*'Corrective Analysis'!Z9 -> 6.68655 | AI18: =$H$57*'Corrective Analysis'!AA9 -> 7.652385 | AJ18: =$H$57*'Corrective Analysis'!AB9 -> 8.093596925 | AK18: =$H$57*'Corrective Analysis'!AC9 -> 8.286109431 | AL18: =$H$57*'Corrective Analysis'!AD9 -> 8.478290483 | AM18: =$H$57*'Corrective Analysis'!AE9 -> 8.670210929 | AN18: =$H$57*'Corrective Analysis'!AF9 -> 8.169593364 | AO18: =$H$57*'Corrective Analysis'!AG9 -> 8.914221138 | AP18: =$H$57*'Corrective Analysis'!AH9 -> 7.984300019 | AQ18: =$H$57*'Corrective Analysis'!AI9 -> 9.295549495 | AR18: =$H$57*'Corrective Analysis'!AJ9 -> 9.486192421 | AS18: =$H$57*'Corrective Analysis'!AK9 -> 9.676861568
G19: Available time/day (hours) | H19: =D7-H21 -> 8 | O19: Total | P19: =SUM(P14:P18) -> 127.257 | Q19: =SUM(Q14:Q18) -> 107.9811452 | R19: 117.5549811 | S19: 109.44102 | T19: 109.2692362 | U19: 106.89588 | V19: 101.8056 | W19: 108.931992 | X19: 104.859768 | Y19: 99.769488 | Z19: 100.787544 | AA19: 101.8056 | AB19: 103.841712 | AC19: 102.823656 | AD19: 101.8056 | AE19: 100.787544 | AF19: 105.877824 | AG19: 111.98616 | AH19: 91.62504 | AI19: 104.859768 | AJ19: 110.9056452 | AK19: 113.5436224 | AL19: 116.1770576 | AM19: 118.8069218 | AN19: 111.9470158 | AO19: 122.1505662 | AP19: 109.407962 | AQ19: 127.3758656 | AR19: 129.9882241 | AS19: 132.6009419
B20: Upper limit of days required | D20: =CTV!D20 -> 60 | G20: Days required/4turbine/CTV | H20: =ROUNDUP(D18/H19,0) -> 3
B21: Lower limit of days required | D21: =CTV!D21 -> 0 | G21: Time spend in turbines/day | H21: =D15*(D17+1) -> 4
G22: Additional travel day | H22: =ROUNDUP(H18/D7,0) -> 1 | O22: Case A | P22: =$D$54*'Corrective Analysis'!H5 -> 3.943125 | Q22: =$D$54*'Corrective Analysis'!I5 -> 3.345852512 | R22: =$D$54*'Corrective Analysis'!J5 -> 3.642502848 | S22: =$D$54*'Corrective Analysis'!K5 -> 3.3910875 | T22: =$D$54*'Corrective Analysis'!L5 -> 3.385764689 | U22: =$D$54*'Corrective Analysis'!M5 -> 3.312225 | V22: =$D$54*'Corrective Analysis'!N5 -> 3.1545 | W22: =$D$54*'Corrective Analysis'!O5 -> 3.375315 | X22: =$D$54*'Corrective Analysis'!P5 -> 3.249135 | Y22: =$D$54*'Corrective Analysis'!Q5 -> 3.09141 | Z22: =$D$54*'Corrective Analysis'!R5 -> 3.122955 | AA22: =$D$54*'Corrective Analysis'!S5 -> 3.1545 | AB22: =$D$54*'Corrective Analysis'!T5 -> 3.21759 | AC22: =$D$54*'Corrective Analysis'!U5 -> 3.186045 | AD22: =$D$54*'Corrective Analysis'!V5 -> 3.1545 | AE22: =$D$54*'Corrective Analysis'!W5 -> 3.122955 | AF22: =$D$54*'Corrective Analysis'!X5 -> 3.28068 | AG22: =$D$54*'Corrective Analysis'!Y5 -> 3.46995 | AH22: =$D$54*'Corrective Analysis'!Z5 -> 2.83905 | AI22: =$D$54*'Corrective Analysis'!AA5 -> 3.249135 | AJ22: =$D$54*'Corrective Analysis'!AB5 -> 3.436469682 | AK22: =$D$54*'Corrective Analysis'!AC5 -> 3.518208789 | AL22: =$D$54*'Corrective Analysis'!AD5 -> 3.599807165 | AM22: =$D$54*'Corrective Analysis'!AE5 -> 3.681294888 | AN22: =$D$54*'Corrective Analysis'!AF5 -> 3.468737097 | AO22: =$D$54*'Corrective Analysis'!AG5 -> 3.784899466 | AP22: =$D$54*'Corrective Analysis'!AH5 -> 3.390063182 | AQ22: =$D$54*'Corrective Analysis'!AI5 -> 3.946808114 | AR22: =$D$54*'Corrective Analysis'!AJ5 -> 4.027753414 | AS22: =$D$54*'Corrective Analysis'!AK5 -> 4.108709848
O23: Case B | P23: =$E$54*'Corrective Analysis'!H6 -> 0.0525 | Q23: =$E$54*'Corrective Analysis'!I6 -> 0.04454772721 | R23: =$E$54*'Corrective Analysis'!J6 -> 0.04849742261 | S23: =$E$54*'Corrective Analysis'!K6 -> 0.04515 | T23: =$E$54*'Corrective Analysis'!L6 -> 0.04507913043 | U23: =$E$54*'Corrective Analysis'!M6 -> 0.0441 | V23: =$E$54*'Corrective Analysis'!N6 -> 0.042 | W23: =$E$54*'Corrective Analysis'!O6 -> 0.04494 | X23: =$E$54*'Corrective Analysis'!P6 -> 0.04326 | Y23: =$E$54*'Corrective Analysis'!Q6 -> 0.04116 | Z23: =$E$54*'Corrective Analysis'!R6 -> 0.04158 | AA23: =$E$54*'Corrective Analysis'!S6 -> 0.042 | AB23: =$E$54*'Corrective Analysis'!T6 -> 0.04284 | AC23: =$E$54*'Corrective Analysis'!U6 -> 0.04242 | AD23: =$E$54*'Corrective Analysis'!V6 -> 0.042 | AE23: =$E$54*'Corrective Analysis'!W6 -> 0.04158 | AF23: =$E$54*'Corrective Analysis'!X6 -> 0.04368 | AG23: =$E$54*'Corrective Analysis'!Y6 -> 0.0462 | AH23: =$E$54*'Corrective Analysis'!Z6 -> 0.0378 | AI23: =$E$54*'Corrective Analysis'!AA6 -> 0.04326 | AJ23: =$E$54*'Corrective Analysis'!AB6 -> 0.04575423257 | AK23: =$E$54*'Corrective Analysis'!AC6 -> 0.04684253262 | AL23: =$E$54*'Corrective Analysis'!AD6 -> 0.04792895892 | AM23: =$E$54*'Corrective Analysis'!AE6 -> 0.04901391197 | AN23: =$E$54*'Corrective Analysis'!AF6 -> 0.04618385104 | AO23: =$E$54*'Corrective Analysis'!AG6 -> 0.05039333573 | AP23: =$E$54*'Corrective Analysis'!AH6 -> 0.04513636191 | AQ23: =$E$54*'Corrective Analysis'!AI6 -> 0.05254903813 | AR23: =$E$54*'Corrective Analysis'!AJ6 -> 0.05362676919 | AS23: =$E$54*'Corrective Analysis'!AK6 -> 0.05470464848
N24: Actual downtimes (h) | O24: Case C | P24: =$F$54*'Corrective Analysis'!H7 -> 4.40125 | Q24: =$F$54*'Corrective Analysis'!I7 -> 3.734584465 | R24: =$F$54*'Corrective Analysis'!J7 -> 4.065700596 | S24: =$F$54*'Corrective Analysis'!K7 -> 3.785075 | T24: =$F$54*'Corrective Analysis'!L7 -> 3.779133767 | U24: =$F$54*'Corrective Analysis'!M7 -> 3.69705 | V24: =$F$54*'Corrective Analysis'!N7 -> 3.521 | W24: =$F$54*'Corrective Analysis'!O7 -> 3.76747 | X24: =$F$54*'Corrective Analysis'!P7 -> 3.62663 | Y24: =$F$54*'Corrective Analysis'!Q7 -> 3.45058 | Z24: =$F$54*'Corrective Analysis'!R7 -> 3.48579 | AA24: =$F$54*'Corrective Analysis'!S7 -> 3.521 | AB24: =$F$54*'Corrective Analysis'!T7 -> 3.59142 | AC24: =$F$54*'Corrective Analysis'!U7 -> 3.55621 | AD24: =$F$54*'Corrective Analysis'!V7 -> 3.521 | AE24: =$F$54*'Corrective Analysis'!W7 -> 3.48579 | AF24: =$F$54*'Corrective Analysis'!X7 -> 3.66184 | AG24: =$F$54*'Corrective Analysis'!Y7 -> 3.8731 | AH24: =$F$54*'Corrective Analysis'!Z7 -> 3.1689 | AI24: =$F$54*'Corrective Analysis'!AA7 -> 3.62663 | AJ24: =$F$54*'Corrective Analysis'!AB7 -> 3.83572983 | AK24: =$F$54*'Corrective Analysis'!AC7 -> 3.926965651 | AL24: =$F$54*'Corrective Analysis'!AD7 -> 4.01804439 | AM24: =$F$54*'Corrective Analysis'!AE7 -> 4.10899962 | AN24: =$F$54*'Corrective Analysis'!AF7 -> 3.871746179 | AO24: =$F$54*'Corrective Analysis'!AG7 -> 4.224641312 | AP24: =$F$54*'Corrective Analysis'!AH7 -> 3.783931673 | AQ24: =$F$54*'Corrective Analysis'!AI7 -> 4.40536103 | AR24: =$F$54*'Corrective Analysis'!AJ7 -> 4.495710817 | AS24: =$F$54*'Corrective Analysis'!AK7 -> 4.586073031
B25: Corrective Inputs | O25: Case D | P25: =$G$54*'Corrective Analysis'!H8 -> 14.391 | Q25: =$G$54*'Corrective Analysis'!I8 -> 12.21116843 | R25: =$G$54*'Corrective Analysis'!J8 -> 13.29383636 | S25: =$G$54*'Corrective Analysis'!K8 -> 12.37626 | T25: =$G$54*'Corrective Analysis'!L8 -> 12.35683364 | U25: =$G$54*'Corrective Analysis'!M8 -> 12.08844 | V25: =$G$54*'Corrective Analysis'!N8 -> 11.5128 | W25: =$G$54*'Corrective Analysis'!O8 -> 12.318696 | X25: =$G$54*'Corrective Analysis'!P8 -> 11.858184 | Y25: =$G$54*'Corrective Analysis'!Q8 -> 11.282544 | Z25: =$G$54*'Corrective Analysis'!R8 -> 11.397672 | AA25: =$G$54*'Corrective Analysis'!S8 -> 11.5128 | AB25: =$G$54*'Corrective Analysis'!T8 -> 11.743056 | AC25: =$G$54*'Corrective Analysis'!U8 -> 11.627928 | AD25: =$G$54*'Corrective Analysis'!V8 -> 11.5128 | AE25: =$G$54*'Corrective Analysis'!W8 -> 11.397672 | AF25: =$G$54*'Corrective Analysis'!X8 -> 11.973312 | AG25: =$G$54*'Corrective Analysis'!Y8 -> 12.66408 | AH25: =$G$54*'Corrective Analysis'!Z8 -> 10.36152 | AI25: =$G$54*'Corrective Analysis'!AA8 -> 11.858184 | AJ25: =$G$54*'Corrective Analysis'!AB8 -> 12.54188878 | AK25: =$G$54*'Corrective Analysis'!AC8 -> 12.84020737 | AL25: =$G$54*'Corrective Analysis'!AD8 -> 13.13801234 | AM25: =$G$54*'Corrective Analysis'!AE8 -> 13.43541347 | AN25: =$G$54*'Corrective Analysis'!AF8 -> 12.65965334 | AO25: =$G$54*'Corrective Analysis'!AG8 -> 13.81353323 | AP25: =$G$54*'Corrective Analysis'!AH8 -> 12.3725216 | AQ25: =$G$54*'Corrective Analysis'!AI8 -> 14.40444205 | AR25: =$G$54*'Corrective Analysis'!AJ8 -> 14.69986353 | AS25: =$G$54*'Corrective Analysis'!AK8 -> 14.99532564
B26: Processes: Time involved | O26: Case E | P26: =$H$54*'Corrective Analysis'!H9 -> 1.535625 | Q26: =$H$54*'Corrective Analysis'!I9 -> 1.303021021 | R26: =$H$54*'Corrective Analysis'!J9 -> 1.418549611 | S26: =$H$54*'Corrective Analysis'!K9 -> 1.3206375 | T26: =$H$54*'Corrective Analysis'!L9 -> 1.318564565 | U26: =$H$54*'Corrective Analysis'!M9 -> 1.289925 | V26: =$H$54*'Corrective Analysis'!N9 -> 1.2285 | W26: =$H$54*'Corrective Analysis'!O9 -> 1.314495 | X26: =$H$54*'Corrective Analysis'!P9 -> 1.265355 | Y26: =$H$54*'Corrective Analysis'!Q9 -> 1.20393 | Z26: =$H$54*'Corrective Analysis'!R9 -> 1.216215 | AA26: =$H$54*'Corrective Analysis'!S9 -> 1.2285 | AB26: =$H$54*'Corrective Analysis'!T9 -> 1.25307 | AC26: =$H$54*'Corrective Analysis'!U9 -> 1.240785 | AD26: =$H$54*'Corrective Analysis'!V9 -> 1.2285 | AE26: =$H$54*'Corrective Analysis'!W9 -> 1.216215 | AF26: =$H$54*'Corrective Analysis'!X9 -> 1.27764 | AG26: =$H$54*'Corrective Analysis'!Y9 -> 1.35135 | AH26: =$H$54*'Corrective Analysis'!Z9 -> 1.10565 | AI26: =$H$54*'Corrective Analysis'!AA9 -> 1.265355 | AJ26: =$H$54*'Corrective Analysis'!AB9 -> 1.338311303 | AK26: =$H$54*'Corrective Analysis'!AC9 -> 1.370144079 | AL26: =$H$54*'Corrective Analysis'!AD9 -> 1.401922048 | AM26: =$H$54*'Corrective Analysis'!AE9 -> 1.433656925 | AN26: =$H$54*'Corrective Analysis'!AF9 -> 1.350877643 | AO26: =$H$54*'Corrective Analysis'!AG9 -> 1.47400507 | AP26: =$H$54*'Corrective Analysis'!AH9 -> 1.320238586 | AQ26: =$H$54*'Corrective Analysis'!AI9 -> 1.537059365 | AR26: =$H$54*'Corrective Analysis'!AJ9 -> 1.568582999 | AS26: =$H$54*'Corrective Analysis'!AK9 -> 1.600110968
B27: Travel time from harbour (h) | D27: =D5/D11 -> 3.240020736 | O27: Total | P27: =SUM(P22:P26) -> 24.3235 | Q27: =SUM(Q22:Q26) -> 20.63917415 | R27: 22.46908684 | S27: 20.91821 | T27: 20.88537579 | U27: 20.43174 | V27: 19.4588 | W27: 20.820916 | X27: 20.042564 | Y27: 19.069624 | Z27: 19.264212 | AA27: 19.4588 | AB27: 19.847976 | AC27: 19.653388 | AD27: 19.4588 | AE27: 19.264212 | AF27: 20.237152 | AG27: 21.40468 | AH27: 17.51292 | AI27: 20.042564 | AJ27: 21.19815383 | AK27: 21.70236842 | AL27: 22.2057149 | AM27: 22.70837882 | AN27: 21.39719811 | AO27: 23.34747241 | AP27: 20.91189141 | AQ27: 24.3462196 | AR27: 24.84553753 | AS27: 25.34492414
B28: Acclimatisation | D28: 0.5
B29: Preparation (hr) | D29: 0.3
B30: Break (hr) | D30: 0.5 | U30: Year | V30: Outage Cost | W30: Small Replacements (days per turb) | X30: Small Replacements (available) | Y30: Small Replacements (required)** | Z30: Small Replacements (required) | AA30: Cost Vessels (Small Replacement-Charter) | AB30: Cost Vessels (Small Replacement-Spot) | AC30: Large Replacements (days per turb) | AD30: Large Replacements (available) | AE30: Large Replacements (required)** | AF30: Large Replacements (required) | AG30: Large Replacements (required) | AH30: Cost Vessels (Large Replacement)
B31: Transfer to WT (hr) | D31: 1.3 | U31: 1 | V31: =P19*$D$46*$D$47*$D$6*1000*$D$4 -> 6063421.765 | W31: =ROUNDUP((P22+P23+P24)/24*$D$4,0) -> 105 | X31: =$H$15*('Cost Vessels'!$D$10) -> 800 | Y31: =W31-X31 -> -695 | Z31: =IF(Y31>0,Y31,0) -> 0 | AA31: =Z31*IF($D$5<'Cost Vessels'!$D$11,'Cost Vessels'!$B$5,'Cost Vessels'!$B$16) -> 0 | AB31: =W31*IF($D$5<'Cost Vessels'!$D$11,'Cost Vessels'!$B$5,'Cost Vessels'!$B$16) -> 197400 | AC31: =ROUNDUP((P25+P26)/24*$D$4,0) -> 200 | AD31: - | AE31: - | AF31: - | AG31: =AC31 -> 200 | AH31: =AG31*'Cost Vessels'!$L$5 -> 32112800
B32: Effective time (hr) ?????? | D32: =D7-D30-D31-D28-D29-D27*2 -> 2.919958528 | U32: 2 | V32: =Q19*$D$46*$D$47*$D$6*1000*$D$4 -> 5144983.976 | W32: =ROUNDUP((Q22+Q23+Q24)/24*$D$4,0) -> 90 | X32: =$H$15*('Cost Vessels'!$D$10) -> 800 | Y32: =W32-X32 -> -710 | Z32: =IF(Y32>0,Y32,0) -> 0 | AA32: =Z32*IF($D$5<'Cost Vessels'!$D$11,'Cost Vessels'!$B$5,'Cost Vessels'!$B$16) -> 0 | AB32: =W32*IF($D$5<'Cost Vessels'!$D$11,'Cost Vessels'!$B$5,'Cost Vessels'!$B$16) -> 169200 | AC32: =ROUNDUP((Q25+Q26)/24*$D$4,0) -> 169 | AD32: - | AE32: - | AF32: - | AG32: =AC32 -> 169 | AH32: =AG32*'Cost Vessels'!$L$5 -> 27135316
U33: 3 | V33: =R19*$D$46*$D$47*$D$6*1000*$D$4 -> 5601149.101 | W33: =ROUNDUP((R22+R23+R24)/24*$D$4,0) -> 97 | X33: =$H$15*('Cost Vessels'!$D$10) -> 800 | Y33: -703 | Z33: 0 | AA33: =Z33*IF($D$5<'Cost Vessels'!$D$11,'Cost Vessels'!$B$5,'Cost Vessels'!$B$16) -> 0 | AB33: =W33*IF($D$5<'Cost Vessels'!$D$11,'Cost Vessels'!$B$5,'Cost Vessels'!$B$16) -> 182360 | AC33: =ROUNDUP((R25+R26)/24*$D$4,0) -> 184 | AD33: - | AE33: - | AF33: - | AG33: 184 | AH33: =AG33*'Cost Vessels'!$L$5 -> 29543776
B34: Large replacements (E) | U34: 4 | V34: =S19*$D$46*$D$47*$D$6*1000*$D$4 -> 5214542.718 | W34: =ROUNDUP((S22+S23+S24)/24*$D$4,0) -> 91 | X34: =$H$15*('Cost Vessels'!$D$10) -> 800 | Y34: -709 | Z34: 0 | AA34: =Z34*IF($D$5<'Cost Vessels'!$D$11,'Cost Vessels'!$B$5,'Cost Vessels'!$B$16) -> 0 | AB34: =W34*IF($D$5<'Cost Vessels'!$D$11,'Cost Vessels'!$B$5,'Cost Vessels'!$B$16) -> 171080 | AC34: =ROUNDUP((S25+S26)/24*$D$4,0) -> 172 | AD34: - | AE34: - | AF34: - | AG34: 172 | AH34: =AG34*'Cost Vessels'!$L$5 -> 27617008
B35: Jack-up speed km/hr | D35: 16.7 | U35: 5 | V35: =T19*$D$46*$D$47*$D$6*1000*$D$4 -> 5206357.725 | W35: =ROUNDUP((T22+T23+T24)/24*$D$4,0) -> 91 | X35: =$H$15*('Cost Vessels'!$D$10) -> 800 | Y35: -709 | Z35: 0 | AA35: =Z35*IF($D$5<'Cost Vessels'!$D$11,'Cost Vessels'!$B$5,'Cost Vessels'!$B$16) -> 0 | AB35: =W35*IF($D$5<'Cost Vessels'!$D$11,'Cost Vessels'!$B$5,'Cost Vessels'!$B$16) -> 171080 | AC35: =ROUNDUP((T25+T26)/24*$D$4,0) -> 171 | AD35: - | AE35: - | AF35: - | AG35: 171 | AH35: =AG35*'Cost Vessels'!$L$5 -> 27456444
B36: E Repair time* | D36: 96 | U36: 6 | V36: =U19*$D$46*$D$47*$D$6*1000*$D$4 -> 5093274.282 | W36: =ROUNDUP((U22+U23+U24)/24*$D$4,0) -> 89 | X36: =$H$15*('Cost Vessels'!$D$10) -> 800 | Y36: -711 | Z36: 0 | AA36: =Z36*IF($D$5<'Cost Vessels'!$D$11,'Cost Vessels'!$B$5,'Cost Vessels'!$B$16) -> 0 | AB36: =W36*IF($D$5<'Cost Vessels'!$D$11,'Cost Vessels'!$B$5,'Cost Vessels'!$B$16) -> 167320 | AC36: =ROUNDUP((U25+U26)/24*$D$4,0) -> 168 | AD36: - | AE36: - | AF36: - | AG36: 168 | AH36: =AG36*'Cost Vessels'!$L$5 -> 26974752
B37: Travel time | D37: =D5/D35 -> 7.185628743 | U37: 7 | V37: =V19*$D$46*$D$47*$D$6*1000*$D$4 -> 4850737.412 | W37: =ROUNDUP((V22+V23+V24)/24*$D$4,0) -> 84 | X37: =$H$15*('Cost Vessels'!$D$10) -> 800 | Y37: -716 | Z37: 0 | AA37: =Z37*IF($D$5<'Cost Vessels'!$D$11,'Cost Vessels'!$B$5,'Cost Vessels'!$B$16) -> 0 | AB37: =W37*IF($D$5<'Cost Vessels'!$D$11,'Cost Vessels'!$B$5,'Cost Vessels'!$B$16) -> 157920 | AC37: =ROUNDUP((V25+V26)/24*$D$4,0) -> 160 | AD37: - | AE37: - | AF37: - | AG37: 160 | AH37: =AG37*'Cost Vessels'!$L$5 -> 25690240
B38: Positioning jack-up (hr) | D38: 3 | U38: 8 | V38: =W19*$D$46*$D$47*$D$6*1000*$D$4 -> 5190289.031 | W38: =ROUNDUP((W22+W23+W24)/24*$D$4,0) -> 90 | X38: =$H$15*('Cost Vessels'!$D$10) -> 800 | Y38: -710 | Z38: 0 | AA38: =Z38*IF($D$5<'Cost Vessels'!$D$11,'Cost Vessels'!$B$5,'Cost Vessels'!$B$16) -> 0 | AB38: =W38*IF($D$5<'Cost Vessels'!$D$11,'Cost Vessels'!$B$5,'Cost Vessels'!$B$16) -> 169200 | AC38: =ROUNDUP((W25+W26)/24*$D$4,0) -> 171 | AD38: - | AE38: - | AF38: - | AG38: 171 | AH38: =AG38*'Cost Vessels'!$L$5 -> 27456444
U39: 9 | V39: =X19*$D$46*$D$47*$D$6*1000*$D$4 -> 4996259.534 | W39: =ROUNDUP((X22+X23+X24)/24*$D$4,0) -> 87 | X39: =$H$15*('Cost Vessels'!$D$10) -> 800 | Y39: -713 | Z39: 0 | AA39: =Z39*IF($D$5<'Cost Vessels'!$D$11,'Cost Vessels'!$B$5,'Cost Vessels'!$B$16) -> 0 | AB39: =W39*IF($D$5<'Cost Vessels'!$D$11,'Cost Vessels'!$B$5,'Cost Vessels'!$B$16) -> 163560 | AC39: =ROUNDUP((X25+X26)/24*$D$4,0) -> 165 | AD39: - | AE39: - | AF39: - | AG39: 165 | AH39: =AG39*'Cost Vessels'!$L$5 -> 26493060
B40: Large replacements (D) | U40: 10 | V40: =Y19*$D$46*$D$47*$D$6*1000*$D$4 -> 4753722.664 | W40: =ROUNDUP((Y22+Y23+Y24)/24*$D$4,0) -> 83 | X40: =$H$15*('Cost Vessels'!$D$10) -> 800 | Y40: -717 | Z40: 0 | AA40: =Z40*IF($D$5<'Cost Vessels'!$D$11,'Cost Vessels'!$B$5,'Cost Vessels'!$B$16) -> 0 | AB40: =W40*IF($D$5<'Cost Vessels'!$D$11,'Cost Vessels'!$B$5,'Cost Vessels'!$B$16) -> 156040 | AC40: =ROUNDUP((Y25+Y26)/24*$D$4,0) -> 157 | AD40: - | AE40: - | AF40: - | AG40: 157 | AH40: =AG40*'Cost Vessels'!$L$5 -> 25208548
B41: Speed of crane ship km/hr | D41: 15 | U41: 11 | V41: =Z19*$D$46*$D$47*$D$6*1000*$D$4 -> 4802230.038 | W41: =ROUNDUP((Z22+Z23+Z24)/24*$D$4,0) -> 84 | X41: =$H$15*('Cost Vessels'!$D$10) -> 800 | Y41: -716 | Z41: 0 | AA41: =Z41*IF($D$5<'Cost Vessels'!$D$11,'Cost Vessels'!$B$5,'Cost Vessels'!$B$16) -> 0 | AB41: =W41*IF($D$5<'Cost Vessels'!$D$11,'Cost Vessels'!$B$5,'Cost Vessels'!$B$16) -> 157920 | AC41: =ROUNDUP((Z25+Z26)/24*$D$4,0) -> 158 | AD41: - | AE41: - | AF41: - | AG41: 158 | AH41: =AG41*'Cost Vessels'!$L$5 -> 25369112
B42: Repair time* | D42: 96 | U42: 12 | V42: =AA19*$D$46*$D$47*$D$6*1000*$D$4 -> 4850737.412 | W42: =ROUNDUP((AA22+AA23+AA24)/24*$D$4,0) -> 84 | X42: =$H$15*('Cost Vessels'!$D$10) -> 800 | Y42: -716 | Z42: 0 | AA42: =Z42*IF($D$5<'Cost Vessels'!$D$11,'Cost Vessels'!$B$5,'Cost Vessels'!$B$16) -> 0 | AB42: =W42*IF($D$5<'Cost Vessels'!$D$11,'Cost Vessels'!$B$5,'Cost Vessels'!$B$16) -> 157920 | AC42: =ROUNDUP((AA25+AA26)/24*$D$4,0) -> 160 | AD42: - | AE42: - | AF42: - | AG42: 160 | AH42: =AG42*'Cost Vessels'!$L$5 -> 25690240
B43: Travel time | D43: =D5/D41 -> 8 | U43: 13 | V43: =AB19*$D$46*$D$47*$D$6*1000*$D$4 -> 4947752.16 | W43: =ROUNDUP((AB22+AB23+AB24)/24*$D$4,0) -> 86 | X43: =$H$15*('Cost Vessels'!$D$10) -> 800 | Y43: -714 | Z43: 0 | AA43: =Z43*IF($D$5<'Cost Vessels'!$D$11,'Cost Vessels'!$B$5,'Cost Vessels'!$B$16) -> 0 | AB43: =W43*IF($D$5<'Cost Vessels'!$D$11,'Cost Vessels'!$B$5,'Cost Vessels'!$B$16) -> 161680 | AC43: =ROUNDUP((AB25+AB26)/24*$D$4,0) -> 163 | AD43: - | AE43: - | AF43: - | AG43: 163 | AH43: =AG43*'Cost Vessels'!$L$5 -> 26171932
B44: Failures increasing each year | D44: 0.015 | U44: 14 | V44: =AC19*$D$46*$D$47*$D$6*1000*$D$4 -> 4899244.786 | W44: =ROUNDUP((AC22+AC23+AC24)/24*$D$4,0) -> 85 | X44: =$H$15*('Cost Vessels'!$D$10) -> 800 | Y44: -715 | Z44: 0 | AA44: =Z44*IF($D$5<'Cost Vessels'!$D$11,'Cost Vessels'!$B$5,'Cost Vessels'!$B$16) -> 0 | AB44: =W44*IF($D$5<'Cost Vessels'!$D$11,'Cost Vessels'!$B$5,'Cost Vessels'!$B$16) -> 159800 | AC44: =ROUNDUP((AC25+AC26)/24*$D$4,0) -> 161 | AD44: - | AE44: - | AF44: - | AG44: 161 | AH44: =AG44*'Cost Vessels'!$L$5 -> 25850804
B45: Cost inputs | U45: 15 | V45: =AD19*$D$46*$D$47*$D$6*1000*$D$4 -> 4850737.412 | W45: =ROUNDUP((AD22+AD23+AD24)/24*$D$4,0) -> 84 | X45: =$H$15*('Cost Vessels'!$D$10) -> 800 | Y45: -716 | Z45: 0 | AA45: =Z45*IF($D$5<'Cost Vessels'!$D$11,'Cost Vessels'!$B$5,'Cost Vessels'!$B$16) -> 0 | AB45: =W45*IF($D$5<'Cost Vessels'!$D$11,'Cost Vessels'!$B$5,'Cost Vessels'!$B$16) -> 157920 | AC45: =ROUNDUP((AD25+AD26)/24*$D$4,0) -> 160 | AD45: - | AE45: - | AF45: - | AG45: 160 | AH45: =AG45*'Cost Vessels'!$L$5 -> 25690240
B46: Electricity Price (£/KWh) | D46: =0.08/1.36 -> 0.05882352941 | U46: 16 | V46: =AE19*$D$46*$D$47*$D$6*1000*$D$4 -> 4802230.038 | W46: =ROUNDUP((AE22+AE23+AE24)/24*$D$4,0) -> 84 | X46: =$H$15*('Cost Vessels'!$D$10) -> 800 | Y46: -716 | Z46: 0 | AA46: =Z46*IF($D$5<'Cost Vessels'!$D$11,'Cost Vessels'!$B$5,'Cost Vessels'!$B$16) -> 0 | AB46: =W46*IF($D$5<'Cost Vessels'!$D$11,'Cost Vessels'!$B$5,'Cost Vessels'!$B$16) -> 157920 | AC46: =ROUNDUP((AE25+AE26)/24*$D$4,0) -> 158 | AD46: - | AE46: - | AF46: - | AG46: 158 | AH46: =AG46*'Cost Vessels'!$L$5 -> 25369112
B47: Capacity Factor far-offshore | D47: 0.45 | U47: 17 | V47: =AF19*$D$46*$D$47*$D$6*1000*$D$4 -> 5044766.908 | W47: =ROUNDUP((AF22+AF23+AF24)/24*$D$4,0) -> 88 | X47: =$H$15*('Cost Vessels'!$D$10) -> 800 | Y47: -712 | Z47: 0 | AA47: =Z47*IF($D$5<'Cost Vessels'!$D$11,'Cost Vessels'!$B$5,'Cost Vessels'!$B$16) -> 0 | AB47: =W47*IF($D$5<'Cost Vessels'!$D$11,'Cost Vessels'!$B$5,'Cost Vessels'!$B$16) -> 165440 | AC47: =ROUNDUP((AF25+AF26)/24*$D$4,0) -> 166 | AD47: - | AE47: - | AF47: - | AG47: 166 | AH47: =AG47*'Cost Vessels'!$L$5 -> 26653624
U48: 18 | V48: =AG19*$D$46*$D$47*$D$6*1000*$D$4 -> 5335811.153 | W48: =ROUNDUP((AG22+AG23+AG24)/24*$D$4,0) -> 93 | X48: =$H$15*('Cost Vessels'!$D$10) -> 800 | Y48: -707 | Z48: 0 | AA48: =Z48*IF($D$5<'Cost Vessels'!$D$11,'Cost Vessels'!$B$5,'Cost Vessels'!$B$16) -> 0 | AB48: =W48*IF($D$5<'Cost Vessels'!$D$11,'Cost Vessels'!$B$5,'Cost Vessels'!$B$16) -> 174840 | AC48: =ROUNDUP((AG25+AG26)/24*$D$4,0) -> 176 | AD48: - | AE48: - | AF48: - | AG48: 176 | AH48: =AG48*'Cost Vessels'!$L$5 -> 28259264
U49: 19 | V49: =AH19*$D$46*$D$47*$D$6*1000*$D$4 -> 4365663.671 | W49: =ROUNDUP((AH22+AH23+AH24)/24*$D$4,0) -> 76 | X49: =$H$15*('Cost Vessels'!$D$10) -> 800 | Y49: -724 | Z49: 0 | AA49: =Z49*IF($D$5<'Cost Vessels'!$D$11,'Cost Vessels'!$B$5,'Cost Vessels'!$B$16) -> 0 | AB49: =W49*IF($D$5<'Cost Vessels'!$D$11,'Cost Vessels'!$B$5,'Cost Vessels'!$B$16) -> 142880 | AC49: =ROUNDUP((AH25+AH26)/24*$D$4,0) -> 144 | AD49: - | AE49: - | AF49: - | AG49: 144 | AH49: =AG49*'Cost Vessels'!$L$5 -> 23121216
B50: Detailed corrective analysis | U50: 20 | V50: =AI19*$D$46*$D$47*$D$6*1000*$D$4 -> 4996259.534 | W50: =ROUNDUP((AI22+AI23+AI24)/24*$D$4,0) -> 87 | X50: =$H$15*('Cost Vessels'!$D$10) -> 800 | Y50: -713 | Z50: 0 | AA50: =Z50*IF($D$5<'Cost Vessels'!$D$11,'Cost Vessels'!$B$5,'Cost Vessels'!$B$16) -> 0 | AB50: =W50*IF($D$5<'Cost Vessels'!$D$11,'Cost Vessels'!$B$5,'Cost Vessels'!$B$16) -> 163560 | AC50: =ROUNDUP((AI25+AI26)/24*$D$4,0) -> 165 | AD50: - | AE50: - | AF50: - | AG50: 165 | AH50: =AG50*'Cost Vessels'!$L$5 -> 26493060
D51: Case A | E51: Case B | F51: Case C | G51: Case D | H51: Case E | U51: 21 | V51: =AJ19*$D$46*$D$47*$D$6*1000*$D$4 -> 5284327.801 | W51: =ROUNDUP((AJ22+AJ23+AJ24)/24*$D$4,0) -> 92 | X51: =$H$15*('Cost Vessels'!$D$10) -> 800 | Y51: -708 | Z51: 0 | AA51: =Z51*IF($D$5<'Cost Vessels'!$D$11,'Cost Vessels'!$B$5,'Cost Vessels'!$B$16) -> 0 | AB51: =W51*IF($D$5<'Cost Vessels'!$D$11,'Cost Vessels'!$B$5,'Cost Vessels'!$B$16) -> 172960 | AC51: =ROUNDUP((AJ25+AJ26)/24*$D$4,0) -> 174 | AD51: - | AE51: - | AF51: - | AG51: 174 | AH51: =AG51*'Cost Vessels'!$L$5 -> 27938136
B52: Travel time required | D52: 0 | E52: 0 | F52: 0 | G52: =D43 -> 8 | H52: 9 | U52: 22 | V52: =AK19*$D$46*$D$47*$D$6*1000*$D$4 -> 5410019.653 | W52: =ROUNDUP((AK22+AK23+AK24)/24*$D$4,0) -> 94 | X52: =$H$15*('Cost Vessels'!$D$10) -> 800 | Y52: -706 | Z52: 0 | AA52: =Z52*IF($D$5<'Cost Vessels'!$D$11,'Cost Vessels'!$B$5,'Cost Vessels'!$B$16) -> 0 | AB52: =W52*IF($D$5<'Cost Vessels'!$D$11,'Cost Vessels'!$B$5,'Cost Vessels'!$B$16) -> 176720 | AC52: =ROUNDUP((AK25+AK26)/24*$D$4,0) -> 178 | AD52: - | AE52: - | AF52: - | AG52: 178 | AH52: =AG52*'Cost Vessels'!$L$5 -> 28580392
B53: Repair Time needed (hr) | D53: 3 | E53: 3 | F53: 10 | G53: =D42 -> 96 | H53: =D36 -> 96 | U53: 23 | V53: =AL19*$D$46*$D$47*$D$6*1000*$D$4 -> 5535495.099 | W53: =ROUNDUP((AL23+AL24+AL22)/24*$D$4,0) -> 96 | X53: =$H$15*('Cost Vessels'!$D$10) -> 800 | Y53: -704 | Z53: 0 | AA53: =Z53*IF($D$5<'Cost Vessels'!$D$11,'Cost Vessels'!$B$5,'Cost Vessels'!$B$16) -> 0 | AB53: =W53*IF($D$5<'Cost Vessels'!$D$11,'Cost Vessels'!$B$5,'Cost Vessels'!$B$16) -> 180480 | AC53: =ROUNDUP((AL25+AL26)/24*$D$4,0) -> 182 | AD53: - | AE53: - | AF53: - | AG53: 182 | AH53: =AG53*'Cost Vessels'!$L$5 -> 29222648
B54: Actual downtimes* (hr) | D54: =D52+D53 -> 3 | E54: =E52+E53 -> 3 | F54: =F52+F53 -> 10 | G54: =G52+G53 -> 104 | H54: =H52+H53 -> 105 | U54: 24 | V54: =AM19*$D$46*$D$47*$D$6*1000*$D$4 -> 5660800.393 | W54: =ROUNDUP((AM22+AM23+AM24)/24*$D$4,0) -> 98 | X54: =$H$15*('Cost Vessels'!$D$10) -> 800 | Y54: -702 | Z54: 0 | AA54: =Z54*IF($D$5<'Cost Vessels'!$D$11,'Cost Vessels'!$B$5,'Cost Vessels'!$B$16) -> 0 | AB54: =W54*IF($D$5<'Cost Vessels'!$D$11,'Cost Vessels'!$B$5,'Cost Vessels'!$B$16) -> 184240 | AC54: =ROUNDUP((AM25+AM26)/24*$D$4,0) -> 186 | AD54: - | AE54: - | AF54: - | AG54: 186 | AH54: =AG54*'Cost Vessels'!$L$5 -> 29864904
B55: Logistics Time (hr) | D55: =Inputs!K35 -> 0 | E55: =Inputs!L35 -> 8 | F55: =Inputs!M35 -> 48 | G55: =Inputs!N35 -> 120 | H55: =Inputs!O35 -> 500 | U55: 25 | V55: =AN19*$D$46*$D$47*$D$6*1000*$D$4 -> 5333946.049 | W55: =ROUNDUP((AN22+AN23+AN24)/24*$D$4,0) -> 93 | X55: =$H$15*('Cost Vessels'!$D$10) -> 800 | Y55: -707 | Z55: 0 | AA55: =Z55*IF($D$5<'Cost Vessels'!$D$11,'Cost Vessels'!$B$5,'Cost Vessels'!$B$16) -> 0 | AB55: =W55*IF($D$5<'Cost Vessels'!$D$11,'Cost Vessels'!$B$5,'Cost Vessels'!$B$16) -> 174840 | AC55: =ROUNDUP((AN25+AN26)/24*$D$4,0) -> 176 | AD55: - | AE55: - | AF55: - | AG55: 176 | AH55: =AG55*'Cost Vessels'!$L$5 -> 28259264
B56: Waiting Time (hr) | D56: =Inputs!K36 -> 30 | E56: =Inputs!L36 -> 30 | F56: =Inputs!M36 -> 30 | G56: =Inputs!N36 -> 30 | H56: =Inputs!O36 -> 30 | U56: 26 | V56: =AO19*$D$46*$D$47*$D$6*1000*$D$4 -> 5820115.212 | W56: =ROUNDUP((AO22+AO23+AO24)/24*$D$4,0) -> 101 | X56: =$H$15*('Cost Vessels'!$D$10) -> 800 | Y56: -699 | Z56: 0 | AA56: =Z56*IF($D$5<'Cost Vessels'!$D$11,'Cost Vessels'!$B$5,'Cost Vessels'!$B$16) -> 0 | AB56: =W56*IF($D$5<'Cost Vessels'!$D$11,'Cost Vessels'!$B$5,'Cost Vessels'!$B$16) -> 189880 | AC56: =ROUNDUP((AO25+AO26)/24*$D$4,0) -> 192 | AD56: - | AE56: - | AF56: - | AG56: 192 | AH56: =AG56*'Cost Vessels'!$L$5 -> 30828288
B57: Total downtime (hr) | D57: =SUM(D54:D56) -> 33 | E57: =SUM(E54:E56) -> 41 | F57: =SUM(F54:F56) -> 88 | G57: =SUM(G54:G56) -> 254 | H57: =SUM(H54:H56) -> 635 | U57: 27 | V57: =AP19*$D$46*$D$47*$D$6*1000*$D$4 -> 5212967.603 | W57: =ROUNDUP((AP22+AP23+AP24)/24*$D$4,0) -> 91 | X57: =$H$15*('Cost Vessels'!$D$10) -> 800 | Y57: -709 | Z57: 0 | AA57: =Z57*IF($D$5<'Cost Vessels'!$D$11,'Cost Vessels'!$B$5,'Cost Vessels'!$B$16) -> 0 | AB57: =W57*IF($D$5<'Cost Vessels'!$D$11,'Cost Vessels'!$B$5,'Cost Vessels'!$B$16) -> 171080 | AC57: =ROUNDUP((AP25+AP26)/24*$D$4,0) -> 172 | AD57: - | AE57: - | AF57: - | AG57: 172 | AH57: =AG57*'Cost Vessels'!$L$5 -> 27617008
B58: Downtimes corr. maint. (hr/yr)/tr | U58: 28 | V58: =AQ19*$D$46*$D$47*$D$6*1000*$D$4 -> 6069085.362 | W58: =ROUNDUP((AQ22+AQ23+AQ24)/24*$D$4,0) -> 106 | X58: =$H$15*('Cost Vessels'!$D$10) -> 800 | Y58: -694 | Z58: 0 | AA58: =Z58*IF($D$5<'Cost Vessels'!$D$11,'Cost Vessels'!$B$5,'Cost Vessels'!$B$16) -> 0 | AB58: =W58*IF($D$5<'Cost Vessels'!$D$11,'Cost Vessels'!$B$5,'Cost Vessels'!$B$16) -> 199280 | AC58: =ROUNDUP((AQ25+AQ26)/24*$D$4,0) -> 200 | AD58: - | AE58: - | AF58: - | AG58: 200 | AH58: =AG58*'Cost Vessels'!$L$5 -> 32112800
U59: 29 | V59: =AR19*$D$46*$D$47*$D$6*1000*$D$4 -> 6193556.561 | W59: =ROUNDUP((AR22+AR23+AR24)/24*$D$4,0) -> 108 | X59: =$H$15*('Cost Vessels'!$D$10) -> 800 | Y59: -692 | Z59: 0 | AA59: =Z59*IF($D$5<'Cost Vessels'!$D$11,'Cost Vessels'!$B$5,'Cost Vessels'!$B$16) -> 0 | AB59: =W59*IF($D$5<'Cost Vessels'!$D$11,'Cost Vessels'!$B$5,'Cost Vessels'!$B$16) -> 203040 | AC59: =ROUNDUP((AR25+AR26)/24*$D$4,0) -> 204 | AD59: - | AE59: - | AF59: - | AG59: 204 | AH59: =AG59*'Cost Vessels'!$L$5 -> 32755056
U60: 30 | V60: =AS19*$D$46*$D$47*$D$6*1000*$D$4 -> 6318044.88 | W60: =ROUNDUP((AS22+AS23+AS24)/24*$D$4,0) -> 110 | X60: =$H$15*('Cost Vessels'!$D$10) -> 800 | Y60: -690 | Z60: 0 | AA60: =Z60*IF($D$5<'Cost Vessels'!$D$11,'Cost Vessels'!$B$5,'Cost Vessels'!$B$16) -> 0 | AB60: =W60*IF($D$5<'Cost Vessels'!$D$11,'Cost Vessels'!$B$5,'Cost Vessels'!$B$16) -> 206800 | AC60: =ROUNDUP((AS25+AS26)/24*$D$4,0) -> 208 | AD60: - | AE60: - | AF60: - | AG60: 208 | AH60: =AG60*'Cost Vessels'!$L$5 -> 33397312
B61: Spot Market Mothership | P61: Charter Mothership | AD61: Purchase Mothership
B62: Detailed Cost Analysis Preventive | G62: Detailed Cost Analysis Corrective | K62: Detailed Cost Analysis Total | P62: Detailed Cost Analysis Preventive | U62: Detailed Cost Analysis Corrective | Y62: Detailed Cost Analysis Total | AD62: Detailed Cost Analysis Preventive | AI62: Detailed Cost Analysis Corrective | AM62: Detailed Cost Analysis Total
B64: Year | C64: Cost CTV Spot Market | D64: Cost CTV Charter | E64: Cost Purchased | G64: Cost CTV Spot Market | H64: Cost CTV Charter | I64: Cost Purchased | K64: Moth_Spot Market + CTV_Spot Market | L64: Moth_Spot Market + CTV_Charter | M64: Moth_Spot Market + CTV_Purchase | P64: Year | Q64: Cost CTV Spot Market | R64: Cost CTV Charter | S64: Cost Purchased | U64: Cost CTV Spot Market | V64: Cost CTV Charter | W64: Cost Purchased | Y64: Moth_Charter + CTV_Spot Market | Z64: Moth_Charter + CTV_Charter | AA64: Moth_Charter + CTV_Purchase | AD64: Year | AE64: Cost CTV Spot Market | AF64: Cost CTV Charter | AG64: Cost Purchased | AI64: Cost CTV Spot Market | AJ64: Cost CTV Charter | AK64: Cost Purchased | AM64: Moth_Purchase + CTV_Spot Market | AN64: Moth_Purchase + CTV_Charter | AO64: Moth_Purchase + CTV_Purchase
B65: 1 | C65: =C104 -> 2579341.5 | D65: =D104 -> 4151941.5 | E65: =E104 -> 13727549.5 | G65: =G104 -> 32310200 | H65: =H104 -> 32112800 | I65: =I104 -> 32112800 | K65: =K104 -> 42272003.26 | L65: =L104 -> 43647203.26 | M65: =M104 -> 53222811.26 | P65: 1 | Q65: =Q104 -> 10430520 | R65: =R104 -> 12003120 | S65: =S104 -> 21578728 | U65: =U104 -> 32310200 | V65: =V104 -> 32112800 | W65: =W104 -> 32112800 | Y65: =Y104 -> 50123181.76 | Z65: =Z104 -> 51498381.76 | AA65: =AA104 -> 61073989.76 | AD65: 1 | AE65: =AE104 -> 58233988 | AF65: =AF104 -> 59806588 | AG65: =AG104 -> 69382196 | AI65: =AI104 -> 32310200 | AJ65: =AJ104 -> 32112800 | AK65: =AK104 -> 32112800 | AM65: =AM104 -> 97926649.76 | AN65: =AN104 -> 99301849.76 | AO65: =AO104 -> 108877457.8
B66: 2 | C66: =C65+C105 -> 5158683 | D66: =D65+D105 -> 8303883 | E66: =E65+E105 -> 15934264.64 | G66: =G65+G105 -> 59614716 | H66: =H65+H105 -> 59248116 | I66: =I65+I105 -> 59248116 | K66: =K65+K105 -> 77907181.18 | L66: =L65+L105 -> 80658263.54 | M66: =M65+M105 -> 88326786.87 | P66: 2 | Q66: =Q65+Q105 -> 20861040 | R66: =R65+R105 -> 24006240 | S66: =S65+S105 -> 31636621.64 | U66: =U65+U105 -> 59614716 | V66: =V65+V105 -> 59248116 | W66: =W65+W105 -> 59248116 | Y66: =Y65+Y105 -> 93455593.51 | Z66: =Z65+Z105 -> 96206675.86 | AA66: =AA65+AA105 -> 103875199.2 | AD66: 2 | AE66: =AE65+AE105 -> 59820577.36 | AF66: =AF105 -> 3159189.36 | AG66: 1213963 | AI66: =AI65+AI105 -> 59614716 | AJ66: =AJ105 -> 27135316 | AK66: 27135316 | AM66: =AM65+AM105 -> 132588541.3 | AN66: =AN65+AN105 -> 135339623.6 | AO66: =AO65+AO105 -> 143008147
B67: 3 | C67: =C66+C106 -> 7738024.5 | D67: =D66+D106 -> 12455824.5 | E67: =E66+E106 -> 18141558.72 | G67: =G66+G106 -> 89340852 | H67: =H66+H106 -> 88791892 | I67: =I66+I106 -> 88791892 | K67: =K66+K106 -> 115609667.3 | L67: =L66+L106 -> 119697005 | M67: =M66+M106 -> 125496393.9 | P67: 3 | Q67: 31291560 | R67: 36009360 | S67: 41695094.22 | U67: =U66+U106 -> 89340852 | V67: =V66+V106 -> 88791892 | W67: =W66+W106 -> 88791892 | Y67: =Y66+Y106 -> 138704387.3 | Z67: =Z66+Z106 -> 142791725 | AA67: =AA66+AA106 -> 148591113.9 | AD67: 3 | AE67: =AE66+AE106 -> 61418727.41 | AF67: 3170750.054 | AG67: 1226102.63 | AI67: =AI66+AI106 -> 89340852 | AJ67: 29543776 | AK67: 29543776 | AM67: =AM66+AM106 -> 169347936.8 | AN67: =AN66+AN106 -> 173435274.5 | AO67: =AO66+AO106 -> 179234663.4
B68: 4 | C68: 10317366 | D68: 16607766 | E68: 20349437.52 | G68: 117128940 | H68: 116408900 | I68: 116408900 | K68: 150382315.3 | L68: 155790336.6 | M68: 159757791.8 | P68: 4 | Q68: 41722080 | R68: 48012480 | S68: 51754151.52 | U68: 117128940 | V68: 116408900 | W68: 116408900 | Y68: 180875376.2 | Z68: 186283397.4 | AA68: 190250852.6 | AD68: 4 | AE68: 63028553.77 | AF68: 3182426.354 | AG68: 1238363.656 | AI68: 117128940 | AJ68: 27617008 | AK68: 27617008 | AM68: 203206989 | AN68: 208615010.3 | AO68: 212582465.5
B69: 5 | C69: 12896707.5 | D69: 20759707.5 | E69: 22557906.89 | G69: 144756464 | H69: 143865344 | I69: 143865344 | K69: 184317248.7 | L69: 191020057.8 | M69: 193192045.2 | P69: 5 | Q69: 52152600 | R69: 60015600 | S69: 61813799.39 | U69: 144756464 | V69: 143865344 | W69: 143865344 | Y69: 222063584.9 | Z69: 228766394 | AA69: 230938381.4 | AD69: 5 | AE69: 64650173.19 | AF69: 3194219.418 | AG69: 1250747.293 | AI69: 144756464 | AJ69: 27456444 | AK69: 27456444 | AM69: 236257135.3 | AN69: 242959944.3 | AO69: 245131931.7
B70: 6 | C70: 15476049 | D70: 24911649 | E70: 24766972.75 | G70: 171898536 | H70: 170840096 | I70: 170840096 | K70: 217044679.2 | L70: 225020293.7 | M70: 225432558.8 | P70: 6 | Q70: 62583120 | R70: 72018720 | S70: 71874043.75 | U70: 171898536 | V70: 170840096 | W70: 170840096 | Y70: 261902069.7 | Z70: 269877684.1 | AA70: 270289949.2 | AD70: 6 | AE70: 66283703.6 | AF70: 3206130.412 | AG70: 1263254.766 | AI70: 171898536 | AJ70: 26974752 | AK70: 26974752 | AM70: 268127915.5 | AN70: 276103530 | AO70: 276515795.1
B71: 7 | C71: 18055390.5 | D71: 29063590.5 | E71: 26976641.05 | G71: 197746696 | H71: 196530336 | I71: 196530336 | K71: 247766072.8 | L71: 256997882.6 | M71: 255685464.7 | P71: 7 | Q71: 73013640 | R71: 84021840 | S71: 81934890.55 | U71: 197746696 | V71: 196530336 | W71: 196530336 | Y71: 299595085.1 | Z71: 308826894.9 | AA71: 307514477 | AD71: 7 | AE71: 67929264.11 | AF71: 3218160.516 | AG71: 1275887.313 | AI71: 197746696 | AJ71: 25690240 | AK71: 25690240 | AM71: 298020138.3 | AN71: 307251948.1 | AO71: 305939530.2
B72: 8 | C72: 20634732 | D72: 33215532 | E72: 29186917.81 | G72: 225372340 | H72: 223986780 | I72: 223986780 | K72: 279728093 | L72: 290181647 | M72: 287178893 | P72: 8 | Q72: 83444160 | R72: 96024960 | S72: 91996345.81 | U72: 225372340 | V72: 223986780 | W72: 223986780 | Y72: 338392028.6 | Z72: 348845582.6 | AA72: 345842828.7 | AD72: 8 | AE72: 69586975.03 | AF72: 3230310.921 | AG72: 1288646.187 | AI72: 225372340 | AJ72: 27456444 | AK72: 27456444 | AM72: 329179823.7 | AN72: 339633377.6 | AO72: 336630623.7
B73: 9 | C73: 23214073.5 | D73: 37367473.5 | E73: 31397809.13 | G73: 252028960 | H73: 250479840 | I73: 250479840 | K73: 310070752 | L73: 321726908 | M73: 317067486.5 | P73: 9 | Q73: 93874680 | R73: 108028080 | S73: 102058415.6 | U73: 252028960 | V73: 250479840 | W73: 250479840 | Y73: 375435592.9 | Z73: 387091748.9 | AA73: 382432327.3 | AD73: 9 | AE73: 71256957.86 | AF73: 3242582.83 | AG73: 1301532.648 | AI73: 252028960 | AJ73: 26493060 | AK73: 26493060 | AM73: 358746353.8 | AN73: 370402509.8 | AO73: 365743088.2
B74: 10 | C74: 25793415 | D74: 41519415 | E74: 33609321.15 | G74: 277393548 | H74: 275688388 | I74: 275688388 | K74: 338534398.3 | L74: 351375868.4 | M74: 345092782.2 | P74: 10 | Q74: 104305200 | R74: 120031200 | S74: 112121106.1 | U74: 277393548 | V74: 275688388 | W74: 275688388 | Y74: 410468754.1 | Z74: 423310224.2 | AA74: 417027138 | AD74: 10 | AE74: 72939335.32 | AF74: 3254977.459 | AG74: 1314547.975 | AI74: 277393548 | AJ74: 25208548 | AK74: 25208548 | AM74: 386459460.7 | AN74: 399300930.8 | AO74: 393017844.6
B75: 11 | C75: 28372756.5 | D75: 45671356.5 | E75: 35821460.07 | G75: 302920580 | H75: 301057500 | I75: 301057500 | K75: 366612987.5 | L75: 380614987.9 | M75: 372740588 | P75: 11 | Q75: 114735720 | R75: 132034320 | S75: 122184423.6 | U75: 302920580 | V75: 301057500 | W75: 301057500 | Y75: 444988044.2 | Z75: 458990044.7 | AA75: 451115644.7 | AD75: 11 | AE75: 74634231.36 | AF75: 3267496.033 | AG75: 1327693.455 | AI75: 302920580 | AJ75: 25369112 | AK75: 25369112 | AM75: 413812496.5 | AN75: 427814496.9 | AO75: 419940097
B76: 12 | C76: 30952098 | D76: 49823298 | E76: 38034232.16 | G76: 328768740 | H76: 326747740 | I76: 326747740 | K76: 394438300.1 | L76: 409578075.4 | M76: 400144073.2 | P76: 12 | Q76: 125166240 | R76: 144037440 | S76: 132248374.2 | U76: 328768740 | V76: 326747740 | W76: 326747740 | Y76: 479127769.6 | Z76: 494267544.9 | AA76: 484833542.7 | AD76: 12 | AE76: 76341771.15 | AF76: 3280139.794 | AG76: 1340970.389 | AI76: 328768740 | AJ76: 25690240 | AK76: 25690240 | AM76: 440936651.3 | AN76: 456076426.6 | AO76: 446642424.4
B77: 13 | C77: 33531439.5 | D77: 53975239.5 | E77: 40247643.76 | G77: 355102352 | H77: 352919672 | I77: 352919672 | K77: 422177289.5 | L77: 438429565.6 | M77: 427467045.8 | P77: 13 | Q77: 135596760 | R77: 156040560 | S77: 142312964.3 | U77: 355102352 | V77: 352919672 | W77: 352919672 | Y77: 513057359.6 | Z77: 529309635.7 | AA77: 518347115.9 | AD77: 13 | AE77: 78062081.14 | AF77: 3292909.992 | AG77: 1354380.093 | AI77: 355102352 | AJ77: 26171932 | AK77: 26171932 | AM77: 467998300.2 | AN77: 484250576.3 | AO77: 473288056.5
B78: 14 | C78: 36110781 | D78: 58127181 | E78: 42461701.27 | G78: 381112956 | H78: 378770476 | I78: 378770476 | K78: 449085183.7 | L78: 466429600.1 | M78: 453969032.9 | P78: 14 | Q78: 146027280 | R78: 168043680 | S78: 152378200.3 | U78: 381112956 | V78: 378770476 | W78: 378770476 | Y78: 546034470.1 | Z78: 563378886.5 | AA78: 550918319.4 | AD78: 14 | AE78: 79795289.03 | AF78: 3305807.891 | AG78: 1367923.894 | AI78: 381112956 | AJ78: 25850804 | AK78: 25850804 | AM78: 494252105.6 | AN78: 511596522 | AO78: 499135954.8
B79: 15 | C79: 38690122.5 | D79: 62279122.5 | E79: 44676411.13 | G79: 406961116 | H79: 404460716 | I79: 404460716 | K79: 475305597.3 | L79: 493722164.3 | M79: 479793417.7 | P79: 15 | Q79: 156457800 | R79: 180046800 | S79: 162444088.6 | U79: 406961116 | V79: 404460716 | W79: 404460716 | Y79: 578205095.8 | Z79: 596621662.9 | AA79: 582692916.3 | AD79: 15 | AE79: 81541523.8 | AF79: 3318834.77 | AG79: 1381603.133 | AI79: 406961116 | AJ79: 25690240 | AK79: 25690240 | AM79: 519841128.4 | AN79: 538257695.4 | AO79: 524328948.8
B80: 16 | C80: 41269464 | D80: 66431064 | E80: 46891779.88 | G80: 432488148 | H80: 429829828 | I80: 429829828 | K80: 500737240.6 | L80: 520204935.7 | M80: 504837287 | P80: 16 | Q80: 166888320 | R80: 192049920 | S80: 172510635.9 | U80: 432488148 | V80: 429829828 | W80: 429829828 | Y80: 609470280.4 | Z80: 628937975.6 | AA80: 613570326.8 | AD80: 16 | AE80: 83300915.72 | AF80: 3331991.918 | AG80: 1395419.164 | AI80: 432488148 | AJ80: 25369112 | AK80: 25369112 | AM80: 544663537.1 | AN80: 564131232.2 | AO80: 548763583.5
B81: 17 | C81: 43848805.5 | D81: 70583005.5 | E81: 49107814.09 | G81: 459307212 | H81: 456483452 | I81: 456483452 | K81: 526788074.5 | L81: 547280809.4 | M81: 530502957.2 | P81: 17 | Q81: 177318840 | R81: 204053040 | S81: 182577848.6 | U81: 459307212 | V81: 456483452 | W81: 456483452 | Y81: 641240272.5 | Z81: 661733007.4 | AA81: 644955155.1 | AD81: 17 | AE81: 85073596.36 | AF81: 3345280.637 | AG81: 1409373.356 | AI81: 459307212 | AJ81: 26653624 | AK81: 26653624 | AM81: 570126762.3 | AN81: 590619497.2 | AO81: 573841644.9
B82: 18 | C82: 46428147 | D82: 74734947 | E82: 51324520.44 | G82: 487741316 | H82: 484742716 | I82: 484742716 | K82: 553689361.8 | L82: 575180324.6 | M82: 557020399.8 | P82: 18 | Q82: 187749360 | R82: 216056160 | S82: 192645733.4 | U82: 487741316 | V82: 484742716 | W82: 484742716 | Y82: 673748577.5 | Z82: 695239540.3 | AA82: 677079615.5 | AD82: 18 | AE82: 86859698.6 | AF82: 3358702.244 | AG82: 1423467.09 | AI82: 487741316 | AJ82: 28259264 | AK82: 28259264 | AM82: 596461547.8 | AN82: 617952510.5 | AO82: 599792585.8
B83: 19 | C83: 49007488.5 | D83: 78886888.5 | E83: 53541905.63 | G83: 511005412 | H83: 507863932 | I83: 507863932 | K83: 575764085.4 | L83: 598256080.1 | M83: 578741657.6 | P83: 19 | Q83: 198179880 | R83: 228059280 | S83: 202714297.1 | U83: 511005412 | V83: 507863932 | W83: 507863932 | Y83: 701320377.3 | Z83: 723812372 | AA83: 704297949.5 | AD83: 19 | AE83: 88659356.67 | AF83: 3372258.066 | AG83: 1437701.76 | AI83: 511005412 | AJ83: 23121216 | AK83: 23121216 | AM83: 617990368.7 | AN83: 640482363.4 | AO83: 620967940.9
B84: 20 | C84: 51586830 | D84: 83038830 | E84: 55759976.47 | G84: 537662032 | H84: 534356992 | I84: 534356992 | K84: 600167564.5 | L84: 623626767.6 | M84: 602784876.8 | P84: 20 | Q84: 208610400 | R84: 240062400 | S84: 212783546.5 | U84: 537662032 | V84: 534356992 | W84: 534356992 | Y84: 731113146.9 | Z84: 754572349.9 | AA84: 733730459.1 | AD84: 20 | AE84: 90472706.11 | AF84: 3385949.447 | AG84: 1452078.778 | AI84: 537662032 | AJ84: 26493060 | AK84: 26493060 | AM84: 641868047.3 | AN84: 665327250.4 | AO84: 644485359.6
B85: 21 | C85: 54166171.5 | D85: 87190771.5 | E85: 57978739.79 | G85: 565773128 | H85: 562295128 | I85: 562295128 | K85: 625265226.4 | L85: 649666347 | M85: 627523482.7 | P85: 21 | Q85: 219040920 | R85: 252065520 | S85: 222853488.3 | U85: 565773128 | V85: 562295128 | W85: 562295128 | Y85: 761494426.8 | Z85: 785895547.5 | AA85: 763752683.2 | AD85: 21 | AE85: 92299883.86 | AF85: 3399777.741 | AG85: 1466599.566 | AI85: 565773128 | AJ85: 27938136 | AK85: 27938136 | AM85: 666459524.5 | AN85: 690860645.2 | AO85: 668717780.9
B86: 22 | C86: 56745513 | D86: 91342713 | E86: 60198202.53 | G86: 594530240 | H86: 590875520 | I86: 590875520 | K86: 650379931.4 | L86: 675702019.9 | M86: 652284152.9 | P86: 22 | Q86: =Q85+Q125 -> 229471440 | R86: 264068640 | S86: 232924129.5 | U86: 594530240 | V86: 590875520 | W86: 590875520 | Y86: 791789149.5 | Z86: 817111238.1 | AA86: 793693371 | AD86: 22 | AE86: 94141028.17 | AF86: 3413744.319 | AG86: 1481265.561 | AI86: 594530240 | AJ86: 28580392 | AK86: 28580392 | AM86: 691087184.9 | AN86: 716409273.4 | AO86: 692991406.4
B87: 23 | C87: 59324854.5 | D87: 95494654.5 | E87: 62418371.69 | G87: 623933368 | H87: 620098168 | I87: 620098168 | K87: 675501222 | L87: 701723788.1 | M87: 677056375.3 | P87: 23 | Q87: 239901960 | R87: 276071760 | S87: 242995477.2 | U87: 623933368 | V87: 620098168 | W87: 620098168 | Y87: 821988888.9 | Z87: 848211455 | AA87: 823544042.2 | AD87: 23 | AE87: 95996278.74 | AF87: 3427850.562 | AG87: 1496078.217 | AI87: 623933368 | AJ87: 29222648 | AK87: 29222648 | AM87: 715740105.3 | AN87: 741962671.3 | AO87: 717295258.5
B88: 24 | C88: 61904196 | D88: 99646596 | E88: 64639254.32 | G88: 653982512 | H88: 649963072 | I88: 649963072 | K88: 700619076.3 | L88: 727722079.1 | M88: 701830073.9 | P88: 24 | Q88: 250332480 | R88: 288074880 | S88: 253067538.3 | U88: 653982512 | V88: 649963072 | W88: 649963072 | Y88: 852085614.5 | Z88: 879188617.2 | AA88: 853296612 | AD88: 24 | AE88: 97865776.6 | AF88: 3442097.867 | AG88: 1511038.999 | AI88: 653982512 | AJ88: 29864904 | AK88: 29864904 | AM88: 740407808 | AN88: 767510810.8 | AO88: 741618805.5
B89: 25 | C89: 64483537.5 | D89: 103798537.5 | E89: 66860857.56 | G89: 682416616 | H89: 678222336 | I89: 678222336 | K89: 724037106.2 | L89: 752009126.4 | M89: 724916988.4 | P89: 25 | Q89: 260763000 | R89: 300078000 | S89: 263140320.1 | U89: 682416616 | V89: 678222336 | W89: 678222336 | Y89: 880384890.7 | Z89: 908356910.9 | AA89: 881264772.9 | AD89: 25 | AE89: 99749664.25 | AF89: 3456487.646 | AG89: 1526149.389 | AI89: 682416616 | AJ89: 28259264 | AK89: 28259264 | AM89: 763393459.2 | AN89: 791365479.5 | AO89: 764273341.5
B90: 26 | C90: 67062879 | D90: 107950479 | E90: 69083188.62 | G90: 713434784 | H90: 709050624 | I90: 709050624 | K90: 748867360.9 | L90: 777682191.6 | M90: 749413896.5 | P90: 26 | Q90: 271193520 | R90: 312081120 | S90: 273213829.6 | U90: 713434784 | V90: 709050624 | W90: 709050624 | Y90: 910000681.1 | Z90: 938815511.8 | AA90: 910547216.7 | AD90: 26 | AE90: 101648085.6 | AF90: 3471021.322 | AG90: 1541410.883 | AI90: 713434784 | AJ90: 30828288 | AK90: 30828288 | AM90: 787808672.1 | AN90: 816623502.8 | AO90: 788355207.7
B91: 27 | C91: 69642220.5 | D91: 112102420.5 | E91: 71306254.78 | G91: 741222872 | H91: 736667632 | I91: 736667632 | K91: 770917700.1 | L91: 800570050.2 | M91: 771149099.1 | P91: 27 | Q91: 281624040 | R91: 324084240 | S91: 283288074.3 | U91: 741222872 | V91: 736667632 | W91: 736667632 | Y91: 936742721.9 | Z91: 966395072 | AA91: 936974120.9 | AD91: 27 | AE91: 103561185.9 | AF91: 3485700.336 | AG91: 1556824.992 | AI91: 741222872 | AJ91: 27617008 | AK91: 27617008 | AM91: 809460879.4 | AN91: 839113229.4 | AO91: 809692278.4
B92: 28 | C92: 72221562 | D92: 116254362 | E92: 73530063.38 | G92: 773534952 | H92: 768780432 | I92: 768780432 | K92: 795687681.8 | L92: 826144608 | M92: 795594037 | P92: 28 | Q92: 292054560 | R92: 336087360 | S92: 293363061.4 | U92: 773534952 | V92: 768780432 | W92: 768780432 | Y92: 966112411.2 | Z92: 996569337.3 | AA92: 966018766.3 | AD92: 28 | AE92: 105489112 | AF92: 3500526.139 | AG92: 1572393.242 | AI92: 773534952 | AJ92: 32112800 | AK92: 32112800 | AM92: 833849221.6 | AN92: 864306147.7 | AO92: 833755576.8
B93: 29 | C93: 74800903.5 | D93: 120406303.5 | E93: 75754621.86 | G93: 806493048 | H93: 801535488 | I93: 801535488 | K93: 820414525.9 | L93: 851658092.4 | M93: 820000481.7 | P93: 29 | Q93: 302485080 | R93: 348090480 | S93: 303438798.4 | U93: 806493048 | V93: 801535488 | W93: 801535488 | Y93: 995348772.4 | Z93: 1026592339 | AA93: 994934728.2 | AD93: 29 | AE93: 107432012.2 | AF93: 3515500.2 | AG93: 1588117.174 | AI93: 806493048 | AJ93: 32755056 | AK93: 32755056 | AM93: 858210510 | AN93: 889454076.5 | AO93: 857796465.8
B94: 30 | C94: 77380245 | D94: 124558245 | E94: 77979937.7 | G94: 840097160 | H94: 834932800 | I94: 834932800 | K94: 845090410.4 | L94: 877103075.7 | M94: 844360558.3 | P94: 30 | Q94: 312915600 | R94: 360093600 | S94: 313515292.7 | U94: 840097160 | V94: 834932800 | W94: 834932800 | Y94: 1024445752 | Z94: 1056458417 | AA94: 1023715900 | AD94: 30 | AE94: 109390036.3 | AF94: 3530624.002 | AG94: 1603998.346 | AI94: 840097160 | AJ94: 33397312 | AK94: 33397312 | AM94: 882536522.9 | AN94: 914549188.2 | AO94: 881806670.9
B100: Spot Market Mothership | P100: Charter Mothership | AD100: Purchase Mothership
B101: Detailed Cost Analysis Preventive | G101: Detailed Cost Analysis Corrective | K101: Detailed Cost Analysis Total | P101: Detailed Cost Analysis Preventive | U101: Detailed Cost Analysis Corrective | Y101: Detailed Cost Analysis Total | AD101: Detailed Cost Analysis Preventive | AI101: Detailed Cost Analysis Corrective | AM101: Detailed Cost Analysis Total
B103: Year | C103: Cost CTV Spot Market | D103: Cost CTV Charter | E103: Cost Purchased | G103: Cost CTV Spot Market | H103: Cost CTV Charter | I103: Cost Purchased | K103: Cost CTV Spot Market | L103: Cost CTV Charter | M103: Cost Purchased | P103: Year | Q103: Cost CTV Spot Market | R103: Cost CTV Charter | S103: Cost Purchased | U103: Cost CTV Spot Market | V103: Cost CTV Charter | W103: Cost Purchased | Y103: Cost CTV Spot Market | Z103: Cost CTV Charter | AA103: Cost Purchased | AD103: Year | AE103: Cost CTV Spot Market | AF103: Cost CTV Charter | AG103: Cost Purchased | AI103: Cost CTV Spot Market | AJ103: Cost CTV Charter | AK103: Cost Purchased | AM103: Cost CTV Spot Market | AN103: Cost CTV Charter | AO103: Cost Purchased
B104: 1 | C104: =$H$15*IF($D$5<'Cost Vessels'!$D$11,'Cost Vessels'!$B$5,'Cost Vessels'!$B$16)*$H$16+$H$16*'Cost Vessels'!$G$5 -> 2579341.5 | D104: =$H$15*IF($D$5<'Cost Vessels'!$D$11,'Cost Vessels'!$C$6,'Cost Vessels'!$C$17)+$H$16*'Cost Vessels'!$G$5 -> 4151941.5 | E104: =$H$15*IF($D$5<'Cost Vessels'!$D$11,'Cost Vessels'!$D$7,'Cost Vessels'!$D$18)+$H$16*'Cost Vessels'!$G$5 -> 13727549.5 | G104: =AB31+AH31 -> 32310200 | H104: =AA31+AH31 -> 32112800 | I104: =AA31+AH31 -> 32112800 | K104: =(C104+V31+$K$16+G104)/((1+$D$12)^(B104-1)) -> 42272003.26 | L104: =(D104+H104+V31+$K$16)/((1+$D$12)^(B104-1)) -> 43647203.26 | M104: =(I104+E104+V31+$K$16)/((1+$D$12)^(B104-1)) -> 53222811.26 | P104: 1 | Q104: =$H$15*IF($D$5<'Cost Vessels'!$D$11,'Cost Vessels'!$B$5,'Cost Vessels'!$B$16)*$H$16+'Cost Vessels'!$H$6 -> 10430520 | R104: =$H$15*IF($D$5<'Cost Vessels'!$D$11,'Cost Vessels'!$C$6,'Cost Vessels'!$C$17)+'Cost Vessels'!$H$6 -> 12003120 | S104: =$H$15*IF($D$5<'Cost Vessels'!$D$11,'Cost Vessels'!$D$7,'Cost Vessels'!$D$18)+'Cost Vessels'!$H$6 -> 21578728 | U104: =AB31+AH31 -> 32310200 | V104: =AA31+AH31 -> 32112800 | W104: =AA31+AH31 -> 32112800 | Y104: =(Q104+U104+V31+$K$16)/((1+$D$12)^(B104-1)) -> 50123181.76 | Z104: =(R104+V104+V31+$K$16)/((1+$D$12)^(B104-1)) -> 51498381.76 | AA104: =(S104+W104+V31+$K$16)/((1+$D$12)^(B104-1)) -> 61073989.76 | AD104: 1 | AE104: =$H$15*IF($D$5<'Cost Vessels'!$D$11,'Cost Vessels'!$B$5,'Cost Vessels'!$B$16)*$H$16+'Cost Vessels'!$I$7 -> 58233988 | AF104: =$H$15*IF($D$5<'Cost Vessels'!$D$11,'Cost Vessels'!$C$6,'Cost Vessels'!$C$17)+'Cost Vessels'!$I$7 -> 59806588 | AG104: =$H$15*IF($D$5<'Cost Vessels'!$D$11,'Cost Vessels'!$D$7,'Cost Vessels'!$D$18)+'Cost Vessels'!$I$7 -> 69382196 | AI104: =AB31+AH31 -> 32310200 | AJ104: =AA31+AH31 -> 32112800 | AK104: =AA31+AH31 -> 32112800 | AM104: =(AE104+AI104+V31+$K$16)/((1+$D$12)^(B104-1)) -> 97926649.76 | AN104: =(AF104+AJ104+V31+$K$16)/((1+$D$12)^(B104-1)) -> 99301849.76 | AO104: =(AG104+AK104+V31+$K$16)/((1+$D$12)^(B104-1)) -> 108877457.8
B105: 2 | C105: =$H$15*IF($D$5<'Cost Vessels'!$D$11,'Cost Vessels'!$B$5,'Cost Vessels'!$B$16)*$H$16+$H$16*'Cost Vessels'!$G$5 -> 2579341.5 | D105: =$H$15*IF($D$5<'Cost Vessels'!$D$11,'Cost Vessels'!$C$6,'Cost Vessels'!$C$17)+$H$16*'Cost Vessels'!$G$5 -> 4151941.5 | E105: =IF($D$5<'Cost Vessels'!$D$11,'Cost Vessels'!$D$8,'Cost Vessels'!$D$19)*((1+'Cost Vessels'!$D$9)^(B104-1))+$H$16*'Cost Vessels'!$G$5 -> 2206715.14 | G105: =AB32+AH32 -> 27304516 | H105: =AA32+AH32 -> 27135316 | I105: =AA32+AH32 -> 27135316 | K105: =(C105+V32+$K$16+G105)/((1+$D$12)^(B105-1)) -> 35635177.92 | L105: =(D105+H105+V32+$K$16)/((1+$D$12)^(B105-1)) -> 37011060.27 | M105: =(I105+E105+V32+$K$16)/((1+$D$12)^(B105-1)) -> 35103975.6 | P105: 2 | Q105: =$H$15*IF($D$5<'Cost Vessels'!$D$11,'Cost Vessels'!$B$5,'Cost Vessels'!$B$16)*$H$16+'Cost Vessels'!$H$6 -> 10430520 | R105: =$H$15*IF($D$5<'Cost Vessels'!$D$11,'Cost Vessels'!$C$6,'Cost Vessels'!$C$17)+'Cost Vessels'!$H$6 -> 12003120 | S105: =IF($D$5<'Cost Vessels'!$D$11,'Cost Vessels'!$D$8,'Cost Vessels'!$D$19)*((1+'Cost Vessels'!$D$9)^(P104-1))+'Cost Vessels'!$H$6 -> 10057893.64 | U105: =AB32+AH32 -> 27304516 | V105: =AA32+AH32 -> 27135316 | W105: =AA32+AH32 -> 27135316 | Y105: =(Q105+U105+V32+$K$16)/((1+$D$12)^(B105-1)) -> 43332411.74 | Z105: =(R105+V105+V32+$K$16)/((1+$D$12)^(B105-1)) -> 44708294.09 | AA105: =(S105+W105+V32+$K$16)/((1+$D$12)^(B105-1)) -> 42801209.43 | AD105: 2 | AE105: =$H$15*IF($D$5<'Cost Vessels'!$D$11,'Cost Vessels'!$B$5,'Cost Vessels'!$B$16)*$H$16+'Cost Vessels'!$I$8*((1+'Cost Vessels'!$I$9)^(AD104-1)) -> 1586589.36 | AF105: =$H$15*IF($D$5<'Cost Vessels'!$D$11,'Cost Vessels'!$C$6,'Cost Vessels'!$C$17)+'Cost Vessels'!$I$8*((1+'Cost Vessels'!$I$9)^(AD104-1)) -> 3159189.36 | AG105: =IF($D$5<'Cost Vessels'!$D$11,'Cost Vessels'!$D$8,'Cost Vessels'!$D$19)*((1+'Cost Vessels'!$D$9)^(AD104-1))+'Cost Vessels'!$I$8*((1+'Cost Vessels'!$I$9)^(AD104-1)) -> 1213963 | AI105: =AB32+AH32 -> 27304516 | AJ105: =AA32+AH32 -> 27135316 | AK105: =AA32+AH32 -> 27135316 | AM105: =(AE105+AI105+V32+$K$16)/((1+$D$12)^(B105-1)) -> 34661891.51 | AN105: =(AF105+AJ105+V32+$K$16)/((1+$D$12)^(B105-1)) -> 36037773.86 | AO105: =(AG105+AK105+V32+$K$16)/((1+$D$12)^(B105-1)) -> 34130689.19
B106: 3 | C106: =$H$15*IF($D$5<'Cost Vessels'!$D$11,'Cost Vessels'!$B$5,'Cost Vessels'!$B$16)*$H$16+$H$16*'Cost Vessels'!$G$5 -> 2579341.5 | D106: =$H$15*IF($D$5<'Cost Vessels'!$D$11,'Cost Vessels'!$C$6,'Cost Vessels'!$C$17)+$H$16*'Cost Vessels'!$G$5 -> 4151941.5 | E106: =IF($D$5<'Cost Vessels'!$D$11,'Cost Vessels'!$D$8,'Cost Vessels'!$D$19)*((1+'Cost Vessels'!$D$9)^(B105-1))+$H$16*'Cost Vessels'!$G$5 -> 2207294.076 | G106: 29726136 | H106: 29543776 | I106: 29543776 | K106: 37702486.16 | L106: 39038741.45 | M106: 37169607.05 | P106: 3 | Q106: =$H$15*IF($D$5<'Cost Vessels'!$D$11,'Cost Vessels'!$B$5,'Cost Vessels'!$B$16)*$H$16+'Cost Vessels'!$H$6 -> 10430520 | R106: =$H$15*IF($D$5<'Cost Vessels'!$D$11,'Cost Vessels'!$C$6,'Cost Vessels'!$C$17)+'Cost Vessels'!$H$6 -> 12003120 | S106: =IF($D$5<'Cost Vessels'!$D$11,'Cost Vessels'!$D$8,'Cost Vessels'!$D$19)*((1+'Cost Vessels'!$D$9)^(P105-1))+'Cost Vessels'!$H$6 -> 10058472.58 | U106: 29726136 | V106: 29543776 | W106: 29543776 | Y106: 45248793.83 | Z106: 46585049.12 | AA106: 44715914.72 | AD106: 3 | AE106: =$H$15*IF($D$5<'Cost Vessels'!$D$11,'Cost Vessels'!$B$5,'Cost Vessels'!$B$16)*$H$16+'Cost Vessels'!$I$8*((1+'Cost Vessels'!$I$9)^(AD105-1)) -> 1598150.054 | AF106: =$H$15*IF($D$5<'Cost Vessels'!$D$11,'Cost Vessels'!$C$6,'Cost Vessels'!$C$17)+'Cost Vessels'!$I$8*((1+'Cost Vessels'!$I$9)^(AD105-1)) -> 3170750.054 | AG106: =IF($D$5<'Cost Vessels'!$D$11,'Cost Vessels'!$D$8,'Cost Vessels'!$D$19)*((1+'Cost Vessels'!$D$9)^(AD105-1))+'Cost Vessels'!$I$8*((1+'Cost Vessels'!$I$9)^(AD105-1)) -> 1226102.63 | AI106: 29726136 | AJ106: 29543776 | AK106: 29543776 | AM106: 36759395.57 | AN106: 38095650.86 | AO106: 36226516.47
B107: 4 | C107: =$H$15*IF($D$5<'Cost Vessels'!$D$11,'Cost Vessels'!$B$5,'Cost Vessels'!$B$16)*$H$16+$H$16*'Cost Vessels'!$G$5 -> 2579341.5 | D107: =$H$15*IF($D$5<'Cost Vessels'!$D$11,'Cost Vessels'!$C$6,'Cost Vessels'!$C$17)+$H$16*'Cost Vessels'!$G$5 -> 4151941.5 | E107: =IF($D$5<'Cost Vessels'!$D$11,'Cost Vessels'!$D$8,'Cost Vessels'!$D$19)*((1+'Cost Vessels'!$D$9)^(B106-1))+$H$16*'Cost Vessels'!$G$5 -> 2207878.802 | G107: 27788088 | H107: 27617008 | I107: 27617008 | K107: 34772647.98 | L107: 36093331.58 | M107: 34261397.88 | P107: 4 | Q107: =$H$15*IF($D$5<'Cost Vessels'!$D$11,'Cost Vessels'!$B$5,'Cost Vessels'!$B$16)*$H$16+'Cost Vessels'!$H$6 -> 10430520 | R107: =$H$15*IF($D$5<'Cost Vessels'!$D$11,'Cost Vessels'!$C$6,'Cost Vessels'!$C$17)+'Cost Vessels'!$H$6 -> 12003120 | S107: =IF($D$5<'Cost Vessels'!$D$11,'Cost Vessels'!$D$8,'Cost Vessels'!$D$19)*((1+'Cost Vessels'!$D$9)^(P106-1))+'Cost Vessels'!$H$6 -> 10059057.3 | U107: 27788088 | V107: 27617008 | W107: 27617008 | Y107: 42170988.83 | Z107: 43491672.43 | AA107: 41659738.73 | AD107: 4 | AE107: =$H$15*IF($D$5<'Cost Vessels'!$D$11,'Cost Vessels'!$B$5,'Cost Vessels'!$B$16)*$H$16+'Cost Vessels'!$I$8*((1+'Cost Vessels'!$I$9)^(AD106-1)) -> 1609826.354 | AF107: =$H$15*IF($D$5<'Cost Vessels'!$D$11,'Cost Vessels'!$C$6,'Cost Vessels'!$C$17)+'Cost Vessels'!$I$8*((1+'Cost Vessels'!$I$9)^(AD106-1)) -> 3182426.354 | AG107: =IF($D$5<'Cost Vessels'!$D$11,'Cost Vessels'!$D$8,'Cost Vessels'!$D$19)*((1+'Cost Vessels'!$D$9)^(AD106-1))+'Cost Vessels'!$I$8*((1+'Cost Vessels'!$I$9)^(AD106-1)) -> 1238363.656 | AI107: 27788088 | AJ107: 27617008 | AK107: 27617008 | AM107: 33859052.2 | AN107: 35179735.8 | AO107: 33347802.1
B108: 5 | C108: =$H$15*IF($D$5<'Cost Vessels'!$D$11,'Cost Vessels'!$B$5,'Cost Vessels'!$B$16)*$H$16+$H$16*'Cost Vessels'!$G$5 -> 2579341.5 | D108: =$H$15*IF($D$5<'Cost Vessels'!$D$11,'Cost Vessels'!$C$6,'Cost Vessels'!$C$17)+$H$16*'Cost Vessels'!$G$5 -> 4151941.5 | E108: =IF($D$5<'Cost Vessels'!$D$11,'Cost Vessels'!$D$8,'Cost Vessels'!$D$19)*((1+'Cost Vessels'!$D$9)^(B107-1))+$H$16*'Cost Vessels'!$G$5 -> 2208469.375 | G108: 27627524 | H108: 27456444 | I108: 27456444 | K108: 33934933.37 | L108: 35229721.21 | M108: 33434253.38 | P108: 5 | Q108: =$H$15*IF($D$5<'Cost Vessels'!$D$11,'Cost Vessels'!$B$5,'Cost Vessels'!$B$16)*$H$16+'Cost Vessels'!$H$6 -> 10430520 | R108: =$H$15*IF($D$5<'Cost Vessels'!$D$11,'Cost Vessels'!$C$6,'Cost Vessels'!$C$17)+'Cost Vessels'!$H$6 -> 12003120 | S108: =IF($D$5<'Cost Vessels'!$D$11,'Cost Vessels'!$D$8,'Cost Vessels'!$D$19)*((1+'Cost Vessels'!$D$9)^(P107-1))+'Cost Vessels'!$H$6 -> 10059647.88 | U108: 27627524 | V108: 27456444 | W108: 27456444 | Y108: 41188208.71 | Z108: 42482996.56 | AA108: 40687528.72 | AD108: 5 | AE108: =$H$15*IF($D$5<'Cost Vessels'!$D$11,'Cost Vessels'!$B$5,'Cost Vessels'!$B$16)*$H$16+'Cost Vessels'!$I$8*((1+'Cost Vessels'!$I$9)^(AD107-1)) -> 1621619.418 | AF108: =$H$15*IF($D$5<'Cost Vessels'!$D$11,'Cost Vessels'!$C$6,'Cost Vessels'!$C$17)+'Cost Vessels'!$I$8*((1+'Cost Vessels'!$I$9)^(AD107-1)) -> 3194219.418 | AG108: =IF($D$5<'Cost Vessels'!$D$11,'Cost Vessels'!$D$8,'Cost Vessels'!$D$19)*((1+'Cost Vessels'!$D$9)^(AD107-1))+'Cost Vessels'!$I$8*((1+'Cost Vessels'!$I$9)^(AD107-1)) -> 1250747.293 | AI108: 27627524 | AJ108: 27456444 | AK108: 27456444 | AM108: 33050146.2 | AN108: 34344934.04 | AO108: 32549466.21
B109: 6 | C109: =$H$15*IF($D$5<'Cost Vessels'!$D$11,'Cost Vessels'!$B$5,'Cost Vessels'!$B$16)*$H$16+$H$16*'Cost Vessels'!$G$5 -> 2579341.5 | D109: =$H$15*IF($D$5<'Cost Vessels'!$D$11,'Cost Vessels'!$C$6,'Cost Vessels'!$C$17)+$H$16*'Cost Vessels'!$G$5 -> 4151941.5 | E109: =IF($D$5<'Cost Vessels'!$D$11,'Cost Vessels'!$D$8,'Cost Vessels'!$D$19)*((1+'Cost Vessels'!$D$9)^(B108-1))+$H$16*'Cost Vessels'!$G$5 -> 2209065.854 | G109: 27142072 | H109: 26974752 | I109: 26974752 | K109: 32727430.53 | L109: 34000235.92 | M109: 32240513.59 | P109: 6 | Q109: =$H$15*IF($D$5<'Cost Vessels'!$D$11,'Cost Vessels'!$B$5,'Cost Vessels'!$B$16)*$H$16+'Cost Vessels'!$H$6 -> 10430520 | R109: =$H$15*IF($D$5<'Cost Vessels'!$D$11,'Cost Vessels'!$C$6,'Cost Vessels'!$C$17)+'Cost Vessels'!$H$6 -> 12003120 | S109: =IF($D$5<'Cost Vessels'!$D$11,'Cost Vessels'!$D$8,'Cost Vessels'!$D$19)*((1+'Cost Vessels'!$D$9)^(P108-1))+'Cost Vessels'!$H$6 -> 10060244.35 | U109: 27142072 | V109: 26974752 | W109: 26974752 | Y109: 39838484.79 | Z109: 41111290.18 | AA109: 39351567.85 | AD109: 6 | AE109: =$H$15*IF($D$5<'Cost Vessels'!$D$11,'Cost Vessels'!$B$5,'Cost Vessels'!$B$16)*$H$16+'Cost Vessels'!$I$8*((1+'Cost Vessels'!$I$9)^(AD108-1)) -> 1633530.412 | AF109: =$H$15*IF($D$5<'Cost Vessels'!$D$11,'Cost Vessels'!$C$6,'Cost Vessels'!$C$17)+'Cost Vessels'!$I$8*((1+'Cost Vessels'!$I$9)^(AD108-1)) -> 3206130.412 | AG109: =IF($D$5<'Cost Vessels'!$D$11,'Cost Vessels'!$D$8,'Cost Vessels'!$D$19)*((1+'Cost Vessels'!$D$9)^(AD108-1))+'Cost Vessels'!$I$8*((1+'Cost Vessels'!$I$9)^(AD108-1)) -> 1263254.766 | AI109: 27142072 | AJ109: 26974752 | AK109: 26974752 | AM109: 31870780.28 | AN109: 33143585.68 | AO109: 31383863.34
B110: 7 | C110: =$H$15*IF($D$5<'Cost Vessels'!$D$11,'Cost Vessels'!$B$5,'Cost Vessels'!$B$16)*$H$16+$H$16*'Cost Vessels'!$G$5 -> 2579341.5 | D110: =$H$15*IF($D$5<'Cost Vessels'!$D$11,'Cost Vessels'!$C$6,'Cost Vessels'!$C$17)+$H$16*'Cost Vessels'!$G$5 -> 4151941.5 | E110: =IF($D$5<'Cost Vessels'!$D$11,'Cost Vessels'!$D$8,'Cost Vessels'!$D$19)*((1+'Cost Vessels'!$D$9)^(B109-1))+$H$16*'Cost Vessels'!$G$5 -> 2209668.297 | G110: 25848160 | H110: 25690240 | I110: 25690240 | K110: 30721393.58 | L110: 31977588.93 | M110: 30252905.91 | P110: 7 | Q110: =$H$15*IF($D$5<'Cost Vessels'!$D$11,'Cost Vessels'!$B$5,'Cost Vessels'!$B$16)*$H$16+'Cost Vessels'!$H$6 -> 10430520 | R110: =$H$15*IF($D$5<'Cost Vessels'!$D$11,'Cost Vessels'!$C$6,'Cost Vessels'!$C$17)+'Cost Vessels'!$H$6 -> 12003120 | S110: =IF($D$5<'Cost Vessels'!$D$11,'Cost Vessels'!$D$8,'Cost Vessels'!$D$19)*((1+'Cost Vessels'!$D$9)^(P109-1))+'Cost Vessels'!$H$6 -> 10060846.8 | U110: 25848160 | V110: 25690240 | W110: 25690240 | Y110: 37693015.4 | Z110: 38949210.75 | AA110: 37224527.73 | AD110: 7 | AE110: =$H$15*IF($D$5<'Cost Vessels'!$D$11,'Cost Vessels'!$B$5,'Cost Vessels'!$B$16)*$H$16+'Cost Vessels'!$I$8*((1+'Cost Vessels'!$I$9)^(AD109-1)) -> 1645560.516 | AF110: =$H$15*IF($D$5<'Cost Vessels'!$D$11,'Cost Vessels'!$C$6,'Cost Vessels'!$C$17)+'Cost Vessels'!$I$8*((1+'Cost Vessels'!$I$9)^(AD109-1)) -> 3218160.516 | AG110: =IF($D$5<'Cost Vessels'!$D$11,'Cost Vessels'!$D$8,'Cost Vessels'!$D$19)*((1+'Cost Vessels'!$D$9)^(AD109-1))+'Cost Vessels'!$I$8*((1+'Cost Vessels'!$I$9)^(AD109-1)) -> 1275887.313 | AI110: 25848160 | AJ110: 25690240 | AK110: 25690240 | AM110: 29892222.78 | AN110: 31148418.14 | AO110: 29423735.12
B111: 8 | C111: =$H$15*IF($D$5<'Cost Vessels'!$D$11,'Cost Vessels'!$B$5,'Cost Vessels'!$B$16)*$H$16+$H$16*'Cost Vessels'!$G$5 -> 2579341.5 | D111: =$H$15*IF($D$5<'Cost Vessels'!$D$11,'Cost Vessels'!$C$6,'Cost Vessels'!$C$17)+$H$16*'Cost Vessels'!$G$5 -> 4151941.5 | E111: =IF($D$5<'Cost Vessels'!$D$11,'Cost Vessels'!$D$8,'Cost Vessels'!$D$19)*((1+'Cost Vessels'!$D$9)^(B110-1))+$H$16*'Cost Vessels'!$G$5 -> 2210276.765 | G111: 27625644 | H111: 27456444 | I111: 27456444 | K111: 31962020.22 | L111: 33183764.37 | M111: 31493428.37 | P111: 8 | Q111: =$H$15*IF($D$5<'Cost Vessels'!$D$11,'Cost Vessels'!$B$5,'Cost Vessels'!$B$16)*$H$16+'Cost Vessels'!$H$6 -> 10430520 | R111: =$H$15*IF($D$5<'Cost Vessels'!$D$11,'Cost Vessels'!$C$6,'Cost Vessels'!$C$17)+'Cost Vessels'!$H$6 -> 12003120 | S111: =IF($D$5<'Cost Vessels'!$D$11,'Cost Vessels'!$D$8,'Cost Vessels'!$D$19)*((1+'Cost Vessels'!$D$9)^(P110-1))+'Cost Vessels'!$H$6 -> 10061455.27 | U111: 27625644 | V111: 27456444 | W111: 27456444 | Y111: 38796943.57 | Z111: 40018687.73 | AA111: 38328351.73 | AD111: 8 | AE111: =$H$15*IF($D$5<'Cost Vessels'!$D$11,'Cost Vessels'!$B$5,'Cost Vessels'!$B$16)*$H$16+'Cost Vessels'!$I$8*((1+'Cost Vessels'!$I$9)^(AD110-1)) -> 1657710.921 | AF111: =$H$15*IF($D$5<'Cost Vessels'!$D$11,'Cost Vessels'!$C$6,'Cost Vessels'!$C$17)+'Cost Vessels'!$I$8*((1+'Cost Vessels'!$I$9)^(AD110-1)) -> 3230310.921 | AG111: =IF($D$5<'Cost Vessels'!$D$11,'Cost Vessels'!$D$8,'Cost Vessels'!$D$19)*((1+'Cost Vessels'!$D$9)^(AD110-1))+'Cost Vessels'!$I$8*((1+'Cost Vessels'!$I$9)^(AD110-1)) -> 1288646.187 | AI111: 27625644 | AJ111: 27456444 | AK111: 27456444 | AM111: 31159685.33 | AN111: 32381429.49 | AO111: 30691093.49
B112: 9 | C112: =$H$15*IF($D$5<'Cost Vessels'!$D$11,'Cost Vessels'!$B$5,'Cost Vessels'!$B$16)*$H$16+$H$16*'Cost Vessels'!$G$5 -> 2579341.5 | D112: =$H$15*IF($D$5<'Cost Vessels'!$D$11,'Cost Vessels'!$C$6,'Cost Vessels'!$C$17)+$H$16*'Cost Vessels'!$G$5 -> 4151941.5 | E112: =IF($D$5<'Cost Vessels'!$D$11,'Cost Vessels'!$D$8,'Cost Vessels'!$D$19)*((1+'Cost Vessels'!$D$9)^(B111-1))+$H$16*'Cost Vessels'!$G$5 -> 2210891.318 | G112: 26656620 | H112: 26493060 | I112: 26493060 | K112: 30342658.98 | L112: 31545261.05 | M112: 29888593.41 | P112: 9 | Q112: =$H$15*IF($D$5<'Cost Vessels'!$D$11,'Cost Vessels'!$B$5,'Cost Vessels'!$B$16)*$H$16+'Cost Vessels'!$H$6 -> 10430520 | R112: =$H$15*IF($D$5<'Cost Vessels'!$D$11,'Cost Vessels'!$C$6,'Cost Vessels'!$C$17)+'Cost Vessels'!$H$6 -> 12003120 | S112: =IF($D$5<'Cost Vessels'!$D$11,'Cost Vessels'!$D$8,'Cost Vessels'!$D$19)*((1+'Cost Vessels'!$D$9)^(P111-1))+'Cost Vessels'!$H$6 -> 10062069.82 | U112: 26656620 | V112: 26493060 | W112: 26493060 | Y112: 37043564.23 | Z112: 38246166.3 | AA112: 36589498.66 | AD112: 9 | AE112: =$H$15*IF($D$5<'Cost Vessels'!$D$11,'Cost Vessels'!$B$5,'Cost Vessels'!$B$16)*$H$16+'Cost Vessels'!$I$8*((1+'Cost Vessels'!$I$9)^(AD111-1)) -> 1669982.83 | AF112: =$H$15*IF($D$5<'Cost Vessels'!$D$11,'Cost Vessels'!$C$6,'Cost Vessels'!$C$17)+'Cost Vessels'!$I$8*((1+'Cost Vessels'!$I$9)^(AD111-1)) -> 3242582.83 | AG112: =IF($D$5<'Cost Vessels'!$D$11,'Cost Vessels'!$D$8,'Cost Vessels'!$D$19)*((1+'Cost Vessels'!$D$9)^(AD111-1))+'Cost Vessels'!$I$8*((1+'Cost Vessels'!$I$9)^(AD111-1)) -> 1301532.648 | AI112: 26656620 | AJ112: 26493060 | AK112: 26493060 | AM112: 29566530.11 | AN112: 30769132.18 | AO112: 29112464.54
B113: 10 | C113: =$H$15*IF($D$5<'Cost Vessels'!$D$11,'Cost Vessels'!$B$5,'Cost Vessels'!$B$16)*$H$16+$H$16*'Cost Vessels'!$G$5 -> 2579341.5 | D113: =$H$15*IF($D$5<'Cost Vessels'!$D$11,'Cost Vessels'!$C$6,'Cost Vessels'!$C$17)+$H$16*'Cost Vessels'!$G$5 -> 4151941.5 | E113: =IF($D$5<'Cost Vessels'!$D$11,'Cost Vessels'!$D$8,'Cost Vessels'!$D$19)*((1+'Cost Vessels'!$D$9)^(B112-1))+$H$16*'Cost Vessels'!$G$5 -> 2211512.016 | G113: 25364588 | H113: 25208548 | I113: 25208548 | K113: 28463646.3 | L113: 29648960.33 | M113: 28025295.75 | P113: 10 | Q113: =$H$15*IF($D$5<'Cost Vessels'!$D$11,'Cost Vessels'!$B$5,'Cost Vessels'!$B$16)*$H$16+'Cost Vessels'!$H$6 -> 10430520 | R113: =$H$15*IF($D$5<'Cost Vessels'!$D$11,'Cost Vessels'!$C$6,'Cost Vessels'!$C$17)+'Cost Vessels'!$H$6 -> 12003120 | S113: =IF($D$5<'Cost Vessels'!$D$11,'Cost Vessels'!$D$8,'Cost Vessels'!$D$19)*((1+'Cost Vessels'!$D$9)^(P112-1))+'Cost Vessels'!$H$6 -> 10062690.52 | U113: 25364588 | V113: 25208548 | W113: 25208548 | Y113: 35033161.25 | Z113: 36218475.29 | AA113: 34594810.7 | AD113: 10 | AE113: =$H$15*IF($D$5<'Cost Vessels'!$D$11,'Cost Vessels'!$B$5,'Cost Vessels'!$B$16)*$H$16+'Cost Vessels'!$I$8*((1+'Cost Vessels'!$I$9)^(AD112-1)) -> 1682377.459 | AF113: =$H$15*IF($D$5<'Cost Vessels'!$D$11,'Cost Vessels'!$C$6,'Cost Vessels'!$C$17)+'Cost Vessels'!$I$8*((1+'Cost Vessels'!$I$9)^(AD112-1)) -> 3254977.459 | AG113: =IF($D$5<'Cost Vessels'!$D$11,'Cost Vessels'!$D$8,'Cost Vessels'!$D$19)*((1+'Cost Vessels'!$D$9)^(AD112-1))+'Cost Vessels'!$I$8*((1+'Cost Vessels'!$I$9)^(AD112-1)) -> 1314547.975 | AI113: 25364588 | AJ113: 25208548 | AK113: 25208548 | AM113: 27713106.91 | AN113: 28898420.95 | AO113: 27274756.36
B114: 11 | C114: =$H$15*IF($D$5<'Cost Vessels'!$D$11,'Cost Vessels'!$B$5,'Cost Vessels'!$B$16)*$H$16+$H$16*'Cost Vessels'!$G$5 -> 2579341.5 | D114: =$H$15*IF($D$5<'Cost Vessels'!$D$11,'Cost Vessels'!$C$6,'Cost Vessels'!$C$17)+$H$16*'Cost Vessels'!$G$5 -> 4151941.5 | E114: =IF($D$5<'Cost Vessels'!$D$11,'Cost Vessels'!$D$8,'Cost Vessels'!$D$19)*((1+'Cost Vessels'!$D$9)^(B113-1))+$H$16*'Cost Vessels'!$G$5 -> 2212138.921 | G114: 25527032 | H114: 25369112 | I114: 25369112 | K114: 28078589.18 | L114: 29239119.52 | M114: 27647805.77 | P114: 11 | Q114: =$H$15*IF($D$5<'Cost Vessels'!$D$11,'Cost Vessels'!$B$5,'Cost Vessels'!$B$16)*$H$16+'Cost Vessels'!$H$6 -> 10430520 | R114: =$H$15*IF($D$5<'Cost Vessels'!$D$11,'Cost Vessels'!$C$6,'Cost Vessels'!$C$17)+'Cost Vessels'!$H$6 -> 12003120 | S114: =IF($D$5<'Cost Vessels'!$D$11,'Cost Vessels'!$D$8,'Cost Vessels'!$D$19)*((1+'Cost Vessels'!$D$9)^(P113-1))+'Cost Vessels'!$H$6 -> 10063317.42 | U114: 25527032 | V114: 25369112 | W114: 25369112 | Y114: 34519290.12 | Z114: 35679820.45 | AA114: 34088506.7 | AD114: 11 | AE114: =$H$15*IF($D$5<'Cost Vessels'!$D$11,'Cost Vessels'!$B$5,'Cost Vessels'!$B$16)*$H$16+'Cost Vessels'!$I$8*((1+'Cost Vessels'!$I$9)^(AD113-1)) -> 1694896.033 | AF114: =$H$15*IF($D$5<'Cost Vessels'!$D$11,'Cost Vessels'!$C$6,'Cost Vessels'!$C$17)+'Cost Vessels'!$I$8*((1+'Cost Vessels'!$I$9)^(AD113-1)) -> 3267496.033 | AG114: =IF($D$5<'Cost Vessels'!$D$11,'Cost Vessels'!$D$8,'Cost Vessels'!$D$19)*((1+'Cost Vessels'!$D$9)^(AD113-1))+'Cost Vessels'!$I$8*((1+'Cost Vessels'!$I$9)^(AD113-1)) -> 1327693.455 | AI114: 25527032 | AJ114: 25369112 | AK114: 25369112 | AM114: 27353035.85 | AN114: 28513566.18 | AO114: 26922252.44
B115: 12 | C115: =$H$15*IF($D$5<'Cost Vessels'!$D$11,'Cost Vessels'!$B$5,'Cost Vessels'!$B$16)*$H$16+$H$16*'Cost Vessels'!$G$5 -> 2579341.5 | D115: =$H$15*IF($D$5<'Cost Vessels'!$D$11,'Cost Vessels'!$C$6,'Cost Vessels'!$C$17)+$H$16*'Cost Vessels'!$G$5 -> 4151941.5 | E115: =IF($D$5<'Cost Vessels'!$D$11,'Cost Vessels'!$D$8,'Cost Vessels'!$D$19)*((1+'Cost Vessels'!$D$9)^(B114-1))+$H$16*'Cost Vessels'!$G$5 -> 2212772.096 | G115: 25848160 | H115: 25690240 | I115: 25690240 | K115: 27825312.68 | L115: 28963087.52 | M115: 27403485.24 | P115: 12 | Q115: =$H$15*IF($D$5<'Cost Vessels'!$D$11,'Cost Vessels'!$B$5,'Cost Vessels'!$B$16)*$H$16+'Cost Vessels'!$H$6 -> 10430520 | R115: =$H$15*IF($D$5<'Cost Vessels'!$D$11,'Cost Vessels'!$C$6,'Cost Vessels'!$C$17)+'Cost Vessels'!$H$6 -> 12003120 | S115: =IF($D$5<'Cost Vessels'!$D$11,'Cost Vessels'!$D$8,'Cost Vessels'!$D$19)*((1+'Cost Vessels'!$D$9)^(P114-1))+'Cost Vessels'!$H$6 -> 10063950.6 | U115: 25848160 | V115: 25690240 | W115: 25690240 | Y115: 34139725.36 | Z115: 35277500.2 | AA115: 33717897.92 | AD115: 12 | AE115: =$H$15*IF($D$5<'Cost Vessels'!$D$11,'Cost Vessels'!$B$5,'Cost Vessels'!$B$16)*$H$16+'Cost Vessels'!$I$8*((1+'Cost Vessels'!$I$9)^(AD114-1)) -> 1707539.794 | AF115: =$H$15*IF($D$5<'Cost Vessels'!$D$11,'Cost Vessels'!$C$6,'Cost Vessels'!$C$17)+'Cost Vessels'!$I$8*((1+'Cost Vessels'!$I$9)^(AD114-1)) -> 3280139.794 | AG115: =IF($D$5<'Cost Vessels'!$D$11,'Cost Vessels'!$D$8,'Cost Vessels'!$D$19)*((1+'Cost Vessels'!$D$9)^(AD114-1))+'Cost Vessels'!$I$8*((1+'Cost Vessels'!$I$9)^(AD114-1)) -> 1340970.389 | AI115: 25848160 | AJ115: 25690240 | AK115: 25690240 | AM115: 27124154.79 | AN115: 28261929.63 | AO115: 26702327.35
B116: 13 | C116: =$H$15*IF($D$5<'Cost Vessels'!$D$11,'Cost Vessels'!$B$5,'Cost Vessels'!$B$16)*$H$16+$H$16*'Cost Vessels'!$G$5 -> 2579341.5 | D116: =$H$15*IF($D$5<'Cost Vessels'!$D$11,'Cost Vessels'!$C$6,'Cost Vessels'!$C$17)+$H$16*'Cost Vessels'!$G$5 -> 4151941.5 | E116: =IF($D$5<'Cost Vessels'!$D$11,'Cost Vessels'!$D$8,'Cost Vessels'!$D$19)*((1+'Cost Vessels'!$D$9)^(B115-1))+$H$16*'Cost Vessels'!$G$5 -> 2213411.602 | G116: 26333612 | H116: 26171932 | I116: 26171932 | K116: 27738989.37 | L116: 28851490.16 | M116: 27322972.57 | P116: 13 | Q116: =$H$15*IF($D$5<'Cost Vessels'!$D$11,'Cost Vessels'!$B$5,'Cost Vessels'!$B$16)*$H$16+'Cost Vessels'!$H$6 -> 10430520 | R116: =$H$15*IF($D$5<'Cost Vessels'!$D$11,'Cost Vessels'!$C$6,'Cost Vessels'!$C$17)+'Cost Vessels'!$H$6 -> 12003120 | S116: =IF($D$5<'Cost Vessels'!$D$11,'Cost Vessels'!$D$8,'Cost Vessels'!$D$19)*((1+'Cost Vessels'!$D$9)^(P115-1))+'Cost Vessels'!$H$6 -> 10064590.1 | U116: 26333612 | V116: 26171932 | W116: 26171932 | Y116: 33929590.04 | Z116: 35042090.83 | AA116: 33513573.23 | AD116: 13 | AE116: =$H$15*IF($D$5<'Cost Vessels'!$D$11,'Cost Vessels'!$B$5,'Cost Vessels'!$B$16)*$H$16+'Cost Vessels'!$I$8*((1+'Cost Vessels'!$I$9)^(AD115-1)) -> 1720309.992 | AF116: =$H$15*IF($D$5<'Cost Vessels'!$D$11,'Cost Vessels'!$C$6,'Cost Vessels'!$C$17)+'Cost Vessels'!$I$8*((1+'Cost Vessels'!$I$9)^(AD115-1)) -> 3292909.992 | AG116: =IF($D$5<'Cost Vessels'!$D$11,'Cost Vessels'!$D$8,'Cost Vessels'!$D$19)*((1+'Cost Vessels'!$D$9)^(AD115-1))+'Cost Vessels'!$I$8*((1+'Cost Vessels'!$I$9)^(AD115-1)) -> 1354380.093 | AI116: 26333612 | AJ116: 26171932 | AK116: 26171932 | AM116: 27061648.89 | AN116: 28174149.68 | AO116: 26645632.09
B117: 14 | C117: =$H$15*IF($D$5<'Cost Vessels'!$D$11,'Cost Vessels'!$B$5,'Cost Vessels'!$B$16)*$H$16+$H$16*'Cost Vessels'!$G$5 -> 2579341.5 | D117: =$H$15*IF($D$5<'Cost Vessels'!$D$11,'Cost Vessels'!$C$6,'Cost Vessels'!$C$17)+$H$16*'Cost Vessels'!$G$5 -> 4151941.5 | E117: =IF($D$5<'Cost Vessels'!$D$11,'Cost Vessels'!$D$8,'Cost Vessels'!$D$19)*((1+'Cost Vessels'!$D$9)^(B116-1))+$H$16*'Cost Vessels'!$G$5 -> 2214057.503 | G117: 26010604 | H117: 25850804 | I117: 25850804 | K117: 26907894.15 | L117: 28000034.5 | M117: 26501987.14 | P117: 14 | Q117: =$H$15*IF($D$5<'Cost Vessels'!$D$11,'Cost Vessels'!$B$5,'Cost Vessels'!$B$16)*$H$16+'Cost Vessels'!$H$6 -> 10430520 | R117: =$H$15*IF($D$5<'Cost Vessels'!$D$11,'Cost Vessels'!$C$6,'Cost Vessels'!$C$17)+'Cost Vessels'!$H$6 -> 12003120 | S117: =IF($D$5<'Cost Vessels'!$D$11,'Cost Vessels'!$D$8,'Cost Vessels'!$D$19)*((1+'Cost Vessels'!$D$9)^(P116-1))+'Cost Vessels'!$H$6 -> 10065236 | U117: 26010604 | V117: 25850804 | W117: 25850804 | Y117: 32977110.49 | Z117: 34069250.84 | AA117: 32571203.48 | AD117: 14 | AE117: =$H$15*IF($D$5<'Cost Vessels'!$D$11,'Cost Vessels'!$B$5,'Cost Vessels'!$B$16)*$H$16+'Cost Vessels'!$I$8*((1+'Cost Vessels'!$I$9)^(AD116-1)) -> 1733207.891 | AF117: =$H$15*IF($D$5<'Cost Vessels'!$D$11,'Cost Vessels'!$C$6,'Cost Vessels'!$C$17)+'Cost Vessels'!$I$8*((1+'Cost Vessels'!$I$9)^(AD116-1)) -> 3305807.891 | AG117: =IF($D$5<'Cost Vessels'!$D$11,'Cost Vessels'!$D$8,'Cost Vessels'!$D$19)*((1+'Cost Vessels'!$D$9)^(AD116-1))+'Cost Vessels'!$I$8*((1+'Cost Vessels'!$I$9)^(AD116-1)) -> 1367923.894 | AI117: 26010604 | AJ117: 25850804 | AK117: 25850804 | AM117: 26253805.35 | AN117: 27345945.7 | AO117: 25847898.34
B118: 15 | C118: =$H$15*IF($D$5<'Cost Vessels'!$D$11,'Cost Vessels'!$B$5,'Cost Vessels'!$B$16)*$H$16+$H$16*'Cost Vessels'!$G$5 -> 2579341.5 | D118: =$H$15*IF($D$5<'Cost Vessels'!$D$11,'Cost Vessels'!$C$6,'Cost Vessels'!$C$17)+$H$16*'Cost Vessels'!$G$5 -> 4151941.5 | E118: =IF($D$5<'Cost Vessels'!$D$11,'Cost Vessels'!$D$8,'Cost Vessels'!$D$19)*((1+'Cost Vessels'!$D$9)^(B117-1))+$H$16*'Cost Vessels'!$G$5 -> 2214709.863 | G118: 25848160 | H118: 25690240 | I118: 25690240 | K118: 26220413.61 | L118: 27292564.25 | M118: 25824384.77 | P118: 15 | Q118: =$H$15*IF($D$5<'Cost Vessels'!$D$11,'Cost Vessels'!$B$5,'Cost Vessels'!$B$16)*$H$16+'Cost Vessels'!$H$6 -> 10430520 | R118: =$H$15*IF($D$5<'Cost Vessels'!$D$11,'Cost Vessels'!$C$6,'Cost Vessels'!$C$17)+'Cost Vessels'!$H$6 -> 12003120 | S118: =IF($D$5<'Cost Vessels'!$D$11,'Cost Vessels'!$D$8,'Cost Vessels'!$D$19)*((1+'Cost Vessels'!$D$9)^(P117-1))+'Cost Vessels'!$H$6 -> 10065888.36 | U118: 25848160 | V118: 25690240 | W118: 25690240 | Y118: 32170625.7 | Z118: 33242776.34 | AA118: 31774596.87 | AD118: 15 | AE118: =$H$15*IF($D$5<'Cost Vessels'!$D$11,'Cost Vessels'!$B$5,'Cost Vessels'!$B$16)*$H$16+'Cost Vessels'!$I$8*((1+'Cost Vessels'!$I$9)^(AD117-1)) -> 1746234.77 | AF118: =$H$15*IF($D$5<'Cost Vessels'!$D$11,'Cost Vessels'!$C$6,'Cost Vessels'!$C$17)+'Cost Vessels'!$I$8*((1+'Cost Vessels'!$I$9)^(AD117-1)) -> 3318834.77 | AG118: =IF($D$5<'Cost Vessels'!$D$11,'Cost Vessels'!$D$8,'Cost Vessels'!$D$19)*((1+'Cost Vessels'!$D$9)^(AD117-1))+'Cost Vessels'!$I$8*((1+'Cost Vessels'!$I$9)^(AD117-1)) -> 1381603.133 | AI118: 25848160 | AJ118: 25690240 | AK118: 25690240 | AM118: 25589022.82 | AN118: 26661173.46 | AO118: 25192993.99
B119: 16 | C119: =$H$15*IF($D$5<'Cost Vessels'!$D$11,'Cost Vessels'!$B$5,'Cost Vessels'!$B$16)*$H$16+$H$16*'Cost Vessels'!$G$5 -> 2579341.5 | D119: =$H$15*IF($D$5<'Cost Vessels'!$D$11,'Cost Vessels'!$C$6,'Cost Vessels'!$C$17)+$H$16*'Cost Vessels'!$G$5 -> 4151941.5 | E119: =IF($D$5<'Cost Vessels'!$D$11,'Cost Vessels'!$D$8,'Cost Vessels'!$D$19)*((1+'Cost Vessels'!$D$9)^(B118-1))+$H$16*'Cost Vessels'!$G$5 -> 2215368.746 | G119: 25527032 | H119: 25369112 | I119: 25369112 | K119: 25431643.32 | L119: 26482771.4 | M119: 25043869.32 | P119: 16 | Q119: =$H$15*IF($D$5<'Cost Vessels'!$D$11,'Cost Vessels'!$B$5,'Cost Vessels'!$B$16)*$H$16+'Cost Vessels'!$H$6 -> 10430520 | R119: =$H$15*IF($D$5<'Cost Vessels'!$D$11,'Cost Vessels'!$C$6,'Cost Vessels'!$C$17)+'Cost Vessels'!$H$6 -> 12003120 | S119: =IF($D$5<'Cost Vessels'!$D$11,'Cost Vessels'!$D$8,'Cost Vessels'!$D$19)*((1+'Cost Vessels'!$D$9)^(P118-1))+'Cost Vessels'!$H$6 -> 10066547.25 | U119: 25527032 | V119: 25369112 | W119: 25369112 | Y119: 31265184.59 | Z119: 32316312.67 | AA119: 30877410.59 | AD119: 16 | AE119: =$H$15*IF($D$5<'Cost Vessels'!$D$11,'Cost Vessels'!$B$5,'Cost Vessels'!$B$16)*$H$16+'Cost Vessels'!$I$8*((1+'Cost Vessels'!$I$9)^(AD118-1)) -> 1759391.918 | AF119: =$H$15*IF($D$5<'Cost Vessels'!$D$11,'Cost Vessels'!$C$6,'Cost Vessels'!$C$17)+'Cost Vessels'!$I$8*((1+'Cost Vessels'!$I$9)^(AD118-1)) -> 3331991.918 | AG119: =IF($D$5<'Cost Vessels'!$D$11,'Cost Vessels'!$D$8,'Cost Vessels'!$D$19)*((1+'Cost Vessels'!$D$9)^(AD118-1))+'Cost Vessels'!$I$8*((1+'Cost Vessels'!$I$9)^(AD118-1)) -> 1395419.164 | AI119: 25527032 | AJ119: 25369112 | AK119: 25369112 | AM119: 24822408.7 | AN119: 25873536.78 | AO119: 24434634.7
B120: 17 | C120: =$H$15*IF($D$5<'Cost Vessels'!$D$11,'Cost Vessels'!$B$5,'Cost Vessels'!$B$16)*$H$16+$H$16*'Cost Vessels'!$G$5 -> 2579341.5 | D120: =$H$15*IF($D$5<'Cost Vessels'!$D$11,'Cost Vessels'!$C$6,'Cost Vessels'!$C$17)+$H$16*'Cost Vessels'!$G$5 -> 4151941.5 | E120: =IF($D$5<'Cost Vessels'!$D$11,'Cost Vessels'!$D$8,'Cost Vessels'!$D$19)*((1+'Cost Vessels'!$D$9)^(B119-1))+$H$16*'Cost Vessels'!$G$5 -> 2216034.219 | G120: 26819064 | H120: 26653624 | I120: 26653624 | K120: 26050833.92 | L120: 27075873.73 | M120: 25665670.17 | P120: 17 | Q120: =$H$15*IF($D$5<'Cost Vessels'!$D$11,'Cost Vessels'!$B$5,'Cost Vessels'!$B$16)*$H$16+'Cost Vessels'!$H$6 -> 10430520 | R120: =$H$15*IF($D$5<'Cost Vessels'!$D$11,'Cost Vessels'!$C$6,'Cost Vessels'!$C$17)+'Cost Vessels'!$H$6 -> 12003120 | S120: =IF($D$5<'Cost Vessels'!$D$11,'Cost Vessels'!$D$8,'Cost Vessels'!$D$19)*((1+'Cost Vessels'!$D$9)^(P119-1))+'Cost Vessels'!$H$6 -> 10067212.72 | U120: 26819064 | V120: 26653624 | W120: 26653624 | Y120: 31769992.03 | Z120: 32795031.84 | AA120: 31384828.29 | AD120: 17 | AE120: =$H$15*IF($D$5<'Cost Vessels'!$D$11,'Cost Vessels'!$B$5,'Cost Vessels'!$B$16)*$H$16+'Cost Vessels'!$I$8*((1+'Cost Vessels'!$I$9)^(AD119-1)) -> 1772680.637 | AF120: =$H$15*IF($D$5<'Cost Vessels'!$D$11,'Cost Vessels'!$C$6,'Cost Vessels'!$C$17)+'Cost Vessels'!$I$8*((1+'Cost Vessels'!$I$9)^(AD119-1)) -> 3345280.637 | AG120: =IF($D$5<'Cost Vessels'!$D$11,'Cost Vessels'!$D$8,'Cost Vessels'!$D$19)*((1+'Cost Vessels'!$D$9)^(AD119-1))+'Cost Vessels'!$I$8*((1+'Cost Vessels'!$I$9)^(AD119-1)) -> 1409373.356 | AI120: 26819064 | AJ120: 26653624 | AK120: 26653624 | AM120: 25463225.19 | AN120: 26488265 | AO120: 25078061.45
B121: 18 | C121: =$H$15*IF($D$5<'Cost Vessels'!$D$11,'Cost Vessels'!$B$5,'Cost Vessels'!$B$16)*$H$16+$H$16*'Cost Vessels'!$G$5 -> 2579341.5 | D121: =$H$15*IF($D$5<'Cost Vessels'!$D$11,'Cost Vessels'!$C$6,'Cost Vessels'!$C$17)+$H$16*'Cost Vessels'!$G$5 -> 4151941.5 | E121: =IF($D$5<'Cost Vessels'!$D$11,'Cost Vessels'!$D$8,'Cost Vessels'!$D$19)*((1+'Cost Vessels'!$D$9)^(B120-1))+$H$16*'Cost Vessels'!$G$5 -> 2216706.346 | G121: 28434104 | H121: 28259264 | I121: 28259264 | K121: 26901287.26 | L121: 27899515.12 | M121: 26517442.63 | P121: 18 | Q121: =$H$15*IF($D$5<'Cost Vessels'!$D$11,'Cost Vessels'!$B$5,'Cost Vessels'!$B$16)*$H$16+'Cost Vessels'!$H$6 -> 10430520 | R121: =$H$15*IF($D$5<'Cost Vessels'!$D$11,'Cost Vessels'!$C$6,'Cost Vessels'!$C$17)+'Cost Vessels'!$H$6 -> 12003120 | S121: =IF($D$5<'Cost Vessels'!$D$11,'Cost Vessels'!$D$8,'Cost Vessels'!$D$19)*((1+'Cost Vessels'!$D$9)^(P120-1))+'Cost Vessels'!$H$6 -> 10067884.85 | U121: 28434104 | V121: 28259264 | W121: 28259264 | Y121: 32508305.02 | Z121: 33506532.88 | AA121: 32124460.38 | AD121: 18 | AE121: =$H$15*IF($D$5<'Cost Vessels'!$D$11,'Cost Vessels'!$B$5,'Cost Vessels'!$B$16)*$H$16+'Cost Vessels'!$I$8*((1+'Cost Vessels'!$I$9)^(AD120-1)) -> 1786102.244 | AF121: =$H$15*IF($D$5<'Cost Vessels'!$D$11,'Cost Vessels'!$C$6,'Cost Vessels'!$C$17)+'Cost Vessels'!$I$8*((1+'Cost Vessels'!$I$9)^(AD120-1)) -> 3358702.244 | AG121: =IF($D$5<'Cost Vessels'!$D$11,'Cost Vessels'!$D$8,'Cost Vessels'!$D$19)*((1+'Cost Vessels'!$D$9)^(AD120-1))+'Cost Vessels'!$I$8*((1+'Cost Vessels'!$I$9)^(AD120-1)) -> 1423467.09 | AI121: 28434104 | AJ121: 28259264 | AK121: 28259264 | AM121: 26334785.48 | AN121: 27333013.34 | AO121: 25950940.85
B122: 19 | C122: =$H$15*IF($D$5<'Cost Vessels'!$D$11,'Cost Vessels'!$B$5,'Cost Vessels'!$B$16)*$H$16+$H$16*'Cost Vessels'!$G$5 -> 2579341.5 | D122: =$H$15*IF($D$5<'Cost Vessels'!$D$11,'Cost Vessels'!$C$6,'Cost Vessels'!$C$17)+$H$16*'Cost Vessels'!$G$5 -> 4151941.5 | E122: =IF($D$5<'Cost Vessels'!$D$11,'Cost Vessels'!$D$8,'Cost Vessels'!$D$19)*((1+'Cost Vessels'!$D$9)^(B121-1))+$H$16*'Cost Vessels'!$G$5 -> 2217385.194 | G122: 23264096 | H122: 23121216 | I122: 23121216 | K122: 22074723.62 | L122: 23075755.48 | M122: 21721257.74 | P122: 19 | Q122: =$H$15*IF($D$5<'Cost Vessels'!$D$11,'Cost Vessels'!$B$5,'Cost Vessels'!$B$16)*$H$16+'Cost Vessels'!$H$6 -> 10430520 | R122: =$H$15*IF($D$5<'Cost Vessels'!$D$11,'Cost Vessels'!$C$6,'Cost Vessels'!$C$17)+'Cost Vessels'!$H$6 -> 12003120 | S122: =IF($D$5<'Cost Vessels'!$D$11,'Cost Vessels'!$D$8,'Cost Vessels'!$D$19)*((1+'Cost Vessels'!$D$9)^(P121-1))+'Cost Vessels'!$H$6 -> 10068563.69 | U122: 23264096 | V122: 23121216 | W122: 23121216 | Y122: 27571799.85 | Z122: 28572831.71 | AA122: 27218333.97 | AD122: 19 | AE122: =$H$15*IF($D$5<'Cost Vessels'!$D$11,'Cost Vessels'!$B$5,'Cost Vessels'!$B$16)*$H$16+'Cost Vessels'!$I$8*((1+'Cost Vessels'!$I$9)^(AD121-1)) -> 1799658.066 | AF122: =$H$15*IF($D$5<'Cost Vessels'!$D$11,'Cost Vessels'!$C$6,'Cost Vessels'!$C$17)+'Cost Vessels'!$I$8*((1+'Cost Vessels'!$I$9)^(AD121-1)) -> 3372258.066 | AG122: =IF($D$5<'Cost Vessels'!$D$11,'Cost Vessels'!$D$8,'Cost Vessels'!$D$19)*((1+'Cost Vessels'!$D$9)^(AD121-1))+'Cost Vessels'!$I$8*((1+'Cost Vessels'!$I$9)^(AD121-1)) -> 1437701.76 | AI122: 23264096 | AJ122: 23121216 | AK122: 23121216 | AM122: 21528820.95 | AN122: 22529852.81 | AO122: 21175355.08
B123: 20 | C123: =$H$15*IF($D$5<'Cost Vessels'!$D$11,'Cost Vessels'!$B$5,'Cost Vessels'!$B$16)*$H$16+$H$16*'Cost Vessels'!$G$5 -> 2579341.5 | D123: =$H$15*IF($D$5<'Cost Vessels'!$D$11,'Cost Vessels'!$C$6,'Cost Vessels'!$C$17)+$H$16*'Cost Vessels'!$G$5 -> 4151941.5 | E123: =IF($D$5<'Cost Vessels'!$D$11,'Cost Vessels'!$D$8,'Cost Vessels'!$D$19)*((1+'Cost Vessels'!$D$9)^(B122-1))+$H$16*'Cost Vessels'!$G$5 -> 2218070.831 | G123: 26656620 | H123: 26493060 | I123: 26493060 | K123: 24403479.12 | L123: 25370687.52 | M123: 24043219.21 | P123: 20 | Q123: =$H$15*IF($D$5<'Cost Vessels'!$D$11,'Cost Vessels'!$B$5,'Cost Vessels'!$B$16)*$H$16+'Cost Vessels'!$H$6 -> 10430520 | R123: =$H$15*IF($D$5<'Cost Vessels'!$D$11,'Cost Vessels'!$C$6,'Cost Vessels'!$C$17)+'Cost Vessels'!$H$6 -> 12003120 | S123: =IF($D$5<'Cost Vessels'!$D$11,'Cost Vessels'!$D$8,'Cost Vessels'!$D$19)*((1+'Cost Vessels'!$D$9)^(P122-1))+'Cost Vessels'!$H$6 -> 10069249.33 | U123: 26656620 | V123: 26493060 | W123: 26493060 | Y123: 29792769.55 | Z123: 30759977.94 | AA123: 29432509.63 | AD123: 20 | AE123: =$H$15*IF($D$5<'Cost Vessels'!$D$11,'Cost Vessels'!$B$5,'Cost Vessels'!$B$16)*$H$16+'Cost Vessels'!$I$8*((1+'Cost Vessels'!$I$9)^(AD122-1)) -> 1813349.447 | AF123: =$H$15*IF($D$5<'Cost Vessels'!$D$11,'Cost Vessels'!$C$6,'Cost Vessels'!$C$17)+'Cost Vessels'!$I$8*((1+'Cost Vessels'!$I$9)^(AD122-1)) -> 3385949.447 | AG123: =IF($D$5<'Cost Vessels'!$D$11,'Cost Vessels'!$D$8,'Cost Vessels'!$D$19)*((1+'Cost Vessels'!$D$9)^(AD122-1))+'Cost Vessels'!$I$8*((1+'Cost Vessels'!$I$9)^(AD122-1)) -> 1452078.778 | AI123: 26656620 | AJ123: 26493060 | AK123: 26493060 | AM123: 23877678.62 | AN123: 24844887.01 | AO123: 23517418.7
B124: 21 | C124: =$H$15*IF($D$5<'Cost Vessels'!$D$11,'Cost Vessels'!$B$5,'Cost Vessels'!$B$16)*$H$16+$H$16*'Cost Vessels'!$G$5 -> 2579341.5 | D124: =$H$15*IF($D$5<'Cost Vessels'!$D$11,'Cost Vessels'!$C$6,'Cost Vessels'!$C$17)+$H$16*'Cost Vessels'!$G$5 -> 4151941.5 | E124: =IF($D$5<'Cost Vessels'!$D$11,'Cost Vessels'!$D$8,'Cost Vessels'!$D$19)*((1+'Cost Vessels'!$D$9)^(B123-1))+$H$16*'Cost Vessels'!$G$5 -> 2218763.325 | G124: 28111096 | H124: 27938136 | I124: 27938136 | K124: 25097661.87 | L124: 26039579.47 | M124: 24738605.97 | P124: 21 | Q124: =$H$15*IF($D$5<'Cost Vessels'!$D$11,'Cost Vessels'!$B$5,'Cost Vessels'!$B$16)*$H$16+'Cost Vessels'!$H$6 -> 10430520 | R124: =$H$15*IF($D$5<'Cost Vessels'!$D$11,'Cost Vessels'!$C$6,'Cost Vessels'!$C$17)+'Cost Vessels'!$H$6 -> 12003120 | S124: =IF($D$5<'Cost Vessels'!$D$11,'Cost Vessels'!$D$8,'Cost Vessels'!$D$19)*((1+'Cost Vessels'!$D$9)^(P123-1))+'Cost Vessels'!$H$6 -> 10069941.82 | U124: 28111096 | V124: 27938136 | W124: 27938136 | Y124: 30381279.93 | Z124: 31323197.53 | AA124: 30022224.03 | AD124: 21 | AE124: =$H$15*IF($D$5<'Cost Vessels'!$D$11,'Cost Vessels'!$B$5,'Cost Vessels'!$B$16)*$H$16+'Cost Vessels'!$I$8*((1+'Cost Vessels'!$I$9)^(AD123-1)) -> 1827177.741 | AF124: =$H$15*IF($D$5<'Cost Vessels'!$D$11,'Cost Vessels'!$C$6,'Cost Vessels'!$C$17)+'Cost Vessels'!$I$8*((1+'Cost Vessels'!$I$9)^(AD123-1)) -> 3399777.741 | AG124: =IF($D$5<'Cost Vessels'!$D$11,'Cost Vessels'!$D$8,'Cost Vessels'!$D$19)*((1+'Cost Vessels'!$D$9)^(AD123-1))+'Cost Vessels'!$I$8*((1+'Cost Vessels'!$I$9)^(AD123-1)) -> 1466599.566 | AI124: 28111096 | AJ124: 27938136 | AK124: 27938136 | AM124: 24591477.22 | AN124: 25533394.82 | AO124: 24232421.33
B125: 22 | C125: =$H$15*IF($D$5<'Cost Vessels'!$D$11,'Cost Vessels'!$B$5,'Cost Vessels'!$B$16)*$H$16+$H$16*'Cost Vessels'!$G$5 -> 2579341.5 | D125: =$H$15*IF($D$5<'Cost Vessels'!$D$11,'Cost Vessels'!$C$6,'Cost Vessels'!$C$17)+$H$16*'Cost Vessels'!$G$5 -> 4151941.5 | E125: =IF($D$5<'Cost Vessels'!$D$11,'Cost Vessels'!$D$8,'Cost Vessels'!$D$19)*((1+'Cost Vessels'!$D$9)^(B124-1))+$H$16*'Cost Vessels'!$G$5 -> 2219462.743 | G125: 28757112 | H125: 28580392 | I125: 28580392 | K125: 25114705.03 | L125: 26035672.9 | M125: 24760670.15 | P125: 22 | Q125: =$H$15*IF($D$5<'Cost Vessels'!$D$11,'Cost Vessels'!$B$5,'Cost Vessels'!$B$16)*$H$16+'Cost Vessels'!$H$6 -> 10430520 | R125: =$H$15*IF($D$5<'Cost Vessels'!$D$11,'Cost Vessels'!$C$6,'Cost Vessels'!$C$17)+'Cost Vessels'!$H$6 -> 12003120 | S125: =IF($D$5<'Cost Vessels'!$D$11,'Cost Vessels'!$D$8,'Cost Vessels'!$D$19)*((1+'Cost Vessels'!$D$9)^(P124-1))+'Cost Vessels'!$H$6 -> 10070641.24 | U125: 28757112 | V125: 28580392 | W125: 28580392 | Y125: 30294722.74 | Z125: 31215690.61 | AA125: 29940687.86 | AD125: 22 | AE125: =$H$15*IF($D$5<'Cost Vessels'!$D$11,'Cost Vessels'!$B$5,'Cost Vessels'!$B$16)*$H$16+'Cost Vessels'!$I$8*((1+'Cost Vessels'!$I$9)^(AD124-1)) -> 1841144.319 | AF125: =$H$15*IF($D$5<'Cost Vessels'!$D$11,'Cost Vessels'!$C$6,'Cost Vessels'!$C$17)+'Cost Vessels'!$I$8*((1+'Cost Vessels'!$I$9)^(AD124-1)) -> 3413744.319 | AG125: =IF($D$5<'Cost Vessels'!$D$11,'Cost Vessels'!$D$8,'Cost Vessels'!$D$19)*((1+'Cost Vessels'!$D$9)^(AD124-1))+'Cost Vessels'!$I$8*((1+'Cost Vessels'!$I$9)^(AD124-1)) -> 1481265.561 | AI125: 28757112 | AJ125: 28580392 | AK125: 28580392 | AM125: 24627660.38 | AN125: 25548628.25 | AO125: 24273625.5
B126: 23 | C126: =$H$15*IF($D$5<'Cost Vessels'!$D$11,'Cost Vessels'!$B$5,'Cost Vessels'!$B$16)*$H$16+$H$16*'Cost Vessels'!$G$5 -> 2579341.5 | D126: =$H$15*IF($D$5<'Cost Vessels'!$D$11,'Cost Vessels'!$C$6,'Cost Vessels'!$C$17)+$H$16*'Cost Vessels'!$G$5 -> 4151941.5 | E126: =IF($D$5<'Cost Vessels'!$D$11,'Cost Vessels'!$D$8,'Cost Vessels'!$D$19)*((1+'Cost Vessels'!$D$9)^(B125-1))+$H$16*'Cost Vessels'!$G$5 -> 2220169.155 | G126: 29403128 | H126: 29222648 | I126: 29222648 | K126: 25121290.62 | L126: 26021768.18 | M126: 24772222.42 | P126: 23 | Q126: =$H$15*IF($D$5<'Cost Vessels'!$D$11,'Cost Vessels'!$B$5,'Cost Vessels'!$B$16)*$H$16+'Cost Vessels'!$H$6 -> 10430520 | R126: =$H$15*IF($D$5<'Cost Vessels'!$D$11,'Cost Vessels'!$C$6,'Cost Vessels'!$C$17)+'Cost Vessels'!$H$6 -> 12003120 | S126: =IF($D$5<'Cost Vessels'!$D$11,'Cost Vessels'!$D$8,'Cost Vessels'!$D$19)*((1+'Cost Vessels'!$D$9)^(P125-1))+'Cost Vessels'!$H$6 -> 10071347.66 | U126: 29403128 | V126: 29222648 | W126: 29222648 | Y126: 30199739.35 | Z126: 31100216.91 | AA126: 29850671.15 | AD126: 23 | AE126: =$H$15*IF($D$5<'Cost Vessels'!$D$11,'Cost Vessels'!$B$5,'Cost Vessels'!$B$16)*$H$16+'Cost Vessels'!$I$8*((1+'Cost Vessels'!$I$9)^(AD125-1)) -> 1855250.562 | AF126: =$H$15*IF($D$5<'Cost Vessels'!$D$11,'Cost Vessels'!$C$6,'Cost Vessels'!$C$17)+'Cost Vessels'!$I$8*((1+'Cost Vessels'!$I$9)^(AD125-1)) -> 3427850.562 | AG126: =IF($D$5<'Cost Vessels'!$D$11,'Cost Vessels'!$D$8,'Cost Vessels'!$D$19)*((1+'Cost Vessels'!$D$9)^(AD125-1))+'Cost Vessels'!$I$8*((1+'Cost Vessels'!$I$9)^(AD125-1)) -> 1496078.217 | AI126: 29403128 | AJ126: 29222648 | AK126: 29222648 | AM126: 24652920.33 | AN126: 25553397.89 | AO126: 24303852.13
B127: 24 | C127: =$H$15*IF($D$5<'Cost Vessels'!$D$11,'Cost Vessels'!$B$5,'Cost Vessels'!$B$16)*$H$16+$H$16*'Cost Vessels'!$G$5 -> 2579341.5 | D127: =$H$15*IF($D$5<'Cost Vessels'!$D$11,'Cost Vessels'!$C$6,'Cost Vessels'!$C$17)+$H$16*'Cost Vessels'!$G$5 -> 4151941.5 | E127: =IF($D$5<'Cost Vessels'!$D$11,'Cost Vessels'!$D$8,'Cost Vessels'!$D$19)*((1+'Cost Vessels'!$D$9)^(B126-1))+$H$16*'Cost Vessels'!$G$5 -> 2220882.632 | G127: 30049144 | H127: 29864904 | I127: 29864904 | K127: 25117854.26 | L127: 25998290.96 | M127: 24773698.56 | P127: 24 | Q127: =$H$15*IF($D$5<'Cost Vessels'!$D$11,'Cost Vessels'!$B$5,'Cost Vessels'!$B$16)*$H$16+'Cost Vessels'!$H$6 -> 10430520 | R127: =$H$15*IF($D$5<'Cost Vessels'!$D$11,'Cost Vessels'!$C$6,'Cost Vessels'!$C$17)+'Cost Vessels'!$H$6 -> 12003120 | S127: =IF($D$5<'Cost Vessels'!$D$11,'Cost Vessels'!$D$8,'Cost Vessels'!$D$19)*((1+'Cost Vessels'!$D$9)^(P126-1))+'Cost Vessels'!$H$6 -> 10072061.13 | U127: 30049144 | V127: 29864904 | W127: 29864904 | Y127: 30096725.56 | Z127: 30977162.27 | AA127: 29752569.86 | AD127: 24 | AE127: =$H$15*IF($D$5<'Cost Vessels'!$D$11,'Cost Vessels'!$B$5,'Cost Vessels'!$B$16)*$H$16+'Cost Vessels'!$I$8*((1+'Cost Vessels'!$I$9)^(AD126-1)) -> 1869497.867 | AF127: =$H$15*IF($D$5<'Cost Vessels'!$D$11,'Cost Vessels'!$C$6,'Cost Vessels'!$C$17)+'Cost Vessels'!$I$8*((1+'Cost Vessels'!$I$9)^(AD126-1)) -> 3442097.867 | AG127: =IF($D$5<'Cost Vessels'!$D$11,'Cost Vessels'!$D$8,'Cost Vessels'!$D$19)*((1+'Cost Vessels'!$D$9)^(AD126-1))+'Cost Vessels'!$I$8*((1+'Cost Vessels'!$I$9)^(AD126-1)) -> 1511038.999 | AI127: 30049144 | AJ127: 29864904 | AK127: 29864904 | AM127: 24667702.71 | AN127: 25548139.42 | AO127: 24323547.02
B128: 25 | C128: =$H$15*IF($D$5<'Cost Vessels'!$D$11,'Cost Vessels'!$B$5,'Cost Vessels'!$B$16)*$H$16+$H$16*'Cost Vessels'!$G$5 -> 2579341.5 | D128: =$H$15*IF($D$5<'Cost Vessels'!$D$11,'Cost Vessels'!$C$6,'Cost Vessels'!$C$17)+$H$16*'Cost Vessels'!$G$5 -> 4151941.5 | E128: =IF($D$5<'Cost Vessels'!$D$11,'Cost Vessels'!$D$8,'Cost Vessels'!$D$19)*((1+'Cost Vessels'!$D$9)^(B127-1))+$H$16*'Cost Vessels'!$G$5 -> 2221603.243 | G128: 28434104 | H128: 28259264 | I128: 28259264 | K128: 23418029.87 | L128: 24287047.29 | M128: 23086914.52 | P128: 25 | Q128: =$H$15*IF($D$5<'Cost Vessels'!$D$11,'Cost Vessels'!$B$5,'Cost Vessels'!$B$16)*$H$16+'Cost Vessels'!$H$6 -> 10430520 | R128: =$H$15*IF($D$5<'Cost Vessels'!$D$11,'Cost Vessels'!$C$6,'Cost Vessels'!$C$17)+'Cost Vessels'!$H$6 -> 12003120 | S128: =IF($D$5<'Cost Vessels'!$D$11,'Cost Vessels'!$D$8,'Cost Vessels'!$D$19)*((1+'Cost Vessels'!$D$9)^(P127-1))+'Cost Vessels'!$H$6 -> 10072781.74 | U128: 28434104 | V128: 28259264 | W128: 28259264 | Y128: 28299276.25 | Z128: 29168293.67 | AA128: 27968160.9 | AD128: 25 | AE128: =$H$15*IF($D$5<'Cost Vessels'!$D$11,'Cost Vessels'!$B$5,'Cost Vessels'!$B$16)*$H$16+'Cost Vessels'!$I$8*((1+'Cost Vessels'!$I$9)^(AD127-1)) -> 1883887.646 | AF128: =$H$15*IF($D$5<'Cost Vessels'!$D$11,'Cost Vessels'!$C$6,'Cost Vessels'!$C$17)+'Cost Vessels'!$I$8*((1+'Cost Vessels'!$I$9)^(AD127-1)) -> 3456487.646 | AG128: =IF($D$5<'Cost Vessels'!$D$11,'Cost Vessels'!$D$8,'Cost Vessels'!$D$19)*((1+'Cost Vessels'!$D$9)^(AD127-1))+'Cost Vessels'!$I$8*((1+'Cost Vessels'!$I$9)^(AD127-1)) -> 1526149.389 | AI128: 28434104 | AJ128: 28259264 | AK128: 28259264 | AM128: 22985651.26 | AN128: 23854668.69 | AO128: 22654535.92
B129: 26 | C129: =$H$15*IF($D$5<'Cost Vessels'!$D$11,'Cost Vessels'!$B$5,'Cost Vessels'!$B$16)*$H$16+$H$16*'Cost Vessels'!$G$5 -> 2579341.5 | D129: =$H$15*IF($D$5<'Cost Vessels'!$D$11,'Cost Vessels'!$C$6,'Cost Vessels'!$C$17)+$H$16*'Cost Vessels'!$G$5 -> 4151941.5 | E129: =IF($D$5<'Cost Vessels'!$D$11,'Cost Vessels'!$D$8,'Cost Vessels'!$D$19)*((1+'Cost Vessels'!$D$9)^(B128-1))+$H$16*'Cost Vessels'!$G$5 -> 2222331.061 | G129: 31018168 | H129: 30828288 | I129: 30828288 | K129: 24830254.7 | L129: 25673065.23 | M129: 24496908.1 | P129: 26 | Q129: =$H$15*IF($D$5<'Cost Vessels'!$D$11,'Cost Vessels'!$B$5,'Cost Vessels'!$B$16)*$H$16+'Cost Vessels'!$H$6 -> 10430520 | R129: =$H$15*IF($D$5<'Cost Vessels'!$D$11,'Cost Vessels'!$C$6,'Cost Vessels'!$C$17)+'Cost Vessels'!$H$6 -> 12003120 | S129: =IF($D$5<'Cost Vessels'!$D$11,'Cost Vessels'!$D$8,'Cost Vessels'!$D$19)*((1+'Cost Vessels'!$D$9)^(P128-1))+'Cost Vessels'!$H$6 -> 10073509.56 | U129: 31018168 | V129: 30828288 | W129: 30828288 | Y129: 29615790.37 | Z129: 30458600.9 | AA129: 29282443.76 | AD129: 26 | AE129: =$H$15*IF($D$5<'Cost Vessels'!$D$11,'Cost Vessels'!$B$5,'Cost Vessels'!$B$16)*$H$16+'Cost Vessels'!$I$8*((1+'Cost Vessels'!$I$9)^(AD128-1)) -> 1898421.322 | AF129: =$H$15*IF($D$5<'Cost Vessels'!$D$11,'Cost Vessels'!$C$6,'Cost Vessels'!$C$17)+'Cost Vessels'!$I$8*((1+'Cost Vessels'!$I$9)^(AD128-1)) -> 3471021.322 | AG129: =IF($D$5<'Cost Vessels'!$D$11,'Cost Vessels'!$D$8,'Cost Vessels'!$D$19)*((1+'Cost Vessels'!$D$9)^(AD128-1))+'Cost Vessels'!$I$8*((1+'Cost Vessels'!$I$9)^(AD128-1)) -> 1541410.883 | AI129: 31018168 | AJ129: 30828288 | AK129: 30828288 | AM129: 24415212.84 | AN129: 25258023.36 | AO129: 24081866.23
B130: 27 | C130: =$H$15*IF($D$5<'Cost Vessels'!$D$11,'Cost Vessels'!$B$5,'Cost Vessels'!$B$16)*$H$16+$H$16*'Cost Vessels'!$G$5 -> 2579341.5 | D130: =$H$15*IF($D$5<'Cost Vessels'!$D$11,'Cost Vessels'!$C$6,'Cost Vessels'!$C$17)+$H$16*'Cost Vessels'!$G$5 -> 4151941.5 | E130: =IF($D$5<'Cost Vessels'!$D$11,'Cost Vessels'!$D$8,'Cost Vessels'!$D$19)*((1+'Cost Vessels'!$D$9)^(B129-1))+$H$16*'Cost Vessels'!$G$5 -> 2223066.156 | G130: 27788088 | H130: 27617008 | I130: 27617008 | K130: 22050339.23 | L130: 22887858.55 | M130: 21735202.61 | P130: 27 | Q130: =$H$15*IF($D$5<'Cost Vessels'!$D$11,'Cost Vessels'!$B$5,'Cost Vessels'!$B$16)*$H$16+'Cost Vessels'!$H$6 -> 10430520 | R130: =$H$15*IF($D$5<'Cost Vessels'!$D$11,'Cost Vessels'!$C$6,'Cost Vessels'!$C$17)+'Cost Vessels'!$H$6 -> 12003120 | S130: =IF($D$5<'Cost Vessels'!$D$11,'Cost Vessels'!$D$8,'Cost Vessels'!$D$19)*((1+'Cost Vessels'!$D$9)^(P129-1))+'Cost Vessels'!$H$6 -> 10074244.66 | U130: 27788088 | V130: 27617008 | W130: 27617008 | Y130: 26742040.87 | Z130: 27579560.19 | AA130: 26426904.24 | AD130: 27 | AE130: =$H$15*IF($D$5<'Cost Vessels'!$D$11,'Cost Vessels'!$B$5,'Cost Vessels'!$B$16)*$H$16+'Cost Vessels'!$I$8*((1+'Cost Vessels'!$I$9)^(AD129-1)) -> 1913100.336 | AF130: =$H$15*IF($D$5<'Cost Vessels'!$D$11,'Cost Vessels'!$C$6,'Cost Vessels'!$C$17)+'Cost Vessels'!$I$8*((1+'Cost Vessels'!$I$9)^(AD129-1)) -> 3485700.336 | AG130: =IF($D$5<'Cost Vessels'!$D$11,'Cost Vessels'!$D$8,'Cost Vessels'!$D$19)*((1+'Cost Vessels'!$D$9)^(AD129-1))+'Cost Vessels'!$I$8*((1+'Cost Vessels'!$I$9)^(AD129-1)) -> 1556824.992 | AI130: 27788088 | AJ130: 27617008 | AK130: 27617008 | AM130: 21652207.32 | AN130: 22489726.64 | AO130: 21337070.69
B131: 28 | C131: =$H$15*IF($D$5<'Cost Vessels'!$D$11,'Cost Vessels'!$B$5,'Cost Vessels'!$B$16)*$H$16+$H$16*'Cost Vessels'!$G$5 -> 2579341.5 | D131: =$H$15*IF($D$5<'Cost Vessels'!$D$11,'Cost Vessels'!$C$6,'Cost Vessels'!$C$17)+$H$16*'Cost Vessels'!$G$5 -> 4151941.5 | E131: =IF($D$5<'Cost Vessels'!$D$11,'Cost Vessels'!$D$8,'Cost Vessels'!$D$19)*((1+'Cost Vessels'!$D$9)^(B130-1))+$H$16*'Cost Vessels'!$G$5 -> 2223808.603 | G131: 32312080 | H131: 32112800 | I131: 32112800 | K131: 24769981.74 | L131: 25574557.8 | M131: 24444937.92 | P131: 28 | Q131: =$H$15*IF($D$5<'Cost Vessels'!$D$11,'Cost Vessels'!$B$5,'Cost Vessels'!$B$16)*$H$16+'Cost Vessels'!$H$6 -> 10430520 | R131: =$H$15*IF($D$5<'Cost Vessels'!$D$11,'Cost Vessels'!$C$6,'Cost Vessels'!$C$17)+'Cost Vessels'!$H$6 -> 12003120 | S131: =IF($D$5<'Cost Vessels'!$D$11,'Cost Vessels'!$D$8,'Cost Vessels'!$D$19)*((1+'Cost Vessels'!$D$9)^(P130-1))+'Cost Vessels'!$H$6 -> 10074987.1 | U131: 32312080 | V131: 32112800 | W131: 32112800 | Y131: 29369689.23 | Z131: 30174265.29 | AA131: 29044645.41 | AD131: 28 | AE131: =$H$15*IF($D$5<'Cost Vessels'!$D$11,'Cost Vessels'!$B$5,'Cost Vessels'!$B$16)*$H$16+'Cost Vessels'!$I$8*((1+'Cost Vessels'!$I$9)^(AD130-1)) -> 1927926.139 | AF131: =$H$15*IF($D$5<'Cost Vessels'!$D$11,'Cost Vessels'!$C$6,'Cost Vessels'!$C$17)+'Cost Vessels'!$I$8*((1+'Cost Vessels'!$I$9)^(AD130-1)) -> 3500526.139 | AG131: =IF($D$5<'Cost Vessels'!$D$11,'Cost Vessels'!$D$8,'Cost Vessels'!$D$19)*((1+'Cost Vessels'!$D$9)^(AD130-1))+'Cost Vessels'!$I$8*((1+'Cost Vessels'!$I$9)^(AD130-1)) -> 1572393.242 | AI131: 32312080 | AJ131: 32112800 | AK131: 32112800 | AM131: 24388342.21 | AN131: 25192918.27 | AO131: 24063298.39
B132: 29 | C132: =$H$15*IF($D$5<'Cost Vessels'!$D$11,'Cost Vessels'!$B$5,'Cost Vessels'!$B$16)*$H$16+$H$16*'Cost Vessels'!$G$5 -> 2579341.5 | D132: =$H$15*IF($D$5<'Cost Vessels'!$D$11,'Cost Vessels'!$C$6,'Cost Vessels'!$C$17)+$H$16*'Cost Vessels'!$G$5 -> 4151941.5 | E132: =IF($D$5<'Cost Vessels'!$D$11,'Cost Vessels'!$D$8,'Cost Vessels'!$D$19)*((1+'Cost Vessels'!$D$9)^(B131-1))+$H$16*'Cost Vessels'!$G$5 -> 2224558.474 | G132: 32958096 | H132: 32755056 | I132: 32755056 | K132: 24726844.07 | L132: 25513484.48 | M132: 24406444.71 | P132: 29 | Q132: =$H$15*IF($D$5<'Cost Vessels'!$D$11,'Cost Vessels'!$B$5,'Cost Vessels'!$B$16)*$H$16+'Cost Vessels'!$H$6 -> 10430520 | R132: =$H$15*IF($D$5<'Cost Vessels'!$D$11,'Cost Vessels'!$C$6,'Cost Vessels'!$C$17)+'Cost Vessels'!$H$6 -> 12003120 | S132: =IF($D$5<'Cost Vessels'!$D$11,'Cost Vessels'!$D$8,'Cost Vessels'!$D$19)*((1+'Cost Vessels'!$D$9)^(P131-1))+'Cost Vessels'!$H$6 -> 10075736.97 | U132: 32958096 | V132: 32755056 | W132: 32755056 | Y132: 29236361.21 | Z132: 30023001.62 | AA132: 28915961.86 | AD132: 29 | AE132: =$H$15*IF($D$5<'Cost Vessels'!$D$11,'Cost Vessels'!$B$5,'Cost Vessels'!$B$16)*$H$16+'Cost Vessels'!$I$8*((1+'Cost Vessels'!$I$9)^(AD131-1)) -> 1942900.2 | AF132: =$H$15*IF($D$5<'Cost Vessels'!$D$11,'Cost Vessels'!$C$6,'Cost Vessels'!$C$17)+'Cost Vessels'!$I$8*((1+'Cost Vessels'!$I$9)^(AD131-1)) -> 3515500.2 | AG132: =IF($D$5<'Cost Vessels'!$D$11,'Cost Vessels'!$D$8,'Cost Vessels'!$D$19)*((1+'Cost Vessels'!$D$9)^(AD131-1))+'Cost Vessels'!$I$8*((1+'Cost Vessels'!$I$9)^(AD131-1)) -> 1588117.174 | AI132: 32958096 | AJ132: 32755056 | AK132: 32755056 | AM132: 24361288.38 | AN132: 25147928.79 | AO132: 24040889.03
B133: 30 | C133: =$H$15*IF($D$5<'Cost Vessels'!$D$11,'Cost Vessels'!$B$5,'Cost Vessels'!$B$16)*$H$16+$H$16*'Cost Vessels'!$G$5 -> 2579341.5 | D133: =$H$15*IF($D$5<'Cost Vessels'!$D$11,'Cost Vessels'!$C$6,'Cost Vessels'!$C$17)+$H$16*'Cost Vessels'!$G$5 -> 4151941.5 | E133: =IF($D$5<'Cost Vessels'!$D$11,'Cost Vessels'!$D$8,'Cost Vessels'!$D$19)*((1+'Cost Vessels'!$D$9)^(B132-1))+$H$16*'Cost Vessels'!$G$5 -> 2225315.844 | G133: 33604112 | H133: 33397312 | I133: 33397312 | K133: 24675884.45 | L133: 25444983.24 | M133: 24360076.62 | P133: 30 | Q133: =$H$15*IF($D$5<'Cost Vessels'!$D$11,'Cost Vessels'!$B$5,'Cost Vessels'!$B$16)*$H$16+'Cost Vessels'!$H$6 -> 10430520 | R133: =$H$15*IF($D$5<'Cost Vessels'!$D$11,'Cost Vessels'!$C$6,'Cost Vessels'!$C$17)+'Cost Vessels'!$H$6 -> 12003120 | S133: =IF($D$5<'Cost Vessels'!$D$11,'Cost Vessels'!$D$8,'Cost Vessels'!$D$19)*((1+'Cost Vessels'!$D$9)^(P132-1))+'Cost Vessels'!$H$6 -> 10076494.34 | U133: 33604112 | V133: 33397312 | W133: 33397312 | Y133: 29096979.69 | Z133: 29866078.48 | AA133: 28781171.86 | AD133: 30 | AE133: =$H$15*IF($D$5<'Cost Vessels'!$D$11,'Cost Vessels'!$B$5,'Cost Vessels'!$B$16)*$H$16+'Cost Vessels'!$I$8*((1+'Cost Vessels'!$I$9)^(AD132-1)) -> 1958024.002 | AF133: =$H$15*IF($D$5<'Cost Vessels'!$D$11,'Cost Vessels'!$C$6,'Cost Vessels'!$C$17)+'Cost Vessels'!$I$8*((1+'Cost Vessels'!$I$9)^(AD132-1)) -> 3530624.002 | AG133: =IF($D$5<'Cost Vessels'!$D$11,'Cost Vessels'!$D$8,'Cost Vessels'!$D$19)*((1+'Cost Vessels'!$D$9)^(AD132-1))+'Cost Vessels'!$I$8*((1+'Cost Vessels'!$I$9)^(AD132-1)) -> 1603998.346 | AI133: 33604112 | AJ133: 33397312 | AK133: 33397312 | AM133: 24326012.92 | AN133: 25095111.71 | AO133: 24010205.09
K134: =SUM(K104:K133) -> 845090410.4 | L134: =SUM(L104:L133) -> 877103075.7 | M134: =SUM(M104:M133) -> 844360558.3 | Y134: =SUM(Y104:Y133) -> 1024445752 | Z134: =SUM(Z104:Z133) -> 1056458417 | AA134: =SUM(AA104:AA133) -> 1023715900 | AM134: =SUM(AM104:AM133) -> 882536522.9 | AN134: =SUM(AN104:AN133) -> 914549188.2 | AO134: =SUM(AO104:AO133) -> 881806670.9

Sheet Jack-Up
G2: Jack-Up
B3: Common Inputs
B4: Number of turbines | D4: =CTV!D4 -> 300
B5: Distance from shore (km) | D5: =CTV!D5 -> 120
B6: Capacity of turbines (MW) | D6: =CTV!D6 -> 6
B7: Workshift hours/day | D7: =CTV!D7 -> 12
B8: Speed (knots) | D8: =CTV!D8 -> 20
B9: Cost of personnel (pounds/hour) | D9: =CTV!D9 -> 40
B10: Lifetime (years) | D10: =CTV!D10 -> 25
B11: Speed (km/h) | D11: =D8*0.5144*3.6 -> 37.0368
B12: Discount rate | D12: =CTV!D13 -> 0.02
O13: Year | P13: 1 | Q13: 2 | R13: 3 | S13: 4 | T13: 5 | U13: 6 | V13: 7 | W13: 8 | X13: 9 | Y13: 10 | Z13: 11 | AA13: 12 | AB13: 13 | AC13: 14 | AD13: 15 | AE13: 16 | AF13: 17 | AG13: 18 | AH13: 19 | AI13: 20 | AJ13: 21 | AK13: 22 | AL13: 23 | AM13: 24 | AN13: 25 | AO13: 26 | AP13: 27 | AQ13: 28 | AR13: 29 | AS13: 30
B14: Preventive Inputs | G14: Preventive Intermediate Results | O14: Case A | P14: =$D$57*'Corrective Analysis'!H5 -> 98.052375 | Q14: =$D$57*'Corrective Analysis'!I5 -> 83.20019913 | R14: =$D$57*'Corrective Analysis'!J5 -> 90.57690416 | S14: =$D$57*'Corrective Analysis'!K5 -> 84.3250425 | T14: =$D$57*'Corrective Analysis'!L5 -> 84.19268193 | U14: =$D$57*'Corrective Analysis'!M5 -> 82.363995 | V14: =$D$57*'Corrective Analysis'!N5 -> 78.4419 | W14: =$D$57*'Corrective Analysis'!O5 -> 83.932833 | X14: =$D$57*'Corrective Analysis'!P5 -> 80.795157 | Y14: =$D$57*'Corrective Analysis'!Q5 -> 76.873062 | Z14: =$D$57*'Corrective Analysis'!R5 -> 77.657481 | AA14: =$D$57*'Corrective Analysis'!S5 -> 78.4419 | AB14: =$D$57*'Corrective Analysis'!T5 -> 80.010738 | AC14: =$D$57*'Corrective Analysis'!U5 -> 79.226319 | AD14: =$D$57*'Corrective Analysis'!V5 -> 78.4419 | AE14: =$D$57*'Corrective Analysis'!W5 -> 77.657481 | AF14: =$D$57*'Corrective Analysis'!X5 -> 81.579576 | AG14: =$D$57*'Corrective Analysis'!Y5 -> 86.28609 | AH14: =$D$57*'Corrective Analysis'!Z5 -> 70.59771 | AI14: =$D$57*'Corrective Analysis'!AA5 -> 80.795157 | AJ14: =$D$57*'Corrective Analysis'!AB5 -> 85.45354608 | AK14: =$D$57*'Corrective Analysis'!AC5 -> 87.48612523 | AL14: =$D$57*'Corrective Analysis'!AD5 -> 89.51520483 | AM14: =$D$57*'Corrective Analysis'!AE5 -> 91.54153289 | AN14: =$D$57*'Corrective Analysis'!AF5 -> 86.25592916 | AO14: =$D$57*'Corrective Analysis'!AG5 -> 94.11783338 | AP14: =$D$57*'Corrective Analysis'!AH5 -> 84.29957112 | AQ14: =$D$57*'Corrective Analysis'!AI5 -> 98.14396176 | AR14: =$D$57*'Corrective Analysis'!AJ5 -> 100.1568016 | AS14: =$D$57*'Corrective Analysis'!AK5 -> 102.1699182
B15: Time among turbines (h) | D15: =CTV!D15 -> 0.8 | G15: Number of CTV | H15: 4 | J15: Preventive Costs | N15: Downtimes (h) | O15: Case B | P15: =$E$57*'Corrective Analysis'!H6 -> 1.4455 | Q15: =$E$57*'Corrective Analysis'!I6 -> 1.226547423 | R15: =$E$57*'Corrective Analysis'!J6 -> 1.335295703 | S15: =$E$57*'Corrective Analysis'!K6 -> 1.24313 | T15: =$E$57*'Corrective Analysis'!L6 -> 1.241178724 | U15: =$E$57*'Corrective Analysis'!M6 -> 1.21422 | V15: =$E$57*'Corrective Analysis'!N6 -> 1.1564 | W15: =$E$57*'Corrective Analysis'!O6 -> 1.237348 | X15: =$E$57*'Corrective Analysis'!P6 -> 1.191092 | Y15: =$E$57*'Corrective Analysis'!Q6 -> 1.133272 | Z15: =$E$57*'Corrective Analysis'!R6 -> 1.144836 | AA15: =$E$57*'Corrective Analysis'!S6 -> 1.1564 | AB15: =$E$57*'Corrective Analysis'!T6 -> 1.179528 | AC15: =$E$57*'Corrective Analysis'!U6 -> 1.167964 | AD15: =$E$57*'Corrective Analysis'!V6 -> 1.1564 | AE15: =$E$57*'Corrective Analysis'!W6 -> 1.144836 | AF15: =$E$57*'Corrective Analysis'!X6 -> 1.202656 | AG15: =$E$57*'Corrective Analysis'!Y6 -> 1.27204 | AH15: =$E$57*'Corrective Analysis'!Z6 -> 1.04076 | AI15: =$E$57*'Corrective Analysis'!AA6 -> 1.191092 | AJ15: =$E$57*'Corrective Analysis'!AB6 -> 1.259766537 | AK15: =$E$57*'Corrective Analysis'!AC6 -> 1.289731065 | AL15: =$E$57*'Corrective Analysis'!AD6 -> 1.319644002 | AM15: =$E$57*'Corrective Analysis'!AE6 -> 1.349516376 | AN15: =$E$57*'Corrective Analysis'!AF6 -> 1.271595365 | AO15: =$E$57*'Corrective Analysis'!AG6 -> 1.38749651 | AP15: =$E$57*'Corrective Analysis'!AH6 -> 1.242754498 | AQ15: =$E$57*'Corrective Analysis'!AI6 -> 1.446850183 | AR15: =$E$57*'Corrective Analysis'!AJ6 -> 1.476523712 | AS15: =$E$57*'Corrective Analysis'!AK6 -> 1.506201321
B16: Technicians per turbine working | D16: =CTV!D16 -> 3 | G16: Days required | H16: =D4*H20/(D17*H15)+H22 -> 57.25 | J16: Cost personnel/year | K16: =D7*H16*D9*(H15*12) -> 1319040 | O16: Case C | P16: =$F$57*'Corrective Analysis'!H7 -> 57.0402 | Q16: =$F$57*'Corrective Analysis'!I7 -> 48.40021466 | R16: =$F$57*'Corrective Analysis'!J7 -> 52.69147972 | S16: =$F$57*'Corrective Analysis'!K7 -> 49.054572 | T16: =$F$57*'Corrective Analysis'!L7 -> 48.97757363 | U16: =$F$57*'Corrective Analysis'!M7 -> 47.913768 | V16: =$F$57*'Corrective Analysis'!N7 -> 45.63216 | W16: =$F$57*'Corrective Analysis'!O7 -> 48.8264112 | X16: =$F$57*'Corrective Analysis'!P7 -> 47.0011248 | Y16: =$F$57*'Corrective Analysis'!Q7 -> 44.7195168 | Z16: =$F$57*'Corrective Analysis'!R7 -> 45.1758384 | AA16: =$F$57*'Corrective Analysis'!S7 -> 45.63216 | AB16: =$F$57*'Corrective Analysis'!T7 -> 46.5448032 | AC16: =$F$57*'Corrective Analysis'!U7 -> 46.0884816 | AD16: =$F$57*'Corrective Analysis'!V7 -> 45.63216 | AE16: =$F$57*'Corrective Analysis'!W7 -> 45.1758384 | AF16: =$F$57*'Corrective Analysis'!X7 -> 47.4574464 | AG16: =$F$57*'Corrective Analysis'!Y7 -> 50.195376 | AH16: =$F$57*'Corrective Analysis'!Z7 -> 41.068944 | AI16: =$F$57*'Corrective Analysis'!AA7 -> 47.0011248 | AJ16: =$F$57*'Corrective Analysis'!AB7 -> 49.7110586 | AK16: =$F$57*'Corrective Analysis'!AC7 -> 50.89347484 | AL16: =$F$57*'Corrective Analysis'!AD7 -> 52.07385529 | AM16: =$F$57*'Corrective Analysis'!AE7 -> 53.25263508 | AN16: =$F$57*'Corrective Analysis'!AF7 -> 50.17783047 | AO16: =$F$57*'Corrective Analysis'!AG7 -> 54.7513514 | AP16: =$F$57*'Corrective Analysis'!AH7 -> 49.03975449 | AQ16: =$F$57*'Corrective Analysis'!AI7 -> 57.09347895 | AR16: =$F$57*'Corrective Analysis'!AJ7 -> 58.26441219 | AS16: =$F$57*'Corrective Analysis'!AK7 -> 59.43550648
B17: Turbines/CTV | D17: =CTV!D17 -> 4 | G17: Total Time (hours) | H17: =H16*D7 -> 687 | O17: Case D | P17: =$G$57*'Corrective Analysis'!H8 -> 23.19165 | Q17: =$G$57*'Corrective Analysis'!I8 -> 19.67876758 | R17: =$G$57*'Corrective Analysis'!J8 -> 21.42352859 | S17: =$G$57*'Corrective Analysis'!K8 -> 19.944819 | T17: =$G$57*'Corrective Analysis'!L8 -> 19.91351267 | U17: =$G$57*'Corrective Analysis'!M8 -> 19.480986 | V17: =$G$57*'Corrective Analysis'!N8 -> 18.55332 | W17: =$G$57*'Corrective Analysis'!O8 -> 19.8520524 | X17: =$G$57*'Corrective Analysis'!P8 -> 19.1099196 | Y17: =$G$57*'Corrective Analysis'!Q8 -> 18.1822536 | Z17: =$G$57*'Corrective Analysis'!R8 -> 18.3677868 | AA17: =$G$57*'Corrective Analysis'!S8 -> 18.55332 | AB17: =$G$57*'Corrective Analysis'!T8 -> 18.9243864 | AC17: =$G$57*'Corrective Analysis'!U8 -> 18.7388532 | AD17: =$G$57*'Corrective Analysis'!V8 -> 18.55332 | AE17: =$G$57*'Corrective Analysis'!W8 -> 18.3677868 | AF17: =$G$57*'Corrective Analysis'!X8 -> 19.2954528 | AG17: =$G$57*'Corrective Analysis'!Y8 -> 20.408652 | AH17: =$G$57*'Corrective Analysis'!Z8 -> 16.697988 | AI17: =$G$57*'Corrective Analysis'!AA8 -> 19.1099196 | AJ17: =$G$57*'Corrective Analysis'!AB8 -> 20.21173615 | AK17: =$G$57*'Corrective Analysis'!AC8 -> 20.69248803 | AL17: =$G$57*'Corrective Analysis'!AD8 -> 21.17241219 | AM17: =$G$57*'Corrective Analysis'!AE8 -> 21.65168555 | AN17: =$G$57*'Corrective Analysis'!AF8 -> 20.40151826 | AO17: =$G$57*'Corrective Analysis'!AG8 -> 22.26104009 | AP17: =$G$57*'Corrective Analysis'!AH8 -> 19.93879443 | AQ17: =$G$57*'Corrective Analysis'!AI8 -> 23.21331238 | AR17: =$G$57*'Corrective Analysis'!AJ8 -> 23.68939546 | AS17: =$G$57*'Corrective Analysis'!AK8 -> 24.16554402
B18: Hour of maintenance/turbine/year | D18: =CTV!D18 -> 21.5 | G18: Time from shore (hours) | H18: =D5/D11*2 -> 6.480041472 | O18: Case E | P18: =$H$57*'Corrective Analysis'!H9 -> 2.45115 | Q18: =$H$57*'Corrective Analysis'!I9 -> 2.079869744 | R18: =$H$57*'Corrective Analysis'!J9 -> 2.26427538 | S18: =$H$57*'Corrective Analysis'!K9 -> 2.107989 | T18: =$H$57*'Corrective Analysis'!L9 -> 2.104680201 | U18: =$H$57*'Corrective Analysis'!M9 -> 2.058966 | V18: =$H$57*'Corrective Analysis'!N9 -> 1.96092 | W18: =$H$57*'Corrective Analysis'!O9 -> 2.0981844 | X18: =$H$57*'Corrective Analysis'!P9 -> 2.0197476 | Y18: =$H$57*'Corrective Analysis'!Q9 -> 1.9217016 | Z18: =$H$57*'Corrective Analysis'!R9 -> 1.9413108 | AA18: =$H$57*'Corrective Analysis'!S9 -> 1.96092 | AB18: =$H$57*'Corrective Analysis'!T9 -> 2.0001384 | AC18: =$H$57*'Corrective Analysis'!U9 -> 1.9805292 | AD18: =$H$57*'Corrective Analysis'!V9 -> 1.96092 | AE18: =$H$57*'Corrective Analysis'!W9 -> 1.9413108 | AF18: =$H$57*'Corrective Analysis'!X9 -> 2.0393568 | AG18: =$H$57*'Corrective Analysis'!Y9 -> 2.157012 | AH18: =$H$57*'Corrective Analysis'!Z9 -> 1.764828 | AI18: =$H$57*'Corrective Analysis'!AA9 -> 2.0197476 | AJ18: =$H$57*'Corrective Analysis'!AB9 -> 2.136199755 | AK18: =$H$57*'Corrective Analysis'!AC9 -> 2.18701093 | AL18: =$H$57*'Corrective Analysis'!AD9 -> 2.237734622 | AM18: =$H$57*'Corrective Analysis'!AE9 -> 2.28838953 | AN18: =$H$57*'Corrective Analysis'!AF9 -> 2.156258028 | AO18: =$H$57*'Corrective Analysis'!AG9 -> 2.352792855 | AP18: =$H$57*'Corrective Analysis'!AH9 -> 2.107352257 | AQ18: =$H$57*'Corrective Analysis'!AI9 -> 2.45343952 | AR18: =$H$57*'Corrective Analysis'!AJ9 -> 2.503757244 | AS18: =$H$57*'Corrective Analysis'!AK9 -> 2.554081888
B19: Cost CTV | D19: =CTV!D19 -> 0 | G19: Available time/day (hours) | H19: =D7-H21 -> 8 | O19: Total | P19: =SUM(P14:P18) -> 182.180875 | Q19: =SUM(Q14:Q18) -> 154.5855985 | R19: 168.2914836 | S19: 156.6755525 | T19: 156.4296271 | U19: 153.031935 | V19: 145.7447 | W19: 155.946829 | X19: 150.117041 | Y19: 142.829806 | Z19: 144.287253 | AA19: 145.7447 | AB19: 148.659594 | AC19: 147.202147 | AD19: 145.7447 | AE19: 144.287253 | AF19: 151.574488 | AG19: 160.31917 | AH19: 131.17023 | AI19: 150.117041 | AJ19: 158.7723071 | AK19: 162.5488301 | AL19: 166.3188509 | AM19: 170.0837594 | AN19: 160.2631313 | AO19: 174.8705142 | AP19: 156.6282268 | AQ19: 182.3510428 | AR19: 186.0908902 | AS19: 189.8312519
B20: Upper limit of days required | D20: =CTV!D20 -> 60 | G20: Days required/4turbine/CTV | H20: =ROUNDUP(D18/H19,0) -> 3 | J20: Total cost Preventive | K20: =K16 -> 1319040
B21: Lower limit of days required | D21: =CTV!D21 -> 0 | G21: Time spend in turbines/day | H21: =D15*(D17+1) -> 4
B22: Number of Jack-Up | D22: 1 | G22: Additional travel day | H22: =ROUNDUP(H18/D7,0) -> 1 | O22: Case A | P22: =$D$54*'Corrective Analysis'!H5 -> 6.046125 | Q22: =$D$54*'Corrective Analysis'!I5 -> 5.130307185 | R22: =$D$54*'Corrective Analysis'!J5 -> 5.585171034 | S22: =$D$54*'Corrective Analysis'!K5 -> 5.1996675 | T22: =$D$54*'Corrective Analysis'!L5 -> 5.191505856 | U22: =$D$54*'Corrective Analysis'!M5 -> 5.078745 | V22: =$D$54*'Corrective Analysis'!N5 -> 4.8369 | W22: =$D$54*'Corrective Analysis'!O5 -> 5.175483 | X22: =$D$54*'Corrective Analysis'!P5 -> 4.982007 | Y22: =$D$54*'Corrective Analysis'!Q5 -> 4.740162 | Z22: =$D$54*'Corrective Analysis'!R5 -> 4.788531 | AA22: =$D$54*'Corrective Analysis'!S5 -> 4.8369 | AB22: =$D$54*'Corrective Analysis'!T5 -> 4.933638 | AC22: =$D$54*'Corrective Analysis'!U5 -> 4.885269 | AD22: =$D$54*'Corrective Analysis'!V5 -> 4.8369 | AE22: =$D$54*'Corrective Analysis'!W5 -> 4.788531 | AF22: =$D$54*'Corrective Analysis'!X5 -> 5.030376 | AG22: =$D$54*'Corrective Analysis'!Y5 -> 5.32059 | AH22: =$D$54*'Corrective Analysis'!Z5 -> 4.35321 | AI22: =$D$54*'Corrective Analysis'!AA5 -> 4.982007 | AJ22: =$D$54*'Corrective Analysis'!AB5 -> 5.269253512 | AK22: =$D$54*'Corrective Analysis'!AC5 -> 5.39458681 | AL22: =$D$54*'Corrective Analysis'!AD5 -> 5.519704319 | AM22: =$D$54*'Corrective Analysis'!AE5 -> 5.644652162 | AN22: =$D$54*'Corrective Analysis'!AF5 -> 5.318730216 | AO22: =$D$54*'Corrective Analysis'!AG5 -> 5.803512514 | AP22: =$D$54*'Corrective Analysis'!AH5 -> 5.198096879 | AQ22: =$D$54*'Corrective Analysis'!AI5 -> 6.051772441 | AR22: =$D$54*'Corrective Analysis'!AJ5 -> 6.175888569 | AS22: =$D$54*'Corrective Analysis'!AK5 -> 6.300021767
O23: Case B | P23: =$E$54*'Corrective Analysis'!H6 -> 0.0805 | Q23: =$E$54*'Corrective Analysis'!I6 -> 0.06830651506 | R23: =$E$54*'Corrective Analysis'!J6 -> 0.07436271467 | S23: =$E$54*'Corrective Analysis'!K6 -> 0.06923 | T23: =$E$54*'Corrective Analysis'!L6 -> 0.06912133332 | U23: =$E$54*'Corrective Analysis'!M6 -> 0.06762 | V23: =$E$54*'Corrective Analysis'!N6 -> 0.0644 | W23: =$E$54*'Corrective Analysis'!O6 -> 0.068908 | X23: =$E$54*'Corrective Analysis'!P6 -> 0.066332 | Y23: =$E$54*'Corrective Analysis'!Q6 -> 0.063112 | Z23: =$E$54*'Corrective Analysis'!R6 -> 0.063756 | AA23: =$E$54*'Corrective Analysis'!S6 -> 0.0644 | AB23: =$E$54*'Corrective Analysis'!T6 -> 0.065688 | AC23: =$E$54*'Corrective Analysis'!U6 -> 0.065044 | AD23: =$E$54*'Corrective Analysis'!V6 -> 0.0644 | AE23: =$E$54*'Corrective Analysis'!W6 -> 0.063756 | AF23: =$E$54*'Corrective Analysis'!X6 -> 0.066976 | AG23: =$E$54*'Corrective Analysis'!Y6 -> 0.07084 | AH23: =$E$54*'Corrective Analysis'!Z6 -> 0.05796 | AI23: =$E$54*'Corrective Analysis'!AA6 -> 0.066332 | AJ23: =$E$54*'Corrective Analysis'!AB6 -> 0.07015648993 | AK23: =$E$54*'Corrective Analysis'!AC6 -> 0.07182521668 | AL23: =$E$54*'Corrective Analysis'!AD6 -> 0.07349107034 | AM23: =$E$54*'Corrective Analysis'!AE6 -> 0.07515466502 | AN23: =$E$54*'Corrective Analysis'!AF6 -> 0.07081523826 | AO23: =$E$54*'Corrective Analysis'!AG6 -> 0.07726978145 | AP23: =$E$54*'Corrective Analysis'!AH6 -> 0.06920908826 | AQ23: =$E$54*'Corrective Analysis'!AI6 -> 0.0805751918 | AR23: =$E$54*'Corrective Analysis'!AJ6 -> 0.08222771276 | AS23: =$E$54*'Corrective Analysis'!AK6 -> 0.083880461
N24: Actual downtimes (h) | O24: Case C | P24: =$F$54*'Corrective Analysis'!H7 -> 5.10545 | Q24: =$F$54*'Corrective Analysis'!I7 -> 4.332117979 | R24: =$F$54*'Corrective Analysis'!J7 -> 4.716212691 | S24: =$F$54*'Corrective Analysis'!K7 -> 4.390687 | T24: =$F$54*'Corrective Analysis'!L7 -> 4.38379517 | U24: =$F$54*'Corrective Analysis'!M7 -> 4.288578 | V24: =$F$54*'Corrective Analysis'!N7 -> 4.08436 | W24: =$F$54*'Corrective Analysis'!O7 -> 4.3702652 | X24: =$F$54*'Corrective Analysis'!P7 -> 4.2068908 | Y24: =$F$54*'Corrective Analysis'!Q7 -> 4.0026728 | Z24: =$F$54*'Corrective Analysis'!R7 -> 4.0435164 | AA24: =$F$54*'Corrective Analysis'!S7 -> 4.08436 | AB24: =$F$54*'Corrective Analysis'!T7 -> 4.1660472 | AC24: =$F$54*'Corrective Analysis'!U7 -> 4.1252036 | AD24: =$F$54*'Corrective Analysis'!V7 -> 4.08436 | AE24: =$F$54*'Corrective Analysis'!W7 -> 4.0435164 | AF24: =$F$54*'Corrective Analysis'!X7 -> 4.2477344 | AG24: =$F$54*'Corrective Analysis'!Y7 -> 4.492796 | AH24: =$F$54*'Corrective Analysis'!Z7 -> 3.675924 | AI24: =$F$54*'Corrective Analysis'!AA7 -> 4.2068908 | AJ24: =$F$54*'Corrective Analysis'!AB7 -> 4.449446603 | AK24: =$F$54*'Corrective Analysis'!AC7 -> 4.555280155 | AL24: =$F$54*'Corrective Analysis'!AD7 -> 4.660931492 | AM24: =$F$54*'Corrective Analysis'!AE7 -> 4.76643956 | AN24: =$F$54*'Corrective Analysis'!AF7 -> 4.491225567 | AO24: =$F$54*'Corrective Analysis'!AG7 -> 4.900583922 | AP24: =$F$54*'Corrective Analysis'!AH7 -> 4.389360741 | AQ24: =$F$54*'Corrective Analysis'!AI7 -> 5.110218795 | AR24: =$F$54*'Corrective Analysis'!AJ7 -> 5.215024548 | AS24: =$F$54*'Corrective Analysis'!AK7 -> 5.319844715
B25: Corrective Inputs | O25: Case D | P25: =$G$54*'Corrective Analysis'!H8 -> 13.5054 | Q25: =$G$54*'Corrective Analysis'!I8 -> 11.45971191 | R25: =$G$54*'Corrective Analysis'!J8 -> 12.47575412 | S25: =$G$54*'Corrective Analysis'!K8 -> 11.614644 | T25: =$G$54*'Corrective Analysis'!L8 -> 11.59641311 | U25: =$G$54*'Corrective Analysis'!M8 -> 11.344536 | V25: =$G$54*'Corrective Analysis'!N8 -> 10.80432 | W25: =$G$54*'Corrective Analysis'!O8 -> 11.5606224 | X25: =$G$54*'Corrective Analysis'!P8 -> 11.1284496 | Y25: =$G$54*'Corrective Analysis'!Q8 -> 10.5882336 | Z25: =$G$54*'Corrective Analysis'!R8 -> 10.6962768 | AA25: =$G$54*'Corrective Analysis'!S8 -> 10.80432 | AB25: =$G$54*'Corrective Analysis'!T8 -> 11.0204064 | AC25: =$G$54*'Corrective Analysis'!U8 -> 10.9123632 | AD25: =$G$54*'Corrective Analysis'!V8 -> 10.80432 | AE25: =$G$54*'Corrective Analysis'!W8 -> 10.6962768 | AF25: =$G$54*'Corrective Analysis'!X8 -> 11.2364928 | AG25: =$G$54*'Corrective Analysis'!Y8 -> 11.884752 | AH25: =$G$54*'Corrective Analysis'!Z8 -> 9.723888 | AI25: =$G$54*'Corrective Analysis'!AA8 -> 11.1284496 | AJ25: =$G$54*'Corrective Analysis'!AB8 -> 11.77008024 | AK25: =$G$54*'Corrective Analysis'!AC8 -> 12.05004076 | AL25: =$G$54*'Corrective Analysis'!AD8 -> 12.32951927 | AM25: =$G$54*'Corrective Analysis'!AE8 -> 12.6086188 | AN25: =$G$54*'Corrective Analysis'!AF8 -> 11.88059775 | AO25: =$G$54*'Corrective Analysis'!AG8 -> 12.96346964 | AP25: =$G$54*'Corrective Analysis'!AH8 -> 11.61113566 | AQ25: =$G$54*'Corrective Analysis'!AI8 -> 13.51801485 | AR25: =$G$54*'Corrective Analysis'!AJ8 -> 13.79525654 | AS25: =$G$54*'Corrective Analysis'!AK8 -> 14.07253637
B26: Processes: Time involved | O26: Case E | P26: =$H$54*'Corrective Analysis'!H9 -> 1.4274 | Q26: =$H$54*'Corrective Analysis'!I9 -> 1.211189063 | R26: =$H$54*'Corrective Analysis'!J9 -> 1.318575639 | S26: =$H$54*'Corrective Analysis'!K9 -> 1.227564 | T26: =$H$54*'Corrective Analysis'!L9 -> 1.225637158 | U26: =$H$54*'Corrective Analysis'!M9 -> 1.199016 | V26: =$H$54*'Corrective Analysis'!N9 -> 1.14192 | W26: =$H$54*'Corrective Analysis'!O9 -> 1.2218544 | X26: =$H$54*'Corrective Analysis'!P9 -> 1.1761776 | Y26: =$H$54*'Corrective Analysis'!Q9 -> 1.1190816 | Z26: =$H$54*'Corrective Analysis'!R9 -> 1.1305008 | AA26: =$H$54*'Corrective Analysis'!S9 -> 1.14192 | AB26: =$H$54*'Corrective Analysis'!T9 -> 1.1647584 | AC26: =$H$54*'Corrective Analysis'!U9 -> 1.1533392 | AD26: =$H$54*'Corrective Analysis'!V9 -> 1.14192 | AE26: =$H$54*'Corrective Analysis'!W9 -> 1.1305008 | AF26: =$H$54*'Corrective Analysis'!X9 -> 1.1875968 | AG26: =$H$54*'Corrective Analysis'!Y9 -> 1.256112 | AH26: =$H$54*'Corrective Analysis'!Z9 -> 1.027728 | AI26: =$H$54*'Corrective Analysis'!AA9 -> 1.1761776 | AJ26: =$H$54*'Corrective Analysis'!AB9 -> 1.24399222 | AK26: =$H$54*'Corrective Analysis'!AC9 -> 1.273581544 | AL26: =$H$54*'Corrective Analysis'!AD9 -> 1.303119923 | AM26: =$H$54*'Corrective Analysis'!AE9 -> 1.332618247 | AN26: =$H$54*'Corrective Analysis'!AF9 -> 1.255672933 | AO26: =$H$54*'Corrective Analysis'!AG9 -> 1.370122808 | AP26: =$H$54*'Corrective Analysis'!AH9 -> 1.2271932 | AQ26: =$H$54*'Corrective Analysis'!AI9 -> 1.428733277 | AR26: =$H$54*'Corrective Analysis'!AJ9 -> 1.458035245 | AS26: =$H$54*'Corrective Analysis'!AK9 -> 1.487341243
B27: Travel time from harbour (h) | D27: =D5/D11 -> 3.240020736 | O27: Total | P27: =SUM(P22:P26) -> 26.164875 | Q27: =SUM(Q22:Q26) -> 22.20163265 | R27: 24.1700762 | S27: 22.5017925 | T27: 22.46647262 | U27: 21.978495 | V27: 20.9319 | W27: 22.397133 | X27: 21.559857 | Y27: 20.513262 | Z27: 20.722581 | AA27: 20.9319 | AB27: 21.350538 | AC27: 21.141219 | AD27: 20.9319 | AE27: 20.722581 | AF27: 21.769176 | AG27: 23.02509 | AH27: 18.83871 | AI27: 21.559857 | AJ27: 22.80292906 | AK27: 23.34531449 | AL27: 23.88676608 | AM27: 24.42748343 | AN27: 23.0170417 | AO27: 25.11495867 | AP27: 22.49499557 | AQ27: 26.18931455 | AR27: 26.72643262 | AS27: 27.26362456
B28: Acclimatisation | D28: 0.5
B29: Preparation (hr) | D29: 0.3
B30: Break (hr) | D30: 0.5 | U30: Year | V30: Outage Cost | W30: Small Replacements (days per turb) | X30: Small Replacements (available) | Y30: Small Replacements (required)** | Z30: Small Replacements (required) | AA30: Cost Vessels (Small Replacement-Charter) | AB30: Cost Vessels (Small Replacement-Spot) | AC30: Large Replacements | AD30: Large Replacements (available) | AE30: Large Replacements (required)** | AF30: Large Replacements (required) Charter | AG30: Large Replacements (required) Spot Mark | AH30: Cost Vessels (Large Replacement) Jack-Up Spot Market | AI30: Cost Vessels (Large Replacement) Jack-Up Spot Market
B31: Transfer to WT (hr) | D31: 1.3 | U31: 1 | V31: =P19*$D$46*$D$47*$D$6*1000*$D$4 -> 8680382.868 | W31: =ROUNDUP((P22+P23+P24)/24*$D$4,0) -> 141 | X31: =$H$15*('Cost Vessels'!$D$10) -> 800 | Y31: =W31-X31 -> -659 | Z31: =IF(Y31>0,Y31,0) -> 0 | AA31: =Z31*IF($D$5<'Cost Vessels'!$D$11,'Cost Vessels'!$B$5,'Cost Vessels'!$B$16) -> 0 | AB31: =W31*IF($D$5<'Cost Vessels'!$D$11,'Cost Vessels'!$B$5,'Cost Vessels'!$B$16) -> 265080 | AC31: =ROUNDUP((P25+P26)/24*$D$4,0) -> 187 | AD31: ='Cost Vessels'!$N$10 -> 190 | AE31: =AC31-AD31 -> -3 | AF31: =IF(AE31>0,AE31,0) -> 0 | AG31: =AC31 -> 187 | AH31: =AG31*'Cost Vessels'!$L$5 -> 30025468 | AI31: =AF31*'Cost Vessels'!$L$5 -> 0
B32: Effective time (hr) ?????? | D32: =D7-D30-D31-D28-D29-D27*2 -> 2.919958528 | U32: 2 | V32: =Q19*$D$46*$D$47*$D$6*1000*$D$4 -> 7365549.107 | W32: =ROUNDUP((Q22+Q23+Q24)/24*$D$4,0) -> 120 | X32: =$H$15*('Cost Vessels'!$D$10) -> 800 | Y32: =W32-X32 -> -680 | Z32: =IF(Y32>0,Y32,0) -> 0 | AA32: =Z32*IF($D$5<'Cost Vessels'!$D$11,'Cost Vessels'!$B$5,'Cost Vessels'!$B$16) -> 0 | AB32: =W32*IF($D$5<'Cost Vessels'!$D$11,'Cost Vessels'!$B$5,'Cost Vessels'!$B$16) -> 225600 | AC32: =ROUNDUP((Q25+Q26)/24*$D$4,0) -> 159 | AD32: ='Cost Vessels'!$N$10 -> 190 | AE32: =AC32-AD32 -> -31 | AF32: =IF(AE32>0,AE32,0) -> 0 | AG32: =AC32 -> 159 | AH32: =AG32*'Cost Vessels'!$L$5 -> 25529676 | AI32: =AF32*'Cost Vessels'!$L$5 -> 0
U33: 3 | V33: =R19*$D$46*$D$47*$D$6*1000*$D$4 -> 8018594.216 | W33: =ROUNDUP((R22+R23+R24)/24*$D$4,0) -> 130 | X33: =$H$15*('Cost Vessels'!$D$10) -> 800 | Y33: -670 | Z33: 0 | AA33: =Z33*IF($D$5<'Cost Vessels'!$D$11,'Cost Vessels'!$B$5,'Cost Vessels'!$B$16) -> 0 | AB33: =W33*IF($D$5<'Cost Vessels'!$D$11,'Cost Vessels'!$B$5,'Cost Vessels'!$B$16) -> 244400 | AC33: =ROUNDUP((R25+R26)/24*$D$4,0) -> 173 | AD33: ='Cost Vessels'!$N$10 -> 190 | AE33: -17 | AF33: 0 | AG33: 173 | AH33: =AG33*'Cost Vessels'!$L$5 -> 27777572 | AI33: =AF33*'Cost Vessels'!$L$5 -> 0
B34: Large replacements (E) | U34: 4 | V34: =S19*$D$46*$D$47*$D$6*1000*$D$4 -> 7465129.266 | W34: =ROUNDUP((S22+S23+S24)/24*$D$4,0) -> 121 | X34: =$H$15*('Cost Vessels'!$D$10) -> 800 | Y34: -679 | Z34: 0 | AA34: =Z34*IF($D$5<'Cost Vessels'!$D$11,'Cost Vessels'!$B$5,'Cost Vessels'!$B$16) -> 0 | AB34: =W34*IF($D$5<'Cost Vessels'!$D$11,'Cost Vessels'!$B$5,'Cost Vessels'!$B$16) -> 227480 | AC34: =ROUNDUP((S25+S26)/24*$D$4,0) -> 161 | AD34: ='Cost Vessels'!$N$10 -> 190 | AE34: -29 | AF34: 0 | AG34: 161 | AH34: =AG34*'Cost Vessels'!$L$5 -> 25850804 | AI34: =AF34*'Cost Vessels'!$L$5 -> 0
B35: Jack-up speed km/hr | D35: 16.7 | U35: 5 | V35: =T19*$D$46*$D$47*$D$6*1000*$D$4 -> 7453411.647 | W35: =ROUNDUP((T22+T23+T24)/24*$D$4,0) -> 121 | X35: =$H$15*('Cost Vessels'!$D$10) -> 800 | Y35: -679 | Z35: 0 | AA35: =Z35*IF($D$5<'Cost Vessels'!$D$11,'Cost Vessels'!$B$5,'Cost Vessels'!$B$16) -> 0 | AB35: =W35*IF($D$5<'Cost Vessels'!$D$11,'Cost Vessels'!$B$5,'Cost Vessels'!$B$16) -> 227480 | AC35: =ROUNDUP((T25+T26)/24*$D$4,0) -> 161 | AD35: ='Cost Vessels'!$N$10 -> 190 | AE35: -29 | AF35: 0 | AG35: 161 | AH35: =AG35*'Cost Vessels'!$L$5 -> 25850804 | AI35: =AF35*'Cost Vessels'!$L$5 -> 0
B36: E Repair time* | D36: 96 | U36: 6 | V36: =U19*$D$46*$D$47*$D$6*1000*$D$4 -> 7291521.609 | W36: =ROUNDUP((U22+U23+U24)/24*$D$4,0) -> 118 | X36: =$H$15*('Cost Vessels'!$D$10) -> 800 | Y36: -682 | Z36: 0 | AA36: =Z36*IF($D$5<'Cost Vessels'!$D$11,'Cost Vessels'!$B$5,'Cost Vessels'!$B$16) -> 0 | AB36: =W36*IF($D$5<'Cost Vessels'!$D$11,'Cost Vessels'!$B$5,'Cost Vessels'!$B$16) -> 221840 | AC36: =ROUNDUP((U25+U26)/24*$D$4,0) -> 157 | AD36: ='Cost Vessels'!$N$10 -> 190 | AE36: -33 | AF36: 0 | AG36: 157 | AH36: =AG36*'Cost Vessels'!$L$5 -> 25208548 | AI36: =AF36*'Cost Vessels'!$L$5 -> 0
B37: Travel time | D37: =D5/D35 -> 7.185628743 | U37: 7 | V37: =V19*$D$46*$D$47*$D$6*1000*$D$4 -> 6944306.294 | W37: =ROUNDUP((V22+V23+V24)/24*$D$4,0) -> 113 | X37: =$H$15*('Cost Vessels'!$D$10) -> 800 | Y37: -687 | Z37: 0 | AA37: =Z37*IF($D$5<'Cost Vessels'!$D$11,'Cost Vessels'!$B$5,'Cost Vessels'!$B$16) -> 0 | AB37: =W37*IF($D$5<'Cost Vessels'!$D$11,'Cost Vessels'!$B$5,'Cost Vessels'!$B$16) -> 212440 | AC37: =ROUNDUP((V25+V26)/24*$D$4,0) -> 150 | AD37: ='Cost Vessels'!$N$10 -> 190 | AE37: -40 | AF37: 0 | AG37: 150 | AH37: =AG37*'Cost Vessels'!$L$5 -> 24084600 | AI37: =AF37*'Cost Vessels'!$L$5 -> 0
B38: Positioning jack-up (hr) | D38: 3 | U38: 8 | V38: =W19*$D$46*$D$47*$D$6*1000*$D$4 -> 7430407.735 | W38: =ROUNDUP((W22+W23+W24)/24*$D$4,0) -> 121 | X38: =$H$15*('Cost Vessels'!$D$10) -> 800 | Y38: -679 | Z38: 0 | AA38: =Z38*IF($D$5<'Cost Vessels'!$D$11,'Cost Vessels'!$B$5,'Cost Vessels'!$B$16) -> 0 | AB38: =W38*IF($D$5<'Cost Vessels'!$D$11,'Cost Vessels'!$B$5,'Cost Vessels'!$B$16) -> 227480 | AC38: =ROUNDUP((W25+W26)/24*$D$4,0) -> 160 | AD38: ='Cost Vessels'!$N$10 -> 190 | AE38: -30 | AF38: 0 | AG38: 160 | AH38: =AG38*'Cost Vessels'!$L$5 -> 25690240 | AI38: =AF38*'Cost Vessels'!$L$5 -> 0
U39: 9 | V39: =X19*$D$46*$D$47*$D$6*1000*$D$4 -> 7152635.483 | W39: =ROUNDUP((X22+X23+X24)/24*$D$4,0) -> 116 | X39: =$H$15*('Cost Vessels'!$D$10) -> 800 | Y39: -684 | Z39: 0 | AA39: =Z39*IF($D$5<'Cost Vessels'!$D$11,'Cost Vessels'!$B$5,'Cost Vessels'!$B$16) -> 0 | AB39: =W39*IF($D$5<'Cost Vessels'!$D$11,'Cost Vessels'!$B$5,'Cost Vessels'!$B$16) -> 218080 | AC39: =ROUNDUP((X25+X26)/24*$D$4,0) -> 154 | AD39: ='Cost Vessels'!$N$10 -> 190 | AE39: -36 | AF39: 0 | AG39: 154 | AH39: =AG39*'Cost Vessels'!$L$5 -> 24726856 | AI39: =AF39*'Cost Vessels'!$L$5 -> 0
B40: Large replacements (D) | U40: 10 | V40: =Y19*$D$46*$D$47*$D$6*1000*$D$4 -> 6805420.168 | W40: =ROUNDUP((Y22+Y23+Y24)/24*$D$4,0) -> 111 | X40: =$H$15*('Cost Vessels'!$D$10) -> 800 | Y40: -689 | Z40: 0 | AA40: =Z40*IF($D$5<'Cost Vessels'!$D$11,'Cost Vessels'!$B$5,'Cost Vessels'!$B$16) -> 0 | AB40: =W40*IF($D$5<'Cost Vessels'!$D$11,'Cost Vessels'!$B$5,'Cost Vessels'!$B$16) -> 208680 | AC40: =ROUNDUP((Y25+Y26)/24*$D$4,0) -> 147 | AD40: ='Cost Vessels'!$N$10 -> 190 | AE40: -43 | AF40: 0 | AG40: 147 | AH40: =AG40*'Cost Vessels'!$L$5 -> 23602908 | AI40: =AF40*'Cost Vessels'!$L$5 -> 0
B41: Speed of crane ship km/hr | D41: 15 | U41: 11 | V41: =Z19*$D$46*$D$47*$D$6*1000*$D$4 -> 6874863.231 | W41: =ROUNDUP((Z22+Z23+Z24)/24*$D$4,0) -> 112 | X41: =$H$15*('Cost Vessels'!$D$10) -> 800 | Y41: -688 | Z41: 0 | AA41: =Z41*IF($D$5<'Cost Vessels'!$D$11,'Cost Vessels'!$B$5,'Cost Vessels'!$B$16) -> 0 | AB41: =W41*IF($D$5<'Cost Vessels'!$D$11,'Cost Vessels'!$B$5,'Cost Vessels'!$B$16) -> 210560 | AC41: =ROUNDUP((Z25+Z26)/24*$D$4,0) -> 148 | AD41: ='Cost Vessels'!$N$10 -> 190 | AE41: -42 | AF41: 0 | AG41: 148 | AH41: =AG41*'Cost Vessels'!$L$5 -> 23763472 | AI41: =AF41*'Cost Vessels'!$L$5 -> 0
B42: Repair time* | D42: 96 | U42: 12 | V42: =AA19*$D$46*$D$47*$D$6*1000*$D$4 -> 6944306.294 | W42: =ROUNDUP((AA22+AA23+AA24)/24*$D$4,0) -> 113 | X42: =$H$15*('Cost Vessels'!$D$10) -> 800 | Y42: -687 | Z42: 0 | AA42: =Z42*IF($D$5<'Cost Vessels'!$D$11,'Cost Vessels'!$B$5,'Cost Vessels'!$B$16) -> 0 | AB42: =W42*IF($D$5<'Cost Vessels'!$D$11,'Cost Vessels'!$B$5,'Cost Vessels'!$B$16) -> 212440 | AC42: =ROUNDUP((AA25+AA26)/24*$D$4,0) -> 150 | AD42: ='Cost Vessels'!$N$10 -> 190 | AE42: -40 | AF42: 0 | AG42: 150 | AH42: =AG42*'Cost Vessels'!$L$5 -> 24084600 | AI42: =AF42*'Cost Vessels'!$L$5 -> 0
B43: Travel time | D43: =D5/D41 -> 8 | U43: 13 | V43: =AB19*$D$46*$D$47*$D$6*1000*$D$4 -> 7083192.42 | W43: =ROUNDUP((AB22+AB23+AB24)/24*$D$4,0) -> 115 | X43: =$H$15*('Cost Vessels'!$D$10) -> 800 | Y43: -685 | Z43: 0 | AA43: =Z43*IF($D$5<'Cost Vessels'!$D$11,'Cost Vessels'!$B$5,'Cost Vessels'!$B$16) -> 0 | AB43: =W43*IF($D$5<'Cost Vessels'!$D$11,'Cost Vessels'!$B$5,'Cost Vessels'!$B$16) -> 216200 | AC43: =ROUNDUP((AB25+AB26)/24*$D$4,0) -> 153 | AD43: ='Cost Vessels'!$N$10 -> 190 | AE43: -37 | AF43: 0 | AG43: 153 | AH43: =AG43*'Cost Vessels'!$L$5 -> 24566292 | AI43: =AF43*'Cost Vessels'!$L$5 -> 0
B44: Failures increasing each year | D44: 0.015 | U44: 14 | V44: =AC19*$D$46*$D$47*$D$6*1000*$D$4 -> 7013749.357 | W44: =ROUNDUP((AC22+AC23+AC24)/24*$D$4,0) -> 114 | X44: =$H$15*('Cost Vessels'!$D$10) -> 800 | Y44: -686 | Z44: 0 | AA44: =Z44*IF($D$5<'Cost Vessels'!$D$11,'Cost Vessels'!$B$5,'Cost Vessels'!$B$16) -> 0 | AB44: =W44*IF($D$5<'Cost Vessels'!$D$11,'Cost Vessels'!$B$5,'Cost Vessels'!$B$16) -> 214320 | AC44: =ROUNDUP((AC25+AC26)/24*$D$4,0) -> 151 | AD44: ='Cost Vessels'!$N$10 -> 190 | AE44: -39 | AF44: 0 | AG44: 151 | AH44: =AG44*'Cost Vessels'!$L$5 -> 24245164 | AI44: =AF44*'Cost Vessels'!$L$5 -> 0
B45: Cost inputs | U45: 15 | V45: =AD19*$D$46*$D$47*$D$6*1000*$D$4 -> 6944306.294 | W45: =ROUNDUP((AD22+AD23+AD24)/24*$D$4,0) -> 113 | X45: =$H$15*('Cost Vessels'!$D$10) -> 800 | Y45: -687 | Z45: 0 | AA45: =Z45*IF($D$5<'Cost Vessels'!$D$11,'Cost Vessels'!$B$5,'Cost Vessels'!$B$16) -> 0 | AB45: =W45*IF($D$5<'Cost Vessels'!$D$11,'Cost Vessels'!$B$5,'Cost Vessels'!$B$16) -> 212440 | AC45: =ROUNDUP((AD25+AD26)/24*$D$4,0) -> 150 | AD45: ='Cost Vessels'!$N$10 -> 190 | AE45: -40 | AF45: 0 | AG45: 150 | AH45: =AG45*'Cost Vessels'!$L$5 -> 24084600 | AI45: =AF45*'Cost Vessels'!$L$5 -> 0
B46: Electricity Price (£/KWh) | D46: =0.08/1.36 -> 0.05882352941 | U46: 16 | V46: =AE19*$D$46*$D$47*$D$6*1000*$D$4 -> 6874863.231 | W46: =ROUNDUP((AE22+AE23+AE24)/24*$D$4,0) -> 112 | X46: =$H$15*('Cost Vessels'!$D$10) -> 800 | Y46: -688 | Z46: 0 | AA46: =Z46*IF($D$5<'Cost Vessels'!$D$11,'Cost Vessels'!$B$5,'Cost Vessels'!$B$16) -> 0 | AB46: =W46*IF($D$5<'Cost Vessels'!$D$11,'Cost Vessels'!$B$5,'Cost Vessels'!$B$16) -> 210560 | AC46: =ROUNDUP((AE25+AE26)/24*$D$4,0) -> 148 | AD46: ='Cost Vessels'!$N$10 -> 190 | AE46: -42 | AF46: 0 | AG46: 148 | AH46: =AG46*'Cost Vessels'!$L$5 -> 23763472 | AI46: =AF46*'Cost Vessels'!$L$5 -> 0
B47: Capacity Factor far-offshore | D47: 0.45 | U47: 17 | V47: =AF19*$D$46*$D$47*$D$6*1000*$D$4 -> 7222078.546 | W47: =ROUNDUP((AF22+AF23+AF24)/24*$D$4,0) -> 117 | X47: =$H$15*('Cost Vessels'!$D$10) -> 800 | Y47: -683 | Z47: 0 | AA47: =Z47*IF($D$5<'Cost Vessels'!$D$11,'Cost Vessels'!$B$5,'Cost Vessels'!$B$16) -> 0 | AB47: =W47*IF($D$5<'Cost Vessels'!$D$11,'Cost Vessels'!$B$5,'Cost Vessels'!$B$16) -> 219960 | AC47: =ROUNDUP((AF25+AF26)/24*$D$4,0) -> 156 | AD47: ='Cost Vessels'!$N$10 -> 190 | AE47: -34 | AF47: 0 | AG47: 156 | AH47: =AG47*'Cost Vessels'!$L$5 -> 25047984 | AI47: =AF47*'Cost Vessels'!$L$5 -> 0
U48: 18 | V48: =AG19*$D$46*$D$47*$D$6*1000*$D$4 -> 7638736.924 | W48: =ROUNDUP((AG22+AG23+AG24)/24*$D$4,0) -> 124 | X48: =$H$15*('Cost Vessels'!$D$10) -> 800 | Y48: -676 | Z48: 0 | AA48: =Z48*IF($D$5<'Cost Vessels'!$D$11,'Cost Vessels'!$B$5,'Cost Vessels'!$B$16) -> 0 | AB48: =W48*IF($D$5<'Cost Vessels'!$D$11,'Cost Vessels'!$B$5,'Cost Vessels'!$B$16) -> 233120 | AC48: =ROUNDUP((AG25+AG26)/24*$D$4,0) -> 165 | AD48: ='Cost Vessels'!$N$10 -> 190 | AE48: -25 | AF48: 0 | AG48: 165 | AH48: =AG48*'Cost Vessels'!$L$5 -> 26493060 | AI48: =AF48*'Cost Vessels'!$L$5 -> 0
U49: 19 | V49: =AH19*$D$46*$D$47*$D$6*1000*$D$4 -> 6249875.665 | W49: =ROUNDUP((AH22+AH23+AH24)/24*$D$4,0) -> 102 | X49: =$H$15*('Cost Vessels'!$D$10) -> 800 | Y49: -698 | Z49: 0 | AA49: =Z49*IF($D$5<'Cost Vessels'!$D$11,'Cost Vessels'!$B$5,'Cost Vessels'!$B$16) -> 0 | AB49: =W49*IF($D$5<'Cost Vessels'!$D$11,'Cost Vessels'!$B$5,'Cost Vessels'!$B$16) -> 191760 | AC49: =ROUNDUP((AH25+AH26)/24*$D$4,0) -> 135 | AD49: ='Cost Vessels'!$N$10 -> 190 | AE49: -55 | AF49: 0 | AG49: 135 | AH49: =AG49*'Cost Vessels'!$L$5 -> 21676140 | AI49: =AF49*'Cost Vessels'!$L$5 -> 0
B50: Detailed corrective analysis | U50: 20 | V50: =AI19*$D$46*$D$47*$D$6*1000*$D$4 -> 7152635.483 | W50: =ROUNDUP((AI22+AI23+AI24)/24*$D$4,0) -> 116 | X50: =$H$15*('Cost Vessels'!$D$10) -> 800 | Y50: -684 | Z50: 0 | AA50: =Z50*IF($D$5<'Cost Vessels'!$D$11,'Cost Vessels'!$B$5,'Cost Vessels'!$B$16) -> 0 | AB50: =W50*IF($D$5<'Cost Vessels'!$D$11,'Cost Vessels'!$B$5,'Cost Vessels'!$B$16) -> 218080 | AC50: =ROUNDUP((AI25+AI26)/24*$D$4,0) -> 154 | AD50: ='Cost Vessels'!$N$10 -> 190 | AE50: -36 | AF50: 0 | AG50: 154 | AH50: =AG50*'Cost Vessels'!$L$5 -> 24726856 | AI50: =AF50*'Cost Vessels'!$L$5 -> 0
D51: Case A | E51: Case B | F51: Case C | G51: Case D | H51: Case E | U51: 21 | V51: =AJ19*$D$46*$D$47*$D$6*1000*$D$4 -> 7565033.457 | W51: =ROUNDUP((AJ22+AJ23+AJ24)/24*$D$4,0) -> 123 | X51: =$H$15*('Cost Vessels'!$D$10) -> 800 | Y51: -677 | Z51: 0 | AA51: =Z51*IF($D$5<'Cost Vessels'!$D$11,'Cost Vessels'!$B$5,'Cost Vessels'!$B$16) -> 0 | AB51: =W51*IF($D$5<'Cost Vessels'!$D$11,'Cost Vessels'!$B$5,'Cost Vessels'!$B$16) -> 231240 | AC51: =ROUNDUP((AJ25+AJ26)/24*$D$4,0) -> 163 | AD51: ='Cost Vessels'!$N$10 -> 190 | AE51: -27 | AF51: 0 | AG51: 163 | AH51: =AG51*'Cost Vessels'!$L$5 -> 26171932 | AI51: =AF51*'Cost Vessels'!$L$5 -> 0
B52: Travel time required | D52: 0 | E52: 0 | F52: 0 | G52: 0 | H52: 0 | U52: 22 | V52: =AK19*$D$46*$D$47*$D$6*1000*$D$4 -> 7744973.669 | W52: =ROUNDUP((AK22+AK23+AK24)/24*$D$4,0) -> 126 | X52: =$H$15*('Cost Vessels'!$D$10) -> 800 | Y52: -674 | Z52: 0 | AA52: =Z52*IF($D$5<'Cost Vessels'!$D$11,'Cost Vessels'!$B$5,'Cost Vessels'!$B$16) -> 0 | AB52: =W52*IF($D$5<'Cost Vessels'!$D$11,'Cost Vessels'!$B$5,'Cost Vessels'!$B$16) -> 236880 | AC52: =ROUNDUP((AK25+AK26)/24*$D$4,0) -> 167 | AD52: ='Cost Vessels'!$N$10 -> 190 | AE52: -23 | AF52: 0 | AG52: 167 | AH52: =AG52*'Cost Vessels'!$L$5 -> 26814188 | AI52: =AF52*'Cost Vessels'!$L$5 -> 0
B53: Repair Time needed (hr) | D53: 3 | E53: 3 | F53: 10 | G53: =D42 -> 96 | H53: =D42 -> 96 | U53: 23 | V53: =AL19*$D$46*$D$47*$D$6*1000*$D$4 -> 7924604.074 | W53: =ROUNDUP((AL23+AL24+AL22)/24*$D$4,0) -> 129 | X53: =$H$15*('Cost Vessels'!$D$10) -> 800 | Y53: -671 | Z53: 0 | AA53: =Z53*IF($D$5<'Cost Vessels'!$D$11,'Cost Vessels'!$B$5,'Cost Vessels'!$B$16) -> 0 | AB53: =W53*IF($D$5<'Cost Vessels'!$D$11,'Cost Vessels'!$B$5,'Cost Vessels'!$B$16) -> 242520 | AC53: =ROUNDUP((AL25+AL26)/24*$D$4,0) -> 171 | AD53: ='Cost Vessels'!$N$10 -> 190 | AE53: -19 | AF53: 0 | AG53: 171 | AH53: =AG53*'Cost Vessels'!$L$5 -> 27456444 | AI53: =AF53*'Cost Vessels'!$L$5 -> 0
B54: Actual downtimes* (hr) | D54: =D53+$D$31+$D$29 -> 4.6 | E54: =E53+$D$31+$D$29 -> 4.6 | F54: =F53+$D$31+$D$29 -> 11.6 | G54: =G53+$D$31+$D$29 -> 97.6 | H54: =H53+$D$31+$D$29 -> 97.6 | U54: 24 | V54: =AM19*$D$46*$D$47*$D$6*1000*$D$4 -> 8103990.891 | W54: =ROUNDUP((AM22+AM23+AM24)/24*$D$4,0) -> 132 | X54: =$H$15*('Cost Vessels'!$D$10) -> 800 | Y54: -668 | Z54: 0 | AA54: =Z54*IF($D$5<'Cost Vessels'!$D$11,'Cost Vessels'!$B$5,'Cost Vessels'!$B$16) -> 0 | AB54: =W54*IF($D$5<'Cost Vessels'!$D$11,'Cost Vessels'!$B$5,'Cost Vessels'!$B$16) -> 248160 | AC54: =ROUNDUP((AM25+AM26)/24*$D$4,0) -> 175 | AD54: ='Cost Vessels'!$N$10 -> 190 | AE54: -15 | AF54: 0 | AG54: 175 | AH54: =AG54*'Cost Vessels'!$L$5 -> 28098700 | AI54: =AF54*'Cost Vessels'!$L$5 -> 0
B55: Logistics Time (hr) | D55: =Inputs!K42 -> 0 | E55: =Inputs!L42 -> 8 | F55: =Inputs!M42 -> 48 | G55: =Inputs!N42 -> 0 | H55: =Inputs!O42 -> 0 | U55: 25 | V55: =AN19*$D$46*$D$47*$D$6*1000*$D$4 -> 7636066.844 | W55: =ROUNDUP((AN22+AN23+AN24)/24*$D$4,0) -> 124 | X55: =$H$15*('Cost Vessels'!$D$10) -> 800 | Y55: -676 | Z55: 0 | AA55: =Z55*IF($D$5<'Cost Vessels'!$D$11,'Cost Vessels'!$B$5,'Cost Vessels'!$B$16) -> 0 | AB55: =W55*IF($D$5<'Cost Vessels'!$D$11,'Cost Vessels'!$B$5,'Cost Vessels'!$B$16) -> 233120 | AC55: =ROUNDUP((AN25+AN26)/24*$D$4,0) -> 165 | AD55: ='Cost Vessels'!$N$10 -> 190 | AE55: -25 | AF55: 0 | AG55: 165 | AH55: =AG55*'Cost Vessels'!$L$5 -> 26493060 | AI55: =AF55*'Cost Vessels'!$L$5 -> 0
B56: Waiting Time (hr) | D56: =Inputs!K43 -> 70 | E56: =Inputs!L43 -> 70 | F56: =Inputs!M43 -> 70 | G56: =Inputs!N43 -> 70 | H56: =Inputs!O43 -> 70 | U56: 26 | V56: =AO19*$D$46*$D$47*$D$6*1000*$D$4 -> 8332065.678 | W56: =ROUNDUP((AO22+AO23+AO24)/24*$D$4,0) -> 135 | X56: =$H$15*('Cost Vessels'!$D$10) -> 800 | Y56: -665 | Z56: 0 | AA56: =Z56*IF($D$5<'Cost Vessels'!$D$11,'Cost Vessels'!$B$5,'Cost Vessels'!$B$16) -> 0 | AB56: =W56*IF($D$5<'Cost Vessels'!$D$11,'Cost Vessels'!$B$5,'Cost Vessels'!$B$16) -> 253800 | AC56: =ROUNDUP((AO25+AO26)/24*$D$4,0) -> 180 | AD56: ='Cost Vessels'!$N$10 -> 190 | AE56: -10 | AF56: 0 | AG56: 180 | AH56: =AG56*'Cost Vessels'!$L$5 -> 28901520 | AI56: =AF56*'Cost Vessels'!$L$5 -> 0
B57: Total downtime (hr) | D57: =SUM(D54:D56) -> 74.6 | E57: =SUM(E54:E56) -> 82.6 | F57: =SUM(F54:F56) -> 129.6 | G57: =SUM(G54:G56) -> 167.6 | H57: =SUM(H54:H56) -> 167.6 | U57: 27 | V57: =AP19*$D$46*$D$47*$D$6*1000*$D$4 -> 7462874.336 | W57: =ROUNDUP((AP22+AP23+AP24)/24*$D$4,0) -> 121 | X57: =$H$15*('Cost Vessels'!$D$10) -> 800 | Y57: -679 | Z57: 0 | AA57: =Z57*IF($D$5<'Cost Vessels'!$D$11,'Cost Vessels'!$B$5,'Cost Vessels'!$B$16) -> 0 | AB57: =W57*IF($D$5<'Cost Vessels'!$D$11,'Cost Vessels'!$B$5,'Cost Vessels'!$B$16) -> 227480 | AC57: =ROUNDUP((AP25+AP26)/24*$D$4,0) -> 161 | AD57: ='Cost Vessels'!$N$10 -> 190 | AE57: -29 | AF57: 0 | AG57: 161 | AH57: =AG57*'Cost Vessels'!$L$5 -> 25850804 | AI57: =AF57*'Cost Vessels'!$L$5 -> 0
B58: Downtimes corr. maint. (hr/yr)/tr | D58: ='Corrective Analysis'!G5*D57 -> 78.4419 | E58: ='Corrective Analysis'!G6*E57 -> 1.1564 | F58: ='Corrective Analysis'!G7*F57 -> 45.63216 | G58: ='Corrective Analysis'!G8*G57 -> 18.55332 | H58: ='Corrective Analysis'!G9*H57 -> 1.96092 | U58: 28 | V58: =AQ19*$D$46*$D$47*$D$6*1000*$D$4 -> 8688490.862 | W58: =ROUNDUP((AQ22+AQ23+AQ24)/24*$D$4,0) -> 141 | X58: =$H$15*('Cost Vessels'!$D$10) -> 800 | Y58: -659 | Z58: 0 | AA58: =Z58*IF($D$5<'Cost Vessels'!$D$11,'Cost Vessels'!$B$5,'Cost Vessels'!$B$16) -> 0 | AB58: =W58*IF($D$5<'Cost Vessels'!$D$11,'Cost Vessels'!$B$5,'Cost Vessels'!$B$16) -> 265080 | AC58: =ROUNDUP((AQ25+AQ26)/24*$D$4,0) -> 187 | AD58: ='Cost Vessels'!$N$10 -> 190 | AE58: -3 | AF58: 0 | AG58: 187 | AH58: =AG58*'Cost Vessels'!$L$5 -> 30025468 | AI58: =AF58*'Cost Vessels'!$L$5 -> 0
U59: 29 | V59: =AR19*$D$46*$D$47*$D$6*1000*$D$4 -> 8866683.591 | W59: =ROUNDUP((AR22+AR23+AR24)/24*$D$4,0) -> 144 | X59: =$H$15*('Cost Vessels'!$D$10) -> 800 | Y59: -656 | Z59: 0 | AA59: =Z59*IF($D$5<'Cost Vessels'!$D$11,'Cost Vessels'!$B$5,'Cost Vessels'!$B$16) -> 0 | AB59: =W59*IF($D$5<'Cost Vessels'!$D$11,'Cost Vessels'!$B$5,'Cost Vessels'!$B$16) -> 270720 | AC59: =ROUNDUP((AR25+AR26)/24*$D$4,0) -> 191 | AD59: ='Cost Vessels'!$N$10 -> 190 | AE59: 1 | AF59: 1 | AG59: 191 | AH59: =AG59*'Cost Vessels'!$L$5 -> 30667724 | AI59: =AF59*'Cost Vessels'!$L$5 -> 160564
U60: 30 | V60: =AS19*$D$46*$D$47*$D$6*1000*$D$4 -> 9044900.827 | W60: =ROUNDUP((AS22+AS23+AS24)/24*$D$4,0) -> 147 | X60: =$H$15*('Cost Vessels'!$D$10) -> 800 | Y60: -653 | Z60: 0 | AA60: =Z60*IF($D$5<'Cost Vessels'!$D$11,'Cost Vessels'!$B$5,'Cost Vessels'!$B$16) -> 0 | AB60: =W60*IF($D$5<'Cost Vessels'!$D$11,'Cost Vessels'!$B$5,'Cost Vessels'!$B$16) -> 276360 | AC60: =ROUNDUP((AS25+AS26)/24*$D$4,0) -> 195 | AD60: ='Cost Vessels'!$N$10 -> 190 | AE60: 5 | AF60: 5 | AG60: 195 | AH60: =AG60*'Cost Vessels'!$L$5 -> 31309980 | AI60: =AF60*'Cost Vessels'!$L$5 -> 802820
B61: Spot Market Jack-Up | P61: Charter Jack-Up | AD61: Purchase Jack-Up
B62: Detailed Cost Analysis Preventive | G62: Detailed Cost Analysis Corrective | K62: Detailed Cost Analysis Total | P62: Detailed Cost Analysis Preventive | U62: Detailed Cost Analysis Corrective | Y62: Detailed Cost Analysis Total | AD62: Detailed Cost Analysis Preventive | AI62: Detailed Cost Analysis Corrective | AM62: Detailed Cost Analysis Total
B64: Year | C64: Cost CTV Spot Market | D64: Cost CTV Charter | E64: Cost Purchased | G64: Cost CTV Spot Market | H64: Cost CTV Charter | I64: Cost Purchased | K64: JackUp_Spot Market + CTV_Spot Market | L64: JackUp_Spot Market + CTV_Charter | M64: JackUp_Spot Market + CTV_Purchase | P64: Year | Q64: Cost CTV Spot Market | R64: Cost CTV Charter | S64: Cost Purchased | U64: Cost CTV Spot Market | V64: Cost CTV Charter | W64: Cost Purchased | Y64: JackUp_Charter + CTV_Spot Market | Z64: JackUp_Charter + CTV_Charter | AA64: JackUp_Charter + CTV_Purchase | AD64: Year | AE64: Cost CTV Spot Market | AF64: Cost CTV Charter | AG64: Cost Purchased | AI64: Cost CTV Spot Market | AJ64: Cost CTV Charter | AK64: Cost Purchased | AM64: JackUp_Purchase + CTV_Spot Market | AN64: JackUp_Purchase + CTV_Charter | AO64: JackUp_Purchase + CTV_Purchase
B65: 1 | C65: =C104 -> 9622809 | D65: =D104 -> 11195409 | E65: =E104 -> 20771017 | G65: =G104 -> 30290548 | H65: =H104 -> 30025468 | I65: =I104 -> 30025468 | K65: =K104 -> 49912779.87 | L65: =L104 -> 51220299.87 | M65: =M104 -> 60795907.87 | P65: 1 | Q65: =Q104 -> 43208520 | R65: =R104 -> 44781120 | S65: =S104 -> 54356728 | U65: =U104 -> 265080 | V65: =V104 -> 0 | W65: =W104 -> 0 | Y65: =Y104 -> 53473022.87 | Z65: =Z104 -> 54780542.87 | AA65: =AA104 -> 64356150.87 | AD65: 1 | AE65: =AE104 -> 247702196 | AF65: =AF104 -> 249274796 | AG65: =AG104 -> 258850404 | AI65: =AI104 -> 265080 | AJ65: =AJ104 -> 0 | AK65: =AK104 -> 0 | AM65: =AM104 -> 257966698.9 | AN65: =AN104 -> 259274218.9 | AO65: =AO104 -> 268849826.9
B66: 2 | C66: =C65+C105 -> 19245618 | D66: =D65+D105 -> 22390818 | E66: =E65+E105 -> 30021199.64 | G66: =G65+G105 -> 56045824 | H66: =H65+H105 -> 55555144 | I66: =I65+I105 -> 55555144 | K66: =K65+K105 -> 93111479.97 | L66: =L65+L105 -> 95739588.21 | M66: =M65+M105 -> 103408111.5 | P66: 2 | Q66: =Q65+Q105 -> 86417040 | R66: =R65+R105 -> 89562240 | S66: =S65+S105 -> 97192621.64 | U66: =U65+U105 -> 490680 | V66: =V65+V105 -> 0 | W66: =W65+W105 -> 0 | Y66: =Y65+Y105 -> 104569796.5 | Z66: =Z65+Z105 -> 107197904.7 | AA66: =AA65+AA105 -> 114866428.1 | AD66: 2 | AE66: =AE65+AE105 -> 253078149.5 | AF66: =AF65+AF105 -> 256223349.5 | AG66: =AG65+AG105 -> 263853731.2 | AI66: =AI65+AI105 -> 490680 | AJ66: =AJ65+AJ105 -> 0 | AK66: =AK65+AK105 -> 0 | AM66: =AM65+AM105 -> 271972721.1 | AN66: =AN65+AN105 -> 274600829.3 | AO66: =AO65+AO105 -> 282269352.6
B67: 3 | C67: =C66+C106 -> 28868427 | D67: =D66+D106 -> 33586227 | E67: =E66+E106 -> 39271961.22 | G67: =G66+G106 -> 84067796 | H67: =H66+H106 -> 83332716 | I67: =I66+I106 -> 83332716 | K67: =K66+K106 -> 138269510.7 | L67: =L66+L106 -> 142174243.4 | M67: =M66+M106 -> 147973632.3 | P67: 3 | Q67: =Q66+Q106 -> 129625560 | R67: =R66+R106 -> 134343360 | S67: =S66+S106 -> 140029094.2 | U67: =U66+U106 -> 735080 | V67: =V66+V106 -> 0 | W67: =W66+W106 -> 0 | Y67: =Y66+Y106 -> 155310429.2 | Z67: =Z66+Z106 -> 159215161.8 | AA67: =AA66+AA106 -> 165014550.7 | AD67: 3 | AE67: =AE66+AE106 -> 258503557.4 | AF67: =AF66+AF106 -> 263221357.4 | AG67: =AG66+AG106 -> 268907091.6 | AI67: =AI66+AI106 -> 735080 | AJ67: =AJ66+AJ106 -> 0 | AK67: =AK66+AK106 -> 0 | AM67: =AM66+AM106 -> 286397405.9 | AN67: =AN66+AN106 -> 290302138.5 | AO67: =AO66+AO106 -> 296101527.4
B68: 4 | C68: 38491236 | D68: 44781636 | E68: 48523307.52 | G68: 110146080 | H68: 109183520 | I68: 109183520 | K68: 180188966.9 | L68: 185361236.2 | M68: 189328691.4 | P68: 4 | Q68: 172834080 | R68: 179124480 | S68: 182866151.5 | U68: 962560 | V68: 0 | W68: 0 | Y68: 204518661 | Z68: 209690930.2 | AA68: 213658385.4 | AD68: 4 | AE68: 263978914.1 | AF68: 270269314.1 | AG68: 274010985.6 | AI68: 962560 | AJ68: 0 | AK68: 0 | AM68: 300048835.2 | AN68: 305221104.4 | AO68: 309188559.6
B69: 5 | C69: 48114045 | D69: 55977045 | E69: 57775244.39 | G69: 136224364 | H69: 135034324 | I69: 135034324 | K69: 221275647.7 | L69: 227690599.9 | M69: 229862587.3 | P69: 5 | Q69: 216042600 | R69: 223905600 | S69: 225703799.4 | U69: 1190040 | V69: 0 | W69: 0 | Y69: 252751200.2 | Z69: 259166152.4 | AA69: 261338139.8 | AD69: 5 | AE69: 269504719.2 | AF69: 277367719.2 | AG69: 279165918.6 | AI69: 1190040 | AJ69: 0 | AK69: 0 | AM69: 313468370.6 | AN69: 319883322.8 | AO69: 322055310.2
B70: 6 | C70: 57736854 | D70: 67172454 | E70: 67027777.75 | G70: 161654752 | H70: 160242872 | I70: 160242872 | K70: 260823259.2 | L70: 268461636.3 | M70: 268873901.4 | P70: 6 | Q70: 259251120 | R70: 268686720 | S70: 268542043.7 | U70: 1411880 | V70: 0 | W70: 0 | Y70: 299886266.3 | Z70: 307524643.4 | AA70: 307936908.5 | AD70: 6 | AE70: 275081477.2 | AF70: 284517077.2 | AG70: 284372400.9 | AI70: 1411880 | AJ70: 0 | AK70: 0 | AM70: 326519190.4 | AN70: 334157567.5 | AO70: 334569832.6
B71: 7 | C71: 67359663 | D71: 78367863 | E71: 76280913.55 | G71: 185951792 | H71: 184327472 | I71: 184327472 | K71: 298280729.4 | L71: 307126889.7 | M71: 305814471.8 | P71: 7 | Q71: 302459640 | R71: 313467840 | S71: 311380890.5 | U71: 1624320 | V71: 0 | W71: 0 | Y71: 345780451.2 | Z71: 354626611.5 | AA71: 353314193.5 | AD71: 7 | AE71: 280709697.5 | AF71: 291717897.5 | AG71: 289630948 | AI71: 1624320 | AJ71: 0 | AK71: 0 | AM71: 339043144.6 | AN71: 347889304.9 | AO71: 346576887
B72: 8 | C72: 76982472 | D72: 89563272 | E72: 85534657.81 | G72: 211869512 | H72: 210017712 | I72: 210017712 | K72: 336837819.5 | L72: 346854987.7 | M72: 343852233.7 | P72: 8 | Q72: 345668160 | R72: 358248960 | S72: 354220345.8 | U72: 1851800 | V72: 0 | W72: 0 | Y72: 391211023.9 | Z72: 401228192.1 | AA72: 398225438.2 | AD72: 8 | AE72: 286389894.8 | AF72: 298970694.8 | AG72: 294942080.6 | AI72: 1851800 | AJ72: 0 | AK72: 0 | AM72: 351803054.1 | AN72: 361820222.3 | AO72: 358817468.3
B73: 9 | C73: 86605281 | D73: 100758681 | E73: 94789016.63 | G73: 236814448 | H73: 234744568 | I73: 234744568 | K73: 373571550.4 | L73: 384744788.4 | M73: 380085366.8 | P73: 9 | Q73: 388876680 | R73: 403030080 | S73: 397060415.6 | U73: 2069880 | V73: 0 | W73: 0 | Y73: 435505702.3 | Z73: 446678940.3 | AA73: 442019518.7 | AD73: 9 | AE73: 292122588.9 | AF73: 306275988.9 | AG73: 300306324.6 | AI73: 2069880 | AJ73: 0 | AK73: 0 | AM73: 364112475.9 | AN73: 375285713.9 | AO73: 370626292.3
B74: 10 | C74: 96228090 | D74: 111954090 | E74: 104043996.1 | G74: 260626036 | H74: 258347476 | I74: 258347476 | K74: 408346143 | L74: 420660648.2 | M74: 414377562.1 | P74: 10 | Q74: 432085200 | R74: 447811200 | S74: 439901106.1 | U74: 2278560 | V74: 0 | W74: 0 | Y74: 478633457.9 | Z74: 490947963.1 | AA74: 484664876.9 | AD74: 10 | AE74: 297908304.8 | AF74: 313634304.8 | AG74: 305724210.9 | AI74: 2278560 | AJ74: 0 | AK74: 0 | AM74: 375926503 | AN74: 388241008.3 | AO74: 381957922.1
B75: 11 | C75: 105850899 | D75: 123149499 | E75: 113299602.6 | G75: 284600068 | H75: 282110948 | I75: 282110948 | K75: 442629109 | L75: 456060961.4 | M75: 448186561.5 | P75: 11 | Q75: 475293720 | R75: 492592320 | S75: 482742423.6 | U75: 2489120 | V75: 0 | W75: 0 | Y75: 520974080.9 | Z75: 534405933.3 | AA75: 526531533.4 | AD75: 11 | AE75: 303747572.6 | AF75: 321046172.6 | AG75: 311196276.2 | AI75: 2489120 | AJ75: 0 | AK75: 0 | AM75: 387611323.6 | AN75: 401043176 | AO75: 393168776.1
B76: 12 | C76: 115473708 | D76: 134344908 | E76: 122555842.2 | G76: 308897108 | H76: 306195548 | I76: 306195548 | K76: 476555493.8 | L76: 491081272.7 | M76: 481647270.5 | P76: 12 | Q76: 518502240 | R76: 537373440 | S76: 525584374.2 | U76: 2701560 | V76: 0 | W76: 0 | Y76: 562541858.2 | Z76: 577067637 | AA76: 567633634.8 | AD76: 12 | AE76: 309640927.9 | AF76: 328512127.9 | AG76: 316723062 | AI76: 2701560 | AJ76: 0 | AK76: 0 | AM76: 399167893.1 | AN76: 413693671.9 | AO76: 404259669.7
B77: 13 | C77: 125096517 | D77: 145540317 | E77: 131812721.3 | G77: 333679600 | H77: 330761840 | I77: 330761840 | K77: 510308941.8 | L77: 525904232.8 | M77: 514941713 | P77: 13 | Q77: 561710760 | R77: 582154560 | S77: 568426964.3 | U77: 2917760 | V77: 0 | W77: 0 | Y77: 603407056.5 | Z77: 619002347.4 | AA77: 608039827.6 | AD77: 13 | AE77: 315588911.5 | AF77: 336032711.5 | AG77: 322305115.8 | AI77: 2917760 | AJ77: 0 | AK77: 0 | AM77: 410653412.7 | AN77: 426248703.7 | AO77: 415286183.9
B78: 14 | C78: 134719326 | D78: 156735726 | E78: 141070246.3 | G78: 358139084 | H78: 355007004 | I78: 355007004 | K78: 543097180 | L78: 559742465.6 | M78: 547281898.5 | P78: 14 | Q78: 604919280 | R78: 626935680 | S78: 611270200.3 | U78: 3132080 | V78: 0 | W78: 0 | Y78: 643415841.3 | Z78: 660061126.9 | AA78: 647600559.7 | AD78: 14 | AE78: 321592069.8 | AF78: 343608469.8 | AG78: 327942990.1 | AI78: 3132080 | AJ78: 0 | AK78: 0 | AM78: 421901242.8 | AN78: 438546528.4 | AO78: 426085961.3
B79: 15 | C79: 144342135 | D79: 167931135 | E79: 150328423.6 | G79: 382436124 | H79: 379091604 | I79: 379091604 | K79: 575066770.2 | L79: 592742887.1 | M79: 578814140.5 | P79: 15 | Q79: 648127800 | R79: 671716800 | S79: 654114088.6 | U79: 3344520 | V79: 0 | W79: 0 | Y79: 682586086.2 | Z79: 700262203.1 | AA79: 686333456.5 | AD79: 15 | AE79: 327650954.5 | AF79: 351239954.5 | AG79: 333637243.1 | AI79: 3344520 | AJ79: 0 | AK79: 0 | AM79: 432916706.9 | AN79: 450592823.8 | AO79: 436664077.2
B80: 16 | C80: 153964944 | D80: 179126544 | E80: 159587259.9 | G80: 406410156 | H80: 402855076 | I80: 402855076 | K80: 606117908.7 | L80: 624806041.4 | M80: 609438392.7 | P80: 16 | Q80: 691336320 | R80: 716497920 | S80: 696958635.9 | U80: 3555080 | V80: 0 | W80: 0 | Y80: 720935293 | Z80: 739623425.7 | AA80: 724255777 | AD80: 16 | AE80: 333766122.8 | AF80: 358927722.8 | AG80: 339388438.6 | AI80: 3555080 | AJ80: 0 | AK80: 0 | AM80: 443705007 | AN80: 462393139.7 | AO80: 447025491
B81: 17 | C81: 163587753 | D81: 190321953 | E81: 168846761.6 | G81: 431678100 | H81: 427903060 | I81: 427903060 | K81: 637755673.7 | L81: 657429131.4 | M81: 640651279.1 | P81: 17 | Q81: 734544840 | R81: 761279040 | S81: 739803848.6 | U81: 3775040 | V81: 0 | W81: 0 | Y81: 758792329.5 | Z81: 778465787.1 | AA81: 761687934.9 | AD81: 17 | AE81: 339938137.5 | AF81: 366672337.5 | AG81: 345197146.1 | AI81: 3775040 | AJ81: 0 | AK81: 0 | AM81: 454582956.4 | AN81: 474256414 | AO81: 457478561.7
B82: 18 | C82: 173210562 | D82: 201517362 | E82: 178106935.4 | G82: 458404280 | H82: 454396120 | I82: 454396120 | K82: 670112069.8 | L82: 690742133.9 | M82: 672582209.1 | P82: 18 | Q82: 777753360 | R82: 806060160 | S82: 782649733.4 | U82: 4008160 | V82: 0 | W82: 0 | Y82: 796214031.4 | Z82: 816844095.5 | AA82: 798684170.7 | AD82: 18 | AE82: 346167567.3 | AF82: 374474367.3 | AG82: 351063940.7 | AI82: 4008160 | AJ82: 0 | AK82: 0 | AM82: 465595576.4 | AN82: 486225640.5 | AO82: 468065715.7
B83: 19 | C83: 182833371 | D83: 212712771 | E83: 187367788.1 | G83: 480272180 | H83: 476072260 | I83: 476072260 | K83: 697460032.2 | L83: 719056904.3 | M83: 699542481.8 | P83: 19 | Q83: 820961880 | R83: 850841280 | S83: 825496297.1 | U83: 4199920 | V83: 0 | W83: 0 | Y83: 831900591.5 | Z83: 853497463.7 | AA83: 833983041.2 | AD83: 19 | AE83: 352454986.1 | AF83: 382334386.1 | AG83: 356989403.2 | AI83: 4199920 | AJ83: 0 | AK83: 0 | AM83: 475431481.4 | AN83: 497028353.6 | AO83: 477513931.1
B84: 20 | C84: 192456180 | D84: 223908180 | E84: 196629326.5 | G84: 505217116 | H84: 500799116 | I84: 500799116 | K84: 727003614.3 | L84: 749530270.6 | M84: 728688379.8 | P84: 20 | Q84: 864170400 | R84: 895622400 | S84: 868343546.5 | U84: 4418000 | V84: 0 | W84: 0 | Y84: 867525164.2 | Z84: 890051820.6 | AA84: 869209929.8 | AD84: 20 | AE84: 358800973.9 | AF84: 390252973.9 | AG84: 362974120.4 | AI84: 4418000 | AJ84: 0 | AK84: 0 | AM84: 485752478.1 | AN84: 508279134.5 | AO84: 487437243.7
B85: 21 | C85: 202078989 | D85: 235103589 | E85: 205891557.3 | G85: 531620288 | H85: 526971048 | I85: 526971048 | K85: 757226793.5 | L85: 780656146.7 | M85: 758513282.4 | P85: 21 | Q85: 907378920 | R85: 940403520 | S85: 911191488.3 | U85: 4649240 | V85: 0 | W85: 0 | Y85: 902737604.2 | Z85: 926166957.4 | AA85: 904024093 | AD85: 21 | AE85: 365206116.4 | AF85: 398230716.4 | AG85: 369018684.7 | AI85: 4649240 | AJ85: 0 | AK85: 0 | AM85: 496197300.1 | AN85: 519626653.2 | AO85: 497483788.9
B86: 22 | C86: 211701798 | D86: 246298998 | E86: 215154487.5 | G86: 558671356 | H86: 553785236 | I86: 553785236 | K86: 787403547.7 | L86: 811714176.6 | M86: 788296309.6 | P86: 22 | Q86: 950587440 | R86: 985184640 | S86: 954040129.5 | U86: 4886120 | V86: 0 | W86: 0 | Y86: 937382045.5 | Z86: 961692674.4 | AA86: 938274807.3 | AD86: 22 | AE86: 371671005.2 | AF86: 406268205.2 | AG86: 375123694.7 | AI86: 4886120 | AJ86: 0 | AK86: 0 | AM86: 506599182 | AN86: 530909811 | AO86: 507491943.9
B87: 23 | C87: 221324607 | D87: 257494407 | E87: 224418124.2 | G87: 586370320 | H87: 581241680 | I87: 581241680 | K87: 817523877.2 | L87: 842694853.8 | M87: 818027441 | P87: 23 | Q87: 993795960 | R87: 1029965760 | S87: 996889477.2 | U87: 5128640 | V87: 0 | W87: 0 | Y87: 971467024.1 | Z87: 996638000.7 | AA87: 971970587.9 | AD87: 23 | AE87: 378196237.6 | AF87: 414366037.6 | AG87: 381289754.8 | AI87: 5128640 | AJ87: 0 | AK87: 0 | AM87: 516955978.3 | AN87: 542126954.9 | AO87: 517459542.1
B88: 24 | C88: 230947416 | D88: 268689816 | E88: 233682474.3 | G88: 614717180 | H88: 609340380 | I88: 609340380 | K88: 847578238.3 | L88: 873589116.3 | M88: 847697111.1 | P88: 24 | Q88: 1037004480 | R88: 1074746880 | S88: 1039739538 | U88: 5376800 | V88: 0 | W88: 0 | Y88: 1005001006 | Z88: 1031011884 | AA88: 1005119879 | AD88: 24 | AE88: 384782417.1 | AF88: 422524817.1 | AG88: 387517475.4 | AI88: 5376800 | AJ88: 0 | AK88: 0 | AM88: 527265686 | AN88: 553276564 | AO88: 527384558.8
B89: 25 | C89: 240570225 | D89: 279885225 | E89: 242947545.1 | G89: 641443360 | H89: 635833440 | I89: 635833440 | K89: 875744768.1 | L89: 902588429.7 | M89: 875496291.7 | P89: 25 | Q89: 1080213000 | R89: 1119528000 | S89: 1082590320 | U89: 5609920 | V89: 0 | W89: 0 | Y89: 1037577189 | Z89: 1064420851 | AA89: 1037328713 | AD89: 25 | AE89: 391430153.2 | AF89: 430745153.2 | AG89: 393807473.3 | AI89: 5609920 | AJ89: 0 | AK89: 0 | AM89: 537111244.4 | AN89: 563954906 | AO89: 536862768
B90: 26 | C90: 250193034 | D90: 291080634 | E90: 252213343.6 | G90: 670598680 | H90: 664734960 | I90: 664734960 | K90: 905263881.7 | L90: 932911392.6 | M90: 904643097.5 | P90: 26 | Q90: 1123421520 | R90: 1164309120 | S90: 1125441830 | U90: 5863720 | V90: 0 | W90: 0 | Y90: 1069951462 | Z90: 1097598973 | AA90: 1069330677 | AD90: 26 | AE90: 398140061.5 | AF90: 439027661.5 | AG90: 400160371.2 | AI90: 5863720 | AJ90: 0 | AK90: 0 | AM90: 547238486.4 | AN90: 574885997.3 | AO90: 546617702.2
B91: 27 | C91: 259815843 | D91: 302276043 | E91: 261479877.3 | G91: 696676964 | H91: 690585764 | I91: 690585764 | K91: 931846005.4 | L91: 960297332.1 | M91: 930876381.1 | P91: 27 | Q91: 1166630040 | R91: 1209090240 | S91: 1168294074 | U91: 6091200 | V91: 0 | W91: 0 | Y91: 1101155806 | Z91: 1129607132 | AA91: 1100186181 | AD91: 27 | AE91: 404912763.7 | AF91: 447372963.7 | AG91: 406576798 | AI91: 6091200 | AJ91: 0 | AK91: 0 | AM91: 556669540.4 | AN91: 585120867.1 | AO91: 555699916
B92: 28 | C92: 269438652 | D92: 313471452 | E92: 270747153.4 | G92: 726967512 | H92: 720611232 | I92: 720611232 | K92: 961092758.8 | L92: 990310111.9 | M92: 959759540.9 | P92: 28 | Q92: 1209838560 | R92: 1253871360 | S92: 1211147061 | U92: 6356280 | V92: 0 | W92: 0 | Y92: 1132488370 | Z92: 1161705723 | AA92: 1131155152 | AD92: 28 | AE92: 411748887.7 | AF92: 455781687.7 | AG92: 413057389.1 | AI92: 6356280 | AJ92: 0 | AK92: 0 | AM92: 566692898.8 | AN92: 595910251.8 | AO92: 565359680.9
B93: 29 | C93: 279061461 | D93: 324666861 | E93: 280015179.4 | G93: 757905956 | H93: 751278956 | I93: 751278956 | K93: 990240530.8 | L93: 1020205651 | M93: 988548039.9 | P93: 29 | Q93: 1253047080 | R93: 1298652480 | S93: 1254000798 | U93: 6787564 | V93: 160564 | W93: 160564 | Y93: 1163404384 | Z93: 1193369503 | AA93: 1161711893 | AD93: 29 | AE93: 418649067.7 | AF93: 464254467.7 | AG93: 419602786.1 | AI93: 6787564 | AJ93: 160564 | AK93: 160564 | AM93: 576754325.6 | AN93: 606719445.4 | AO93: 575061834.7
B94: 30 | C94: 288684270 | D94: 335862270 | E94: 289283962.7 | G94: 789492296 | H94: 782588936 | I94: 782588936 | K94: 1019281972 | L94: 1049977021 | M94: 1017234504 | P94: 30 | Q94: 1296255600 | R94: 1343433600 | S94: 1296855293 | U94: 7866744 | V94: 963384 | W94: 963384 | Y94: 1194179395 | Z94: 1224874444 | AA94: 1192131926 | AD94: 30 | AE94: 425613944.4 | AF94: 472791944.4 | AG94: 426213637.1 | AI94: 7866744 | AJ94: 963384 | AK94: 963384 | AM94: 587120095.5 | AN94: 617815144 | AO94: 585072626.7
B100: Spot Market Jack-Up | P100: Charter Jack-Up | AD100: Purchase Jack-Up
B101: Detailed Cost Analysis Preventive | G101: Detailed Cost Analysis Corrective | K101: Detailed Cost Analysis Total | P101: Detailed Cost Analysis Preventive | U101: Detailed Cost Analysis Corrective | Y101: Detailed Cost Analysis Total | AD101: Detailed Cost Analysis Preventive | AI101: Detailed Cost Analysis Corrective | AM101: Detailed Cost Analysis Total
B103: Year | C103: Cost CTV Spot Market | D103: Cost CTV Charter | E103: Cost Purchased | G103: Cost CTV Spot Market | H103: Cost CTV Charter | I103: Cost Purchased | K103: Cost CTV Spot Market | L103: Cost CTV Charter | M103: Cost Purchased | P103: Year | Q103: Cost CTV Spot Market | R103: Cost CTV Charter | S103: Cost Purchased | U103: Cost CTV Spot Market | V103: Cost CTV Charter | W103: Cost Purchased | Y103: Cost CTV Spot Market | Z103: Cost CTV Charter | AA103: Cost Purchased | AD103: Year | AE103: Cost CTV Spot Market | AF103: Cost CTV Charter | AG103: Cost Purchased | AI103: Cost CTV Spot Market | AJ103: Cost CTV Charter | AK103: Cost Purchased | AM103: Cost CTV Spot Market | AN103: Cost CTV Charter | AO103: Cost Purchased
B104: 1 | C104: =$H$15*IF($D$5<'Cost Vessels'!$D$11,'Cost Vessels'!$B$5,'Cost Vessels'!$B$16)*$H$16+$H$16*'Cost Vessels'!$L$5 -> 9622809 | D104: =$H$15*IF($D$5<'Cost Vessels'!$D$11,'Cost Vessels'!$C$6,'Cost Vessels'!$C$17)+$H$16*'Cost Vessels'!$L$5 -> 11195409 | E104: =$H$15*IF($D$5<'Cost Vessels'!$D$11,'Cost Vessels'!$D$7,'Cost Vessels'!$D$18)+$H$16*'Cost Vessels'!$L$5 -> 20771017 | G104: =AB31+AH31 -> 30290548 | H104: =AA31+AH31 -> 30025468 | I104: =AA31+AH31 -> 30025468 | K104: =(C104+G104+V31+$K$16)/((1+$D$12)^(B104-1)) -> 49912779.87 | L104: =(D104+H104+V31+$K$16)/((1+$D$12)^(B104-1)) -> 51220299.87 | M104: =(E104+I104+V31+$K$16)/((1+$D$12)^(B104-1)) -> 60795907.87 | P104: 1 | Q104: =$H$15*IF($D$5<'Cost Vessels'!$D$11,'Cost Vessels'!$B$5,'Cost Vessels'!$B$16)*$H$16+'Cost Vessels'!$M$6 -> 43208520 | R104: =$H$15*IF($D$5<'Cost Vessels'!$D$11,'Cost Vessels'!$C$6,'Cost Vessels'!$C$17)+'Cost Vessels'!$M$6 -> 44781120 | S104: =$H$15*IF($D$5<'Cost Vessels'!$D$11,'Cost Vessels'!$D$7,'Cost Vessels'!$D$18)+'Cost Vessels'!$M$6 -> 54356728 | U104: =AB31+AI31 -> 265080 | V104: =AA31+AI31 -> 0 | W104: =AA31+AI31 -> 0 | Y104: =(Q104+U104+V31+$K$16)/((1+$D$12)^(B104-1)) -> 53473022.87 | Z104: =(R104+V104+V31+$K$16)/((1+$D$12)^(B104-1)) -> 54780542.87 | AA104: =(S104+W104+V31+$K$16)/((1+$D$12)^(B104-1)) -> 64356150.87 | AD104: 1 | AE104: =$H$15*IF($D$5<'Cost Vessels'!$D$11,'Cost Vessels'!$B$5,'Cost Vessels'!$B$16)*$H$16+'Cost Vessels'!$N$7 -> 247702196 | AF104: =$H$15*IF($D$5<'Cost Vessels'!$D$11,'Cost Vessels'!$C$6,'Cost Vessels'!$C$17)+'Cost Vessels'!$N$7 -> 249274796 | AG104: =$H$15*IF($D$5<'Cost Vessels'!$D$11,'Cost Vessels'!$D$7,'Cost Vessels'!$D$18)+'Cost Vessels'!$N$7 -> 258850404 | AI104: =AB31+AI31 -> 265080 | AJ104: =AA31+AI31 -> 0 | AK104: =AA31+AI31 -> 0 | AM104: =(AE104+AI104+V31+$K$16)/((1+$D$12)^(B104-1)) -> 257966698.9 | AN104: =(AF104+AJ104+V31+$K$16)/((1+$D$12)^(B104-1)) -> 259274218.9 | AO104: =(AG104+AK104+V31+$K$16)/((1+$D$12)^(B104-1)) -> 268849826.9
B105: 2 | C105: =$H$15*IF($D$5<'Cost Vessels'!$D$11,'Cost Vessels'!$B$5,'Cost Vessels'!$B$16)*$H$16+$H$16*'Cost Vessels'!$L$5 -> 9622809 | D105: =$H$15*IF($D$5<'Cost Vessels'!$D$11,'Cost Vessels'!$C$6,'Cost Vessels'!$C$17)+$H$16*'Cost Vessels'!$L$5 -> 11195409 | E105: =IF($D$5<'Cost Vessels'!$D$11,'Cost Vessels'!$D$8,'Cost Vessels'!$D$19)*((1+'Cost Vessels'!$D$9)^(B104-1))+$H$16*'Cost Vessels'!$L$5 -> 9250182.64 | G105: =AB32+AH32 -> 25755276 | H105: =AA32+AH32 -> 25529676 | I105: =AA32+AH32 -> 25529676 | K105: =(C105+G105+V32+$K$16)/((1+$D$12)^(B105-1)) -> 43198700.1 | L105: =(D105+H105+V32+$K$16)/((1+$D$12)^(B105-1)) -> 44519288.34 | M105: =(E105+I105+V32+$K$16)/((1+$D$12)^(B105-1)) -> 42612203.67 | P105: 2 | Q105: =$H$15*IF($D$5<'Cost Vessels'!$D$11,'Cost Vessels'!$B$5,'Cost Vessels'!$B$16)*$H$16+'Cost Vessels'!$M$6 -> 43208520 | R105: =$H$15*IF($D$5<'Cost Vessels'!$D$11,'Cost Vessels'!$C$6,'Cost Vessels'!$C$17)+'Cost Vessels'!$M$6 -> 44781120 | S105: =IF($D$5<'Cost Vessels'!$D$11,'Cost Vessels'!$D$8,'Cost Vessels'!$D$19)*((1+'Cost Vessels'!$D$9)^(P104-1))+'Cost Vessels'!$M$6 -> 42835893.64 | U105: =AB32+AI32 -> 225600 | V105: =AA32+AI32 -> 0 | W105: =AA32+AI32 -> 0 | Y105: =(Q105+U105+V32+$K$16)/((1+$D$12)^(B105-1)) -> 51096773.63 | Z105: =(R105+V105+V32+$K$16)/((1+$D$12)^(B105-1)) -> 52417361.87 | AA105: =(S105+W105+V32+$K$16)/((1+$D$12)^(B105-1)) -> 50510277.2 | AD105: 2 | AE105: =$H$15*IF($D$5<'Cost Vessels'!$D$11,'Cost Vessels'!$B$5,'Cost Vessels'!$B$16)*$H$16+'Cost Vessels'!$N$8*((1+'Cost Vessels'!$N$9)^(AD104-1)) -> 5375953.52 | AF105: =$H$15*IF($D$5<'Cost Vessels'!$D$11,'Cost Vessels'!$C$6,'Cost Vessels'!$C$17)+'Cost Vessels'!$N$8*((1+'Cost Vessels'!$N$9)^(AD104-1)) -> 6948553.52 | AG105: =IF($D$5<'Cost Vessels'!$D$11,'Cost Vessels'!$D$8,'Cost Vessels'!$D$19)*((1+'Cost Vessels'!$D$9)^(AD104-1))+'Cost Vessels'!$N$8*((1+'Cost Vessels'!$N$9)^(AD104-1)) -> 5003327.16 | AI105: =AB32+AI32 -> 225600 | AJ105: =AA32+AI32 -> 0 | AK105: =AA32+AI32 -> 0 | AM105: =(AE105+AI105+V32+$K$16)/((1+$D$12)^(B105-1)) -> 14006022.18 | AN105: =(AF105+AJ105+V32+$K$16)/((1+$D$12)^(B105-1)) -> 15326610.42 | AO105: =(AG105+AK105+V32+$K$16)/((1+$D$12)^(B105-1)) -> 13419525.75
B106: 3 | C106: =$H$15*IF($D$5<'Cost Vessels'!$D$11,'Cost Vessels'!$B$5,'Cost Vessels'!$B$16)*$H$16+$H$16*'Cost Vessels'!$L$5 -> 9622809 | D106: =$H$15*IF($D$5<'Cost Vessels'!$D$11,'Cost Vessels'!$C$6,'Cost Vessels'!$C$17)+$H$16*'Cost Vessels'!$L$5 -> 11195409 | E106: =IF($D$5<'Cost Vessels'!$D$11,'Cost Vessels'!$D$8,'Cost Vessels'!$D$19)*((1+'Cost Vessels'!$D$9)^(B105-1))+$H$16*'Cost Vessels'!$L$5 -> 9250761.576 | G106: 28021972 | H106: 27777572 | I106: 27777572 | K106: 45158030.77 | L106: 46434655.15 | M106: 44565520.75 | P106: 3 | Q106: =$H$15*IF($D$5<'Cost Vessels'!$D$11,'Cost Vessels'!$B$5,'Cost Vessels'!$B$16)*$H$16+'Cost Vessels'!$M$6 -> 43208520 | R106: =$H$15*IF($D$5<'Cost Vessels'!$D$11,'Cost Vessels'!$C$6,'Cost Vessels'!$C$17)+'Cost Vessels'!$M$6 -> 44781120 | S106: =IF($D$5<'Cost Vessels'!$D$11,'Cost Vessels'!$D$8,'Cost Vessels'!$D$19)*((1+'Cost Vessels'!$D$9)^(P105-1))+'Cost Vessels'!$M$6 -> 42836472.58 | U106: 244400 | V106: 0 | W106: 0 | Y106: 50740632.66 | Z106: 52017257.03 | AA106: 50148122.64 | AD106: 3 | AE106: =$H$15*IF($D$5<'Cost Vessels'!$D$11,'Cost Vessels'!$B$5,'Cost Vessels'!$B$16)*$H$16+'Cost Vessels'!$N$8*((1+'Cost Vessels'!$N$9)^(AD105-1)) -> 5425407.855 | AF106: =$H$15*IF($D$5<'Cost Vessels'!$D$11,'Cost Vessels'!$C$6,'Cost Vessels'!$C$17)+'Cost Vessels'!$N$8*((1+'Cost Vessels'!$N$9)^(AD105-1)) -> 6998007.855 | AG106: =IF($D$5<'Cost Vessels'!$D$11,'Cost Vessels'!$D$8,'Cost Vessels'!$D$19)*((1+'Cost Vessels'!$D$9)^(AD105-1))+'Cost Vessels'!$N$8*((1+'Cost Vessels'!$N$9)^(AD105-1)) -> 5053360.432 | AI106: 244400 | AJ106: 0 | AK106: 0 | AM106: 14424684.81 | AN106: 15701309.18 | AO106: 13832174.79
B107: 4 | C107: =$H$15*IF($D$5<'Cost Vessels'!$D$11,'Cost Vessels'!$B$5,'Cost Vessels'!$B$16)*$H$16+$H$16*'Cost Vessels'!$L$5 -> 9622809 | D107: =$H$15*IF($D$5<'Cost Vessels'!$D$11,'Cost Vessels'!$C$6,'Cost Vessels'!$C$17)+$H$16*'Cost Vessels'!$L$5 -> 11195409 | E107: =IF($D$5<'Cost Vessels'!$D$11,'Cost Vessels'!$D$8,'Cost Vessels'!$D$19)*((1+'Cost Vessels'!$D$9)^(B106-1))+$H$16*'Cost Vessels'!$L$5 -> 9251346.302 | G107: 26078284 | H107: 25850804 | I107: 25850804 | K107: 41919456.19 | L107: 43186992.81 | M107: 41355059.11 | P107: 4 | Q107: =$H$15*IF($D$5<'Cost Vessels'!$D$11,'Cost Vessels'!$B$5,'Cost Vessels'!$B$16)*$H$16+'Cost Vessels'!$M$6 -> 43208520 | R107: =$H$15*IF($D$5<'Cost Vessels'!$D$11,'Cost Vessels'!$C$6,'Cost Vessels'!$C$17)+'Cost Vessels'!$M$6 -> 44781120 | S107: =IF($D$5<'Cost Vessels'!$D$11,'Cost Vessels'!$D$8,'Cost Vessels'!$D$19)*((1+'Cost Vessels'!$D$9)^(P106-1))+'Cost Vessels'!$M$6 -> 42837057.3 | U107: 227480 | V107: 0 | W107: 0 | Y107: 49208231.81 | Z107: 50475768.43 | AA107: 48643834.73 | AD107: 4 | AE107: =$H$15*IF($D$5<'Cost Vessels'!$D$11,'Cost Vessels'!$B$5,'Cost Vessels'!$B$16)*$H$16+'Cost Vessels'!$N$8*((1+'Cost Vessels'!$N$9)^(AD106-1)) -> 5475356.734 | AF107: =$H$15*IF($D$5<'Cost Vessels'!$D$11,'Cost Vessels'!$C$6,'Cost Vessels'!$C$17)+'Cost Vessels'!$N$8*((1+'Cost Vessels'!$N$9)^(AD106-1)) -> 7047956.734 | AG107: =IF($D$5<'Cost Vessels'!$D$11,'Cost Vessels'!$D$8,'Cost Vessels'!$D$19)*((1+'Cost Vessels'!$D$9)^(AD106-1))+'Cost Vessels'!$N$8*((1+'Cost Vessels'!$N$9)^(AD106-1)) -> 5103894.036 | AI107: 227480 | AJ107: 0 | AK107: 0 | AM107: 13651429.31 | AN107: 14918965.93 | AO107: 13087032.23
B108: 5 | C108: =$H$15*IF($D$5<'Cost Vessels'!$D$11,'Cost Vessels'!$B$5,'Cost Vessels'!$B$16)*$H$16+$H$16*'Cost Vessels'!$L$5 -> 9622809 | D108: =$H$15*IF($D$5<'Cost Vessels'!$D$11,'Cost Vessels'!$C$6,'Cost Vessels'!$C$17)+$H$16*'Cost Vessels'!$L$5 -> 11195409 | E108: =IF($D$5<'Cost Vessels'!$D$11,'Cost Vessels'!$D$8,'Cost Vessels'!$D$19)*((1+'Cost Vessels'!$D$9)^(B107-1))+$H$16*'Cost Vessels'!$L$5 -> 9251936.875 | G108: 26078284 | H108: 25850804 | I108: 25850804 | K108: 41086680.8 | L108: 42329363.76 | M108: 40533895.93 | P108: 5 | Q108: =$H$15*IF($D$5<'Cost Vessels'!$D$11,'Cost Vessels'!$B$5,'Cost Vessels'!$B$16)*$H$16+'Cost Vessels'!$M$6 -> 43208520 | R108: =$H$15*IF($D$5<'Cost Vessels'!$D$11,'Cost Vessels'!$C$6,'Cost Vessels'!$C$17)+'Cost Vessels'!$M$6 -> 44781120 | S108: =IF($D$5<'Cost Vessels'!$D$11,'Cost Vessels'!$D$8,'Cost Vessels'!$D$19)*((1+'Cost Vessels'!$D$9)^(P107-1))+'Cost Vessels'!$M$6 -> 42837647.88 | U108: 227480 | V108: 0 | W108: 0 | Y108: 48232539.25 | Z108: 49475222.21 | AA108: 47679754.38 | AD108: 5 | AE108: =$H$15*IF($D$5<'Cost Vessels'!$D$11,'Cost Vessels'!$B$5,'Cost Vessels'!$B$16)*$H$16+'Cost Vessels'!$N$8*((1+'Cost Vessels'!$N$9)^(AD107-1)) -> 5525805.101 | AF108: =$H$15*IF($D$5<'Cost Vessels'!$D$11,'Cost Vessels'!$C$6,'Cost Vessels'!$C$17)+'Cost Vessels'!$N$8*((1+'Cost Vessels'!$N$9)^(AD107-1)) -> 7098405.101 | AG108: =IF($D$5<'Cost Vessels'!$D$11,'Cost Vessels'!$D$8,'Cost Vessels'!$D$19)*((1+'Cost Vessels'!$D$9)^(AD107-1))+'Cost Vessels'!$N$8*((1+'Cost Vessels'!$N$9)^(AD107-1)) -> 5154932.976 | AI108: 227480 | AJ108: 0 | AK108: 0 | AM108: 13419535.45 | AN108: 14662218.41 | AO108: 12866750.58
B109: 6 | C109: =$H$15*IF($D$5<'Cost Vessels'!$D$11,'Cost Vessels'!$B$5,'Cost Vessels'!$B$16)*$H$16+$H$16*'Cost Vessels'!$L$5 -> 9622809 | D109: =$H$15*IF($D$5<'Cost Vessels'!$D$11,'Cost Vessels'!$C$6,'Cost Vessels'!$C$17)+$H$16*'Cost Vessels'!$L$5 -> 11195409 | E109: =IF($D$5<'Cost Vessels'!$D$11,'Cost Vessels'!$D$8,'Cost Vessels'!$D$19)*((1+'Cost Vessels'!$D$9)^(B108-1))+$H$16*'Cost Vessels'!$L$5 -> 9252533.354 | G109: 25430388 | H109: 25208548 | I109: 25208548 | K109: 39547611.44 | L109: 40771036.39 | M109: 39011314.06 | P109: 6 | Q109: =$H$15*IF($D$5<'Cost Vessels'!$D$11,'Cost Vessels'!$B$5,'Cost Vessels'!$B$16)*$H$16+'Cost Vessels'!$M$6 -> 43208520 | R109: =$H$15*IF($D$5<'Cost Vessels'!$D$11,'Cost Vessels'!$C$6,'Cost Vessels'!$C$17)+'Cost Vessels'!$M$6 -> 44781120 | S109: =IF($D$5<'Cost Vessels'!$D$11,'Cost Vessels'!$D$8,'Cost Vessels'!$D$19)*((1+'Cost Vessels'!$D$9)^(P108-1))+'Cost Vessels'!$M$6 -> 42838244.35 | U109: 221840 | V109: 0 | W109: 0 | Y109: 47135066.07 | Z109: 48358491.02 | AA109: 46598768.69 | AD109: 6 | AE109: =$H$15*IF($D$5<'Cost Vessels'!$D$11,'Cost Vessels'!$B$5,'Cost Vessels'!$B$16)*$H$16+'Cost Vessels'!$N$8*((1+'Cost Vessels'!$N$9)^(AD108-1)) -> 5576757.952 | AF109: =$H$15*IF($D$5<'Cost Vessels'!$D$11,'Cost Vessels'!$C$6,'Cost Vessels'!$C$17)+'Cost Vessels'!$N$8*((1+'Cost Vessels'!$N$9)^(AD108-1)) -> 7149357.952 | AG109: =IF($D$5<'Cost Vessels'!$D$11,'Cost Vessels'!$D$8,'Cost Vessels'!$D$19)*((1+'Cost Vessels'!$D$9)^(AD108-1))+'Cost Vessels'!$N$8*((1+'Cost Vessels'!$N$9)^(AD108-1)) -> 5206482.306 | AI109: 221840 | AJ109: 0 | AK109: 0 | AM109: 13050819.76 | AN109: 14274244.71 | AO109: 12514522.37
B110: 7 | C110: =$H$15*IF($D$5<'Cost Vessels'!$D$11,'Cost Vessels'!$B$5,'Cost Vessels'!$B$16)*$H$16+$H$16*'Cost Vessels'!$L$5 -> 9622809 | D110: =$H$15*IF($D$5<'Cost Vessels'!$D$11,'Cost Vessels'!$C$6,'Cost Vessels'!$C$17)+$H$16*'Cost Vessels'!$L$5 -> 11195409 | E110: =IF($D$5<'Cost Vessels'!$D$11,'Cost Vessels'!$D$8,'Cost Vessels'!$D$19)*((1+'Cost Vessels'!$D$9)^(B109-1))+$H$16*'Cost Vessels'!$L$5 -> 9253135.797 | G110: 24297040 | H110: 24084600 | I110: 24084600 | K110: 37457470.23 | L110: 38665253.39 | M110: 36940570.37 | P110: 7 | Q110: =$H$15*IF($D$5<'Cost Vessels'!$D$11,'Cost Vessels'!$B$5,'Cost Vessels'!$B$16)*$H$16+'Cost Vessels'!$M$6 -> 43208520 | R110: =$H$15*IF($D$5<'Cost Vessels'!$D$11,'Cost Vessels'!$C$6,'Cost Vessels'!$C$17)+'Cost Vessels'!$M$6 -> 44781120 | S110: =IF($D$5<'Cost Vessels'!$D$11,'Cost Vessels'!$D$8,'Cost Vessels'!$D$19)*((1+'Cost Vessels'!$D$9)^(P109-1))+'Cost Vessels'!$M$6 -> 42838846.8 | U110: 212440 | V110: 0 | W110: 0 | Y110: 45894184.9 | Z110: 47101968.05 | AA110: 45377285.03 | AD110: 7 | AE110: =$H$15*IF($D$5<'Cost Vessels'!$D$11,'Cost Vessels'!$B$5,'Cost Vessels'!$B$16)*$H$16+'Cost Vessels'!$N$8*((1+'Cost Vessels'!$N$9)^(AD109-1)) -> 5628220.332 | AF110: =$H$15*IF($D$5<'Cost Vessels'!$D$11,'Cost Vessels'!$C$6,'Cost Vessels'!$C$17)+'Cost Vessels'!$N$8*((1+'Cost Vessels'!$N$9)^(AD109-1)) -> 7200820.332 | AG110: =IF($D$5<'Cost Vessels'!$D$11,'Cost Vessels'!$D$8,'Cost Vessels'!$D$19)*((1+'Cost Vessels'!$D$9)^(AD109-1))+'Cost Vessels'!$N$8*((1+'Cost Vessels'!$N$9)^(AD109-1)) -> 5258547.129 | AI110: 212440 | AJ110: 0 | AK110: 0 | AM110: 12523954.26 | AN110: 13731737.41 | AO110: 12007054.39
B111: 8 | C111: =$H$15*IF($D$5<'Cost Vessels'!$D$11,'Cost Vessels'!$B$5,'Cost Vessels'!$B$16)*$H$16+$H$16*'Cost Vessels'!$L$5 -> 9622809 | D111: =$H$15*IF($D$5<'Cost Vessels'!$D$11,'Cost Vessels'!$C$6,'Cost Vessels'!$C$17)+$H$16*'Cost Vessels'!$L$5 -> 11195409 | E111: =IF($D$5<'Cost Vessels'!$D$11,'Cost Vessels'!$D$8,'Cost Vessels'!$D$19)*((1+'Cost Vessels'!$D$9)^(B110-1))+$H$16*'Cost Vessels'!$L$5 -> 9253744.265 | G111: 25917720 | H111: 25690240 | I111: 25690240 | K111: 38557090.06 | L111: 39728097.96 | M111: 38037761.97 | P111: 8 | Q111: =$H$15*IF($D$5<'Cost Vessels'!$D$11,'Cost Vessels'!$B$5,'Cost Vessels'!$B$16)*$H$16+'Cost Vessels'!$M$6 -> 43208520 | R111: =$H$15*IF($D$5<'Cost Vessels'!$D$11,'Cost Vessels'!$C$6,'Cost Vessels'!$C$17)+'Cost Vessels'!$M$6 -> 44781120 | S111: =IF($D$5<'Cost Vessels'!$D$11,'Cost Vessels'!$D$8,'Cost Vessels'!$D$19)*((1+'Cost Vessels'!$D$9)^(P110-1))+'Cost Vessels'!$M$6 -> 42839455.27 | U111: 227480 | V111: 0 | W111: 0 | Y111: 45430572.7 | Z111: 46601580.61 | AA111: 44911244.61 | AD111: 8 | AE111: =$H$15*IF($D$5<'Cost Vessels'!$D$11,'Cost Vessels'!$B$5,'Cost Vessels'!$B$16)*$H$16+'Cost Vessels'!$N$8*((1+'Cost Vessels'!$N$9)^(AD110-1)) -> 5680197.335 | AF111: =$H$15*IF($D$5<'Cost Vessels'!$D$11,'Cost Vessels'!$C$6,'Cost Vessels'!$C$17)+'Cost Vessels'!$N$8*((1+'Cost Vessels'!$N$9)^(AD110-1)) -> 7252797.335 | AG111: =IF($D$5<'Cost Vessels'!$D$11,'Cost Vessels'!$D$8,'Cost Vessels'!$D$19)*((1+'Cost Vessels'!$D$9)^(AD110-1))+'Cost Vessels'!$N$8*((1+'Cost Vessels'!$N$9)^(AD110-1)) -> 5311132.6 | AI111: 227480 | AJ111: 0 | AK111: 0 | AM111: 12759909.42 | AN111: 13930917.33 | AO111: 12240581.33
B112: 9 | C112: =$H$15*IF($D$5<'Cost Vessels'!$D$11,'Cost Vessels'!$B$5,'Cost Vessels'!$B$16)*$H$16+$H$16*'Cost Vessels'!$L$5 -> 9622809 | D112: =$H$15*IF($D$5<'Cost Vessels'!$D$11,'Cost Vessels'!$C$6,'Cost Vessels'!$C$17)+$H$16*'Cost Vessels'!$L$5 -> 11195409 | E112: =IF($D$5<'Cost Vessels'!$D$11,'Cost Vessels'!$D$8,'Cost Vessels'!$D$19)*((1+'Cost Vessels'!$D$9)^(B111-1))+$H$16*'Cost Vessels'!$L$5 -> 9254358.818 | G112: 24944936 | H112: 24726856 | I112: 24726856 | K112: 36733730.96 | L112: 37889800.74 | M112: 36233133.1 | P112: 9 | Q112: =$H$15*IF($D$5<'Cost Vessels'!$D$11,'Cost Vessels'!$B$5,'Cost Vessels'!$B$16)*$H$16+'Cost Vessels'!$M$6 -> 43208520 | R112: =$H$15*IF($D$5<'Cost Vessels'!$D$11,'Cost Vessels'!$C$6,'Cost Vessels'!$C$17)+'Cost Vessels'!$M$6 -> 44781120 | S112: =IF($D$5<'Cost Vessels'!$D$11,'Cost Vessels'!$D$8,'Cost Vessels'!$D$19)*((1+'Cost Vessels'!$D$9)^(P111-1))+'Cost Vessels'!$M$6 -> 42840069.82 | U112: 218080 | V112: 0 | W112: 0 | Y112: 44294678.41 | Z112: 45450748.18 | AA112: 43794080.54 | AD112: 9 | AE112: =$H$15*IF($D$5<'Cost Vessels'!$D$11,'Cost Vessels'!$B$5,'Cost Vessels'!$B$16)*$H$16+'Cost Vessels'!$N$8*((1+'Cost Vessels'!$N$9)^(AD111-1)) -> 5732694.108 | AF112: =$H$15*IF($D$5<'Cost Vessels'!$D$11,'Cost Vessels'!$C$6,'Cost Vessels'!$C$17)+'Cost Vessels'!$N$8*((1+'Cost Vessels'!$N$9)^(AD111-1)) -> 7305294.108 | AG112: =IF($D$5<'Cost Vessels'!$D$11,'Cost Vessels'!$D$8,'Cost Vessels'!$D$19)*((1+'Cost Vessels'!$D$9)^(AD111-1))+'Cost Vessels'!$N$8*((1+'Cost Vessels'!$N$9)^(AD111-1)) -> 5364243.926 | AI112: 218080 | AJ112: 0 | AK112: 0 | AM112: 12309421.86 | AN112: 13465491.63 | AO112: 11808823.99
B113: 10 | C113: =$H$15*IF($D$5<'Cost Vessels'!$D$11,'Cost Vessels'!$B$5,'Cost Vessels'!$B$16)*$H$16+$H$16*'Cost Vessels'!$L$5 -> 9622809 | D113: =$H$15*IF($D$5<'Cost Vessels'!$D$11,'Cost Vessels'!$C$6,'Cost Vessels'!$C$17)+$H$16*'Cost Vessels'!$L$5 -> 11195409 | E113: =IF($D$5<'Cost Vessels'!$D$11,'Cost Vessels'!$D$8,'Cost Vessels'!$D$19)*((1+'Cost Vessels'!$D$9)^(B112-1))+$H$16*'Cost Vessels'!$L$5 -> 9254979.516 | G113: 23811588 | H113: 23602908 | I113: 23602908 | K113: 34774592.58 | L113: 35915859.82 | M113: 34292195.23 | P113: 10 | Q113: =$H$15*IF($D$5<'Cost Vessels'!$D$11,'Cost Vessels'!$B$5,'Cost Vessels'!$B$16)*$H$16+'Cost Vessels'!$M$6 -> 43208520 | R113: =$H$15*IF($D$5<'Cost Vessels'!$D$11,'Cost Vessels'!$C$6,'Cost Vessels'!$C$17)+'Cost Vessels'!$M$6 -> 44781120 | S113: =IF($D$5<'Cost Vessels'!$D$11,'Cost Vessels'!$D$8,'Cost Vessels'!$D$19)*((1+'Cost Vessels'!$D$9)^(P112-1))+'Cost Vessels'!$M$6 -> 42840690.52 | U113: 208680 | V113: 0 | W113: 0 | Y113: 43127755.56 | Z113: 44269022.8 | AA113: 42645358.21 | AD113: 10 | AE113: =$H$15*IF($D$5<'Cost Vessels'!$D$11,'Cost Vessels'!$B$5,'Cost Vessels'!$B$16)*$H$16+'Cost Vessels'!$N$8*((1+'Cost Vessels'!$N$9)^(AD112-1)) -> 5785715.849 | AF113: =$H$15*IF($D$5<'Cost Vessels'!$D$11,'Cost Vessels'!$C$6,'Cost Vessels'!$C$17)+'Cost Vessels'!$N$8*((1+'Cost Vessels'!$N$9)^(AD112-1)) -> 7358315.849 | AG113: =IF($D$5<'Cost Vessels'!$D$11,'Cost Vessels'!$D$8,'Cost Vessels'!$D$19)*((1+'Cost Vessels'!$D$9)^(AD112-1))+'Cost Vessels'!$N$8*((1+'Cost Vessels'!$N$9)^(AD112-1)) -> 5417886.366 | AI113: 208680 | AJ113: 0 | AK113: 0 | AM113: 11814027.12 | AN113: 12955294.36 | AO113: 11331629.77
B114: 11 | C114: =$H$15*IF($D$5<'Cost Vessels'!$D$11,'Cost Vessels'!$B$5,'Cost Vessels'!$B$16)*$H$16+$H$16*'Cost Vessels'!$L$5 -> 9622809 | D114: =$H$15*IF($D$5<'Cost Vessels'!$D$11,'Cost Vessels'!$C$6,'Cost Vessels'!$C$17)+$H$16*'Cost Vessels'!$L$5 -> 11195409 | E114: =IF($D$5<'Cost Vessels'!$D$11,'Cost Vessels'!$D$8,'Cost Vessels'!$D$19)*((1+'Cost Vessels'!$D$9)^(B113-1))+$H$16*'Cost Vessels'!$L$5 -> 9255606.421 | G114: 23974032 | H114: 23763472 | I114: 23763472 | K114: 34282965.98 | L114: 35400313.18 | M114: 33808999.43 | P114: 11 | Q114: =$H$15*IF($D$5<'Cost Vessels'!$D$11,'Cost Vessels'!$B$5,'Cost Vessels'!$B$16)*$H$16+'Cost Vessels'!$M$6 -> 43208520 | R114: =$H$15*IF($D$5<'Cost Vessels'!$D$11,'Cost Vessels'!$C$6,'Cost Vessels'!$C$17)+'Cost Vessels'!$M$6 -> 44781120 | S114: =IF($D$5<'Cost Vessels'!$D$11,'Cost Vessels'!$D$8,'Cost Vessels'!$D$19)*((1+'Cost Vessels'!$D$9)^(P113-1))+'Cost Vessels'!$M$6 -> 42841317.42 | U114: 210560 | V114: 0 | W114: 0 | Y114: 42340623.05 | Z114: 43457970.24 | AA114: 41866656.5 | AD114: 11 | AE114: =$H$15*IF($D$5<'Cost Vessels'!$D$11,'Cost Vessels'!$B$5,'Cost Vessels'!$B$16)*$H$16+'Cost Vessels'!$N$8*((1+'Cost Vessels'!$N$9)^(AD113-1)) -> 5839267.808 | AF114: =$H$15*IF($D$5<'Cost Vessels'!$D$11,'Cost Vessels'!$C$6,'Cost Vessels'!$C$17)+'Cost Vessels'!$N$8*((1+'Cost Vessels'!$N$9)^(AD113-1)) -> 7411867.808 | AG114: =IF($D$5<'Cost Vessels'!$D$11,'Cost Vessels'!$D$8,'Cost Vessels'!$D$19)*((1+'Cost Vessels'!$D$9)^(AD113-1))+'Cost Vessels'!$N$8*((1+'Cost Vessels'!$N$9)^(AD113-1)) -> 5472065.229 | AI114: 210560 | AJ114: 0 | AK114: 0 | AM114: 11684820.54 | AN114: 12802167.74 | AO114: 11210853.99
B115: 12 | C115: =$H$15*IF($D$5<'Cost Vessels'!$D$11,'Cost Vessels'!$B$5,'Cost Vessels'!$B$16)*$H$16+$H$16*'Cost Vessels'!$L$5 -> 9622809 | D115: =$H$15*IF($D$5<'Cost Vessels'!$D$11,'Cost Vessels'!$C$6,'Cost Vessels'!$C$17)+$H$16*'Cost Vessels'!$L$5 -> 11195409 | E115: =IF($D$5<'Cost Vessels'!$D$11,'Cost Vessels'!$D$8,'Cost Vessels'!$D$19)*((1+'Cost Vessels'!$D$9)^(B114-1))+$H$16*'Cost Vessels'!$L$5 -> 9256239.596 | G115: 24297040 | H115: 24084600 | I115: 24084600 | K115: 33926384.85 | L115: 35020311.26 | M115: 33460708.98 | P115: 12 | Q115: =$H$15*IF($D$5<'Cost Vessels'!$D$11,'Cost Vessels'!$B$5,'Cost Vessels'!$B$16)*$H$16+'Cost Vessels'!$M$6 -> 43208520 | R115: =$H$15*IF($D$5<'Cost Vessels'!$D$11,'Cost Vessels'!$C$6,'Cost Vessels'!$C$17)+'Cost Vessels'!$M$6 -> 44781120 | S115: =IF($D$5<'Cost Vessels'!$D$11,'Cost Vessels'!$D$8,'Cost Vessels'!$D$19)*((1+'Cost Vessels'!$D$9)^(P114-1))+'Cost Vessels'!$M$6 -> 42841950.6 | U115: 212440 | V115: 0 | W115: 0 | Y115: 41567777.25 | Z115: 42661703.67 | AA115: 41102101.39 | AD115: 12 | AE115: =$H$15*IF($D$5<'Cost Vessels'!$D$11,'Cost Vessels'!$B$5,'Cost Vessels'!$B$16)*$H$16+'Cost Vessels'!$N$8*((1+'Cost Vessels'!$N$9)^(AD114-1)) -> 5893355.286 | AF115: =$H$15*IF($D$5<'Cost Vessels'!$D$11,'Cost Vessels'!$C$6,'Cost Vessels'!$C$17)+'Cost Vessels'!$N$8*((1+'Cost Vessels'!$N$9)^(AD114-1)) -> 7465955.286 | AG115: =IF($D$5<'Cost Vessels'!$D$11,'Cost Vessels'!$D$8,'Cost Vessels'!$D$19)*((1+'Cost Vessels'!$D$9)^(AD114-1))+'Cost Vessels'!$N$8*((1+'Cost Vessels'!$N$9)^(AD114-1)) -> 5526785.882 | AI115: 212440 | AJ115: 0 | AK115: 0 | AM115: 11556569.48 | AN115: 12650495.89 | AO115: 11090893.61
B116: 13 | C116: =$H$15*IF($D$5<'Cost Vessels'!$D$11,'Cost Vessels'!$B$5,'Cost Vessels'!$B$16)*$H$16+$H$16*'Cost Vessels'!$L$5 -> 9622809 | D116: =$H$15*IF($D$5<'Cost Vessels'!$D$11,'Cost Vessels'!$C$6,'Cost Vessels'!$C$17)+$H$16*'Cost Vessels'!$L$5 -> 11195409 | E116: =IF($D$5<'Cost Vessels'!$D$11,'Cost Vessels'!$D$8,'Cost Vessels'!$D$19)*((1+'Cost Vessels'!$D$9)^(B115-1))+$H$16*'Cost Vessels'!$L$5 -> 9256879.102 | G116: 24782492 | H116: 24566292 | I116: 24566292 | K116: 33753447.97 | L116: 34822960.11 | M116: 33294442.51 | P116: 13 | Q116: =$H$15*IF($D$5<'Cost Vessels'!$D$11,'Cost Vessels'!$B$5,'Cost Vessels'!$B$16)*$H$16+'Cost Vessels'!$M$6 -> 43208520 | R116: =$H$15*IF($D$5<'Cost Vessels'!$D$11,'Cost Vessels'!$C$6,'Cost Vessels'!$C$17)+'Cost Vessels'!$M$6 -> 44781120 | S116: =IF($D$5<'Cost Vessels'!$D$11,'Cost Vessels'!$D$8,'Cost Vessels'!$D$19)*((1+'Cost Vessels'!$D$9)^(P115-1))+'Cost Vessels'!$M$6 -> 42842590.1 | U116: 216200 | V116: 0 | W116: 0 | Y116: 40865198.29 | Z116: 41934710.44 | AA116: 40406192.84 | AD116: 13 | AE116: =$H$15*IF($D$5<'Cost Vessels'!$D$11,'Cost Vessels'!$B$5,'Cost Vessels'!$B$16)*$H$16+'Cost Vessels'!$N$8*((1+'Cost Vessels'!$N$9)^(AD115-1)) -> 5947983.639 | AF116: =$H$15*IF($D$5<'Cost Vessels'!$D$11,'Cost Vessels'!$C$6,'Cost Vessels'!$C$17)+'Cost Vessels'!$N$8*((1+'Cost Vessels'!$N$9)^(AD115-1)) -> 7520583.639 | AG116: =IF($D$5<'Cost Vessels'!$D$11,'Cost Vessels'!$D$8,'Cost Vessels'!$D$19)*((1+'Cost Vessels'!$D$9)^(AD115-1))+'Cost Vessels'!$N$8*((1+'Cost Vessels'!$N$9)^(AD115-1)) -> 5582053.74 | AI116: 216200 | AJ116: 0 | AK116: 0 | AM116: 11485519.66 | AN116: 12555031.8 | AO116: 11026514.2
B117: 14 | C117: =$H$15*IF($D$5<'Cost Vessels'!$D$11,'Cost Vessels'!$B$5,'Cost Vessels'!$B$16)*$H$16+$H$16*'Cost Vessels'!$L$5 -> 9622809 | D117: =$H$15*IF($D$5<'Cost Vessels'!$D$11,'Cost Vessels'!$C$6,'Cost Vessels'!$C$17)+$H$16*'Cost Vessels'!$L$5 -> 11195409 | E117: =IF($D$5<'Cost Vessels'!$D$11,'Cost Vessels'!$D$8,'Cost Vessels'!$D$19)*((1+'Cost Vessels'!$D$9)^(B116-1))+$H$16*'Cost Vessels'!$L$5 -> 9257525.003 | G117: 24459484 | H117: 24245164 | I117: 24245164 | K117: 32788238.22 | L117: 33838232.83 | M117: 32340185.47 | P117: 14 | Q117: =$H$15*IF($D$5<'Cost Vessels'!$D$11,'Cost Vessels'!$B$5,'Cost Vessels'!$B$16)*$H$16+'Cost Vessels'!$M$6 -> 43208520 | R117: =$H$15*IF($D$5<'Cost Vessels'!$D$11,'Cost Vessels'!$C$6,'Cost Vessels'!$C$17)+'Cost Vessels'!$M$6 -> 44781120 | S117: =IF($D$5<'Cost Vessels'!$D$11,'Cost Vessels'!$D$8,'Cost Vessels'!$D$19)*((1+'Cost Vessels'!$D$9)^(P116-1))+'Cost Vessels'!$M$6 -> 42843236 | U117: 214320 | V117: 0 | W117: 0 | Y117: 40008784.85 | Z117: 41058779.47 | AA117: 39560732.11 | AD117: 14 | AE117: =$H$15*IF($D$5<'Cost Vessels'!$D$11,'Cost Vessels'!$B$5,'Cost Vessels'!$B$16)*$H$16+'Cost Vessels'!$N$8*((1+'Cost Vessels'!$N$9)^(AD116-1)) -> 6003158.275 | AF117: =$H$15*IF($D$5<'Cost Vessels'!$D$11,'Cost Vessels'!$C$6,'Cost Vessels'!$C$17)+'Cost Vessels'!$N$8*((1+'Cost Vessels'!$N$9)^(AD116-1)) -> 7575758.275 | AG117: =IF($D$5<'Cost Vessels'!$D$11,'Cost Vessels'!$D$8,'Cost Vessels'!$D$19)*((1+'Cost Vessels'!$D$9)^(AD116-1))+'Cost Vessels'!$N$8*((1+'Cost Vessels'!$N$9)^(AD116-1)) -> 5637874.278 | AI117: 214320 | AJ117: 0 | AK117: 0 | AM117: 11247830.13 | AN117: 12297824.75 | AO117: 10799777.39
B118: 15 | C118: =$H$15*IF($D$5<'Cost Vessels'!$D$11,'Cost Vessels'!$B$5,'Cost Vessels'!$B$16)*$H$16+$H$16*'Cost Vessels'!$L$5 -> 9622809 | D118: =$H$15*IF($D$5<'Cost Vessels'!$D$11,'Cost Vessels'!$C$6,'Cost Vessels'!$C$17)+$H$16*'Cost Vessels'!$L$5 -> 11195409 | E118: =IF($D$5<'Cost Vessels'!$D$11,'Cost Vessels'!$D$8,'Cost Vessels'!$D$19)*((1+'Cost Vessels'!$D$9)^(B117-1))+$H$16*'Cost Vessels'!$L$5 -> 9258177.363 | G118: 24297040 | H118: 24084600 | I118: 24084600 | K118: 31969590.17 | L118: 33000421.46 | M118: 31532241.99 | P118: 15 | Q118: =$H$15*IF($D$5<'Cost Vessels'!$D$11,'Cost Vessels'!$B$5,'Cost Vessels'!$B$16)*$H$16+'Cost Vessels'!$M$6 -> 43208520 | R118: =$H$15*IF($D$5<'Cost Vessels'!$D$11,'Cost Vessels'!$C$6,'Cost Vessels'!$C$17)+'Cost Vessels'!$M$6 -> 44781120 | S118: =IF($D$5<'Cost Vessels'!$D$11,'Cost Vessels'!$D$8,'Cost Vessels'!$D$19)*((1+'Cost Vessels'!$D$9)^(P117-1))+'Cost Vessels'!$M$6 -> 42843888.36 | U118: 212440 | V118: 0 | W118: 0 | Y118: 39170244.9 | Z118: 40201076.2 | AA118: 38732896.72 | AD118: 15 | AE118: =$H$15*IF($D$5<'Cost Vessels'!$D$11,'Cost Vessels'!$B$5,'Cost Vessels'!$B$16)*$H$16+'Cost Vessels'!$N$8*((1+'Cost Vessels'!$N$9)^(AD117-1)) -> 6058884.658 | AF118: =$H$15*IF($D$5<'Cost Vessels'!$D$11,'Cost Vessels'!$C$6,'Cost Vessels'!$C$17)+'Cost Vessels'!$N$8*((1+'Cost Vessels'!$N$9)^(AD117-1)) -> 7631484.658 | AG118: =IF($D$5<'Cost Vessels'!$D$11,'Cost Vessels'!$D$8,'Cost Vessels'!$D$19)*((1+'Cost Vessels'!$D$9)^(AD117-1))+'Cost Vessels'!$N$8*((1+'Cost Vessels'!$N$9)^(AD117-1)) -> 5694253.021 | AI118: 212440 | AJ118: 0 | AK118: 0 | AM118: 11015464.11 | AN118: 12046295.4 | AO118: 10578115.92
B119: 16 | C119: =$H$15*IF($D$5<'Cost Vessels'!$D$11,'Cost Vessels'!$B$5,'Cost Vessels'!$B$16)*$H$16+$H$16*'Cost Vessels'!$L$5 -> 9622809 | D119: =$H$15*IF($D$5<'Cost Vessels'!$D$11,'Cost Vessels'!$C$6,'Cost Vessels'!$C$17)+$H$16*'Cost Vessels'!$L$5 -> 11195409 | E119: =IF($D$5<'Cost Vessels'!$D$11,'Cost Vessels'!$D$8,'Cost Vessels'!$D$19)*((1+'Cost Vessels'!$D$9)^(B118-1))+$H$16*'Cost Vessels'!$L$5 -> 9258836.246 | G119: 23974032 | H119: 23763472 | I119: 23763472 | K119: 31051138.54 | L119: 32063154.32 | M119: 30624252.24 | P119: 16 | Q119: =$H$15*IF($D$5<'Cost Vessels'!$D$11,'Cost Vessels'!$B$5,'Cost Vessels'!$B$16)*$H$16+'Cost Vessels'!$M$6 -> 43208520 | R119: =$H$15*IF($D$5<'Cost Vessels'!$D$11,'Cost Vessels'!$C$6,'Cost Vessels'!$C$17)+'Cost Vessels'!$M$6 -> 44781120 | S119: =IF($D$5<'Cost Vessels'!$D$11,'Cost Vessels'!$D$8,'Cost Vessels'!$D$19)*((1+'Cost Vessels'!$D$9)^(P118-1))+'Cost Vessels'!$M$6 -> 42844547.25 | U119: 210560 | V119: 0 | W119: 0 | Y119: 38349206.8 | Z119: 39361222.58 | AA119: 37922320.5 | AD119: 16 | AE119: =$H$15*IF($D$5<'Cost Vessels'!$D$11,'Cost Vessels'!$B$5,'Cost Vessels'!$B$16)*$H$16+'Cost Vessels'!$N$8*((1+'Cost Vessels'!$N$9)^(AD118-1)) -> 6115168.305 | AF119: =$H$15*IF($D$5<'Cost Vessels'!$D$11,'Cost Vessels'!$C$6,'Cost Vessels'!$C$17)+'Cost Vessels'!$N$8*((1+'Cost Vessels'!$N$9)^(AD118-1)) -> 7687768.305 | AG119: =IF($D$5<'Cost Vessels'!$D$11,'Cost Vessels'!$D$8,'Cost Vessels'!$D$19)*((1+'Cost Vessels'!$D$9)^(AD118-1))+'Cost Vessels'!$N$8*((1+'Cost Vessels'!$N$9)^(AD118-1)) -> 5751195.551 | AI119: 210560 | AJ119: 0 | AK119: 0 | AM119: 10788300.11 | AN119: 11800315.89 | AO119: 10361413.81
B120: 17 | C120: =$H$15*IF($D$5<'Cost Vessels'!$D$11,'Cost Vessels'!$B$5,'Cost Vessels'!$B$16)*$H$16+$H$16*'Cost Vessels'!$L$5 -> 9622809 | D120: =$H$15*IF($D$5<'Cost Vessels'!$D$11,'Cost Vessels'!$C$6,'Cost Vessels'!$C$17)+$H$16*'Cost Vessels'!$L$5 -> 11195409 | E120: =IF($D$5<'Cost Vessels'!$D$11,'Cost Vessels'!$D$8,'Cost Vessels'!$D$19)*((1+'Cost Vessels'!$D$9)^(B119-1))+$H$16*'Cost Vessels'!$L$5 -> 9259501.719 | G120: 25267944 | H120: 25047984 | I120: 25047984 | K120: 31637765.01 | L120: 32623089.95 | M120: 31212886.4 | P120: 17 | Q120: =$H$15*IF($D$5<'Cost Vessels'!$D$11,'Cost Vessels'!$B$5,'Cost Vessels'!$B$16)*$H$16+'Cost Vessels'!$M$6 -> 43208520 | R120: =$H$15*IF($D$5<'Cost Vessels'!$D$11,'Cost Vessels'!$C$6,'Cost Vessels'!$C$17)+'Cost Vessels'!$M$6 -> 44781120 | S120: =IF($D$5<'Cost Vessels'!$D$11,'Cost Vessels'!$D$8,'Cost Vessels'!$D$19)*((1+'Cost Vessels'!$D$9)^(P119-1))+'Cost Vessels'!$M$6 -> 42845212.72 | U120: 219960 | V120: 0 | W120: 0 | Y120: 37857036.5 | Z120: 38842361.45 | AA120: 37432157.89 | AD120: 17 | AE120: =$H$15*IF($D$5<'Cost Vessels'!$D$11,'Cost Vessels'!$B$5,'Cost Vessels'!$B$16)*$H$16+'Cost Vessels'!$N$8*((1+'Cost Vessels'!$N$9)^(AD119-1)) -> 6172014.788 | AF120: =$H$15*IF($D$5<'Cost Vessels'!$D$11,'Cost Vessels'!$C$6,'Cost Vessels'!$C$17)+'Cost Vessels'!$N$8*((1+'Cost Vessels'!$N$9)^(AD119-1)) -> 7744614.788 | AG120: =IF($D$5<'Cost Vessels'!$D$11,'Cost Vessels'!$D$8,'Cost Vessels'!$D$19)*((1+'Cost Vessels'!$D$9)^(AD119-1))+'Cost Vessels'!$N$8*((1+'Cost Vessels'!$N$9)^(AD119-1)) -> 5808707.506 | AI120: 219960 | AJ120: 0 | AK120: 0 | AM120: 10877949.32 | AN120: 11863274.27 | AO120: 10453070.72
B121: 18 | C121: =$H$15*IF($D$5<'Cost Vessels'!$D$11,'Cost Vessels'!$B$5,'Cost Vessels'!$B$16)*$H$16+$H$16*'Cost Vessels'!$L$5 -> 9622809 | D121: =$H$15*IF($D$5<'Cost Vessels'!$D$11,'Cost Vessels'!$C$6,'Cost Vessels'!$C$17)+$H$16*'Cost Vessels'!$L$5 -> 11195409 | E121: =IF($D$5<'Cost Vessels'!$D$11,'Cost Vessels'!$D$8,'Cost Vessels'!$D$19)*((1+'Cost Vessels'!$D$9)^(B120-1))+$H$16*'Cost Vessels'!$L$5 -> 9260173.846 | G121: 26726180 | H121: 26493060 | I121: 26493060 | K121: 32356396.05 | L121: 33313002.52 | M121: 31930930.02 | P121: 18 | Q121: =$H$15*IF($D$5<'Cost Vessels'!$D$11,'Cost Vessels'!$B$5,'Cost Vessels'!$B$16)*$H$16+'Cost Vessels'!$M$6 -> 43208520 | R121: =$H$15*IF($D$5<'Cost Vessels'!$D$11,'Cost Vessels'!$C$6,'Cost Vessels'!$C$17)+'Cost Vessels'!$M$6 -> 44781120 | S121: =IF($D$5<'Cost Vessels'!$D$11,'Cost Vessels'!$D$8,'Cost Vessels'!$D$19)*((1+'Cost Vessels'!$D$9)^(P120-1))+'Cost Vessels'!$M$6 -> 42845884.85 | U121: 233120 | V121: 0 | W121: 0 | Y121: 37421701.86 | Z121: 38378308.33 | AA121: 36996235.83 | AD121: 18 | AE121: =$H$15*IF($D$5<'Cost Vessels'!$D$11,'Cost Vessels'!$B$5,'Cost Vessels'!$B$16)*$H$16+'Cost Vessels'!$N$8*((1+'Cost Vessels'!$N$9)^(AD120-1)) -> 6229429.735 | AF121: =$H$15*IF($D$5<'Cost Vessels'!$D$11,'Cost Vessels'!$C$6,'Cost Vessels'!$C$17)+'Cost Vessels'!$N$8*((1+'Cost Vessels'!$N$9)^(AD120-1)) -> 7802029.735 | AG121: =IF($D$5<'Cost Vessels'!$D$11,'Cost Vessels'!$D$8,'Cost Vessels'!$D$19)*((1+'Cost Vessels'!$D$9)^(AD120-1))+'Cost Vessels'!$N$8*((1+'Cost Vessels'!$N$9)^(AD120-1)) -> 5866794.581 | AI121: 233120 | AJ121: 0 | AK121: 0 | AM121: 11012620 | AN121: 11969226.47 | AO121: 10587153.97
B122: 19 | C122: =$H$15*IF($D$5<'Cost Vessels'!$D$11,'Cost Vessels'!$B$5,'Cost Vessels'!$B$16)*$H$16+$H$16*'Cost Vessels'!$L$5 -> 9622809 | D122: =$H$15*IF($D$5<'Cost Vessels'!$D$11,'Cost Vessels'!$C$6,'Cost Vessels'!$C$17)+$H$16*'Cost Vessels'!$L$5 -> 11195409 | E122: =IF($D$5<'Cost Vessels'!$D$11,'Cost Vessels'!$D$8,'Cost Vessels'!$D$19)*((1+'Cost Vessels'!$D$9)^(B121-1))+$H$16*'Cost Vessels'!$L$5 -> 9260852.694 | G122: 21867900 | H122: 21676140 | I122: 21676140 | K122: 27347962.39 | L122: 28314770.46 | M122: 26960272.73 | P122: 19 | Q122: =$H$15*IF($D$5<'Cost Vessels'!$D$11,'Cost Vessels'!$B$5,'Cost Vessels'!$B$16)*$H$16+'Cost Vessels'!$M$6 -> 43208520 | R122: =$H$15*IF($D$5<'Cost Vessels'!$D$11,'Cost Vessels'!$C$6,'Cost Vessels'!$C$17)+'Cost Vessels'!$M$6 -> 44781120 | S122: =IF($D$5<'Cost Vessels'!$D$11,'Cost Vessels'!$D$8,'Cost Vessels'!$D$19)*((1+'Cost Vessels'!$D$9)^(P121-1))+'Cost Vessels'!$M$6 -> 42846563.69 | U122: 191760 | V122: 0 | W122: 0 | Y122: 35686560.18 | Z122: 36653368.25 | AA122: 35298870.52 | AD122: 19 | AE122: =$H$15*IF($D$5<'Cost Vessels'!$D$11,'Cost Vessels'!$B$5,'Cost Vessels'!$B$16)*$H$16+'Cost Vessels'!$N$8*((1+'Cost Vessels'!$N$9)^(AD121-1)) -> 6287418.833 | AF122: =$H$15*IF($D$5<'Cost Vessels'!$D$11,'Cost Vessels'!$C$6,'Cost Vessels'!$C$17)+'Cost Vessels'!$N$8*((1+'Cost Vessels'!$N$9)^(AD121-1)) -> 7860018.833 | AG122: =IF($D$5<'Cost Vessels'!$D$11,'Cost Vessels'!$D$8,'Cost Vessels'!$D$19)*((1+'Cost Vessels'!$D$9)^(AD121-1))+'Cost Vessels'!$N$8*((1+'Cost Vessels'!$N$9)^(AD121-1)) -> 5925462.527 | AI122: 191760 | AJ122: 0 | AK122: 0 | AM122: 9835905.063 | AN122: 10802713.13 | AO122: 9448215.4
B123: 20 | C123: =$H$15*IF($D$5<'Cost Vessels'!$D$11,'Cost Vessels'!$B$5,'Cost Vessels'!$B$16)*$H$16+$H$16*'Cost Vessels'!$L$5 -> 9622809 | D123: =$H$15*IF($D$5<'Cost Vessels'!$D$11,'Cost Vessels'!$C$6,'Cost Vessels'!$C$17)+$H$16*'Cost Vessels'!$L$5 -> 11195409 | E123: =IF($D$5<'Cost Vessels'!$D$11,'Cost Vessels'!$D$8,'Cost Vessels'!$D$19)*((1+'Cost Vessels'!$D$9)^(B122-1))+$H$16*'Cost Vessels'!$L$5 -> 9261538.331 | G123: 24944936 | H123: 24726856 | I123: 24726856 | K123: 29543582.1 | L123: 30473366.29 | M123: 29145897.98 | P123: 20 | Q123: =$H$15*IF($D$5<'Cost Vessels'!$D$11,'Cost Vessels'!$B$5,'Cost Vessels'!$B$16)*$H$16+'Cost Vessels'!$M$6 -> 43208520 | R123: =$H$15*IF($D$5<'Cost Vessels'!$D$11,'Cost Vessels'!$C$6,'Cost Vessels'!$C$17)+'Cost Vessels'!$M$6 -> 44781120 | S123: =IF($D$5<'Cost Vessels'!$D$11,'Cost Vessels'!$D$8,'Cost Vessels'!$D$19)*((1+'Cost Vessels'!$D$9)^(P122-1))+'Cost Vessels'!$M$6 -> 42847249.33 | U123: 218080 | V123: 0 | W123: 0 | Y123: 35624572.67 | Z123: 36554356.86 | AA123: 35226888.55 | AD123: 20 | AE123: =$H$15*IF($D$5<'Cost Vessels'!$D$11,'Cost Vessels'!$B$5,'Cost Vessels'!$B$16)*$H$16+'Cost Vessels'!$N$8*((1+'Cost Vessels'!$N$9)^(AD122-1)) -> 6345987.821 | AF123: =$H$15*IF($D$5<'Cost Vessels'!$D$11,'Cost Vessels'!$C$6,'Cost Vessels'!$C$17)+'Cost Vessels'!$N$8*((1+'Cost Vessels'!$N$9)^(AD122-1)) -> 7918587.821 | AG123: =IF($D$5<'Cost Vessels'!$D$11,'Cost Vessels'!$D$8,'Cost Vessels'!$D$19)*((1+'Cost Vessels'!$D$9)^(AD122-1))+'Cost Vessels'!$N$8*((1+'Cost Vessels'!$N$9)^(AD122-1)) -> 5984717.152 | AI123: 218080 | AJ123: 0 | AK123: 0 | AM123: 10320996.7 | AN123: 11250780.89 | AO123: 9923312.58
B124: 21 | C124: =$H$15*IF($D$5<'Cost Vessels'!$D$11,'Cost Vessels'!$B$5,'Cost Vessels'!$B$16)*$H$16+$H$16*'Cost Vessels'!$L$5 -> 9622809 | D124: =$H$15*IF($D$5<'Cost Vessels'!$D$11,'Cost Vessels'!$C$6,'Cost Vessels'!$C$17)+$H$16*'Cost Vessels'!$L$5 -> 11195409 | E124: =IF($D$5<'Cost Vessels'!$D$11,'Cost Vessels'!$D$8,'Cost Vessels'!$D$19)*((1+'Cost Vessels'!$D$9)^(B123-1))+$H$16*'Cost Vessels'!$L$5 -> 9262230.825 | G124: 26403172 | H124: 26171932 | I124: 26171932 | K124: 30223179.22 | L124: 31125876.05 | M124: 29824902.55 | P124: 21 | Q124: =$H$15*IF($D$5<'Cost Vessels'!$D$11,'Cost Vessels'!$B$5,'Cost Vessels'!$B$16)*$H$16+'Cost Vessels'!$M$6 -> 43208520 | R124: =$H$15*IF($D$5<'Cost Vessels'!$D$11,'Cost Vessels'!$C$6,'Cost Vessels'!$C$17)+'Cost Vessels'!$M$6 -> 44781120 | S124: =IF($D$5<'Cost Vessels'!$D$11,'Cost Vessels'!$D$8,'Cost Vessels'!$D$19)*((1+'Cost Vessels'!$D$9)^(P123-1))+'Cost Vessels'!$M$6 -> 42847941.82 | U124: 231240 | V124: 0 | W124: 0 | Y124: 35212439.95 | Z124: 36115136.78 | AA124: 34814163.29 | AD124: 21 | AE124: =$H$15*IF($D$5<'Cost Vessels'!$D$11,'Cost Vessels'!$B$5,'Cost Vessels'!$B$16)*$H$16+'Cost Vessels'!$N$8*((1+'Cost Vessels'!$N$9)^(AD123-1)) -> 6405142.499 | AF124: =$H$15*IF($D$5<'Cost Vessels'!$D$11,'Cost Vessels'!$C$6,'Cost Vessels'!$C$17)+'Cost Vessels'!$N$8*((1+'Cost Vessels'!$N$9)^(AD123-1)) -> 7977742.499 | AG124: =IF($D$5<'Cost Vessels'!$D$11,'Cost Vessels'!$D$8,'Cost Vessels'!$D$19)*((1+'Cost Vessels'!$D$9)^(AD123-1))+'Cost Vessels'!$N$8*((1+'Cost Vessels'!$N$9)^(AD123-1)) -> 6044564.324 | AI124: 231240 | AJ124: 0 | AK124: 0 | AM124: 10444821.94 | AN124: 11347518.76 | AO124: 10046545.27
B125: 22 | C125: =$H$15*IF($D$5<'Cost Vessels'!$D$11,'Cost Vessels'!$B$5,'Cost Vessels'!$B$16)*$H$16+$H$16*'Cost Vessels'!$L$5 -> 9622809 | D125: =$H$15*IF($D$5<'Cost Vessels'!$D$11,'Cost Vessels'!$C$6,'Cost Vessels'!$C$17)+$H$16*'Cost Vessels'!$L$5 -> 11195409 | E125: =IF($D$5<'Cost Vessels'!$D$11,'Cost Vessels'!$D$8,'Cost Vessels'!$D$19)*((1+'Cost Vessels'!$D$9)^(B124-1))+$H$16*'Cost Vessels'!$L$5 -> 9262930.243 | G125: 27051068 | H125: 26814188 | I125: 26814188 | K125: 30176754.17 | L125: 31058029.93 | M125: 29783027.18 | P125: 22 | Q125: =$H$15*IF($D$5<'Cost Vessels'!$D$11,'Cost Vessels'!$B$5,'Cost Vessels'!$B$16)*$H$16+'Cost Vessels'!$M$6 -> 43208520 | R125: =$H$15*IF($D$5<'Cost Vessels'!$D$11,'Cost Vessels'!$C$6,'Cost Vessels'!$C$17)+'Cost Vessels'!$M$6 -> 44781120 | S125: =IF($D$5<'Cost Vessels'!$D$11,'Cost Vessels'!$D$8,'Cost Vessels'!$D$19)*((1+'Cost Vessels'!$D$9)^(P124-1))+'Cost Vessels'!$M$6 -> 42848641.24 | U125: 236880 | V125: 0 | W125: 0 | Y125: 34644441.29 | Z125: 35525717.05 | AA125: 34250714.3 | AD125: 22 | AE125: =$H$15*IF($D$5<'Cost Vessels'!$D$11,'Cost Vessels'!$B$5,'Cost Vessels'!$B$16)*$H$16+'Cost Vessels'!$N$8*((1+'Cost Vessels'!$N$9)^(AD124-1)) -> 6464888.724 | AF125: =$H$15*IF($D$5<'Cost Vessels'!$D$11,'Cost Vessels'!$C$6,'Cost Vessels'!$C$17)+'Cost Vessels'!$N$8*((1+'Cost Vessels'!$N$9)^(AD124-1)) -> 8037488.724 | AG125: =IF($D$5<'Cost Vessels'!$D$11,'Cost Vessels'!$D$8,'Cost Vessels'!$D$19)*((1+'Cost Vessels'!$D$9)^(AD124-1))+'Cost Vessels'!$N$8*((1+'Cost Vessels'!$N$9)^(AD124-1)) -> 6105009.967 | AI125: 236880 | AJ125: 0 | AK125: 0 | AM125: 10401881.96 | AN125: 11283157.71 | AO125: 10008154.96
B126: 23 | C126: =$H$15*IF($D$5<'Cost Vessels'!$D$11,'Cost Vessels'!$B$5,'Cost Vessels'!$B$16)*$H$16+$H$16*'Cost Vessels'!$L$5 -> 9622809 | D126: =$H$15*IF($D$5<'Cost Vessels'!$D$11,'Cost Vessels'!$C$6,'Cost Vessels'!$C$17)+$H$16*'Cost Vessels'!$L$5 -> 11195409 | E126: =IF($D$5<'Cost Vessels'!$D$11,'Cost Vessels'!$D$8,'Cost Vessels'!$D$19)*((1+'Cost Vessels'!$D$9)^(B125-1))+$H$16*'Cost Vessels'!$L$5 -> 9263636.655 | G126: 27698964 | H126: 27456444 | I126: 27456444 | K126: 30120329.49 | L126: 30980677.16 | M126: 29731131.4 | P126: 23 | Q126: =$H$15*IF($D$5<'Cost Vessels'!$D$11,'Cost Vessels'!$B$5,'Cost Vessels'!$B$16)*$H$16+'Cost Vessels'!$M$6 -> 43208520 | R126: =$H$15*IF($D$5<'Cost Vessels'!$D$11,'Cost Vessels'!$C$6,'Cost Vessels'!$C$17)+'Cost Vessels'!$M$6 -> 44781120 | S126: =IF($D$5<'Cost Vessels'!$D$11,'Cost Vessels'!$D$8,'Cost Vessels'!$D$19)*((1+'Cost Vessels'!$D$9)^(P125-1))+'Cost Vessels'!$M$6 -> 42849347.66 | U126: 242520 | V126: 0 | W126: 0 | Y126: 34084978.65 | Z126: 34945326.32 | AA126: 33695780.56 | AD126: 23 | AE126: =$H$15*IF($D$5<'Cost Vessels'!$D$11,'Cost Vessels'!$B$5,'Cost Vessels'!$B$16)*$H$16+'Cost Vessels'!$N$8*((1+'Cost Vessels'!$N$9)^(AD125-1)) -> 6525232.412 | AF126: =$H$15*IF($D$5<'Cost Vessels'!$D$11,'Cost Vessels'!$C$6,'Cost Vessels'!$C$17)+'Cost Vessels'!$N$8*((1+'Cost Vessels'!$N$9)^(AD125-1)) -> 8097832.412 | AG126: =IF($D$5<'Cost Vessels'!$D$11,'Cost Vessels'!$D$8,'Cost Vessels'!$D$19)*((1+'Cost Vessels'!$D$9)^(AD125-1))+'Cost Vessels'!$N$8*((1+'Cost Vessels'!$N$9)^(AD125-1)) -> 6166060.067 | AI126: 242520 | AJ126: 0 | AK126: 0 | AM126: 10356796.27 | AN126: 11217143.93 | AO126: 9967598.172
B127: 24 | C127: =$H$15*IF($D$5<'Cost Vessels'!$D$11,'Cost Vessels'!$B$5,'Cost Vessels'!$B$16)*$H$16+$H$16*'Cost Vessels'!$L$5 -> 9622809 | D127: =$H$15*IF($D$5<'Cost Vessels'!$D$11,'Cost Vessels'!$C$6,'Cost Vessels'!$C$17)+$H$16*'Cost Vessels'!$L$5 -> 11195409 | E127: =IF($D$5<'Cost Vessels'!$D$11,'Cost Vessels'!$D$8,'Cost Vessels'!$D$19)*((1+'Cost Vessels'!$D$9)^(B126-1))+$H$16*'Cost Vessels'!$L$5 -> 9264350.132 | G127: 28346860 | H127: 28098700 | I127: 28098700 | K127: 30054361.09 | L127: 30894262.55 | M127: 29669670.15 | P127: 24 | Q127: =$H$15*IF($D$5<'Cost Vessels'!$D$11,'Cost Vessels'!$B$5,'Cost Vessels'!$B$16)*$H$16+'Cost Vessels'!$M$6 -> 43208520 | R127: =$H$15*IF($D$5<'Cost Vessels'!$D$11,'Cost Vessels'!$C$6,'Cost Vessels'!$C$17)+'Cost Vessels'!$M$6 -> 44781120 | S127: =IF($D$5<'Cost Vessels'!$D$11,'Cost Vessels'!$D$8,'Cost Vessels'!$D$19)*((1+'Cost Vessels'!$D$9)^(P126-1))+'Cost Vessels'!$M$6 -> 42850061.13 | U127: 248160 | V127: 0 | W127: 0 | Y127: 33533981.59 | Z127: 34373883.05 | AA127: 33149290.64 | AD127: 24 | AE127: =$H$15*IF($D$5<'Cost Vessels'!$D$11,'Cost Vessels'!$B$5,'Cost Vessels'!$B$16)*$H$16+'Cost Vessels'!$N$8*((1+'Cost Vessels'!$N$9)^(AD126-1)) -> 6586179.536 | AF127: =$H$15*IF($D$5<'Cost Vessels'!$D$11,'Cost Vessels'!$C$6,'Cost Vessels'!$C$17)+'Cost Vessels'!$N$8*((1+'Cost Vessels'!$N$9)^(AD126-1)) -> 8158779.536 | AG127: =IF($D$5<'Cost Vessels'!$D$11,'Cost Vessels'!$D$8,'Cost Vessels'!$D$19)*((1+'Cost Vessels'!$D$9)^(AD126-1))+'Cost Vessels'!$N$8*((1+'Cost Vessels'!$N$9)^(AD126-1)) -> 6227720.668 | AI127: 248160 | AJ127: 0 | AK127: 0 | AM127: 10309707.66 | AN127: 11149609.13 | AO127: 9925016.717
B128: 25 | C128: =$H$15*IF($D$5<'Cost Vessels'!$D$11,'Cost Vessels'!$B$5,'Cost Vessels'!$B$16)*$H$16+$H$16*'Cost Vessels'!$L$5 -> 9622809 | D128: =$H$15*IF($D$5<'Cost Vessels'!$D$11,'Cost Vessels'!$C$6,'Cost Vessels'!$C$17)+$H$16*'Cost Vessels'!$L$5 -> 11195409 | E128: =IF($D$5<'Cost Vessels'!$D$11,'Cost Vessels'!$D$8,'Cost Vessels'!$D$19)*((1+'Cost Vessels'!$D$9)^(B127-1))+$H$16*'Cost Vessels'!$L$5 -> 9265070.743 | G128: 26726180 | H128: 26493060 | I128: 26493060 | K128: 28166529.88 | L128: 28999313.38 | M128: 27799180.6 | P128: 25 | Q128: =$H$15*IF($D$5<'Cost Vessels'!$D$11,'Cost Vessels'!$B$5,'Cost Vessels'!$B$16)*$H$16+'Cost Vessels'!$M$6 -> 43208520 | R128: =$H$15*IF($D$5<'Cost Vessels'!$D$11,'Cost Vessels'!$C$6,'Cost Vessels'!$C$17)+'Cost Vessels'!$M$6 -> 44781120 | S128: =IF($D$5<'Cost Vessels'!$D$11,'Cost Vessels'!$D$8,'Cost Vessels'!$D$19)*((1+'Cost Vessels'!$D$9)^(P127-1))+'Cost Vessels'!$M$6 -> 42850781.74 | U128: 233120 | V128: 0 | W128: 0 | Y128: 32576183.41 | Z128: 33408966.91 | AA128: 32208834.14 | AD128: 25 | AE128: =$H$15*IF($D$5<'Cost Vessels'!$D$11,'Cost Vessels'!$B$5,'Cost Vessels'!$B$16)*$H$16+'Cost Vessels'!$N$8*((1+'Cost Vessels'!$N$9)^(AD127-1)) -> 6647736.131 | AF128: =$H$15*IF($D$5<'Cost Vessels'!$D$11,'Cost Vessels'!$C$6,'Cost Vessels'!$C$17)+'Cost Vessels'!$N$8*((1+'Cost Vessels'!$N$9)^(AD127-1)) -> 8220336.131 | AG128: =IF($D$5<'Cost Vessels'!$D$11,'Cost Vessels'!$D$8,'Cost Vessels'!$D$19)*((1+'Cost Vessels'!$D$9)^(AD127-1))+'Cost Vessels'!$N$8*((1+'Cost Vessels'!$N$9)^(AD127-1)) -> 6289997.874 | AI128: 233120 | AJ128: 0 | AK128: 0 | AM128: 9845558.464 | AN128: 10678341.96 | AO128: 9478209.189
B129: 26 | C129: =$H$15*IF($D$5<'Cost Vessels'!$D$11,'Cost Vessels'!$B$5,'Cost Vessels'!$B$16)*$H$16+$H$16*'Cost Vessels'!$L$5 -> 9622809 | D129: =$H$15*IF($D$5<'Cost Vessels'!$D$11,'Cost Vessels'!$C$6,'Cost Vessels'!$C$17)+$H$16*'Cost Vessels'!$L$5 -> 11195409 | E129: =IF($D$5<'Cost Vessels'!$D$11,'Cost Vessels'!$D$8,'Cost Vessels'!$D$19)*((1+'Cost Vessels'!$D$9)^(B128-1))+$H$16*'Cost Vessels'!$L$5 -> 9265798.561 | G129: 29155320 | H129: 28901520 | I129: 28901520 | K129: 29519113.57 | L129: 30322962.88 | M129: 29146805.75 | P129: 26 | Q129: =$H$15*IF($D$5<'Cost Vessels'!$D$11,'Cost Vessels'!$B$5,'Cost Vessels'!$B$16)*$H$16+'Cost Vessels'!$M$6 -> 43208520 | R129: =$H$15*IF($D$5<'Cost Vessels'!$D$11,'Cost Vessels'!$C$6,'Cost Vessels'!$C$17)+'Cost Vessels'!$M$6 -> 44781120 | S129: =IF($D$5<'Cost Vessels'!$D$11,'Cost Vessels'!$D$8,'Cost Vessels'!$D$19)*((1+'Cost Vessels'!$D$9)^(P128-1))+'Cost Vessels'!$M$6 -> 42851509.56 | U129: 253800 | V129: 0 | W129: 0 | Y129: 32374272.59 | Z129: 33178121.9 | AA129: 32001964.77 | AD129: 26 | AE129: =$H$15*IF($D$5<'Cost Vessels'!$D$11,'Cost Vessels'!$B$5,'Cost Vessels'!$B$16)*$H$16+'Cost Vessels'!$N$8*((1+'Cost Vessels'!$N$9)^(AD128-1)) -> 6709908.292 | AF129: =$H$15*IF($D$5<'Cost Vessels'!$D$11,'Cost Vessels'!$C$6,'Cost Vessels'!$C$17)+'Cost Vessels'!$N$8*((1+'Cost Vessels'!$N$9)^(AD128-1)) -> 8282508.292 | AG129: =IF($D$5<'Cost Vessels'!$D$11,'Cost Vessels'!$D$8,'Cost Vessels'!$D$19)*((1+'Cost Vessels'!$D$9)^(AD128-1))+'Cost Vessels'!$N$8*((1+'Cost Vessels'!$N$9)^(AD128-1)) -> 6352897.853 | AI129: 253800 | AJ129: 0 | AK129: 0 | AM129: 10127242.02 | AN129: 10931091.34 | AO129: 9754934.204
B130: 27 | C130: =$H$15*IF($D$5<'Cost Vessels'!$D$11,'Cost Vessels'!$B$5,'Cost Vessels'!$B$16)*$H$16+$H$16*'Cost Vessels'!$L$5 -> 9622809 | D130: =$H$15*IF($D$5<'Cost Vessels'!$D$11,'Cost Vessels'!$C$6,'Cost Vessels'!$C$17)+$H$16*'Cost Vessels'!$L$5 -> 11195409 | E130: =IF($D$5<'Cost Vessels'!$D$11,'Cost Vessels'!$D$8,'Cost Vessels'!$D$19)*((1+'Cost Vessels'!$D$9)^(B129-1))+$H$16*'Cost Vessels'!$L$5 -> 9266533.656 | G130: 26078284 | H130: 25850804 | I130: 25850804 | K130: 26582123.71 | L130: 27385939.56 | M130: 26233283.61 | P130: 27 | Q130: =$H$15*IF($D$5<'Cost Vessels'!$D$11,'Cost Vessels'!$B$5,'Cost Vessels'!$B$16)*$H$16+'Cost Vessels'!$M$6 -> 43208520 | R130: =$H$15*IF($D$5<'Cost Vessels'!$D$11,'Cost Vessels'!$C$6,'Cost Vessels'!$C$17)+'Cost Vessels'!$M$6 -> 44781120 | S130: =IF($D$5<'Cost Vessels'!$D$11,'Cost Vessels'!$D$8,'Cost Vessels'!$D$19)*((1+'Cost Vessels'!$D$9)^(P129-1))+'Cost Vessels'!$M$6 -> 42852244.66 | U130: 227480 | V130: 0 | W130: 0 | Y130: 31204343.9 | Z130: 32008159.75 | AA130: 30855503.8 | AD130: 27 | AE130: =$H$15*IF($D$5<'Cost Vessels'!$D$11,'Cost Vessels'!$B$5,'Cost Vessels'!$B$16)*$H$16+'Cost Vessels'!$N$8*((1+'Cost Vessels'!$N$9)^(AD129-1)) -> 6772702.175 | AF130: =$H$15*IF($D$5<'Cost Vessels'!$D$11,'Cost Vessels'!$C$6,'Cost Vessels'!$C$17)+'Cost Vessels'!$N$8*((1+'Cost Vessels'!$N$9)^(AD129-1)) -> 8345302.175 | AG130: =IF($D$5<'Cost Vessels'!$D$11,'Cost Vessels'!$D$8,'Cost Vessels'!$D$19)*((1+'Cost Vessels'!$D$9)^(AD129-1))+'Cost Vessels'!$N$8*((1+'Cost Vessels'!$N$9)^(AD129-1)) -> 6416426.832 | AI130: 227480 | AJ130: 0 | AK130: 0 | AM130: 9431053.946 | AN130: 10234869.79 | AO130: 9082213.845
B131: 28 | C131: =$H$15*IF($D$5<'Cost Vessels'!$D$11,'Cost Vessels'!$B$5,'Cost Vessels'!$B$16)*$H$16+$H$16*'Cost Vessels'!$L$5 -> 9622809 | D131: =$H$15*IF($D$5<'Cost Vessels'!$D$11,'Cost Vessels'!$C$6,'Cost Vessels'!$C$17)+$H$16*'Cost Vessels'!$L$5 -> 11195409 | E131: =IF($D$5<'Cost Vessels'!$D$11,'Cost Vessels'!$D$8,'Cost Vessels'!$D$19)*((1+'Cost Vessels'!$D$9)^(B130-1))+$H$16*'Cost Vessels'!$L$5 -> 9267276.103 | G131: 30290548 | H131: 30025468 | I131: 30025468 | K131: 29246753.4 | L131: 30012779.74 | M131: 28883159.86 | P131: 28 | Q131: =$H$15*IF($D$5<'Cost Vessels'!$D$11,'Cost Vessels'!$B$5,'Cost Vessels'!$B$16)*$H$16+'Cost Vessels'!$M$6 -> 43208520 | R131: =$H$15*IF($D$5<'Cost Vessels'!$D$11,'Cost Vessels'!$C$6,'Cost Vessels'!$C$17)+'Cost Vessels'!$M$6 -> 44781120 | S131: =IF($D$5<'Cost Vessels'!$D$11,'Cost Vessels'!$D$8,'Cost Vessels'!$D$19)*((1+'Cost Vessels'!$D$9)^(P130-1))+'Cost Vessels'!$M$6 -> 42852987.1 | U131: 265080 | V131: 0 | W131: 0 | Y131: 31332564.64 | Z131: 32098590.98 | AA131: 30968971.1 | AD131: 28 | AE131: =$H$15*IF($D$5<'Cost Vessels'!$D$11,'Cost Vessels'!$B$5,'Cost Vessels'!$B$16)*$H$16+'Cost Vessels'!$N$8*((1+'Cost Vessels'!$N$9)^(AD130-1)) -> 6836123.997 | AF131: =$H$15*IF($D$5<'Cost Vessels'!$D$11,'Cost Vessels'!$C$6,'Cost Vessels'!$C$17)+'Cost Vessels'!$N$8*((1+'Cost Vessels'!$N$9)^(AD130-1)) -> 8408723.997 | AG131: =IF($D$5<'Cost Vessels'!$D$11,'Cost Vessels'!$D$8,'Cost Vessels'!$D$19)*((1+'Cost Vessels'!$D$9)^(AD130-1))+'Cost Vessels'!$N$8*((1+'Cost Vessels'!$N$9)^(AD130-1)) -> 6480591.1 | AI131: 265080 | AJ131: 0 | AK131: 0 | AM131: 10023358.37 | AN131: 10789384.71 | AO131: 9659764.834
B132: 29 | C132: =$H$15*IF($D$5<'Cost Vessels'!$D$11,'Cost Vessels'!$B$5,'Cost Vessels'!$B$16)*$H$16+$H$16*'Cost Vessels'!$L$5 -> 9622809 | D132: =$H$15*IF($D$5<'Cost Vessels'!$D$11,'Cost Vessels'!$C$6,'Cost Vessels'!$C$17)+$H$16*'Cost Vessels'!$L$5 -> 11195409 | E132: =IF($D$5<'Cost Vessels'!$D$11,'Cost Vessels'!$D$8,'Cost Vessels'!$D$19)*((1+'Cost Vessels'!$D$9)^(B131-1))+$H$16*'Cost Vessels'!$L$5 -> 9268025.974 | G132: 30938444 | H132: 30667724 | I132: 30667724 | K132: 29147771.99 | L132: 29895538.73 | M132: 28788498.97 | P132: 29 | Q132: =$H$15*IF($D$5<'Cost Vessels'!$D$11,'Cost Vessels'!$B$5,'Cost Vessels'!$B$16)*$H$16+'Cost Vessels'!$M$6 -> 43208520 | R132: =$H$15*IF($D$5<'Cost Vessels'!$D$11,'Cost Vessels'!$C$6,'Cost Vessels'!$C$17)+'Cost Vessels'!$M$6 -> 44781120 | S132: =IF($D$5<'Cost Vessels'!$D$11,'Cost Vessels'!$D$8,'Cost Vessels'!$D$19)*((1+'Cost Vessels'!$D$9)^(P131-1))+'Cost Vessels'!$M$6 -> 42853736.97 | U132: 431284 | V132: 160564 | W132: 160564 | Y132: 30916013.34 | Z132: 31663780.09 | AA132: 30556740.32 | AD132: 29 | AE132: =$H$15*IF($D$5<'Cost Vessels'!$D$11,'Cost Vessels'!$B$5,'Cost Vessels'!$B$16)*$H$16+'Cost Vessels'!$N$8*((1+'Cost Vessels'!$N$9)^(AD131-1)) -> 6900180.037 | AF132: =$H$15*IF($D$5<'Cost Vessels'!$D$11,'Cost Vessels'!$C$6,'Cost Vessels'!$C$17)+'Cost Vessels'!$N$8*((1+'Cost Vessels'!$N$9)^(AD131-1)) -> 8472780.037 | AG132: =IF($D$5<'Cost Vessels'!$D$11,'Cost Vessels'!$D$8,'Cost Vessels'!$D$19)*((1+'Cost Vessels'!$D$9)^(AD131-1))+'Cost Vessels'!$N$8*((1+'Cost Vessels'!$N$9)^(AD131-1)) -> 6545397.011 | AI132: 431284 | AJ132: 160564 | AK132: 160564 | AM132: 10061426.81 | AN132: 10809193.55 | AO132: 9702153.791
B133: 30 | C133: =$H$15*IF($D$5<'Cost Vessels'!$D$11,'Cost Vessels'!$B$5,'Cost Vessels'!$B$16)*$H$16+$H$16*'Cost Vessels'!$L$5 -> 9622809 | D133: =$H$15*IF($D$5<'Cost Vessels'!$D$11,'Cost Vessels'!$C$6,'Cost Vessels'!$C$17)+$H$16*'Cost Vessels'!$L$5 -> 11195409 | E133: =IF($D$5<'Cost Vessels'!$D$11,'Cost Vessels'!$D$8,'Cost Vessels'!$D$19)*((1+'Cost Vessels'!$D$9)^(B132-1))+$H$16*'Cost Vessels'!$L$5 -> 9268783.344 | G133: 31586340 | H133: 31309980 | I133: 31309980 | K133: 29041441.58 | L133: 29771370.28 | M133: 28686463.66 | P133: 30 | Q133: =$H$15*IF($D$5<'Cost Vessels'!$D$11,'Cost Vessels'!$B$5,'Cost Vessels'!$B$16)*$H$16+'Cost Vessels'!$M$6 -> 43208520 | R133: =$H$15*IF($D$5<'Cost Vessels'!$D$11,'Cost Vessels'!$C$6,'Cost Vessels'!$C$17)+'Cost Vessels'!$M$6 -> 44781120 | S133: =IF($D$5<'Cost Vessels'!$D$11,'Cost Vessels'!$D$8,'Cost Vessels'!$D$19)*((1+'Cost Vessels'!$D$9)^(P132-1))+'Cost Vessels'!$M$6 -> 42854494.34 | U133: 1079180 | V133: 802820 | W133: 802820 | Y133: 30775011.53 | Z133: 31504940.23 | AA133: 30420033.61 | AD133: 30 | AE133: =$H$15*IF($D$5<'Cost Vessels'!$D$11,'Cost Vessels'!$B$5,'Cost Vessels'!$B$16)*$H$16+'Cost Vessels'!$N$8*((1+'Cost Vessels'!$N$9)^(AD132-1)) -> 6964876.637 | AF133: =$H$15*IF($D$5<'Cost Vessels'!$D$11,'Cost Vessels'!$C$6,'Cost Vessels'!$C$17)+'Cost Vessels'!$N$8*((1+'Cost Vessels'!$N$9)^(AD132-1)) -> 8537476.637 | AG133: =IF($D$5<'Cost Vessels'!$D$11,'Cost Vessels'!$D$8,'Cost Vessels'!$D$19)*((1+'Cost Vessels'!$D$9)^(AD132-1))+'Cost Vessels'!$N$8*((1+'Cost Vessels'!$N$9)^(AD132-1)) -> 6610850.981 | AI133: 1079180 | AJ133: 802820 | AK133: 802820 | AM133: 10365769.91 | AN133: 11095698.61 | AO133: 10010791.99
K134: =SUM(K104:K133) -> 1019281972 | L134: =SUM(L104:L133) -> 1049977021 | M134: =SUM(M104:M133) -> 1017234504 | Y134: =SUM(Y104:Y133) -> 1194179395 | Z134: =SUM(Z104:Z133) -> 1224874444 | AA134: =SUM(AA104:AA133) -> 1192131926 | AM134: =SUM(AM104:AM133) -> 587120095.5 | AN134: =SUM(AN104:AN133) -> 617815144 | AO134: =SUM(AO104:AO133) -> 585072626.7

Sheet Corrective Analysis
S3: Year
B4: Failure per yr | C4: Offshore turbine | D4: Repair category | E4: Probability | F4: Failures and repairs per category | H4: 1 | I4: 2 | J4: 3 | K4: 4 | L4: 5 | M4: 6 | N4: 7 | O4: 8 | P4: 9 | Q4: 10 | R4: 11 | S4: 12 | T4: 13 | U4: 14 | V4: 15 | W4: 16 | X4: 17 | Y4: 18 | Z4: 19 | AA4: 20 | AB4: 21 | AC4: 22 | AD4: 23 | AE4: 24 | AF4: 25 | AG4: 26 | AH4: 27 | AI4: 28 | AJ4: 29 | AK4: 30
B5: electrical | C5: 0.27 | D5: =Inputs!D27 -> A | E5: =Inputs!E27 -> 0.9 | F5: A | G5: =C5*E5+C8*E8+C10*E10+C12*E12+C15*E15+C17*E17+C20*E20+C23*E23+C29*E29 -> 1.0515 | H5: =H28*$G$5*H14*H4^(H14-1) -> 1.314375 | I5: =I28*G5*I14*I4^(I14-1) -> 1.115284171 | J5: =J28*G5*J14*J4^(J14-1) -> 1.214167616 | K5: =K28*G5*K14*K4^(K14-1) -> 1.1303625 | L5: =L28*G5*L14*L4^(L14-1) -> 1.12858823 | M5: =M28*G5*M14*M4^(M14-1) -> 1.104075 | N5: =N28*G5*N14*N4^(N14-1) -> 1.0515 | O5: =O28*G5*O14*O4^(O14-1) -> 1.125105 | P5: =P28*G5*P14*P4^(P14-1) -> 1.083045 | Q5: =Q28*G5*Q14*Q4^(Q14-1) -> 1.03047 | R5: =R28*G5*R14*R4^(R14-1) -> 1.040985 | S5: =S28*G5*S14*S4^(S14-1) -> 1.0515 | T5: =T28*G5*T14*T4^(T14-1) -> 1.07253 | U5: =U28*G5*U14*U4^(U14-1) -> 1.062015 | V5: =V28*G5*V14*V4^(V14-1) -> 1.0515 | W5: =W28*$G$5*W14*W4^(W14-1) -> 1.040985 | X5: =X28*$G$5*X14*X4^(X14-1) -> 1.09356 | Y5: 1.15665 | Z5: 0.94635 | AA5: 1.083045 | AB5: 1.145489894 | AC5: 1.172736263 | AD5: 1.199935722 | AE5: 1.227098296 | AF5: 1.156245699 | AG5: 1.261633155 | AH5: 1.130021061 | AI5: 1.315602705 | AJ5: 1.342584471 | AK5: 1.369569949
C6: 0.27 | D6: =Inputs!D28 -> C | E6: =Inputs!E28 -> 0.08 | F6: B | G6: =C25*E25 -> 0.014 | H6: =$G$6*H28*H14*H$4^(H14-1) -> 0.0175 | I6: =$G$6*I28*I14*I$4^(I14-1) -> 0.0148492424 | J6: 0.01616580754 | K6: 0.01505 | L6: 0.01502637681 | M6: 0.0147 | N6: 0.014 | O6: 0.01498 | P6: 0.01442 | Q6: 0.01372 | R6: 0.01386 | S6: 0.014 | T6: 0.01428 | U6: 0.01414 | V6: 0.014 | W6: 0.01386 | X6: 0.01456 | Y6: 0.0154 | Z6: 0.0126 | AA6: 0.01442 | AB6: 0.01525141086 | AC6: 0.01561417754 | AD6: 0.01597631964 | AE6: 0.01633797066 | AF6: 0.01539461701 | AG6: 0.01679777858 | AH6: 0.01504545397 | AI6: 0.01751634604 | AJ6: 0.01787558973 | AK6: 0.01823488283
C7: 0.27 | D7: =Inputs!D29 -> D | E7: =Inputs!E29 -> 0.02 | F7: C | G7: =C6*E6+C9*E9+C11*E11+C13*E13+C16*E16+C18*E18+C21*E21+C24*E24+C26*E26 -> 0.3521 | H7: =H28*$G$7*H14*H4^(H14-1) -> 0.440125 | I7: =I28*$G$7*I14*I4^(I14-1) -> 0.3734584465 | J7: 0.4065700596 | K7: 0.3785075 | L7: 0.3779133767 | M7: 0.369705 | N7: 0.3521 | O7: 0.376747 | P7: 0.362663 | Q7: 0.345058 | R7: 0.348579 | S7: 0.3521 | T7: 0.359142 | U7: 0.355621 | V7: 0.3521 | W7: 0.348579 | X7: 0.366184 | Y7: 0.38731 | Z7: 0.31689 | AA7: 0.362663 | AB7: 0.383572983 | AC7: 0.3926965651 | AD7: 0.401804439 | AE7: 0.410899962 | AF7: 0.3871746179 | AG7: 0.4224641312 | AH7: 0.3783931673 | AI7: 0.440536103 | AJ7: 0.4495710817 | AK7: 0.4586073031
B8: control unit | C8: 0.21 | D8: =Inputs!D30 -> A | E8: =Inputs!E30 -> 0.5 | F8: D | G8: =C7*E7+C19*E19+C22*E22+C27*E27 -> 0.1107 | H8: =H28*$G$8*H14*H4^(H14-1) -> 0.138375 | I8: =I28*$G$8*I14*I4^(I14-1) -> 0.117415081 | J8: 0.1278253496 | K8: 0.1190025 | L8: 0.1188157081 | M8: 0.116235 | N8: 0.1107 | O8: 0.118449 | P8: 0.114021 | Q8: 0.108486 | R8: 0.109593 | S8: 0.1107 | T8: 0.112914 | U8: 0.111807 | V8: 0.1107 | W8: 0.109593 | X8: 0.115128 | Y8: 0.12177 | Z8: 0.09963 | AA8: 0.114021 | AB8: 0.1205950844 | AC8: 0.1234635324 | AD8: 0.1263270417 | AE8: 0.129186668 | AF8: 0.1217274359 | AG8: 0.1328224349 | AH8: 0.1189665539 | AI8: 0.1385042505 | AJ8: 0.1413448416 | AK8: 0.1441858235
C9: 0.21 | D9: =Inputs!D31 -> C | E9: =Inputs!E31 -> 0.5 | F9: E | G9: =C14*E14+C28*E28+C30*E30 -> 0.0117 | H9: =H28*$G$9*H14*H4^(H14-1) -> 0.014625 | I9: =I28*$G$9*I14*I4^(I14-1) -> 0.01240972401 | J9: 0.0135099963 | K9: 0.0125775 | L9: 0.01255775776 | M9: 0.012285 | N9: 0.0117 | O9: 0.012519 | P9: 0.012051 | Q9: 0.011466 | R9: 0.011583 | S9: 0.0117 | T9: 0.011934 | U9: 0.011817 | V9: 0.0117 | W9: 0.011583 | X9: 0.012168 | Y9: 0.01287 | Z9: 0.01053 | AA9: 0.012051 | AB9: 0.01274582193 | AC9: 0.01304899123 | AD9: 0.01335163856 | AE9: 0.01365387548 | AF9: 0.01286550136 | AG9: 0.01403814352 | AH9: 0.01257370082 | AI9: 0.01463866062 | AJ9: 0.0149388857 | AK9: 0.01523915208
B10: Inverter | C10: 0.2 | D10: =Inputs!D32 -> A | E10: =Inputs!E32 -> 0.9 | F10: Total | G10: =SUM(G5:G9) -> 1.54 | H10: =SUM(H5:H9) -> 1.925 | I10: =SUM(I5:I9) -> 1.633416665 | J10: 1.778238829 | K10: 1.6555 | L10: 1.652901449 | M10: 1.617 | N10: 1.54 | O10: 1.6478 | P10: 1.5862 | Q10: 1.5092 | R10: 1.5246 | S10: 1.54 | T10: 1.5708 | U10: 1.5554 | V10: 1.54 | W10: 1.5246 | X10: 1.6016 | Y10: 1.694 | Z10: 1.386 | AA10: 1.5862 | AB10: 1.677655194 | AC10: 1.717559529 | AD10: 1.75739516 | AE10: 1.797176772 | AF10: 1.693407871 | AG10: 1.847755643 | AH10: 1.654999937 | AI10: 1.926798065 | AJ10: 1.96631487 | AK10: 2.005837111
C11: 0.2 | D11: =Inputs!D33 -> C | E11: =Inputs!E33 -> 0.1
B12: Yaw system | C12: 0.2 | D12: =Inputs!D34 -> A | E12: =Inputs!E34 -> 0.65
C13: 0.2 | D13: =Inputs!D35 -> C | E13: =Inputs!E35 -> 0.34 | H13: b<1 | L13: b=1 | S13: b>1
C14: 0.2 | D14: =Inputs!D36 -> E | E14: =Inputs!E36 -> 0.01 | H14: 0.5 | I14: 0.5 | J14: 0.5 | K14: 0.5 | L14: 0.5 | M14: 1 | N14: 1 | O14: 1 | P14: 1 | Q14: 1 | R14: 1 | S14: 1 | T14: 1 | U14: 1 | V14: 1 | W14: 1 | X14: 1 | Y14: 1 | Z14: 1 | AA14: 1 | AB14: 1.15 | AC14: 1.15 | AD14: 1.15 | AE14: 1.15 | AF14: 1.15 | AG14: 1.15 | AH14: 1.15 | AI14: 1.15 | AJ14: 1.15 | AK14: 1.15
B15: Brakes | C15: 0.05 | D15: =Inputs!D37 -> A | E15: =Inputs!E37 -> 0.8
C16: 0.05 | D16: =Inputs!D38 -> C | E16: =Inputs!E38 -> 0.2
B17: Gearbox | C17: 0.25 | D17: =Inputs!D39 -> A | E17: =Inputs!E39 -> 0.85
C18: 0.25 | D18: =Inputs!D40 -> C | E18: =Inputs!E40 -> 0.05
C19: 0.25 | D19: =Inputs!D41 -> D | E19: =Inputs!E41 -> 0.1
B20: Generator | C20: 0.13 | D20: =Inputs!D42 -> A | E20: =Inputs!E42 -> 0.5
C21: 0.13 | D21: =Inputs!D43 -> C | E21: =Inputs!E43 -> 0.2
C22: 0.13 | D22: =Inputs!D44 -> D | E22: =Inputs!E44 -> 0.3
B23: Pitch | C23: 0.15 | D23: =Inputs!D45 -> A | E23: =Inputs!E45 -> 0.5
C24: 0.15 | D24: =Inputs!D46 -> C | E24: =Inputs!E46 -> 0.5
B25: Blade | C25: 0.07 | D25: =Inputs!D47 -> B | E25: =Inputs!E47 -> 0.2
C26: 0.07 | D26: =Inputs!D48 -> C | E26: =Inputs!E48 -> 0.2
C27: 0.07 | D27: =Inputs!D49 -> D | E27: =Inputs!E49 -> 0.59
C28: 0.07 | D28: =Inputs!D50 -> E | E28: =Inputs!E50 -> 0.01 | H28: 2.5 | I28: 3 | J28: 4 | K28: 4.3 | L28: 4.8 | M28: 1.05 | N28: 1 | O28: 1.07 | P28: 1.03 | Q28: 0.98 | R28: 0.99 | S28: 1 | T28: 1.02 | U28: 1.01 | V28: 1 | W28: 0.99 | X28: 1.04 | Y28: 1.1 | Z28: 0.9 | AA28: 1.03 | AB28: 0.6 | AC28: 0.61 | AD28: 0.62 | AE28: 0.63 | AF28: 0.59 | AG28: 0.64 | AH28: 0.57 | AI28: 0.66 | AJ28: 0.67 | AK28: 0.68
B29: Shaft and bearing | C29: 0.01 | D29: =Inputs!D51 -> A | E29: =Inputs!E51 -> 0.1
C30: 0.01 | D30: =Inputs!D52 -> E | E30: =Inputs!E52 -> 0.9
E40: Power Law Process (Special case of Poisson to formulate bathcurve)
E41: λ(t)=ρβt^(β-1) | F41: β<1 | G41: Design improvements/ Alternations on field
F42: β=1 | G42: No major design modifications/ tear and wear not apparent yet
F43: β>1 | G43: Normal deterioration of materials, accumulated stresses
B50: Sensitivity Analysis
B51: Failure rates for different wind turbine technologies (Oldest to newest)
C52: simple danish | D52: direct drive
B53: electrical | C53: 0.4 | D53: 1.5
C54: 0.4 | D54: 1.5
C55: 0.4 | D55: 1.5
B56: control unit | C56: 0.3 | D56: 1.1
C57: 0.3 | D57: 1.1
B58: Inverter | C58: 0.2 | D58: 0.2
C59: 0.2 | D59: 0.2
B60: Yaw system | C60: 0.15 | D60: 0.22
C61: 0.15 | D61: 0.22
C62: 0.15 | D62: 0.22
B63: Brakes | C63: 0.18 | D63: 0.025
C64: 0.18 | D64: 0.025
B65: Gearbox | C65: 0.1 | D65: 0.18
C66: 0.1 | D66: 0.18
C67: 0.1 | D67: 0.18
B68: Generator | C68: 0.05 | D68: 0.3
C69: 0.05 | D69: 0.3
C70: 0.05 | D70: 0.3
B71: Pitch | C71: 0.3 | D71: 0.025
C72: 0.3 | D72: 0.025
B73: Blade | C73: 0.025 | D73: 0.5
C74: 0.025 | D74: 0.5
C75: 0.025 | D75: 0.5
C76: 0.025 | D76: 0.5
B77: Shaft and bearing | C77: 0.05 | D77: 0.2
C78: 0.05 | D78: 0.2

Sheet Cost Vessels
A2: Sharing Data
A3: CTV 1 | F3: Mothership | K3: Jack-Up
B4: Day | C4: Year | D4: Total | G4: Day | H4: Year | I4: Total | L4: Day | M4: Year | N4: Total
A5: Spot Market | B5: =B27 -> 1081 | F5: Spot Market | G5: =G27 -> 37534 | K5: Spot Market | L5: =L27 -> 160564
A6: Long Term (1 year) | C6: =C28*CTV!D12 -> 287949 | F6: Long Term (1 year) | H6: =H28*CTV!D12 -> 10000000 | K6: Long Term (1 year) | M6: =M28*CTV!D12 -> 42778000
A7: Purchased | D7: =D29*CTV!D12 -> 1664442 | F7: Purchased | I7: =I29*CTV!D12 -> 57803468 | K7: Purchased (20 year) | N7: =N29*CTV!D12 -> 247271676
A8: O&M Purchased | D8: =D30*CTV!D12 -> 33288.84 | F8: O&M Purchased | I8: =I30*CTV!D12 -> 1156069.36 | K8: O&M Purchased | N8: =N30*CTV!D12 -> 4945433.52
A9: Increase O&M Year | D9: =D31 -> 0.01 | F9: Increase O&M Year | I9: =I31 -> 0.01 | K9: Increase O&M Year | N9: =N31 -> 0.01
A10: Days per year | D10: =D32 -> 200 | K10: Days per year | N10: =N32 -> 190
A11: Limit to operate | C11: =C33 -> 60 | D11: =1.852*C11 -> 111.12
A14: CTV 2
B15: Day | C15: Year | D15: Total
A16: Spot Market | B16: =B38 -> 1880
A17: Long Term (1 year) | C17: =C39*CTV!D12 -> 500780
A18: Purchased (20 year) | D18: =D40*CTV!D12 -> 2894682
A19: O&M Purchased | D19: =D41*CTV!D12 -> 57893.64
A20: Increase O&M Year | D20: =D42 -> 0.02
A24: Input Data
A25: CTV 1 | F25: Mothership | K25: Jack-Up
B26: Day | C26: Year | D26: Total | G26: Day | H26: Year | I26: Total | L26: Day | M26: Year | N26: Total
A27: Spot Market | B27: =Inputs!G58 -> 1081 | F27: Spot Market | G27: =Inputs!K58 -> 37534 | K27: Spot Market | L27: =Inputs!O58 -> 160564
A28: Long Term (1 year) | C28: =Inputs!H59 -> 287949 | F28: Long Term (1 year) | H28: =Inputs!L59 -> 10000000 | K28: Long Term (1 year) | M28: =Inputs!P59 -> 42778000
A29: Purchased | D29: =Inputs!I60 -> 1664442 | F29: Purchased | I29: =Inputs!M60 -> 57803468 | K29: Purchased (20 year) | N29: =Inputs!Q60 -> 247271676
A30: O&M Purchased | D30: =Inputs!I61 -> 33288.84 | F30: O&M Purchased | I30: =Inputs!M61 -> 1156069.36 | K30: O&M Purchased | N30: =Inputs!Q61 -> 4945433.52
A31: Increase O&M Year | D31: =Inputs!I62 -> 0.01 | F31: Increase O&M Year | I31: =Inputs!M62 -> 0.01 | K31: Increase O&M Year | N31: =Inputs!Q62 -> 0.01
A32: Days per year | D32: =Inputs!I63 -> 200 | K32: Days per year | N32: =Inputs!Q63 -> 190
A33: Limit to operate | C33: =Inputs!H64 -> 60 | D33: =Inputs!I64 -> 111.12
A36: CTV 2
B37: Day | C37: Year | D37: Total
A38: Spot Market | B38: =Inputs!G67 -> 1880
A39: Long Term (1 year) | C39: =Inputs!H68 -> 500780
A40: Purchased (20 year) | D40: =Inputs!I69 -> 2894682
A41: O&M Purchased | D41: =Inputs!I70 -> 57893.64
A42: Increase O&M Year | D42: =Inputs!I71 -> 0.02

Sheet Sensitivity
D3: Turbines | E3: 40 | I3: 100 | M3: 200
D4: Distance (km) | E4: 20 | F4: 50 | G4: 100 | H4: 150 | I4: 20 | J4: 50 | K4: 100 | L4: 150 | M4: 20 | N4: 50 | O4: 100 | P4: 150
D5: Base Case Solution | E5: No Offshore Accomm_Spot Market | F5: No Offshore Accomm_Spot Market | G5: No Offshore Accomm_Spot Market | H5: Moth_Spot Market + CTV_Spot Market | I5: No Offshore Accomm_Spot Market | J5: No Offshore Accomm_Spot Market | K5: Moth_Spot Market + CTV_Spot Market | L5: Moth_Spot Market + CTV_Spot Market | M5: No Offshore Accomm_Purchase | N5: JackUp_Purchase + CTV_Spot Market | O5: JackUp_Purchase + CTV_Spot Market | P5: JackUp_Purchase + CTV_Spot Market
D6: Logistic Times (h)
D7: 50% (Less than assumed) | E7: No Offshore Accomm_Spot Market | F7: No Offshore Accomm_Spot Market | G7: No Offshore Accomm_Spot Market | H7: Moth_Spot Market + CTV_Spot Market | I7: No Offshore Accomm_Spot Market | J7: No Offshore Accomm_Spot Market | K7: Moth_Spot Market + CTV_Spot Market | L7: Moth_Spot Market + CTV_Spot Market | M7: Moth_Spot Market + CTV_Spot Market | N7: Moth_Spot Market + CTV_Spot Market | O7: JackUp_Purchase + CTV_Spot Market | P7: JackUp_Purchase + CTV_Spot Market
D8: 300% (Greater than assumed) | E8: No Offshore Accomm_Spot Market | F8: No Offshore Accomm_Spot Market | G8: No Offshore Accomm_Spot Market | H8: Moth_Spot Market + CTV_Spot Market | I8: No Offshore Accomm_Spot Market | J8: No Offshore Accomm_Spot Market | K8: No Offshore Accomm_Purchase | L8: Moth_Spot Market + CTV_Spot Market | M8: No Offshore Accomm_Purchase | N8: JackUp_Purchase + CTV_Spot Market | O8: JackUp_Purchase + CTV_Spot Market | P8: JackUp_Purchase + CTV_Spot Market
D9: Weather delay Times (h)
D10: CTV jack-up 50 | E10: No Offshore Accomm_Spot Market | F10: No Offshore Accomm_Spot Market | G10: No Offshore Accomm_Spot Market | H10: Moth_Spot Market + CTV_Spot Market | I10: No Offshore Accomm_Spot Market | J10: No Offshore Accomm_Spot Market | K10: No Offshore Accomm_Purchase | L10: Moth_Spot Market + CTV_Spot Market | M10: No Offshore Accomm_Purchase | N10: JackUp_Purchase + CTV_Spot Market | O10: JackUp_Purchase + CTV_Spot Market | P10: JackUp_Purchase + CTV_Spot Market
D11: mothership 50 | E11: No Offshore Accomm_Spot Market | F11: No Offshore Accomm_Spot Market | G11: No Offshore Accomm_Spot Market | H11: Moth_Spot Market + CTV_Spot Market | I11: No Offshore Accomm_Spot Market | J11: No Offshore Accomm_Spot Market | K11: No Offshore Accomm_Purchase | L11: Moth_Spot Market + CTV_Spot Market | M11: No Offshore Accomm_Purchase | N11: JackUp_Purchase + CTV_Spot Market | O11: JackUp_Purchase + CTV_Spot Market | P11: JackUp_Purchase + CTV_Spot Market
D12: Lifetime period (yr)
D13: 5 | E13: No Offshore Accomm_Spot Market | F13: No Offshore Accomm_Spot Market | G13: No Offshore Accomm_Spot Market | H13: Moth_Spot Market + CTV_Spot Market | I13: No Offshore Accomm_Spot Market | J13: No Offshore Accomm_Spot Market | K13: Moth_Spot Market + CTV_Spot Market | L13: Moth_Spot Market + CTV_Spot Market | M13: No Offshore Accomm_Spot Market | N13: Moth_Spot Market + CTV_Spot Market | O13: Moth_Spot Market + CTV_Spot Market | P13: Moth_Spot Market + CTV_Spot Market
D14: 10 | E14: No Offshore Accomm_Spot Market | F14: No Offshore Accomm_Spot Market | G14: No Offshore Accomm_Spot Market | H14: Moth_Spot Market + CTV_Spot Market | I14: No Offshore Accomm_Spot Market | J14: No Offshore Accomm_Spot Market | K14: Moth_Spot Market + CTV_Spot Market | L14: Moth_Spot Market + CTV_Spot Market | M14: No Offshore Accomm_Spot Market | N14: Moth_Spot Market + CTV_Spot Market | O14: Moth_Spot Market + CTV_Spot Market | P14: Moth_Spot Market + CTV_Spot Market
D15: 15 | E15: No Offshore Accomm_Spot Market | F15: No Offshore Accomm_Spot Market | G15: No Offshore Accomm_Spot Market | H15: Moth_Spot Market + CTV_Spot Market | I15: No Offshore Accomm_Spot Market | J15: No Offshore Accomm_Spot Market | K15: Moth_Spot Market + CTV_Spot Market | L15: Moth_Spot Market + CTV_Spot Market | M15: No Offshore Accomm_Spot Market | N15: Moth_Spot Market + CTV_Spot Market | O15: Moth_Spot Market + CTV_Spot Market | P15: Moth_Spot Market + CTV_Spot Market
D16: 20 | E16: No Offshore Accomm_Spot Market | F16: No Offshore Accomm_Spot Market | G16: No Offshore Accomm_Spot Market | H16: Moth_Spot Market + CTV_Spot Market | I16: No Offshore Accomm_Spot Market | J16: No Offshore Accomm_Spot Market | K16: Moth_Spot Market + CTV_Spot Market | L16: Moth_Spot Market + CTV_Spot Market | M16: No Offshore Accomm_Spot Market | N16: Moth_Spot Market + CTV_Spot Market | O16: Moth_Spot Market + CTV_Spot Market | P16: Moth_Spot Market + CTV_Spot Market
D17: 25 | E17: No Offshore Accomm_Spot Market | F17: No Offshore Accomm_Spot Market | G17: No Offshore Accomm_Spot Market | H17: Moth_Spot Market + CTV_Spot Market | I17: No Offshore Accomm_Spot Market | J17: No Offshore Accomm_Spot Market | K17: Moth_Spot Market + CTV_Spot Market | L17: Moth_Spot Market + CTV_Spot Market | M17: No Offshore Accomm_Purchase | N17: JackUp_Purchase + CTV_Spot Market | O17: JackUp_Purchase + CTV_Spot Market | P17: JackUp_Purchase + CTV_Spot Market
D18: 30 | E18: No Offshore Accomm_Spot Market | F18: No Offshore Accomm_Spot Market | G18: No Offshore Accomm_Purchase | H18: Moth_Spot Market + CTV_Spot Market | I18: No Offshore Accomm_Spot Market | J18: No Offshore Accomm_Purchase | K18: Moth_Spot Market + CTV_Spot Market | L18: Moth_Spot Market + CTV_Spot Market | M18: JackUp_Purchase + CTV_Spot Market | N18: JackUp_Purchase + CTV_Spot Market | O18: JackUp_Purchase + CTV_Spot Market | P18: JackUp_Purchase + CTV_Spot Market
D19: Turbine Capacity (MW)
D20: 3 | E20: No Offshore Accomm_Spot Market | F20: No Offshore Accomm_Spot Market | G20: No Offshore Accomm_Spot Market | H20: Moth_Spot Market + CTV_Spot Market | I20: No Offshore Accomm_Spot Market | J20: No Offshore Accomm_Spot Market | K20: No Offshore Accomm_Purchase | L20: Moth_Spot Market + CTV_Spot Market | M20: No Offshore Accomm_Purchase | N20: JackUp_Purchase + CTV_Spot Market | O20: JackUp_Purchase + CTV_Spot Market | P20: JackUp_Purchase + CTV_Spot Market
D21: 8 | E21: No Offshore Accomm_Spot Market | F21: No Offshore Accomm_Spot Market | G21: No Offshore Accomm_Spot Market | H21: Moth_Spot Market + CTV_Spot Market | I21: No Offshore Accomm_Spot Market | J21: No Offshore Accomm_Spot Market | K21: Moth_Spot Market + CTV_Spot Market | L21: Moth_Spot Market + CTV_Spot Market | M21: Moth_Spot Market + CTV_Spot Market | N21: Moth_Spot Market + CTV_Spot Market | O21: JackUp_Purchase + CTV_Spot Market | P21: JackUp_Purchase + CTV_Spot Market
D22: Vessel Costs
D23: CTV
D24: 70% of our assumption | E24: No Offshore Accomm_Spot Market | F24: No Offshore Accomm_Spot Market | G24: No Offshore Accomm_Spot Market | H24: Moth_Spot Market + CTV_Spot Market | I24: No Offshore Accomm_Spot Market | J24: No Offshore Accomm_Spot Market | K24: Moth_Spot Market + CTV_Spot Market | L24: Moth_Spot Market + CTV_Spot Market | M24: No Offshore Accomm_Purchase | N24: JackUp_Purchase + CTV_Spot Market | O24: JackUp_Purchase + CTV_Spot Market | P24: JackUp_Purchase + CTV_Spot Market
